{"text_format":"1","workbook":"xlsx","n_sheets":14,"sheets":["Gestion Mdp Admin","Indicateurs - 2020 -","Menu","Listing Produits","Listing Produits EPI","Stock Produits EPI","Histo Stock Produits EPI","EntreeSortie","Historique Commande","GestionLISTE","Etiquette","Contacts","Parc","Trame Bon de Commande"],"not_rendered":{"charts":1,"images":58,"macros":1,"external_links":4,"defined_names":260,"comments":1,"pivot_tables":1},"unopened":[],"bounds":{"document_bytes":16777216,"sheet_cells":100000,"rows_first":2000,"rows_last":500,"rows_between":2000,"halvings":0,"cell_chars":16384,"cell_head_chars":4096},"cells_cut":0,"cells_raw":0,"read":"whole","date_system":"1900"}

{"sheet":"Gestion Mdp Admin","index":0,"n_rows":3,"n_cols":4,"rows_kept":3,"cut":false,"hidden":false,"merged":[]}
["Users","Passworld","Niveau","Date"]
["Users","Passworld","Niveau","Date"]
["Admin","reglaet",1,"2020-04-09"]

{"sheet":"Indicateurs - 2020 -","index":1,"n_rows":12,"n_cols":22,"rows_kept":12,"cut":false,"hidden":false,"merged":[]}
[]
[]
[]
[]
[]
[]
[null,null,null,null,null,null,null,null,null,null,null,null,null,null,null,null,null,null,null,null,"Étiquettes de lignes","Somme de Quantité"]
[null,null,null,null,null,null,null,null,null,null,null,null,null,null,null,null,null,null,null,null,"(vide)"]
[null,null,null,null,null,null,null,null,null,null,null,null,null,null,null,null,null,null,null,null,"TECHLINE ADDITIF MOUILLANT 20L",322]
[null,null,null,null,null,null,null,null,null,null,null,null,null,null,null,null,null,null,null,null,"TECHLINE JAVEL PASTILLES 500g",12]
[null,null,null,null,null,null,null,null,null,null,null,null,null,null,null,null,null,null,null,null,"TRANSFIBRE 125g ABRICOT",200]
[null,null,null,null,null,null,null,null,null,null,null,null,null,null,null,null,null,null,null,null,"Total général",534]

{"sheet":"Menu","index":2,"n_rows":6,"n_cols":13,"rows_kept":6,"cut":false,"hidden":false,"merged":[[2,8,2,11],[1,8,1,11],[7,23,8,23],[7,24,8,24],[1,12,1,14],[2,12,2,14],[4,8,4,11],[4,12,4,14],[5,8,5,11],[5,12,5,14]]}
[]
[null,null,null,null,null,null,null,null,"Suivi Commande",null,null,null,{"$f":"'Historique Commande'!L1","v":"OK"}]
[null,null,null,null,null,null,null,null,"Suivi Produit à Commander",null,null,null,{"$f":"'Listing Produits'!S6","v":"80 Produit(s) à Commander"}]
[]
[null,null,null,null,null,null,null,null,"Suivi Produit EPI à Commander",null,null,null,{"$f":"'Listing Produits EPI'!S6","v":"OK"}]
[null,null,null,null,null,null,null,null,"Suivi Date de Péremption",null,null,null,{"$f":"'Stock Produits EPI'!G2","v":"OK"}]

{"sheet":"Listing Produits","index":3,"n_rows":87,"n_cols":24,"rows_kept":87,"cut":false,"hidden":false,"merged":[[0,8,0,9],[4,0,4,1]]}
[]
[]
[]
[]
[{"$f":"TODAY()","v":"2021-05-17"}]
[null,null,null,null,null,null,null,null,null,null,null,null,null,null,null,null,1,null,{"$f":"IF(COUNTIF(Produits_à_commander,\"A COMMANDER\")>0, COUNTIF(Produits_à_commander,\"A COMMANDER\") &\" \" & S7,\"OK\")","v":"80 Produit(s) à Commander"}]
["Référence Produit","Conditionnement","Dosage","Descriptif","Date de Péremption 1","Lieux","Fournisseur 1","Reference F1","Delais F1","Prix unitaire F1","Fournisseur 2","Reference F2","Delais F2","Prix unitaire F2","Stock","Date inventaire","Ancien Stock","Stock Min","Produit(s) à Commander","Coût stock","Lieux de Stockage","Coût stock quantité minimale","alerte","Ecart suite inventaire"]
["TRANSFIBRE 125g ABRICOT","Carton","125g","TRANSFIBRE 125g ABRICOT 24 unités par carton FRANCO de port et d'emballage","00:00:00","LV 1","NUTRISENS","TRF001","Dispo permanent en stock",1,"","","",null,{"$f":"IFERROR(VLOOKUP(Produits[[#This Row],[Référence Produit]]&Produits[[#This Row],[Lieux]],inventaire,MATCH(\"Qté\",OFFSET(inventaire,-1,,1),0),FALSE),0)","v":124},{"$f":"IFERROR(VLOOKUP(Produits[[#This Row],[Référence Produit]]&Produits[[#This Row],[Lieux]],inventaire,MATCH(\"Date maj\",OFFSET(inventaire,-1,,1),0),FALSE),0)","v":"2021-05-18"},0,{"$f":"IFERROR(VLOOKUP(Produits[[#This Row],[Référence Produit]]&Produits[[#This Row],[Lieux]],inventaire,MATCH(\"Qté min\",OFFSET(inventaire,-1,,1),0),FALSE),0)","v":"1900-01-01"},{"$f":"IF(OR(AND(NOT(ISBLANK($E8)),$E8<TODAY()),$O8-$R8<0),\"A COMMANDER\",\"\")","v":"A COMMANDER"},0,"Réserve Infirmerie",{"$f":"IF(O8>R8,\"\",(R8-O8)*J8)","v":""},{"$f":"IF(O8<R8,R8-O8,\"\")","v":""}]
["TRANSFIBRE 125g PRUNEAU","Carton","24 Unités","TRANSFIBRE 125g PRUNEAU","00:00:00","LV 1","NUTRISENS","TRF002","Dispo permanent en stock",1,"","","",null,{"$f":"IFERROR(VLOOKUP(Produits[[#This Row],[Référence Produit]]&Produits[[#This Row],[Lieux]],inventaire,MATCH(\"Qté\",OFFSET(inventaire,-1,,1),0),FALSE),0)","v":235},{"$f":"IFERROR(VLOOKUP(Produits[[#This Row],[Référence Produit]]&Produits[[#This Row],[Lieux]],inventaire,MATCH(\"Date maj\",OFFSET(inventaire,-1,,1),0),FALSE),0)","v":"2021-05-17"},0,{"$f":"IFERROR(VLOOKUP(Produits[[#This Row],[Référence Produit]]&Produits[[#This Row],[Lieux]],inventaire,MATCH(\"Qté min\",OFFSET(inventaire,-1,,1),0),FALSE),0)","v":0},{"$f":"IF(OR(AND(NOT(ISBLANK($E9)),$E9<TODAY()),$O9-$R9<0),\"A COMMANDER\",\"\")","v":"A COMMANDER"},0,"Réserve Infirmerie",{"$f":"IF(O9>R9,\"\",(R9-O9)*J9)","v":""},{"$f":"IF(O9<R9,R9-O9,\"\")","v":""}]
["TRANSFIBRE 125g RHUBARBE","Carton","24 Unités","TRANSFIBRE 125g RHUBARBE","00:00:00","LV 1","NUTRISENS","TRF003","Dispo permanent en stock",1,"","","",null,{"$f":"IFERROR(VLOOKUP(Produits[[#This Row],[Référence Produit]]&Produits[[#This Row],[Lieux]],inventaire,MATCH(\"Qté\",OFFSET(inventaire,-1,,1),0),FALSE),0)","v":140},{"$f":"IFERROR(VLOOKUP(Produits[[#This Row],[Référence Produit]]&Produits[[#This Row],[Lieux]],inventaire,MATCH(\"Date maj\",OFFSET(inventaire,-1,,1),0),FALSE),0)","v":"2021-05-13"},0,{"$f":"IFERROR(VLOOKUP(Produits[[#This Row],[Référence Produit]]&Produits[[#This Row],[Lieux]],inventaire,MATCH(\"Qté min\",OFFSET(inventaire,-1,,1),0),FALSE),0)","v":0},"A COMMANDER",0,"Réserve Infirmerie","",""]
["iD Form long (64 cm) Super 5310275210","Carton","Unité","iD Form long (64 cm) Super 5310275210\r\n20 Cartons/ Palette  6 Sachets/Cartons  21 Pieces / Sachet","00:00:00","LV 1","VITAE","44068","Dispo permanent en stock",32.69,"","","",null,{"$f":"IFERROR(VLOOKUP(Produits[[#This Row],[Référence Produit]]&Produits[[#This Row],[Lieux]],inventaire,MATCH(\"Qté\",OFFSET(inventaire,-1,,1),0),FALSE),0)","v":0},{"$f":"IFERROR(VLOOKUP(Produits[[#This Row],[Référence Produit]]&Produits[[#This Row],[Lieux]],inventaire,MATCH(\"Date maj\",OFFSET(inventaire,-1,,1),0),FALSE),0)","v":"00:00:00"},0,{"$f":"IFERROR(VLOOKUP(Produits[[#This Row],[Référence Produit]]&Produits[[#This Row],[Lieux]],inventaire,MATCH(\"Qté min\",OFFSET(inventaire,-1,,1),0),FALSE),0)","v":0},"A COMMANDER",0,"Réserve Balnéo",0,""]
["iD Pants S Plus 5531165140","Carton","Unité","iD Pants S Plus 5531165140\r\n20 Cartons/Palette  8 Sachets / cartons  14 Pieces/ Sachet\r\n","00:00:00","LV 1","VITAE","44053","Dispo permanent en stock",null,"","","",null,{"$f":"IFERROR(VLOOKUP(Produits[[#This Row],[Référence Produit]]&Produits[[#This Row],[Lieux]],inventaire,MATCH(\"Qté\",OFFSET(inventaire,-1,,1),0),FALSE),0)","v":125},{"$f":"IFERROR(VLOOKUP(Produits[[#This Row],[Référence Produit]]&Produits[[#This Row],[Lieux]],inventaire,MATCH(\"Date maj\",OFFSET(inventaire,-1,,1),0),FALSE),0)","v":"2021-05-05"},0,{"$f":"IFERROR(VLOOKUP(Produits[[#This Row],[Référence Produit]]&Produits[[#This Row],[Lieux]],inventaire,MATCH(\"Qté min\",OFFSET(inventaire,-1,,1),0),FALSE),0)","v":10},"A COMMANDER",0,"Réserve Balnéo","",""]
["iD Pants M Super 5531275120","Carton","Unité","iD Pants M Super 5531275120\r\n","00:00:00","LV 1","VITAE","398828","Dispo permanent en stock",null,"","","",null,{"$f":"IFERROR(VLOOKUP(Produits[[#This Row],[Référence Produit]]&Produits[[#This Row],[Lieux]],inventaire,MATCH(\"Qté\",OFFSET(inventaire,-1,,1),0),FALSE),0)","v":65},{"$f":"IFERROR(VLOOKUP(Produits[[#This Row],[Référence Produit]]&Produits[[#This Row],[Lieux]],inventaire,MATCH(\"Date maj\",OFFSET(inventaire,-1,,1),0),FALSE),0)","v":"2021-04-26"},0,{"$f":"IFERROR(VLOOKUP(Produits[[#This Row],[Référence Produit]]&Produits[[#This Row],[Lieux]],inventaire,MATCH(\"Qté min\",OFFSET(inventaire,-1,,1),0),FALSE),0)","v":25},"A COMMANDER",0,"Réserve Balnéo","",""]
["iD Pants L Super 5531375120D","Carton","Unité","iD Pants L Super 5531375120D\r\n","00:00:00","LV 1","VITAE","398829","Dispo permanent en stock",null,"","","",null,{"$f":"IFERROR(VLOOKUP(Produits[[#This Row],[Référence Produit]]&Produits[[#This Row],[Lieux]],inventaire,MATCH(\"Qté\",OFFSET(inventaire,-1,,1),0),FALSE),0)","v":52},{"$f":"IFERROR(VLOOKUP(Produits[[#This Row],[Référence Produit]]&Produits[[#This Row],[Lieux]],inventaire,MATCH(\"Date maj\",OFFSET(inventaire,-1,,1),0),FALSE),0)","v":"2021-04-26"},0,{"$f":"IFERROR(VLOOKUP(Produits[[#This Row],[Référence Produit]]&Produits[[#This Row],[Lieux]],inventaire,MATCH(\"Qté min\",OFFSET(inventaire,-1,,1),0),FALSE),0)","v":3},"A COMMANDER",0,"Réserve Balnéo","",""]
["iD Slip S Plus 5630160140","Carton","Unité","iD Slip S Plus 5630160140\r\n42 Cartons / Palette  4 Sachets / Carton  14 Pieces / Sachet\r\n","00:00:00","LV 1","VITAE","44035","Dispo permanent en stock",null,"","","",null,{"$f":"IFERROR(VLOOKUP(Produits[[#This Row],[Référence Produit]]&Produits[[#This Row],[Lieux]],inventaire,MATCH(\"Qté\",OFFSET(inventaire,-1,,1),0),FALSE),0)","v":350},{"$f":"IFERROR(VLOOKUP(Produits[[#This Row],[Référence Produit]]&Produits[[#This Row],[Lieux]],inventaire,MATCH(\"Date maj\",OFFSET(inventaire,-1,,1),0),FALSE),0)","v":"2021-05-03"},0,{"$f":"IFERROR(VLOOKUP(Produits[[#This Row],[Référence Produit]]&Produits[[#This Row],[Lieux]],inventaire,MATCH(\"Qté min\",OFFSET(inventaire,-1,,1),0),FALSE),0)","v":15},"A COMMANDER",0,"Réserve Balnéo","",""]
["iD Slip M Plus 5610260280-01","Carton","Unité","iD Slip M Plus 5610260280-01\r\n24 Cartons/Palette  4 Sachets/Carton   28 Pieces/Sachet\r\n","00:00:00","LV 1","VITAE","44036","Dispo permanent en stock",null,"","","",null,{"$f":"IFERROR(VLOOKUP(Produits[[#This Row],[Référence Produit]]&Produits[[#This Row],[Lieux]],inventaire,MATCH(\"Qté\",OFFSET(inventaire,-1,,1),0),FALSE),0)","v":52},{"$f":"IFERROR(VLOOKUP(Produits[[#This Row],[Référence Produit]]&Produits[[#This Row],[Lieux]],inventaire,MATCH(\"Date maj\",OFFSET(inventaire,-1,,1),0),FALSE),0)","v":"2021-05-05"},0,{"$f":"IFERROR(VLOOKUP(Produits[[#This Row],[Référence Produit]]&Produits[[#This Row],[Lieux]],inventaire,MATCH(\"Qté min\",OFFSET(inventaire,-1,,1),0),FALSE),0)","v":0},"A COMMANDER",0,"Réserve Balnéo","",""]
["iD Slip L Plus 5610360280-03","Carton","Unité","iD Slip L Plus 5610360280-03\r\n24 Cartons/Palette  4 Sachets/Carton  28 Pieces / Sachet\r\n","00:00:00","LV 1","VITAE","44037","Dispo permanent en stock",null,"","","",null,{"$f":"IFERROR(VLOOKUP(Produits[[#This Row],[Référence Produit]]&Produits[[#This Row],[Lieux]],inventaire,MATCH(\"Qté\",OFFSET(inventaire,-1,,1),0),FALSE),0)","v":13},{"$f":"IFERROR(VLOOKUP(Produits[[#This Row],[Référence Produit]]&Produits[[#This Row],[Lieux]],inventaire,MATCH(\"Date maj\",OFFSET(inventaire,-1,,1),0),FALSE),0)","v":"2021-05-03"},0,{"$f":"IFERROR(VLOOKUP(Produits[[#This Row],[Référence Produit]]&Produits[[#This Row],[Lieux]],inventaire,MATCH(\"Qté min\",OFFSET(inventaire,-1,,1),0),FALSE),0)","v":0},"A COMMANDER",0,"Réserve Balnéo","",""]
["iD Slip M Extra Plus 5610270280-01","Carton","Unité","iD Slip M Extra Plus 5610270280-01\r\n30 Cartons / Palette  3 Sachets / Carton  28 Pieces / Sachet\r\n","00:00:00","LV 1","VITAE","44039","Dispo permanent en stock",34.659999999999997,"","","",null,{"$f":"IFERROR(VLOOKUP(Produits[[#This Row],[Référence Produit]]&Produits[[#This Row],[Lieux]],inventaire,MATCH(\"Qté\",OFFSET(inventaire,-1,,1),0),FALSE),0)","v":27},{"$f":"IFERROR(VLOOKUP(Produits[[#This Row],[Référence Produit]]&Produits[[#This Row],[Lieux]],inventaire,MATCH(\"Date maj\",OFFSET(inventaire,-1,,1),0),FALSE),0)","v":"2021-05-10"},0,{"$f":"IFERROR(VLOOKUP(Produits[[#This Row],[Référence Produit]]&Produits[[#This Row],[Lieux]],inventaire,MATCH(\"Qté min\",OFFSET(inventaire,-1,,1),0),FALSE),0)","v":0},"A COMMANDER",0,"Réserve Balnéo","",""]
["iD Slip L Extra Plus 5610370280-03","Carton","Unité","iD Slip L Extra Plus 5610370280-03\r\n20 Cartons / Palette  4 Sachets / Carton  28Pieces / Sachet\r\n","00:00:00","LV 1","VITAE","44040","Dispo permanent en stock",null,"","","",null,{"$f":"IFERROR(VLOOKUP(Produits[[#This Row],[Référence Produit]]&Produits[[#This Row],[Lieux]],inventaire,MATCH(\"Qté\",OFFSET(inventaire,-1,,1),0),FALSE),0)","v":88},{"$f":"IFERROR(VLOOKUP(Produits[[#This Row],[Référence Produit]]&Produits[[#This Row],[Lieux]],inventaire,MATCH(\"Date maj\",OFFSET(inventaire,-1,,1),0),FALSE),0)","v":"2021-05-11"},0,{"$f":"IFERROR(VLOOKUP(Produits[[#This Row],[Référence Produit]]&Produits[[#This Row],[Lieux]],inventaire,MATCH(\"Qté min\",OFFSET(inventaire,-1,,1),0),FALSE),0)","v":0},"A COMMANDER",0,"Réserve Balnéo","",""]
["iD Slip S Super 5630175140","Carton","Unité","iD Slip S Super 5630175140\r\n42 Cartons / Palette  4 Sachets / Carton  14 Pieces / Sachet\r\n","00:00:00","LV 1","VITAE","44041","Dispo permanent en stock",null,"","","",null,{"$f":"IFERROR(VLOOKUP(Produits[[#This Row],[Référence Produit]]&Produits[[#This Row],[Lieux]],inventaire,MATCH(\"Qté\",OFFSET(inventaire,-1,,1),0),FALSE),0)","v":32},{"$f":"IFERROR(VLOOKUP(Produits[[#This Row],[Référence Produit]]&Produits[[#This Row],[Lieux]],inventaire,MATCH(\"Date maj\",OFFSET(inventaire,-1,,1),0),FALSE),0)","v":"2021-05-08"},0,{"$f":"IFERROR(VLOOKUP(Produits[[#This Row],[Référence Produit]]&Produits[[#This Row],[Lieux]],inventaire,MATCH(\"Qté min\",OFFSET(inventaire,-1,,1),0),FALSE),0)","v":0},"A COMMANDER",0,"Réserve Balnéo","",""]
["iD Slip M Super5630275280-01","Carton","Unité","iD Slip M Super5630275280-01\r\n","00:00:00","LV 1","VITAE","44042","Dispo permanent en stock",null,"","","",null,{"$f":"IFERROR(VLOOKUP(Produits[[#This Row],[Référence Produit]]&Produits[[#This Row],[Lieux]],inventaire,MATCH(\"Qté\",OFFSET(inventaire,-1,,1),0),FALSE),0)","v":47},{"$f":"IFERROR(VLOOKUP(Produits[[#This Row],[Référence Produit]]&Produits[[#This Row],[Lieux]],inventaire,MATCH(\"Date maj\",OFFSET(inventaire,-1,,1),0),FALSE),0)","v":"2021-05-19"},0,{"$f":"IFERROR(VLOOKUP(Produits[[#This Row],[Référence Produit]]&Produits[[#This Row],[Lieux]],inventaire,MATCH(\"Qté min\",OFFSET(inventaire,-1,,1),0),FALSE),0)","v":0},"A COMMANDER",0,"Réserve Balnéo","",""]
["iD Slip L Super 5630375280-01","Carton","Unité","iD Slip L Super 5630375280-01\r\n24 Cartons/Palette  3 Sachets/Carton  28 Pieces / Sachet\r\n\r\n","00:00:00","LV 1","VITAE","44043","Dispo permanent en stock",null,"","","",null,{"$f":"IFERROR(VLOOKUP(Produits[[#This Row],[Référence Produit]]&Produits[[#This Row],[Lieux]],inventaire,MATCH(\"Qté\",OFFSET(inventaire,-1,,1),0),FALSE),0)","v":65},{"$f":"IFERROR(VLOOKUP(Produits[[#This Row],[Référence Produit]]&Produits[[#This Row],[Lieux]],inventaire,MATCH(\"Date maj\",OFFSET(inventaire,-1,,1),0),FALSE),0)","v":"2021-05-19"},0,{"$f":"IFERROR(VLOOKUP(Produits[[#This Row],[Référence Produit]]&Produits[[#This Row],[Lieux]],inventaire,MATCH(\"Qté min\",OFFSET(inventaire,-1,,1),0),FALSE),0)","v":0},"A COMMANDER",0,"Réserve Balnéo","",""]
["iD Slip XL Super 5630475140","Carton","Unité","iD Slip XL Super 5630475140\r\n24 Cartons / Palette  4 Sachets / Carton  14 Pieces / Sachet\r\n","00:00:00","LV 1","VITAE","44044","Dispo permanent en stock",null,"","","",null,{"$f":"IFERROR(VLOOKUP(Produits[[#This Row],[Référence Produit]]&Produits[[#This Row],[Lieux]],inventaire,MATCH(\"Qté\",OFFSET(inventaire,-1,,1),0),FALSE),0)","v":89},{"$f":"IFERROR(VLOOKUP(Produits[[#This Row],[Référence Produit]]&Produits[[#This Row],[Lieux]],inventaire,MATCH(\"Date maj\",OFFSET(inventaire,-1,,1),0),FALSE),0)","v":"2021-05-20"},0,{"$f":"IFERROR(VLOOKUP(Produits[[#This Row],[Référence Produit]]&Produits[[#This Row],[Lieux]],inventaire,MATCH(\"Qté min\",OFFSET(inventaire,-1,,1),0),FALSE),0)","v":0},"A COMMANDER",0,"Réserve Balnéo","",""]
["iD Slip S Maxi 5630180200","Carton","Unité","iD Slip S Maxi 5630180200\r\n36 Cartons / Palette 4 Sachets/Carton  20 Pieces / Sachet\r\n","00:00:00","LV 1","VITAE","44293","Dispo permanent en stock",null,"","","",null,{"$f":"IFERROR(VLOOKUP(Produits[[#This Row],[Référence Produit]]&Produits[[#This Row],[Lieux]],inventaire,MATCH(\"Qté\",OFFSET(inventaire,-1,,1),0),FALSE),0)","v":0},{"$f":"IFERROR(VLOOKUP(Produits[[#This Row],[Référence Produit]]&Produits[[#This Row],[Lieux]],inventaire,MATCH(\"Date maj\",OFFSET(inventaire,-1,,1),0),FALSE),0)","v":"00:00:00"},0,{"$f":"IFERROR(VLOOKUP(Produits[[#This Row],[Référence Produit]]&Produits[[#This Row],[Lieux]],inventaire,MATCH(\"Qté min\",OFFSET(inventaire,-1,,1),0),FALSE),0)","v":0},"A COMMANDER",0,"Réserve Balnéo",0,""]
["iD Slip M Maxi 5630280151","Carton","Unité","iD Slip M Maxi 5630280151\r\n36 Cartons / Palette  3 Scahts / Carton  15 Pieces / Sachet\r\n","00:00:00","LV 1","VITAE","44294","Dispo permanent en stock",null,"","","",null,{"$f":"IFERROR(VLOOKUP(Produits[[#This Row],[Référence Produit]]&Produits[[#This Row],[Lieux]],inventaire,MATCH(\"Qté\",OFFSET(inventaire,-1,,1),0),FALSE),0)","v":0},{"$f":"IFERROR(VLOOKUP(Produits[[#This Row],[Référence Produit]]&Produits[[#This Row],[Lieux]],inventaire,MATCH(\"Date maj\",OFFSET(inventaire,-1,,1),0),FALSE),0)","v":"00:00:00"},0,{"$f":"IFERROR(VLOOKUP(Produits[[#This Row],[Référence Produit]]&Produits[[#This Row],[Lieux]],inventaire,MATCH(\"Qté min\",OFFSET(inventaire,-1,,1),0),FALSE),0)","v":0},"A COMMANDER",0,"Réserve Balnéo",0,""]
["iD Slip L Maxi 5630380151","Carton","Unité","iD Slip L Maxi 5630380151\r\n28 cartons / Palette  3 Sachets / Carton  15 Pieces / Sachet\r\n","00:00:00","LV 1","VITAE","44295","Dispo permanent en stock",null,"","","",null,{"$f":"IFERROR(VLOOKUP(Produits[[#This Row],[Référence Produit]]&Produits[[#This Row],[Lieux]],inventaire,MATCH(\"Qté\",OFFSET(inventaire,-1,,1),0),FALSE),0)","v":0},{"$f":"IFERROR(VLOOKUP(Produits[[#This Row],[Référence Produit]]&Produits[[#This Row],[Lieux]],inventaire,MATCH(\"Date maj\",OFFSET(inventaire,-1,,1),0),FALSE),0)","v":"00:00:00"},0,{"$f":"IFERROR(VLOOKUP(Produits[[#This Row],[Référence Produit]]&Produits[[#This Row],[Lieux]],inventaire,MATCH(\"Qté min\",OFFSET(inventaire,-1,,1),0),FALSE),0)","v":0},"A COMMANDER",0,"Réserve Balnéo",0,""]
["iD Expert Protect 60x90 Plus 5800960300","Carton","Unité","iD Expert Protect 60x90 Plus 5800960300\r\n36 Cartons / Palette  4 Sachets / Carton  30 Pieces / Sachet\r\n","00:00:00","LV 1","VITAE","43926","Dispo permanent en stock",null,"","","",null,{"$f":"IFERROR(VLOOKUP(Produits[[#This Row],[Référence Produit]]&Produits[[#This Row],[Lieux]],inventaire,MATCH(\"Qté\",OFFSET(inventaire,-1,,1),0),FALSE),0)","v":0},{"$f":"IFERROR(VLOOKUP(Produits[[#This Row],[Référence Produit]]&Produits[[#This Row],[Lieux]],inventaire,MATCH(\"Date maj\",OFFSET(inventaire,-1,,1),0),FALSE),0)","v":"00:00:00"},0,{"$f":"IFERROR(VLOOKUP(Produits[[#This Row],[Référence Produit]]&Produits[[#This Row],[Lieux]],inventaire,MATCH(\"Qté min\",OFFSET(inventaire,-1,,1),0),FALSE),0)","v":0},"A COMMANDER",0,"Réserve Balnéo",0,""]
["iD Care Lingettes Care 859006401","Carton","Unité","iD Care Lingettes Care 859006401\r\n44 Cartons / Palette  8 Sachets / Carton  63 Pieces / Sachets\r\n","00:00:00","LV 1","VITAE","46235","Dispo permanent en stock",null,"","","",null,{"$f":"IFERROR(VLOOKUP(Produits[[#This Row],[Référence Produit]]&Produits[[#This Row],[Lieux]],inventaire,MATCH(\"Qté\",OFFSET(inventaire,-1,,1),0),FALSE),0)","v":85},{"$f":"IFERROR(VLOOKUP(Produits[[#This Row],[Référence Produit]]&Produits[[#This Row],[Lieux]],inventaire,MATCH(\"Date maj\",OFFSET(inventaire,-1,,1),0),FALSE),0)","v":"2021-05-06"},0,{"$f":"IFERROR(VLOOKUP(Produits[[#This Row],[Référence Produit]]&Produits[[#This Row],[Lieux]],inventaire,MATCH(\"Qté min\",OFFSET(inventaire,-1,,1),0),FALSE),0)","v":25},"A COMMANDER",0,"Réserve Balnéo","",""]
["Care Gant de toilette 85310","Carton","Unité","Care Gant de toilette 85310\r\n48 Cartons / Palette  20 Sachets / Carton  50 Pieces / Sachet\r\n","00:00:00","LV 1","VITAE","33079","Dispo permanent en stock",null,"","","",null,{"$f":"IFERROR(VLOOKUP(Produits[[#This Row],[Référence Produit]]&Produits[[#This Row],[Lieux]],inventaire,MATCH(\"Qté\",OFFSET(inventaire,-1,,1),0),FALSE),0)","v":0},{"$f":"IFERROR(VLOOKUP(Produits[[#This Row],[Référence Produit]]&Produits[[#This Row],[Lieux]],inventaire,MATCH(\"Date maj\",OFFSET(inventaire,-1,,1),0),FALSE),0)","v":"00:00:00"},0,{"$f":"IFERROR(VLOOKUP(Produits[[#This Row],[Référence Produit]]&Produits[[#This Row],[Lieux]],inventaire,MATCH(\"Qté min\",OFFSET(inventaire,-1,,1),0),FALSE),0)","v":0},"A COMMANDER",0,"Réserve Balnéo",0,""]
["Rectangular Maxi Plus NW 5930000280","Carton","Unité","Care Gant de toilette 85310\r\n36 Cartons / Palette  4 Sachets / Carton  28 Pieces / Sachet\r\n","00:00:00","LV 1","VITAE","44072","Dispo permanent en stock",null,null,null,null,null,{"$f":"IFERROR(VLOOKUP(Produits[[#This Row],[Référence Produit]]&Produits[[#This Row],[Lieux]],inventaire,MATCH(\"Qté\",OFFSET(inventaire,-1,,1),0),FALSE),0)","v":45},{"$f":"IFERROR(VLOOKUP(Produits[[#This Row],[Référence Produit]]&Produits[[#This Row],[Lieux]],inventaire,MATCH(\"Date maj\",OFFSET(inventaire,-1,,1),0),FALSE),0)","v":"2021-05-10"},0,{"$f":"IFERROR(VLOOKUP(Produits[[#This Row],[Référence Produit]]&Produits[[#This Row],[Lieux]],inventaire,MATCH(\"Qté min\",OFFSET(inventaire,-1,,1),0),FALSE),0)","v":0},"A COMMANDER",0,null,"",{"$f":"IF(O30<R30,R30-O30,\"\")","v":""}]
["iD Form long (64 cm) Super 5310275210","Carton","Unité","iD Form long (64 cm) Super 5310275210\r\n20 Cartons/ Palette  6 Sachets/Cartons  21 Pieces / Sachet","00:00:00","LV 2","VITAE","44068","Dispo permanent en stock",32.68,"","","",null,{"$f":"IFERROR(VLOOKUP(Produits[[#This Row],[Référence Produit]]&Produits[[#This Row],[Lieux]],inventaire,MATCH(\"Qté\",OFFSET(inventaire,-1,,1),0),FALSE),0)","v":0},{"$f":"IFERROR(VLOOKUP(Produits[[#This Row],[Référence Produit]]&Produits[[#This Row],[Lieux]],inventaire,MATCH(\"Date maj\",OFFSET(inventaire,-1,,1),0),FALSE),0)","v":"00:00:00"},0,{"$f":"IFERROR(VLOOKUP(Produits[[#This Row],[Référence Produit]]&Produits[[#This Row],[Lieux]],inventaire,MATCH(\"Qté min\",OFFSET(inventaire,-1,,1),0),FALSE),0)","v":0},"A COMMANDER",0,"Réserve Balnéo",0,""]
["iD Pants S Plus 5531165140","Carton","Unité","iD Pants S Plus 5531165140\r\n20 Cartons/Palette  8 Sachets / cartons  14 Pieces/ Sachet\r\n","00:00:00","LV 2","VITAE","44053","Dispo permanent en stock",null,"","","",null,{"$f":"IFERROR(VLOOKUP(Produits[[#This Row],[Référence Produit]]&Produits[[#This Row],[Lieux]],inventaire,MATCH(\"Qté\",OFFSET(inventaire,-1,,1),0),FALSE),0)","v":0},{"$f":"IFERROR(VLOOKUP(Produits[[#This Row],[Référence Produit]]&Produits[[#This Row],[Lieux]],inventaire,MATCH(\"Date maj\",OFFSET(inventaire,-1,,1),0),FALSE),0)","v":"00:00:00"},0,{"$f":"IFERROR(VLOOKUP(Produits[[#This Row],[Référence Produit]]&Produits[[#This Row],[Lieux]],inventaire,MATCH(\"Qté min\",OFFSET(inventaire,-1,,1),0),FALSE),0)","v":0},"A COMMANDER",0,"Réserve Balnéo",0,""]
["iD Pants M Super 5531275120","Carton","Unité","iD Pants M Super 5531275120\r\n","00:00:00","LV 2","VITAE","398828","Dispo permanent en stock",null,"","","",null,{"$f":"IFERROR(VLOOKUP(Produits[[#This Row],[Référence Produit]]&Produits[[#This Row],[Lieux]],inventaire,MATCH(\"Qté\",OFFSET(inventaire,-1,,1),0),FALSE),0)","v":0},{"$f":"IFERROR(VLOOKUP(Produits[[#This Row],[Référence Produit]]&Produits[[#This Row],[Lieux]],inventaire,MATCH(\"Date maj\",OFFSET(inventaire,-1,,1),0),FALSE),0)","v":"00:00:00"},0,{"$f":"IFERROR(VLOOKUP(Produits[[#This Row],[Référence Produit]]&Produits[[#This Row],[Lieux]],inventaire,MATCH(\"Qté min\",OFFSET(inventaire,-1,,1),0),FALSE),0)","v":0},"A COMMANDER",0,"Réserve Balnéo",0,""]
["iD Pants L Super 5531375120D","Carton","Unité","iD Pants L Super 5531375120D\r\n","00:00:00","LV 2","VITAE","398829","Dispo permanent en stock",null,"","","",null,{"$f":"IFERROR(VLOOKUP(Produits[[#This Row],[Référence Produit]]&Produits[[#This Row],[Lieux]],inventaire,MATCH(\"Qté\",OFFSET(inventaire,-1,,1),0),FALSE),0)","v":0},{"$f":"IFERROR(VLOOKUP(Produits[[#This Row],[Référence Produit]]&Produits[[#This Row],[Lieux]],inventaire,MATCH(\"Date maj\",OFFSET(inventaire,-1,,1),0),FALSE),0)","v":"00:00:00"},0,{"$f":"IFERROR(VLOOKUP(Produits[[#This Row],[Référence Produit]]&Produits[[#This Row],[Lieux]],inventaire,MATCH(\"Qté min\",OFFSET(inventaire,-1,,1),0),FALSE),0)","v":0},"A COMMANDER",0,"Réserve Balnéo",0,""]
["iD Slip S Plus 5630160140","Carton","Unité","iD Slip S Plus 5630160140\r\n42 Cartons / Palette  4 Sachets / Carton  14 Pieces / Sachet\r\n","00:00:00","LV 2","VITAE","44035","Dispo permanent en stock",null,"","","",null,{"$f":"IFERROR(VLOOKUP(Produits[[#This Row],[Référence Produit]]&Produits[[#This Row],[Lieux]],inventaire,MATCH(\"Qté\",OFFSET(inventaire,-1,,1),0),FALSE),0)","v":0},{"$f":"IFERROR(VLOOKUP(Produits[[#This Row],[Référence Produit]]&Produits[[#This Row],[Lieux]],inventaire,MATCH(\"Date maj\",OFFSET(inventaire,-1,,1),0),FALSE),0)","v":"00:00:00"},0,{"$f":"IFERROR(VLOOKUP(Produits[[#This Row],[Référence Produit]]&Produits[[#This Row],[Lieux]],inventaire,MATCH(\"Qté min\",OFFSET(inventaire,-1,,1),0),FALSE),0)","v":0},"A COMMANDER",0,"Réserve Balnéo",0,""]
["iD Slip M Plus 5610260280-01","Carton","Unité","iD Slip M Plus 5610260280-01\r\n24 Cartons/Palette  4 Sachets/Carton   28 Pieces/Sachet\r\n","00:00:00","LV 2","VITAE","44036","Dispo permanent en stock",null,"","","",null,{"$f":"IFERROR(VLOOKUP(Produits[[#This Row],[Référence Produit]]&Produits[[#This Row],[Lieux]],inventaire,MATCH(\"Qté\",OFFSET(inventaire,-1,,1),0),FALSE),0)","v":0},{"$f":"IFERROR(VLOOKUP(Produits[[#This Row],[Référence Produit]]&Produits[[#This Row],[Lieux]],inventaire,MATCH(\"Date maj\",OFFSET(inventaire,-1,,1),0),FALSE),0)","v":"00:00:00"},0,{"$f":"IFERROR(VLOOKUP(Produits[[#This Row],[Référence Produit]]&Produits[[#This Row],[Lieux]],inventaire,MATCH(\"Qté min\",OFFSET(inventaire,-1,,1),0),FALSE),0)","v":0},"A COMMANDER",0,"Réserve Balnéo",0,""]
["iD Slip L Plus 5610360280-03","Carton","Unité","iD Slip L Plus 5610360280-03\r\n24 Cartons/Palette  4 Sachets/Carton  28 Pieces / Sachet\r\n","00:00:00","LV 2","VITAE","44037","Dispo permanent en stock",null,"","","",null,{"$f":"IFERROR(VLOOKUP(Produits[[#This Row],[Référence Produit]]&Produits[[#This Row],[Lieux]],inventaire,MATCH(\"Qté\",OFFSET(inventaire,-1,,1),0),FALSE),0)","v":0},{"$f":"IFERROR(VLOOKUP(Produits[[#This Row],[Référence Produit]]&Produits[[#This Row],[Lieux]],inventaire,MATCH(\"Date maj\",OFFSET(inventaire,-1,,1),0),FALSE),0)","v":"00:00:00"},0,{"$f":"IFERROR(VLOOKUP(Produits[[#This Row],[Référence Produit]]&Produits[[#This Row],[Lieux]],inventaire,MATCH(\"Qté min\",OFFSET(inventaire,-1,,1),0),FALSE),0)","v":0},"A COMMANDER",0,"Réserve Balnéo",0,""]
["iD Slip M Extra Plus 5610270280-01","Carton","Unité","iD Slip M Extra Plus 5610270280-01\r\n30 Cartons / Palette  3 Sachets / Carton  28 Pieces / Sachet\r\n","00:00:00","LV 2","VITAE","44039","Dispo permanent en stock",34.659999999999997,"","","",null,{"$f":"IFERROR(VLOOKUP(Produits[[#This Row],[Référence Produit]]&Produits[[#This Row],[Lieux]],inventaire,MATCH(\"Qté\",OFFSET(inventaire,-1,,1),0),FALSE),0)","v":0},{"$f":"IFERROR(VLOOKUP(Produits[[#This Row],[Référence Produit]]&Produits[[#This Row],[Lieux]],inventaire,MATCH(\"Date maj\",OFFSET(inventaire,-1,,1),0),FALSE),0)","v":"00:00:00"},0,{"$f":"IFERROR(VLOOKUP(Produits[[#This Row],[Référence Produit]]&Produits[[#This Row],[Lieux]],inventaire,MATCH(\"Qté min\",OFFSET(inventaire,-1,,1),0),FALSE),0)","v":0},"A COMMANDER",0,"Réserve Balnéo",0,""]
["iD Slip L Extra Plus 5610370280-03","Carton","Unité","iD Slip L Extra Plus 5610370280-03\r\n20 Cartons / Palette  4 Sachets / Carton  28Pieces / Sachet\r\n","00:00:00","LV 2","VITAE","44040","Dispo permanent en stock",null,"","","",null,{"$f":"IFERROR(VLOOKUP(Produits[[#This Row],[Référence Produit]]&Produits[[#This Row],[Lieux]],inventaire,MATCH(\"Qté\",OFFSET(inventaire,-1,,1),0),FALSE),0)","v":0},{"$f":"IFERROR(VLOOKUP(Produits[[#This Row],[Référence Produit]]&Produits[[#This Row],[Lieux]],inventaire,MATCH(\"Date maj\",OFFSET(inventaire,-1,,1),0),FALSE),0)","v":"00:00:00"},0,{"$f":"IFERROR(VLOOKUP(Produits[[#This Row],[Référence Produit]]&Produits[[#This Row],[Lieux]],inventaire,MATCH(\"Qté min\",OFFSET(inventaire,-1,,1),0),FALSE),0)","v":0},"A COMMANDER",0,"Réserve Balnéo",0,""]
["iD Slip S Super 5630175140","Carton","Unité","iD Slip S Super 5630175140\r\n42 Cartons / Palette  4 Sachets / Carton  14 Pieces / Sachet\r\n","00:00:00","LV 2","VITAE","44041","Dispo permanent en stock",null,"","","",null,{"$f":"IFERROR(VLOOKUP(Produits[[#This Row],[Référence Produit]]&Produits[[#This Row],[Lieux]],inventaire,MATCH(\"Qté\",OFFSET(inventaire,-1,,1),0),FALSE),0)","v":0},{"$f":"IFERROR(VLOOKUP(Produits[[#This Row],[Référence Produit]]&Produits[[#This Row],[Lieux]],inventaire,MATCH(\"Date maj\",OFFSET(inventaire,-1,,1),0),FALSE),0)","v":"00:00:00"},0,{"$f":"IFERROR(VLOOKUP(Produits[[#This Row],[Référence Produit]]&Produits[[#This Row],[Lieux]],inventaire,MATCH(\"Qté min\",OFFSET(inventaire,-1,,1),0),FALSE),0)","v":0},"A COMMANDER",0,"Réserve Balnéo",0,""]
["iD Slip M Super5630275280-01","Carton","Unité","iD Slip M Super5630275280-01\r\n","00:00:00","LV 2","VITAE","44042","Dispo permanent en stock",null,"","","",null,{"$f":"IFERROR(VLOOKUP(Produits[[#This Row],[Référence Produit]]&Produits[[#This Row],[Lieux]],inventaire,MATCH(\"Qté\",OFFSET(inventaire,-1,,1),0),FALSE),0)","v":0},{"$f":"IFERROR(VLOOKUP(Produits[[#This Row],[Référence Produit]]&Produits[[#This Row],[Lieux]],inventaire,MATCH(\"Date maj\",OFFSET(inventaire,-1,,1),0),FALSE),0)","v":"00:00:00"},0,{"$f":"IFERROR(VLOOKUP(Produits[[#This Row],[Référence Produit]]&Produits[[#This Row],[Lieux]],inventaire,MATCH(\"Qté min\",OFFSET(inventaire,-1,,1),0),FALSE),0)","v":0},{"$f":"IF(OR(AND(NOT(ISBLANK($E41)),$E41<TODAY()),$O41-$R41<0),\"A COMMANDER\",\"\")","v":"A COMMANDER"},0,"Réserve Balnéo",{"$f":"IF(O41>R41,\"\",(R41-O41)*J41)","v":0},""]
["iD Slip L Super 5630375280-01","Carton","Unité","iD Slip L Super 5630375280-01\r\n24 Cartons/Palette  3 Sachets/Carton  28 Pieces / Sachet\r\n\r\n","00:00:00","LV 2","VITAE","44043","Dispo permanent en stock",null,"","","",null,{"$f":"IFERROR(VLOOKUP(Produits[[#This Row],[Référence Produit]]&Produits[[#This Row],[Lieux]],inventaire,MATCH(\"Qté\",OFFSET(inventaire,-1,,1),0),FALSE),0)","v":0},{"$f":"IFERROR(VLOOKUP(Produits[[#This Row],[Référence Produit]]&Produits[[#This Row],[Lieux]],inventaire,MATCH(\"Date maj\",OFFSET(inventaire,-1,,1),0),FALSE),0)","v":"00:00:00"},0,{"$f":"IFERROR(VLOOKUP(Produits[[#This Row],[Référence Produit]]&Produits[[#This Row],[Lieux]],inventaire,MATCH(\"Qté min\",OFFSET(inventaire,-1,,1),0),FALSE),0)","v":0},"A COMMANDER",0,"Réserve Balnéo",0,""]
["iD Slip XL Super 5630475140","Carton","Unité","iD Slip XL Super 5630475140\r\n24 Cartons / Palette  4 Sachets / Carton  14 Pieces / Sachet\r\n","00:00:00","LV 2","VITAE","44044","Dispo permanent en stock",null,"","","",null,{"$f":"IFERROR(VLOOKUP(Produits[[#This Row],[Référence Produit]]&Produits[[#This Row],[Lieux]],inventaire,MATCH(\"Qté\",OFFSET(inventaire,-1,,1),0),FALSE),0)","v":0},{"$f":"IFERROR(VLOOKUP(Produits[[#This Row],[Référence Produit]]&Produits[[#This Row],[Lieux]],inventaire,MATCH(\"Date maj\",OFFSET(inventaire,-1,,1),0),FALSE),0)","v":"00:00:00"},0,{"$f":"IFERROR(VLOOKUP(Produits[[#This Row],[Référence Produit]]&Produits[[#This Row],[Lieux]],inventaire,MATCH(\"Qté min\",OFFSET(inventaire,-1,,1),0),FALSE),0)","v":0},"A COMMANDER",0,"Réserve Balnéo",0,""]
["iD Slip S Maxi 5630180200","Carton","Unité","iD Slip S Maxi 5630180200\r\n36 Cartons / Palette 4 Sachets/Carton  20 Pieces / Sachet\r\n","00:00:00","LV 2","VITAE","44293","Dispo permanent en stock",null,"","","",null,{"$f":"IFERROR(VLOOKUP(Produits[[#This Row],[Référence Produit]]&Produits[[#This Row],[Lieux]],inventaire,MATCH(\"Qté\",OFFSET(inventaire,-1,,1),0),FALSE),0)","v":0},{"$f":"IFERROR(VLOOKUP(Produits[[#This Row],[Référence Produit]]&Produits[[#This Row],[Lieux]],inventaire,MATCH(\"Date maj\",OFFSET(inventaire,-1,,1),0),FALSE),0)","v":"00:00:00"},0,{"$f":"IFERROR(VLOOKUP(Produits[[#This Row],[Référence Produit]]&Produits[[#This Row],[Lieux]],inventaire,MATCH(\"Qté min\",OFFSET(inventaire,-1,,1),0),FALSE),0)","v":0},"A COMMANDER",0,"Réserve Balnéo",0,""]
["iD Slip M Maxi 5630280151","Carton","Unité","iD Slip M Maxi 5630280151\r\n36 Cartons / Palette  3 Scahts / Carton  15 Pieces / Sachet\r\n","00:00:00","LV 2","VITAE","44294","Dispo permanent en stock",null,"","","",null,{"$f":"IFERROR(VLOOKUP(Produits[[#This Row],[Référence Produit]]&Produits[[#This Row],[Lieux]],inventaire,MATCH(\"Qté\",OFFSET(inventaire,-1,,1),0),FALSE),0)","v":0},{"$f":"IFERROR(VLOOKUP(Produits[[#This Row],[Référence Produit]]&Produits[[#This Row],[Lieux]],inventaire,MATCH(\"Date maj\",OFFSET(inventaire,-1,,1),0),FALSE),0)","v":"00:00:00"},0,{"$f":"IFERROR(VLOOKUP(Produits[[#This Row],[Référence Produit]]&Produits[[#This Row],[Lieux]],inventaire,MATCH(\"Qté min\",OFFSET(inventaire,-1,,1),0),FALSE),0)","v":0},"A COMMANDER",0,"Réserve Balnéo",0,""]
["iD Slip L Maxi 5630380151","Carton","Unité","iD Slip L Maxi 5630380151\r\n28 cartons / Palette  3 Sachets / Carton  15 Pieces / Sachet\r\n","00:00:00","LV 2","VITAE","44295","Dispo permanent en stock",null,"","","",null,{"$f":"IFERROR(VLOOKUP(Produits[[#This Row],[Référence Produit]]&Produits[[#This Row],[Lieux]],inventaire,MATCH(\"Qté\",OFFSET(inventaire,-1,,1),0),FALSE),0)","v":0},{"$f":"IFERROR(VLOOKUP(Produits[[#This Row],[Référence Produit]]&Produits[[#This Row],[Lieux]],inventaire,MATCH(\"Date maj\",OFFSET(inventaire,-1,,1),0),FALSE),0)","v":"00:00:00"},0,{"$f":"IFERROR(VLOOKUP(Produits[[#This Row],[Référence Produit]]&Produits[[#This Row],[Lieux]],inventaire,MATCH(\"Qté min\",OFFSET(inventaire,-1,,1),0),FALSE),0)","v":0},"A COMMANDER",0,"Réserve Balnéo",0,""]
["iD Expert Protect 60x90 Plus 5800960300","Carton","Unité","iD Expert Protect 60x90 Plus 5800960300\r\n36 Cartons / Palette  4 Sachets / Carton  30 Pieces / Sachet\r\n","00:00:00","LV 2","VITAE","43926","Dispo permanent en stock",null,"","","",null,{"$f":"IFERROR(VLOOKUP(Produits[[#This Row],[Référence Produit]]&Produits[[#This Row],[Lieux]],inventaire,MATCH(\"Qté\",OFFSET(inventaire,-1,,1),0),FALSE),0)","v":0},{"$f":"IFERROR(VLOOKUP(Produits[[#This Row],[Référence Produit]]&Produits[[#This Row],[Lieux]],inventaire,MATCH(\"Date maj\",OFFSET(inventaire,-1,,1),0),FALSE),0)","v":"00:00:00"},0,{"$f":"IFERROR(VLOOKUP(Produits[[#This Row],[Référence Produit]]&Produits[[#This Row],[Lieux]],inventaire,MATCH(\"Qté min\",OFFSET(inventaire,-1,,1),0),FALSE),0)","v":0},"A COMMANDER",0,"Réserve Balnéo",0,""]
["iD Care Lingettes Care 859006401","Carton","Unité","iD Care Lingettes Care 859006401\r\n44 Cartons / Palette  8 Sachets / Carton  63 Pieces / Sachets\r\n","00:00:00","LV 2","VITAE","46235","Dispo permanent en stock",null,"","","",null,{"$f":"IFERROR(VLOOKUP(Produits[[#This Row],[Référence Produit]]&Produits[[#This Row],[Lieux]],inventaire,MATCH(\"Qté\",OFFSET(inventaire,-1,,1),0),FALSE),0)","v":0},{"$f":"IFERROR(VLOOKUP(Produits[[#This Row],[Référence Produit]]&Produits[[#This Row],[Lieux]],inventaire,MATCH(\"Date maj\",OFFSET(inventaire,-1,,1),0),FALSE),0)","v":"00:00:00"},0,{"$f":"IFERROR(VLOOKUP(Produits[[#This Row],[Référence Produit]]&Produits[[#This Row],[Lieux]],inventaire,MATCH(\"Qté min\",OFFSET(inventaire,-1,,1),0),FALSE),0)","v":0},"A COMMANDER",0,"Réserve Balnéo",0,""]
["Care Gant de toilette 85310","Carton","Unité","Care Gant de toilette 85310\r\n48 Cartons / Palette  20 Sachets / Carton  50 Pieces / Sachet\r\n","00:00:00","LV 2","VITAE","33079","Dispo permanent en stock",null,"","","",null,{"$f":"IFERROR(VLOOKUP(Produits[[#This Row],[Référence Produit]]&Produits[[#This Row],[Lieux]],inventaire,MATCH(\"Qté\",OFFSET(inventaire,-1,,1),0),FALSE),0)","v":0},{"$f":"IFERROR(VLOOKUP(Produits[[#This Row],[Référence Produit]]&Produits[[#This Row],[Lieux]],inventaire,MATCH(\"Date maj\",OFFSET(inventaire,-1,,1),0),FALSE),0)","v":"00:00:00"},0,{"$f":"IFERROR(VLOOKUP(Produits[[#This Row],[Référence Produit]]&Produits[[#This Row],[Lieux]],inventaire,MATCH(\"Qté min\",OFFSET(inventaire,-1,,1),0),FALSE),0)","v":0},"A COMMANDER",0,"Réserve Balnéo",0,""]
["iD Form long (64 cm) Super 5310275210","Carton","Unité","iD Form long (64 cm) Super 5310275210\r\n20 Cartons/ Palette  6 Sachets/Cartons  21 Pieces / Sachet","00:00:00","LV 3","VITAE","44068","Dispo permanent en stock",32.58,"","","",null,{"$f":"IFERROR(VLOOKUP(Produits[[#This Row],[Référence Produit]]&Produits[[#This Row],[Lieux]],inventaire,MATCH(\"Qté\",OFFSET(inventaire,-1,,1),0),FALSE),0)","v":0},{"$f":"IFERROR(VLOOKUP(Produits[[#This Row],[Référence Produit]]&Produits[[#This Row],[Lieux]],inventaire,MATCH(\"Date maj\",OFFSET(inventaire,-1,,1),0),FALSE),0)","v":"00:00:00"},0,{"$f":"IFERROR(VLOOKUP(Produits[[#This Row],[Référence Produit]]&Produits[[#This Row],[Lieux]],inventaire,MATCH(\"Qté min\",OFFSET(inventaire,-1,,1),0),FALSE),0)","v":0},"A COMMANDER",0,"Réserve Balnéo",0,""]
["iD Pants S Plus 5531165140","Carton","Unité","iD Pants S Plus 5531165140\r\n20 Cartons/Palette  8 Sachets / cartons  14 Pieces/ Sachet\r\n","00:00:00","LV 3","VITAE","44053","Dispo permanent en stock",null,"","","",null,{"$f":"IFERROR(VLOOKUP(Produits[[#This Row],[Référence Produit]]&Produits[[#This Row],[Lieux]],inventaire,MATCH(\"Qté\",OFFSET(inventaire,-1,,1),0),FALSE),0)","v":0},{"$f":"IFERROR(VLOOKUP(Produits[[#This Row],[Référence Produit]]&Produits[[#This Row],[Lieux]],inventaire,MATCH(\"Date maj\",OFFSET(inventaire,-1,,1),0),FALSE),0)","v":"00:00:00"},0,{"$f":"IFERROR(VLOOKUP(Produits[[#This Row],[Référence Produit]]&Produits[[#This Row],[Lieux]],inventaire,MATCH(\"Qté min\",OFFSET(inventaire,-1,,1),0),FALSE),0)","v":0},"A COMMANDER",0,"Réserve Balnéo",0,""]
["iD Pants M Super 5531275120","Carton","Unité","iD Pants M Super 5531275120\r\n","00:00:00","LV 3","VITAE","398828","Dispo permanent en stock",null,"","","",null,{"$f":"IFERROR(VLOOKUP(Produits[[#This Row],[Référence Produit]]&Produits[[#This Row],[Lieux]],inventaire,MATCH(\"Qté\",OFFSET(inventaire,-1,,1),0),FALSE),0)","v":0},{"$f":"IFERROR(VLOOKUP(Produits[[#This Row],[Référence Produit]]&Produits[[#This Row],[Lieux]],inventaire,MATCH(\"Date maj\",OFFSET(inventaire,-1,,1),0),FALSE),0)","v":"00:00:00"},0,{"$f":"IFERROR(VLOOKUP(Produits[[#This Row],[Référence Produit]]&Produits[[#This Row],[Lieux]],inventaire,MATCH(\"Qté min\",OFFSET(inventaire,-1,,1),0),FALSE),0)","v":0},"A COMMANDER",0,"Réserve Balnéo",0,""]
["iD Pants L Super 5531375120D","Carton","Unité","iD Pants L Super 5531375120D\r\n","00:00:00","LV 3","VITAE","398829","Dispo permanent en stock",null,"","","",null,{"$f":"IFERROR(VLOOKUP(Produits[[#This Row],[Référence Produit]]&Produits[[#This Row],[Lieux]],inventaire,MATCH(\"Qté\",OFFSET(inventaire,-1,,1),0),FALSE),0)","v":0},{"$f":"IFERROR(VLOOKUP(Produits[[#This Row],[Référence Produit]]&Produits[[#This Row],[Lieux]],inventaire,MATCH(\"Date maj\",OFFSET(inventaire,-1,,1),0),FALSE),0)","v":"00:00:00"},0,{"$f":"IFERROR(VLOOKUP(Produits[[#This Row],[Référence Produit]]&Produits[[#This Row],[Lieux]],inventaire,MATCH(\"Qté min\",OFFSET(inventaire,-1,,1),0),FALSE),0)","v":0},"A COMMANDER",0,"Réserve Balnéo",0,""]
["iD Slip S Plus 5630160140","Carton","Unité","iD Slip S Plus 5630160140\r\n42 Cartons / Palette  4 Sachets / Carton  14 Pieces / Sachet\r\n","00:00:00","LV 3","VITAE","44035","Dispo permanent en stock",null,"","","",null,{"$f":"IFERROR(VLOOKUP(Produits[[#This Row],[Référence Produit]]&Produits[[#This Row],[Lieux]],inventaire,MATCH(\"Qté\",OFFSET(inventaire,-1,,1),0),FALSE),0)","v":0},{"$f":"IFERROR(VLOOKUP(Produits[[#This Row],[Référence Produit]]&Produits[[#This Row],[Lieux]],inventaire,MATCH(\"Date maj\",OFFSET(inventaire,-1,,1),0),FALSE),0)","v":"00:00:00"},0,{"$f":"IFERROR(VLOOKUP(Produits[[#This Row],[Référence Produit]]&Produits[[#This Row],[Lieux]],inventaire,MATCH(\"Qté min\",OFFSET(inventaire,-1,,1),0),FALSE),0)","v":0},"A COMMANDER",0,"Réserve Balnéo",0,""]
["iD Slip M Plus 5610260280-01","Carton","Unité","iD Slip M Plus 5610260280-01\r\n24 Cartons/Palette  4 Sachets/Carton   28 Pieces/Sachet\r\n","00:00:00","LV 3","VITAE","44036","Dispo permanent en stock",null,"","","",null,{"$f":"IFERROR(VLOOKUP(Produits[[#This Row],[Référence Produit]]&Produits[[#This Row],[Lieux]],inventaire,MATCH(\"Qté\",OFFSET(inventaire,-1,,1),0),FALSE),0)","v":0},{"$f":"IFERROR(VLOOKUP(Produits[[#This Row],[Référence Produit]]&Produits[[#This Row],[Lieux]],inventaire,MATCH(\"Date maj\",OFFSET(inventaire,-1,,1),0),FALSE),0)","v":"00:00:00"},0,{"$f":"IFERROR(VLOOKUP(Produits[[#This Row],[Référence Produit]]&Produits[[#This Row],[Lieux]],inventaire,MATCH(\"Qté min\",OFFSET(inventaire,-1,,1),0),FALSE),0)","v":0},"A COMMANDER",0,"Réserve Balnéo",0,""]
["iD Slip L Plus 5610360280-03","Carton","Unité","iD Slip L Plus 5610360280-03\r\n24 Cartons/Palette  4 Sachets/Carton  28 Pieces / Sachet\r\n","00:00:00","LV 3","VITAE","44037","Dispo permanent en stock",null,"","","",null,{"$f":"IFERROR(VLOOKUP(Produits[[#This Row],[Référence Produit]]&Produits[[#This Row],[Lieux]],inventaire,MATCH(\"Qté\",OFFSET(inventaire,-1,,1),0),FALSE),0)","v":0},{"$f":"IFERROR(VLOOKUP(Produits[[#This Row],[Référence Produit]]&Produits[[#This Row],[Lieux]],inventaire,MATCH(\"Date maj\",OFFSET(inventaire,-1,,1),0),FALSE),0)","v":"00:00:00"},0,{"$f":"IFERROR(VLOOKUP(Produits[[#This Row],[Référence Produit]]&Produits[[#This Row],[Lieux]],inventaire,MATCH(\"Qté min\",OFFSET(inventaire,-1,,1),0),FALSE),0)","v":0},"A COMMANDER",0,"Réserve Balnéo",0,""]
["iD Slip M Extra Plus 5610270280-01","Carton","Unité","iD Slip M Extra Plus 5610270280-01\r\n30 Cartons / Palette  3 Sachets / Carton  28 Pieces / Sachet\r\n","00:00:00","LV 3","VITAE","44039","Dispo permanent en stock",34.659999999999997,"","","",null,{"$f":"IFERROR(VLOOKUP(Produits[[#This Row],[Référence Produit]]&Produits[[#This Row],[Lieux]],inventaire,MATCH(\"Qté\",OFFSET(inventaire,-1,,1),0),FALSE),0)","v":0},{"$f":"IFERROR(VLOOKUP(Produits[[#This Row],[Référence Produit]]&Produits[[#This Row],[Lieux]],inventaire,MATCH(\"Date maj\",OFFSET(inventaire,-1,,1),0),FALSE),0)","v":"00:00:00"},0,{"$f":"IFERROR(VLOOKUP(Produits[[#This Row],[Référence Produit]]&Produits[[#This Row],[Lieux]],inventaire,MATCH(\"Qté min\",OFFSET(inventaire,-1,,1),0),FALSE),0)","v":0},"A COMMANDER",0,"Réserve Balnéo",0,""]
["iD Slip L Extra Plus 5610370280-03","Carton","Unité","iD Slip L Extra Plus 5610370280-03\r\n20 Cartons / Palette  4 Sachets / Carton  28Pieces / Sachet\r\n","00:00:00","LV 3","VITAE","44040","Dispo permanent en stock",null,"","","",null,{"$f":"IFERROR(VLOOKUP(Produits[[#This Row],[Référence Produit]]&Produits[[#This Row],[Lieux]],inventaire,MATCH(\"Qté\",OFFSET(inventaire,-1,,1),0),FALSE),0)","v":0},{"$f":"IFERROR(VLOOKUP(Produits[[#This Row],[Référence Produit]]&Produits[[#This Row],[Lieux]],inventaire,MATCH(\"Date maj\",OFFSET(inventaire,-1,,1),0),FALSE),0)","v":"00:00:00"},0,{"$f":"IFERROR(VLOOKUP(Produits[[#This Row],[Référence Produit]]&Produits[[#This Row],[Lieux]],inventaire,MATCH(\"Qté min\",OFFSET(inventaire,-1,,1),0),FALSE),0)","v":0},"A COMMANDER",0,"Réserve Balnéo",0,""]
["iD Slip S Super 5630175140","Carton","Unité","iD Slip S Super 5630175140\r\n42 Cartons / Palette  4 Sachets / Carton  14 Pieces / Sachet\r\n","00:00:00","LV 3","VITAE","44041","Dispo permanent en stock",null,"","","",null,{"$f":"IFERROR(VLOOKUP(Produits[[#This Row],[Référence Produit]]&Produits[[#This Row],[Lieux]],inventaire,MATCH(\"Qté\",OFFSET(inventaire,-1,,1),0),FALSE),0)","v":0},{"$f":"IFERROR(VLOOKUP(Produits[[#This Row],[Référence Produit]]&Produits[[#This Row],[Lieux]],inventaire,MATCH(\"Date maj\",OFFSET(inventaire,-1,,1),0),FALSE),0)","v":"00:00:00"},0,{"$f":"IFERROR(VLOOKUP(Produits[[#This Row],[Référence Produit]]&Produits[[#This Row],[Lieux]],inventaire,MATCH(\"Qté min\",OFFSET(inventaire,-1,,1),0),FALSE),0)","v":0},"A COMMANDER",0,"Réserve Balnéo",0,""]
["iD Slip M Super5630275280-01","Carton","Unité","iD Slip M Super5630275280-01\r\n","00:00:00","LV 3","VITAE","44042","Dispo permanent en stock",null,"","","",null,{"$f":"IFERROR(VLOOKUP(Produits[[#This Row],[Référence Produit]]&Produits[[#This Row],[Lieux]],inventaire,MATCH(\"Qté\",OFFSET(inventaire,-1,,1),0),FALSE),0)","v":0},{"$f":"IFERROR(VLOOKUP(Produits[[#This Row],[Référence Produit]]&Produits[[#This Row],[Lieux]],inventaire,MATCH(\"Date maj\",OFFSET(inventaire,-1,,1),0),FALSE),0)","v":"00:00:00"},0,{"$f":"IFERROR(VLOOKUP(Produits[[#This Row],[Référence Produit]]&Produits[[#This Row],[Lieux]],inventaire,MATCH(\"Qté min\",OFFSET(inventaire,-1,,1),0),FALSE),0)","v":0},"A COMMANDER",0,"Réserve Balnéo",0,""]
["iD Slip L Super 5630375280-01","Carton","Unité","iD Slip L Super 5630375280-01\r\n24 Cartons/Palette  3 Sachets/Carton  28 Pieces / Sachet\r\n\r\n","00:00:00","LV 3","VITAE","44043","Dispo permanent en stock",null,"","","",null,{"$f":"IFERROR(VLOOKUP(Produits[[#This Row],[Référence Produit]]&Produits[[#This Row],[Lieux]],inventaire,MATCH(\"Qté\",OFFSET(inventaire,-1,,1),0),FALSE),0)","v":0},{"$f":"IFERROR(VLOOKUP(Produits[[#This Row],[Référence Produit]]&Produits[[#This Row],[Lieux]],inventaire,MATCH(\"Date maj\",OFFSET(inventaire,-1,,1),0),FALSE),0)","v":"00:00:00"},0,{"$f":"IFERROR(VLOOKUP(Produits[[#This Row],[Référence Produit]]&Produits[[#This Row],[Lieux]],inventaire,MATCH(\"Qté min\",OFFSET(inventaire,-1,,1),0),FALSE),0)","v":0},"A COMMANDER",0,"Réserve Balnéo",0,""]
["iD Slip XL Super 5630475140","Carton","Unité","iD Slip XL Super 5630475140\r\n24 Cartons / Palette  4 Sachets / Carton  14 Pieces / Sachet\r\n","00:00:00","LV 3","VITAE","44044","Dispo permanent en stock",null,"","","",null,{"$f":"IFERROR(VLOOKUP(Produits[[#This Row],[Référence Produit]]&Produits[[#This Row],[Lieux]],inventaire,MATCH(\"Qté\",OFFSET(inventaire,-1,,1),0),FALSE),0)","v":0},{"$f":"IFERROR(VLOOKUP(Produits[[#This Row],[Référence Produit]]&Produits[[#This Row],[Lieux]],inventaire,MATCH(\"Date maj\",OFFSET(inventaire,-1,,1),0),FALSE),0)","v":"00:00:00"},0,{"$f":"IFERROR(VLOOKUP(Produits[[#This Row],[Référence Produit]]&Produits[[#This Row],[Lieux]],inventaire,MATCH(\"Qté min\",OFFSET(inventaire,-1,,1),0),FALSE),0)","v":0},"A COMMANDER",0,"Réserve Balnéo",0,""]
["iD Slip S Maxi 5630180200","Carton","Unité","iD Slip S Maxi 5630180200\r\n36 Cartons / Palette 4 Sachets/Carton  20 Pieces / Sachet\r\n","00:00:00","LV 3","VITAE","44293","Dispo permanent en stock",null,"","","",null,{"$f":"IFERROR(VLOOKUP(Produits[[#This Row],[Référence Produit]]&Produits[[#This Row],[Lieux]],inventaire,MATCH(\"Qté\",OFFSET(inventaire,-1,,1),0),FALSE),0)","v":0},{"$f":"IFERROR(VLOOKUP(Produits[[#This Row],[Référence Produit]]&Produits[[#This Row],[Lieux]],inventaire,MATCH(\"Date maj\",OFFSET(inventaire,-1,,1),0),FALSE),0)","v":"00:00:00"},0,{"$f":"IFERROR(VLOOKUP(Produits[[#This Row],[Référence Produit]]&Produits[[#This Row],[Lieux]],inventaire,MATCH(\"Qté min\",OFFSET(inventaire,-1,,1),0),FALSE),0)","v":0},"A COMMANDER",0,"Réserve Balnéo",0,""]
["iD Slip M Maxi 5630280151","Carton","Unité","iD Slip M Maxi 5630280151\r\n36 Cartons / Palette  3 Scahts / Carton  15 Pieces / Sachet\r\n","00:00:00","LV 3","VITAE","44294","Dispo permanent en stock",null,"","","",null,{"$f":"IFERROR(VLOOKUP(Produits[[#This Row],[Référence Produit]]&Produits[[#This Row],[Lieux]],inventaire,MATCH(\"Qté\",OFFSET(inventaire,-1,,1),0),FALSE),0)","v":0},{"$f":"IFERROR(VLOOKUP(Produits[[#This Row],[Référence Produit]]&Produits[[#This Row],[Lieux]],inventaire,MATCH(\"Date maj\",OFFSET(inventaire,-1,,1),0),FALSE),0)","v":"00:00:00"},0,{"$f":"IFERROR(VLOOKUP(Produits[[#This Row],[Référence Produit]]&Produits[[#This Row],[Lieux]],inventaire,MATCH(\"Qté min\",OFFSET(inventaire,-1,,1),0),FALSE),0)","v":0},"A COMMANDER",0,"Réserve Balnéo",0,""]
["iD Slip L Maxi 5630380151","Carton","Unité","iD Slip L Maxi 5630380151\r\n28 cartons / Palette  3 Sachets / Carton  15 Pieces / Sachet\r\n","00:00:00","LV 3","VITAE","44295","Dispo permanent en stock",null,"","","",null,{"$f":"IFERROR(VLOOKUP(Produits[[#This Row],[Référence Produit]]&Produits[[#This Row],[Lieux]],inventaire,MATCH(\"Qté\",OFFSET(inventaire,-1,,1),0),FALSE),0)","v":0},{"$f":"IFERROR(VLOOKUP(Produits[[#This Row],[Référence Produit]]&Produits[[#This Row],[Lieux]],inventaire,MATCH(\"Date maj\",OFFSET(inventaire,-1,,1),0),FALSE),0)","v":"00:00:00"},0,{"$f":"IFERROR(VLOOKUP(Produits[[#This Row],[Référence Produit]]&Produits[[#This Row],[Lieux]],inventaire,MATCH(\"Qté min\",OFFSET(inventaire,-1,,1),0),FALSE),0)","v":0},"A COMMANDER",0,"Réserve Balnéo",0,""]
["iD Expert Protect 60x90 Plus 5800960300","Carton","Unité","iD Expert Protect 60x90 Plus 5800960300\r\n36 Cartons / Palette  4 Sachets / Carton  30 Pieces / Sachet\r\n","00:00:00","LV 3","VITAE","43926","Dispo permanent en stock",null,"","","",null,{"$f":"IFERROR(VLOOKUP(Produits[[#This Row],[Référence Produit]]&Produits[[#This Row],[Lieux]],inventaire,MATCH(\"Qté\",OFFSET(inventaire,-1,,1),0),FALSE),0)","v":0},{"$f":"IFERROR(VLOOKUP(Produits[[#This Row],[Référence Produit]]&Produits[[#This Row],[Lieux]],inventaire,MATCH(\"Date maj\",OFFSET(inventaire,-1,,1),0),FALSE),0)","v":"00:00:00"},0,{"$f":"IFERROR(VLOOKUP(Produits[[#This Row],[Référence Produit]]&Produits[[#This Row],[Lieux]],inventaire,MATCH(\"Qté min\",OFFSET(inventaire,-1,,1),0),FALSE),0)","v":0},"A COMMANDER",0,"Réserve Balnéo",0,""]
["iD Care Lingettes Care 859006401","Carton","Unité","iD Care Lingettes Care 859006401\r\n44 Cartons / Palette  8 Sachets / Carton  63 Pieces / Sachets\r\n","00:00:00","LV 3","VITAE","46235","Dispo permanent en stock",null,"","","",null,{"$f":"IFERROR(VLOOKUP(Produits[[#This Row],[Référence Produit]]&Produits[[#This Row],[Lieux]],inventaire,MATCH(\"Qté\",OFFSET(inventaire,-1,,1),0),FALSE),0)","v":0},{"$f":"IFERROR(VLOOKUP(Produits[[#This Row],[Référence Produit]]&Produits[[#This Row],[Lieux]],inventaire,MATCH(\"Date maj\",OFFSET(inventaire,-1,,1),0),FALSE),0)","v":"00:00:00"},0,{"$f":"IFERROR(VLOOKUP(Produits[[#This Row],[Référence Produit]]&Produits[[#This Row],[Lieux]],inventaire,MATCH(\"Qté min\",OFFSET(inventaire,-1,,1),0),FALSE),0)","v":0},"A COMMANDER",0,"Réserve Balnéo",0,""]
["Care Gant de toilette 85310","Carton","Unité","Care Gant de toilette 85310\r\n48 Cartons / Palette  20 Sachets / Carton  50 Pieces / Sachet\r\n","00:00:00","LV 3","VITAE","33079","Dispo permanent en stock",null,"","","",null,{"$f":"IFERROR(VLOOKUP(Produits[[#This Row],[Référence Produit]]&Produits[[#This Row],[Lieux]],inventaire,MATCH(\"Qté\",OFFSET(inventaire,-1,,1),0),FALSE),0)","v":0},{"$f":"IFERROR(VLOOKUP(Produits[[#This Row],[Référence Produit]]&Produits[[#This Row],[Lieux]],inventaire,MATCH(\"Date maj\",OFFSET(inventaire,-1,,1),0),FALSE),0)","v":"00:00:00"},0,{"$f":"IFERROR(VLOOKUP(Produits[[#This Row],[Référence Produit]]&Produits[[#This Row],[Lieux]],inventaire,MATCH(\"Qté min\",OFFSET(inventaire,-1,,1),0),FALSE),0)","v":0},"A COMMANDER",0,"Réserve Balnéo",0,""]
["iD Form long (64 cm) Super 5310275210","Carton","Unité","iD Form long (64 cm) Super 5310275210\r\n20 Cartons/ Palette  6 Sachets/Cartons  21 Pieces / Sachet","00:00:00","LV 4","VITAE","44068","Dispo permanent en stock",32.58,"","","",null,{"$f":"IFERROR(VLOOKUP(Produits[[#This Row],[Référence Produit]]&Produits[[#This Row],[Lieux]],inventaire,MATCH(\"Qté\",OFFSET(inventaire,-1,,1),0),FALSE),0)","v":0},{"$f":"IFERROR(VLOOKUP(Produits[[#This Row],[Référence Produit]]&Produits[[#This Row],[Lieux]],inventaire,MATCH(\"Date maj\",OFFSET(inventaire,-1,,1),0),FALSE),0)","v":"00:00:00"},0,{"$f":"IFERROR(VLOOKUP(Produits[[#This Row],[Référence Produit]]&Produits[[#This Row],[Lieux]],inventaire,MATCH(\"Qté min\",OFFSET(inventaire,-1,,1),0),FALSE),0)","v":0},"A COMMANDER",0,"Réserve Balnéo",0,""]
["iD Pants S Plus 5531165140","Carton","Unité","iD Pants S Plus 5531165140\r\n20 Cartons/Palette  8 Sachets / cartons  14 Pieces/ Sachet\r\n","00:00:00","LV 4","VITAE","44053","Dispo permanent en stock",null,"","","",null,{"$f":"IFERROR(VLOOKUP(Produits[[#This Row],[Référence Produit]]&Produits[[#This Row],[Lieux]],inventaire,MATCH(\"Qté\",OFFSET(inventaire,-1,,1),0),FALSE),0)","v":0},{"$f":"IFERROR(VLOOKUP(Produits[[#This Row],[Référence Produit]]&Produits[[#This Row],[Lieux]],inventaire,MATCH(\"Date maj\",OFFSET(inventaire,-1,,1),0),FALSE),0)","v":"00:00:00"},0,{"$f":"IFERROR(VLOOKUP(Produits[[#This Row],[Référence Produit]]&Produits[[#This Row],[Lieux]],inventaire,MATCH(\"Qté min\",OFFSET(inventaire,-1,,1),0),FALSE),0)","v":0},"A COMMANDER",0,"Réserve Balnéo",0,""]
["iD Pants M Super 5531275120","Carton","Unité","iD Pants M Super 5531275120\r\n","00:00:00","LV 4","VITAE","398828","Dispo permanent en stock",null,"","","",null,{"$f":"IFERROR(VLOOKUP(Produits[[#This Row],[Référence Produit]]&Produits[[#This Row],[Lieux]],inventaire,MATCH(\"Qté\",OFFSET(inventaire,-1,,1),0),FALSE),0)","v":0},{"$f":"IFERROR(VLOOKUP(Produits[[#This Row],[Référence Produit]]&Produits[[#This Row],[Lieux]],inventaire,MATCH(\"Date maj\",OFFSET(inventaire,-1,,1),0),FALSE),0)","v":"00:00:00"},0,{"$f":"IFERROR(VLOOKUP(Produits[[#This Row],[Référence Produit]]&Produits[[#This Row],[Lieux]],inventaire,MATCH(\"Qté min\",OFFSET(inventaire,-1,,1),0),FALSE),0)","v":0},"A COMMANDER",0,"Réserve Balnéo",0,""]
["iD Pants L Super 5531375120D","Carton","Unité","iD Pants L Super 5531375120D\r\n","00:00:00","LV 4","VITAE","398829","Dispo permanent en stock",null,"","","",null,{"$f":"IFERROR(VLOOKUP(Produits[[#This Row],[Référence Produit]]&Produits[[#This Row],[Lieux]],inventaire,MATCH(\"Qté\",OFFSET(inventaire,-1,,1),0),FALSE),0)","v":0},{"$f":"IFERROR(VLOOKUP(Produits[[#This Row],[Référence Produit]]&Produits[[#This Row],[Lieux]],inventaire,MATCH(\"Date maj\",OFFSET(inventaire,-1,,1),0),FALSE),0)","v":"00:00:00"},0,{"$f":"IFERROR(VLOOKUP(Produits[[#This Row],[Référence Produit]]&Produits[[#This Row],[Lieux]],inventaire,MATCH(\"Qté min\",OFFSET(inventaire,-1,,1),0),FALSE),0)","v":0},"A COMMANDER",0,"Réserve Balnéo",0,""]
["iD Slip S Plus 5630160140","Carton","Unité","iD Slip S Plus 5630160140\r\n42 Cartons / Palette  4 Sachets / Carton  14 Pieces / Sachet\r\n","00:00:00","LV 4","VITAE","44035","Dispo permanent en stock",null,"","","",null,{"$f":"IFERROR(VLOOKUP(Produits[[#This Row],[Référence Produit]]&Produits[[#This Row],[Lieux]],inventaire,MATCH(\"Qté\",OFFSET(inventaire,-1,,1),0),FALSE),0)","v":0},{"$f":"IFERROR(VLOOKUP(Produits[[#This Row],[Référence Produit]]&Produits[[#This Row],[Lieux]],inventaire,MATCH(\"Date maj\",OFFSET(inventaire,-1,,1),0),FALSE),0)","v":"00:00:00"},0,{"$f":"IFERROR(VLOOKUP(Produits[[#This Row],[Référence Produit]]&Produits[[#This Row],[Lieux]],inventaire,MATCH(\"Qté min\",OFFSET(inventaire,-1,,1),0),FALSE),0)","v":0},{"$f":"IF(OR(AND(NOT(ISBLANK($E73)),$E73<TODAY()),$O73-$R73<0),\"A COMMANDER\",\"\")","v":"A COMMANDER"},0,"Réserve Balnéo",{"$f":"IF(O73>R73,\"\",(R73-O73)*J73)","v":0},""]
["iD Slip M Plus 5610260280-01","Carton","Unité","iD Slip M Plus 5610260280-01\r\n24 Cartons/Palette  4 Sachets/Carton   28 Pieces/Sachet\r\n","00:00:00","LV 4","VITAE","44036","Dispo permanent en stock",null,"","","",null,{"$f":"IFERROR(VLOOKUP(Produits[[#This Row],[Référence Produit]]&Produits[[#This Row],[Lieux]],inventaire,MATCH(\"Qté\",OFFSET(inventaire,-1,,1),0),FALSE),0)","v":0},{"$f":"IFERROR(VLOOKUP(Produits[[#This Row],[Référence Produit]]&Produits[[#This Row],[Lieux]],inventaire,MATCH(\"Date maj\",OFFSET(inventaire,-1,,1),0),FALSE),0)","v":"00:00:00"},0,{"$f":"IFERROR(VLOOKUP(Produits[[#This Row],[Référence Produit]]&Produits[[#This Row],[Lieux]],inventaire,MATCH(\"Qté min\",OFFSET(inventaire,-1,,1),0),FALSE),0)","v":0},"A COMMANDER",0,"Réserve Balnéo",0,{"$f":"IF(O74<R74,R74-O74,\"\")","v":""}]
["iD Slip L Plus 5610360280-03","Carton","Unité","iD Slip L Plus 5610360280-03\r\n24 Cartons/Palette  4 Sachets/Carton  28 Pieces / Sachet\r\n","00:00:00","LV 4","VITAE","44037","Dispo permanent en stock",null,"","","",null,{"$f":"IFERROR(VLOOKUP(Produits[[#This Row],[Référence Produit]]&Produits[[#This Row],[Lieux]],inventaire,MATCH(\"Qté\",OFFSET(inventaire,-1,,1),0),FALSE),0)","v":0},{"$f":"IFERROR(VLOOKUP(Produits[[#This Row],[Référence Produit]]&Produits[[#This Row],[Lieux]],inventaire,MATCH(\"Date maj\",OFFSET(inventaire,-1,,1),0),FALSE),0)","v":"00:00:00"},0,{"$f":"IFERROR(VLOOKUP(Produits[[#This Row],[Référence Produit]]&Produits[[#This Row],[Lieux]],inventaire,MATCH(\"Qté min\",OFFSET(inventaire,-1,,1),0),FALSE),0)","v":0},"A COMMANDER",0,"Réserve Balnéo",0,""]
["iD Slip M Extra Plus 5610270280-01","Carton","Unité","iD Slip M Extra Plus 5610270280-01\r\n30 Cartons / Palette  3 Sachets / Carton  28 Pieces / Sachet\r\n","00:00:00","LV 4","VITAE","44039","Dispo permanent en stock",34.659999999999997,"","","",null,{"$f":"IFERROR(VLOOKUP(Produits[[#This Row],[Référence Produit]]&Produits[[#This Row],[Lieux]],inventaire,MATCH(\"Qté\",OFFSET(inventaire,-1,,1),0),FALSE),0)","v":0},{"$f":"IFERROR(VLOOKUP(Produits[[#This Row],[Référence Produit]]&Produits[[#This Row],[Lieux]],inventaire,MATCH(\"Date maj\",OFFSET(inventaire,-1,,1),0),FALSE),0)","v":"00:00:00"},0,{"$f":"IFERROR(VLOOKUP(Produits[[#This Row],[Référence Produit]]&Produits[[#This Row],[Lieux]],inventaire,MATCH(\"Qté min\",OFFSET(inventaire,-1,,1),0),FALSE),0)","v":0},"A COMMANDER",0,"Réserve Balnéo",0,""]
["iD Slip L Extra Plus 5610370280-03","Carton","Unité","iD Slip L Extra Plus 5610370280-03\r\n20 Cartons / Palette  4 Sachets / Carton  28Pieces / Sachet\r\n","00:00:00","LV 4","VITAE","44040","Dispo permanent en stock",null,"","","",null,{"$f":"IFERROR(VLOOKUP(Produits[[#This Row],[Référence Produit]]&Produits[[#This Row],[Lieux]],inventaire,MATCH(\"Qté\",OFFSET(inventaire,-1,,1),0),FALSE),0)","v":0},{"$f":"IFERROR(VLOOKUP(Produits[[#This Row],[Référence Produit]]&Produits[[#This Row],[Lieux]],inventaire,MATCH(\"Date maj\",OFFSET(inventaire,-1,,1),0),FALSE),0)","v":"00:00:00"},0,{"$f":"IFERROR(VLOOKUP(Produits[[#This Row],[Référence Produit]]&Produits[[#This Row],[Lieux]],inventaire,MATCH(\"Qté min\",OFFSET(inventaire,-1,,1),0),FALSE),0)","v":0},"A COMMANDER",0,"Réserve Balnéo",0,""]
["iD Slip S Super 5630175140","Carton","Unité","iD Slip S Super 5630175140\r\n42 Cartons / Palette  4 Sachets / Carton  14 Pieces / Sachet\r\n","00:00:00","LV 4","VITAE","44041","Dispo permanent en stock",null,"","","",null,{"$f":"IFERROR(VLOOKUP(Produits[[#This Row],[Référence Produit]]&Produits[[#This Row],[Lieux]],inventaire,MATCH(\"Qté\",OFFSET(inventaire,-1,,1),0),FALSE),0)","v":0},{"$f":"IFERROR(VLOOKUP(Produits[[#This Row],[Référence Produit]]&Produits[[#This Row],[Lieux]],inventaire,MATCH(\"Date maj\",OFFSET(inventaire,-1,,1),0),FALSE),0)","v":"00:00:00"},0,{"$f":"IFERROR(VLOOKUP(Produits[[#This Row],[Référence Produit]]&Produits[[#This Row],[Lieux]],inventaire,MATCH(\"Qté min\",OFFSET(inventaire,-1,,1),0),FALSE),0)","v":0},"A COMMANDER",0,"Réserve Balnéo",0,""]
["iD Slip M Super5630275280-01","Carton","Unité","iD Slip M Super5630275280-01\r\n","00:00:00","LV 4","VITAE","44042","Dispo permanent en stock",null,"","","",null,{"$f":"IFERROR(VLOOKUP(Produits[[#This Row],[Référence Produit]]&Produits[[#This Row],[Lieux]],inventaire,MATCH(\"Qté\",OFFSET(inventaire,-1,,1),0),FALSE),0)","v":0},{"$f":"IFERROR(VLOOKUP(Produits[[#This Row],[Référence Produit]]&Produits[[#This Row],[Lieux]],inventaire,MATCH(\"Date maj\",OFFSET(inventaire,-1,,1),0),FALSE),0)","v":"00:00:00"},0,{"$f":"IFERROR(VLOOKUP(Produits[[#This Row],[Référence Produit]]&Produits[[#This Row],[Lieux]],inventaire,MATCH(\"Qté min\",OFFSET(inventaire,-1,,1),0),FALSE),0)","v":0},"A COMMANDER",0,"Réserve Balnéo",0,""]
["iD Slip L Super 5630375280-01","Carton","Unité","iD Slip L Super 5630375280-01\r\n24 Cartons/Palette  3 Sachets/Carton  28 Pieces / Sachet\r\n\r\n","00:00:00","LV 4","VITAE","44043","Dispo permanent en stock",null,"","","",null,{"$f":"IFERROR(VLOOKUP(Produits[[#This Row],[Référence Produit]]&Produits[[#This Row],[Lieux]],inventaire,MATCH(\"Qté\",OFFSET(inventaire,-1,,1),0),FALSE),0)","v":0},{"$f":"IFERROR(VLOOKUP(Produits[[#This Row],[Référence Produit]]&Produits[[#This Row],[Lieux]],inventaire,MATCH(\"Date maj\",OFFSET(inventaire,-1,,1),0),FALSE),0)","v":"00:00:00"},0,{"$f":"IFERROR(VLOOKUP(Produits[[#This Row],[Référence Produit]]&Produits[[#This Row],[Lieux]],inventaire,MATCH(\"Qté min\",OFFSET(inventaire,-1,,1),0),FALSE),0)","v":0},"A COMMANDER",0,"Réserve Balnéo",0,""]
["iD Slip XL Super 5630475140","Carton","Unité","iD Slip XL Super 5630475140\r\n24 Cartons / Palette  4 Sachets / Carton  14 Pieces / Sachet\r\n","00:00:00","LV 4","VITAE","44044","Dispo permanent en stock",null,"","","",null,{"$f":"IFERROR(VLOOKUP(Produits[[#This Row],[Référence Produit]]&Produits[[#This Row],[Lieux]],inventaire,MATCH(\"Qté\",OFFSET(inventaire,-1,,1),0),FALSE),0)","v":0},{"$f":"IFERROR(VLOOKUP(Produits[[#This Row],[Référence Produit]]&Produits[[#This Row],[Lieux]],inventaire,MATCH(\"Date maj\",OFFSET(inventaire,-1,,1),0),FALSE),0)","v":"00:00:00"},0,{"$f":"IFERROR(VLOOKUP(Produits[[#This Row],[Référence Produit]]&Produits[[#This Row],[Lieux]],inventaire,MATCH(\"Qté min\",OFFSET(inventaire,-1,,1),0),FALSE),0)","v":0},"A COMMANDER",0,"Réserve Balnéo",0,""]
["iD Slip S Maxi 5630180200","Carton","Unité","iD Slip S Maxi 5630180200\r\n36 Cartons / Palette 4 Sachets/Carton  20 Pieces / Sachet\r\n","00:00:00","LV 4","VITAE","44293","Dispo permanent en stock",null,"","","",null,{"$f":"IFERROR(VLOOKUP(Produits[[#This Row],[Référence Produit]]&Produits[[#This Row],[Lieux]],inventaire,MATCH(\"Qté\",OFFSET(inventaire,-1,,1),0),FALSE),0)","v":0},{"$f":"IFERROR(VLOOKUP(Produits[[#This Row],[Référence Produit]]&Produits[[#This Row],[Lieux]],inventaire,MATCH(\"Date maj\",OFFSET(inventaire,-1,,1),0),FALSE),0)","v":"00:00:00"},0,{"$f":"IFERROR(VLOOKUP(Produits[[#This Row],[Référence Produit]]&Produits[[#This Row],[Lieux]],inventaire,MATCH(\"Qté min\",OFFSET(inventaire,-1,,1),0),FALSE),0)","v":0},"A COMMANDER",0,"Réserve Balnéo",0,""]
["iD Slip M Maxi 5630280151","Carton","Unité","iD Slip M Maxi 5630280151\r\n36 Cartons / Palette  3 Scahts / Carton  15 Pieces / Sachet\r\n","00:00:00","LV 4","VITAE","44294","Dispo permanent en stock",null,"","","",null,{"$f":"IFERROR(VLOOKUP(Produits[[#This Row],[Référence Produit]]&Produits[[#This Row],[Lieux]],inventaire,MATCH(\"Qté\",OFFSET(inventaire,-1,,1),0),FALSE),0)","v":0},{"$f":"IFERROR(VLOOKUP(Produits[[#This Row],[Référence Produit]]&Produits[[#This Row],[Lieux]],inventaire,MATCH(\"Date maj\",OFFSET(inventaire,-1,,1),0),FALSE),0)","v":"00:00:00"},0,{"$f":"IFERROR(VLOOKUP(Produits[[#This Row],[Référence Produit]]&Produits[[#This Row],[Lieux]],inventaire,MATCH(\"Qté min\",OFFSET(inventaire,-1,,1),0),FALSE),0)","v":0},"A COMMANDER",0,"Réserve Balnéo",0,""]
["iD Slip L Maxi 5630380151","Carton","Unité","iD Slip L Maxi 5630380151\r\n28 cartons / Palette  3 Sachets / Carton  15 Pieces / Sachet\r\n","00:00:00","LV 4","VITAE","44295","Dispo permanent en stock",null,"","","",null,{"$f":"IFERROR(VLOOKUP(Produits[[#This Row],[Référence Produit]]&Produits[[#This Row],[Lieux]],inventaire,MATCH(\"Qté\",OFFSET(inventaire,-1,,1),0),FALSE),0)","v":0},{"$f":"IFERROR(VLOOKUP(Produits[[#This Row],[Référence Produit]]&Produits[[#This Row],[Lieux]],inventaire,MATCH(\"Date maj\",OFFSET(inventaire,-1,,1),0),FALSE),0)","v":"00:00:00"},0,{"$f":"IFERROR(VLOOKUP(Produits[[#This Row],[Référence Produit]]&Produits[[#This Row],[Lieux]],inventaire,MATCH(\"Qté min\",OFFSET(inventaire,-1,,1),0),FALSE),0)","v":0},"A COMMANDER",0,"Réserve Balnéo",0,""]
["iD Expert Protect 60x90 Plus 5800960300","Carton","Unité","iD Expert Protect 60x90 Plus 5800960300\r\n36 Cartons / Palette  4 Sachets / Carton  30 Pieces / Sachet\r\n","00:00:00","LV 4","VITAE","43926","Dispo permanent en stock",null,"","","",null,{"$f":"IFERROR(VLOOKUP(Produits[[#This Row],[Référence Produit]]&Produits[[#This Row],[Lieux]],inventaire,MATCH(\"Qté\",OFFSET(inventaire,-1,,1),0),FALSE),0)","v":0},{"$f":"IFERROR(VLOOKUP(Produits[[#This Row],[Référence Produit]]&Produits[[#This Row],[Lieux]],inventaire,MATCH(\"Date maj\",OFFSET(inventaire,-1,,1),0),FALSE),0)","v":"00:00:00"},0,{"$f":"IFERROR(VLOOKUP(Produits[[#This Row],[Référence Produit]]&Produits[[#This Row],[Lieux]],inventaire,MATCH(\"Qté min\",OFFSET(inventaire,-1,,1),0),FALSE),0)","v":0},"A COMMANDER",0,"Réserve Balnéo",0,""]
["iD Care Lingettes Care 859006401","Carton","Unité","iD Care Lingettes Care 859006401\r\n44 Cartons / Palette  8 Sachets / Carton  63 Pieces / Sachets\r\n","00:00:00","LV 4","VITAE","46235","Dispo permanent en stock",null,"","","",null,{"$f":"IFERROR(VLOOKUP(Produits[[#This Row],[Référence Produit]]&Produits[[#This Row],[Lieux]],inventaire,MATCH(\"Qté\",OFFSET(inventaire,-1,,1),0),FALSE),0)","v":0},{"$f":"IFERROR(VLOOKUP(Produits[[#This Row],[Référence Produit]]&Produits[[#This Row],[Lieux]],inventaire,MATCH(\"Date maj\",OFFSET(inventaire,-1,,1),0),FALSE),0)","v":"00:00:00"},0,{"$f":"IFERROR(VLOOKUP(Produits[[#This Row],[Référence Produit]]&Produits[[#This Row],[Lieux]],inventaire,MATCH(\"Qté min\",OFFSET(inventaire,-1,,1),0),FALSE),0)","v":0},"A COMMANDER",0,"Réserve Balnéo",0,""]
["Care Gant de toilette 85310","Carton","Unité","Care Gant de toilette 85310\r\n48 Cartons / Palette  20 Sachets / Carton  50 Pieces / Sachet\r\n","00:00:00","LV 4","VITAE","33079","Dispo permanent en stock",null,"","","",null,{"$f":"IFERROR(VLOOKUP(Produits[[#This Row],[Référence Produit]]&Produits[[#This Row],[Lieux]],inventaire,MATCH(\"Qté\",OFFSET(inventaire,-1,,1),0),FALSE),0)","v":0},{"$f":"IFERROR(VLOOKUP(Produits[[#This Row],[Référence Produit]]&Produits[[#This Row],[Lieux]],inventaire,MATCH(\"Date maj\",OFFSET(inventaire,-1,,1),0),FALSE),0)","v":"00:00:00"},0,{"$f":"IFERROR(VLOOKUP(Produits[[#This Row],[Référence Produit]]&Produits[[#This Row],[Lieux]],inventaire,MATCH(\"Qté min\",OFFSET(inventaire,-1,,1),0),FALSE),0)","v":0},"A COMMANDER",0,"Réserve Balnéo",0,""]

{"sheet":"Listing Produits EPI","index":4,"n_rows":88,"n_cols":24,"rows_kept":88,"cut":false,"hidden":false,"merged":[[0,8,0,9],[4,0,4,1]]}
[]
[]
[]
[]
[{"$f":"TODAY()","v":"2021-05-17"}]
[null,null,null,null,null,null,null,null,null,null,null,null,null,null,null,null,1,null,{"$f":"IF(COUNTIF(Produits_à_commander_EPI,\"A COMMANDER\")>0, COUNTIF(Produits_à_commander_EPI,\"A COMMANDER\") &\" \" & S7,\"OK\")","v":"OK"}]
["Référence Produit","Conditionnement","Dosage","Descriptif","Date de Péremption 1","Lieux","Fournisseur 1","Reference F1","Delais F1","Prix unitaire F1","Fournisseur 2","Reference F2","Delais F2","Prix unitaire F2","Stock","Date inventaire","Ancien Stock","Stock Min","Produit(s) à Commander EPI","Coût stock","Lieux de Stockage","Coût stock quantité minimale","alerte","Ecart suite inventaire"]
["BLOUSE BLANCHE VISITEUR","Unité","Unité","BLOUSE BLANCHE VISITEUR PE fermeture à pressions","2025-05-16","LV 1","NUTRISENS","TRF001","Dispo permanent en stock",1,"","","",null,800,{"$f":"IFERROR(VLOOKUP(Produits_EPI[[#This Row],[Référence Produit]]&Produits_EPI[[#This Row],[Lieux]],inventaire,MATCH(\"Date maj\",OFFSET(inventaire,-1,,1),0),FALSE),0)","v":"00:00:00"},1000,null,{"$f":"IF(OR(AND(NOT(ISBLANK($E8)),$E8<TODAY()),$O8-$R8<0),\"A COMMANDER\",\"\")","v":""},800,"Réserve COVID",{"$f":"IF(O8>R8,\"\",(R8-O8)*J8)","v":""},{"$f":"IF(O8<R8,R8-O8,\"\")","v":""}]
["BLOUSE DE SOINS BLANCHE ref 21200009","Unité","Unité","Blouse  de soins blanche ref 21200009","2025-05-16","LV 1","NUTRISENS","TRF002","Dispo permanent en stock",1,"","","",null,0,{"$f":"IFERROR(VLOOKUP(Produits_EPI[[#This Row],[Référence Produit]]&Produits_EPI[[#This Row],[Lieux]],inventaire,MATCH(\"Date maj\",OFFSET(inventaire,-1,,1),0),FALSE),0)","v":"00:00:00"},0,{"$f":"IFERROR(VLOOKUP(Produits_EPI[[#This Row],[Référence Produit]]&Produits_EPI[[#This Row],[Lieux]],inventaire,MATCH(\"Qté min\",OFFSET(inventaire,-1,,1),0),FALSE),0)","v":0},{"$f":"IF(OR(AND(NOT(ISBLANK($E9)),$E9<TODAY()),$O9-$R9<0),\"A COMMANDER\",\"\")","v":""},0,"Réserve COVID",0,{"$f":"IF(O9<R9,R9-O9,\"\")","v":""}]
["BLOUSE VISITEUR VERTE ","Unité","Unité","Blouse visiteur verte MEDI STOCK","2025-05-16","LV 1","NUTRISENS","TRF003","Dispo permanent en stock",1,"","","",null,0,{"$f":"IFERROR(VLOOKUP(Produits_EPI[[#This Row],[Référence Produit]]&Produits_EPI[[#This Row],[Lieux]],inventaire,MATCH(\"Date maj\",OFFSET(inventaire,-1,,1),0),FALSE),0)","v":"00:00:00"},0,{"$f":"IFERROR(VLOOKUP(Produits_EPI[[#This Row],[Référence Produit]]&Produits_EPI[[#This Row],[Lieux]],inventaire,MATCH(\"Qté min\",OFFSET(inventaire,-1,,1),0),FALSE),0)","v":0},"",0,"Réserve COVID",0,""]
["CHARLOTTE BLANCHE A CLIP CUISINE","Unité",null,"CHARLOTTE BLANCHE A CLIP JET ref: 07VC12070 CUISINE","2025-05-16","LV 1","VITAE","44068","Dispo permanent en stock",32.69,"","","",null,0,{"$f":"IFERROR(VLOOKUP(Produits_EPI[[#This Row],[Référence Produit]]&Produits_EPI[[#This Row],[Lieux]],inventaire,MATCH(\"Date maj\",OFFSET(inventaire,-1,,1),0),FALSE),0)","v":"00:00:00"},0,{"$f":"IFERROR(VLOOKUP(Produits_EPI[[#This Row],[Référence Produit]]&Produits_EPI[[#This Row],[Lieux]],inventaire,MATCH(\"Qté min\",OFFSET(inventaire,-1,,1),0),FALSE),0)","v":0},"",0,"Réserve COVID",0,""]
["CHARLOTTE BLANCHE A CLIP PROFILCAPS LCH","Unité",null,"CHARLOTTE BLANCHE A CLIP PROFILCAPS LCH ref  PLC-01","2025-05-16","LV 1","VITAE","44053","Dispo permanent en stock",null,"","","",null,0,{"$f":"IFERROR(VLOOKUP(Produits_EPI[[#This Row],[Référence Produit]]&Produits_EPI[[#This Row],[Lieux]],inventaire,MATCH(\"Date maj\",OFFSET(inventaire,-1,,1),0),FALSE),0)","v":"00:00:00"},0,{"$f":"IFERROR(VLOOKUP(Produits_EPI[[#This Row],[Référence Produit]]&Produits_EPI[[#This Row],[Lieux]],inventaire,MATCH(\"Qté min\",OFFSET(inventaire,-1,,1),0),FALSE),0)","v":0},"",0,"Réserve COVID",0,""]
["CHARLOTTE BLANCHE A VISIERE","Unité",null,"CHARLOTTE BLANCHE A VISIERE JET","2025-05-16","LV 1","VITAE","398828","Dispo permanent en stock",null,"","","",null,0,{"$f":"IFERROR(VLOOKUP(Produits_EPI[[#This Row],[Référence Produit]]&Produits_EPI[[#This Row],[Lieux]],inventaire,MATCH(\"Date maj\",OFFSET(inventaire,-1,,1),0),FALSE),0)","v":"00:00:00"},0,{"$f":"IFERROR(VLOOKUP(Produits_EPI[[#This Row],[Référence Produit]]&Produits_EPI[[#This Row],[Lieux]],inventaire,MATCH(\"Qté min\",OFFSET(inventaire,-1,,1),0),FALSE),0)","v":0},"",0,"Réserve COVID",0,""]
["CHARLOTTES CLIP PLP ","Unité","Unité","CHARLOTTES CLIP PLP NON TISSE BLANC DIAMETRE 48","2025-05-16","LV 1","VITAE","398829","Dispo permanent en stock",null,"","","",null,0,{"$f":"IFERROR(VLOOKUP(Produits_EPI[[#This Row],[Référence Produit]]&Produits_EPI[[#This Row],[Lieux]],inventaire,MATCH(\"Date maj\",OFFSET(inventaire,-1,,1),0),FALSE),0)","v":"00:00:00"},0,{"$f":"IFERROR(VLOOKUP(Produits_EPI[[#This Row],[Référence Produit]]&Produits_EPI[[#This Row],[Lieux]],inventaire,MATCH(\"Qté min\",OFFSET(inventaire,-1,,1),0),FALSE),0)","v":0},"",0,"Réserve COVID",0,""]
["COMBINAISON INTEGRALE 3M BLEU ","Unité","Unité","COMBINAISON de protection  INTEGRALE 3M BLEU  ref:4515","2025-05-16","LV 1","VITAE","44035","Dispo permanent en stock",null,"","","",null,0,{"$f":"IFERROR(VLOOKUP(Produits_EPI[[#This Row],[Référence Produit]]&Produits_EPI[[#This Row],[Lieux]],inventaire,MATCH(\"Date maj\",OFFSET(inventaire,-1,,1),0),FALSE),0)","v":"00:00:00"},0,{"$f":"IFERROR(VLOOKUP(Produits_EPI[[#This Row],[Référence Produit]]&Produits_EPI[[#This Row],[Lieux]],inventaire,MATCH(\"Qté min\",OFFSET(inventaire,-1,,1),0),FALSE),0)","v":0},"",0,"Réserve COVID",0,""]
["COMBINAISON KIMBERLY CLARK PROFESSIONEL A40","Unité","Unité","COMBINAISON KIMBERLY CLARK PROFESSIONEL A40","2025-05-16","LV 1","VITAE","44036","Dispo permanent en stock",null,"","","",null,0,{"$f":"IFERROR(VLOOKUP(Produits_EPI[[#This Row],[Référence Produit]]&Produits_EPI[[#This Row],[Lieux]],inventaire,MATCH(\"Date maj\",OFFSET(inventaire,-1,,1),0),FALSE),0)","v":"00:00:00"},0,{"$f":"IFERROR(VLOOKUP(Produits_EPI[[#This Row],[Référence Produit]]&Produits_EPI[[#This Row],[Lieux]],inventaire,MATCH(\"Qté min\",OFFSET(inventaire,-1,,1),0),FALSE),0)","v":0},"",0,"Réserve COVID",0,""]
["COMBINAISON POLYVET STANDARD","Unité","Unité","COMBINAISON POLYVET STANDARD fournie par PUECHOULTRE","2025-05-16","LV 1","VITAE","44037","Dispo permanent en stock",null,"","","",null,0,{"$f":"IFERROR(VLOOKUP(Produits_EPI[[#This Row],[Référence Produit]]&Produits_EPI[[#This Row],[Lieux]],inventaire,MATCH(\"Date maj\",OFFSET(inventaire,-1,,1),0),FALSE),0)","v":"00:00:00"},0,{"$f":"IFERROR(VLOOKUP(Produits_EPI[[#This Row],[Référence Produit]]&Produits_EPI[[#This Row],[Lieux]],inventaire,MATCH(\"Qté min\",OFFSET(inventaire,-1,,1),0),FALSE),0)","v":0},"",0,"Réserve COVID",0,""]
["GANTS LATEX M SENSITEX 7/8","Boite","Unité","GANTS LATEX SENSITEX TAILLE M 7/8  non poudré","2025-05-16","LV 1","VITAE","44039","Dispo permanent en stock",34.659999999999997,"","","",null,0,{"$f":"IFERROR(VLOOKUP(Produits_EPI[[#This Row],[Référence Produit]]&Produits_EPI[[#This Row],[Lieux]],inventaire,MATCH(\"Date maj\",OFFSET(inventaire,-1,,1),0),FALSE),0)","v":"00:00:00"},0,{"$f":"IFERROR(VLOOKUP(Produits_EPI[[#This Row],[Référence Produit]]&Produits_EPI[[#This Row],[Lieux]],inventaire,MATCH(\"Qté min\",OFFSET(inventaire,-1,,1),0),FALSE),0)","v":0},"",0,"Réserve COVID",0,""]
["GANTS NITRILE L NATUREX ","Boite","Unité","GANTS NITRILE NATUREX TAILLE L 8/9","2025-05-16","LV 1","VITAE","44040","Dispo permanent en stock",null,"","","",null,0,{"$f":"IFERROR(VLOOKUP(Produits_EPI[[#This Row],[Référence Produit]]&Produits_EPI[[#This Row],[Lieux]],inventaire,MATCH(\"Date maj\",OFFSET(inventaire,-1,,1),0),FALSE),0)","v":"00:00:00"},0,{"$f":"IFERROR(VLOOKUP(Produits_EPI[[#This Row],[Référence Produit]]&Produits_EPI[[#This Row],[Lieux]],inventaire,MATCH(\"Qté min\",OFFSET(inventaire,-1,,1),0),FALSE),0)","v":0},"",0,"Réserve COVID",0,""]
["GANTS NITRILE M NATUREX ","Boite","Unité","GANTS NITRILE NATUREX TAILLE M 7/8 ","2025-05-16","LV 1","VITAE","44041","Dispo permanent en stock",null,"","","",null,0,{"$f":"IFERROR(VLOOKUP(Produits_EPI[[#This Row],[Référence Produit]]&Produits_EPI[[#This Row],[Lieux]],inventaire,MATCH(\"Date maj\",OFFSET(inventaire,-1,,1),0),FALSE),0)","v":"00:00:00"},0,{"$f":"IFERROR(VLOOKUP(Produits_EPI[[#This Row],[Référence Produit]]&Produits_EPI[[#This Row],[Lieux]],inventaire,MATCH(\"Qté min\",OFFSET(inventaire,-1,,1),0),FALSE),0)","v":0},"",0,"Réserve COVID",0,""]
["GANTS NITRILE S NATUREX ","Boite","Unité","GANTS NITRILE NATUREX TAILLE S 6/7","2025-05-16","LV 1","VITAE","44042","Dispo permanent en stock",null,"","","",null,0,{"$f":"IFERROR(VLOOKUP(Produits_EPI[[#This Row],[Référence Produit]]&Produits_EPI[[#This Row],[Lieux]],inventaire,MATCH(\"Date maj\",OFFSET(inventaire,-1,,1),0),FALSE),0)","v":"00:00:00"},0,{"$f":"IFERROR(VLOOKUP(Produits_EPI[[#This Row],[Référence Produit]]&Produits_EPI[[#This Row],[Lieux]],inventaire,MATCH(\"Qté min\",OFFSET(inventaire,-1,,1),0),FALSE),0)","v":0},"",0,"Réserve COVID",0,""]
["GANTS NITRILE L VITADOMIA  ","Boite","Unité","GANTS NITRILE VITADOMIA TAILLE L 8/9 Non poudré/Non Stérile/usage unique","2025-05-16","LV 1","VITAE","44043","Dispo permanent en stock",null,"","","",null,0,{"$f":"IFERROR(VLOOKUP(Produits_EPI[[#This Row],[Référence Produit]]&Produits_EPI[[#This Row],[Lieux]],inventaire,MATCH(\"Date maj\",OFFSET(inventaire,-1,,1),0),FALSE),0)","v":"00:00:00"},0,{"$f":"IFERROR(VLOOKUP(Produits_EPI[[#This Row],[Référence Produit]]&Produits_EPI[[#This Row],[Lieux]],inventaire,MATCH(\"Qté min\",OFFSET(inventaire,-1,,1),0),FALSE),0)","v":0},"",0,"Réserve COVID",0,""]
["GANTS NITRILE M NITRISKIN BLUE EVOLUTION 7/8","Boite","Unité","GANTS NITRILE NITRISKIN BLUE EVOLUTION boite de 100 gants taille 7/8","2025-05-16","LV 1","VITAE","44044","Dispo permanent en stock",null,"","","",null,0,{"$f":"IFERROR(VLOOKUP(Produits_EPI[[#This Row],[Référence Produit]]&Produits_EPI[[#This Row],[Lieux]],inventaire,MATCH(\"Date maj\",OFFSET(inventaire,-1,,1),0),FALSE),0)","v":"00:00:00"},0,{"$f":"IFERROR(VLOOKUP(Produits_EPI[[#This Row],[Référence Produit]]&Produits_EPI[[#This Row],[Lieux]],inventaire,MATCH(\"Qté min\",OFFSET(inventaire,-1,,1),0),FALSE),0)","v":0},"",0,"Réserve COVID",0,""]
["GANTS PCX60 6","Boite","Unité","GANTS PCX60 taille 6 PRECINIUM Stérile","2025-05-16","LV 1","VITAE","44293","Dispo permanent en stock",null,"","","",null,0,{"$f":"IFERROR(VLOOKUP(Produits_EPI[[#This Row],[Référence Produit]]&Produits_EPI[[#This Row],[Lieux]],inventaire,MATCH(\"Date maj\",OFFSET(inventaire,-1,,1),0),FALSE),0)","v":"00:00:00"},0,{"$f":"IFERROR(VLOOKUP(Produits_EPI[[#This Row],[Référence Produit]]&Produits_EPI[[#This Row],[Lieux]],inventaire,MATCH(\"Qté min\",OFFSET(inventaire,-1,,1),0),FALSE),0)","v":0},"",0,"Réserve COVID",0,""]
["GANTS PCX70 7","Boite","Unité","GANTS PCX70 taille 7 PRECINIUM Stérile","2025-05-16","LV 1","VITAE","44294","Dispo permanent en stock",null,"","","",null,0,{"$f":"IFERROR(VLOOKUP(Produits_EPI[[#This Row],[Référence Produit]]&Produits_EPI[[#This Row],[Lieux]],inventaire,MATCH(\"Date maj\",OFFSET(inventaire,-1,,1),0),FALSE),0)","v":"00:00:00"},0,{"$f":"IFERROR(VLOOKUP(Produits_EPI[[#This Row],[Référence Produit]]&Produits_EPI[[#This Row],[Lieux]],inventaire,MATCH(\"Qté min\",OFFSET(inventaire,-1,,1),0),FALSE),0)","v":0},"",0,"Réserve COVID",0,""]
["GANTS PCX80 8","Boite","Unité","GANTS PCX80 taille 8 PRECINIUM Stérile","2025-05-16","LV 1","VITAE","44295","Dispo permanent en stock",null,"","","",null,0,{"$f":"IFERROR(VLOOKUP(Produits_EPI[[#This Row],[Référence Produit]]&Produits_EPI[[#This Row],[Lieux]],inventaire,MATCH(\"Date maj\",OFFSET(inventaire,-1,,1),0),FALSE),0)","v":"00:00:00"},0,{"$f":"IFERROR(VLOOKUP(Produits_EPI[[#This Row],[Référence Produit]]&Produits_EPI[[#This Row],[Lieux]],inventaire,MATCH(\"Qté min\",OFFSET(inventaire,-1,,1),0),FALSE),0)","v":0},"",0,"Réserve COVID",0,""]
["GANTS VINYLE L","Boite","Unité","Gants vinyle SENSINYL taille 8/9 L","2025-05-16","LV 1","VITAE","43926","Dispo permanent en stock",null,"","","",null,0,{"$f":"IFERROR(VLOOKUP(Produits_EPI[[#This Row],[Référence Produit]]&Produits_EPI[[#This Row],[Lieux]],inventaire,MATCH(\"Date maj\",OFFSET(inventaire,-1,,1),0),FALSE),0)","v":"00:00:00"},0,{"$f":"IFERROR(VLOOKUP(Produits_EPI[[#This Row],[Référence Produit]]&Produits_EPI[[#This Row],[Lieux]],inventaire,MATCH(\"Qté min\",OFFSET(inventaire,-1,,1),0),FALSE),0)","v":0},"",0,"Réserve COVID",0,""]
["GANTS VINYLE M","Boite","Unité","Gants vinyle SENSINYL taille 7/8 M","2025-05-16","LV 1","VITAE","46235","Dispo permanent en stock",null,"","","",null,0,{"$f":"IFERROR(VLOOKUP(Produits_EPI[[#This Row],[Référence Produit]]&Produits_EPI[[#This Row],[Lieux]],inventaire,MATCH(\"Date maj\",OFFSET(inventaire,-1,,1),0),FALSE),0)","v":"00:00:00"},0,{"$f":"IFERROR(VLOOKUP(Produits_EPI[[#This Row],[Référence Produit]]&Produits_EPI[[#This Row],[Lieux]],inventaire,MATCH(\"Qté min\",OFFSET(inventaire,-1,,1),0),FALSE),0)","v":0},"",0,"Réserve COVID",0,""]
["GANTS VINYLE S","Boite","Unité","Gants vinyle SENSINYL taille 6/7 S","2025-05-16","LV 1","VITAE","33079","Dispo permanent en stock",null,"","","",null,0,{"$f":"IFERROR(VLOOKUP(Produits_EPI[[#This Row],[Référence Produit]]&Produits_EPI[[#This Row],[Lieux]],inventaire,MATCH(\"Date maj\",OFFSET(inventaire,-1,,1),0),FALSE),0)","v":"00:00:00"},0,{"$f":"IFERROR(VLOOKUP(Produits_EPI[[#This Row],[Référence Produit]]&Produits_EPI[[#This Row],[Lieux]],inventaire,MATCH(\"Qté min\",OFFSET(inventaire,-1,,1),0),FALSE),0)","v":0},"",0,"Réserve COVID",0,""]
["GEL HYDRO ALCOGEL 1000 ML","Flacon","1000 ml","GEL HYDRO ALCOGEL 1000 ml","2025-05-16","LV 1","VITAE","44072","Dispo permanent en stock",null,null,null,null,null,0,{"$f":"IFERROR(VLOOKUP(Produits_EPI[[#This Row],[Référence Produit]]&Produits_EPI[[#This Row],[Lieux]],inventaire,MATCH(\"Date maj\",OFFSET(inventaire,-1,,1),0),FALSE),0)","v":"00:00:00"},0,{"$f":"IFERROR(VLOOKUP(Produits_EPI[[#This Row],[Référence Produit]]&Produits_EPI[[#This Row],[Lieux]],inventaire,MATCH(\"Qté min\",OFFSET(inventaire,-1,,1),0),FALSE),0)","v":0},"",0,"Réserve COVID",0,{"$f":"IF(O30<R30,R30-O30,\"\")","v":""}]
["GEL HYDRO ANIOS GEL 85 NPC 100 ml","Flacon","100 ml","Gel hydro ANIOS GEL 85 NPC 100 ml","2025-05-16","LV 2","VITAE","44068","Dispo permanent en stock",32.68,"","","",null,0,{"$f":"IFERROR(VLOOKUP(Produits_EPI[[#This Row],[Référence Produit]]&Produits_EPI[[#This Row],[Lieux]],inventaire,MATCH(\"Date maj\",OFFSET(inventaire,-1,,1),0),FALSE),0)","v":"00:00:00"},0,{"$f":"IFERROR(VLOOKUP(Produits_EPI[[#This Row],[Référence Produit]]&Produits_EPI[[#This Row],[Lieux]],inventaire,MATCH(\"Qté min\",OFFSET(inventaire,-1,,1),0),FALSE),0)","v":0},"",0,"Réserve COVID",0,""]
["GEL HYDRO ANIOS GEL 85 NPC 1000 ml","Flacon","1000 ml","Gel hydro ANIOS GEL 85 NPC 1000 ml","2025-05-16","LV 2","VITAE","44053","Dispo permanent en stock",null,"","","",null,0,{"$f":"IFERROR(VLOOKUP(Produits_EPI[[#This Row],[Référence Produit]]&Produits_EPI[[#This Row],[Lieux]],inventaire,MATCH(\"Date maj\",OFFSET(inventaire,-1,,1),0),FALSE),0)","v":"00:00:00"},0,{"$f":"IFERROR(VLOOKUP(Produits_EPI[[#This Row],[Référence Produit]]&Produits_EPI[[#This Row],[Lieux]],inventaire,MATCH(\"Qté min\",OFFSET(inventaire,-1,,1),0),FALSE),0)","v":0},"",0,"Réserve COVID",0,""]
["GEL HYDRO ANIOS GEL 85 NPC 500 ml","Flacon","500 ml","Gel hydro ANIOS GEL 85 NPC 500ml","2025-05-16","LV 2","VITAE","398828","Dispo permanent en stock",null,"","","",null,0,{"$f":"IFERROR(VLOOKUP(Produits_EPI[[#This Row],[Référence Produit]]&Produits_EPI[[#This Row],[Lieux]],inventaire,MATCH(\"Date maj\",OFFSET(inventaire,-1,,1),0),FALSE),0)","v":"00:00:00"},0,{"$f":"IFERROR(VLOOKUP(Produits_EPI[[#This Row],[Référence Produit]]&Produits_EPI[[#This Row],[Lieux]],inventaire,MATCH(\"Qté min\",OFFSET(inventaire,-1,,1),0),FALSE),0)","v":0},"",0,"Réserve COVID",0,""]
["GEL HYDRO ASSAINISSANT ALPHANOVA 100 ML","Flacon","100 ml","GEL ASSAINISSANT ALPHANOVA 100 ml","2025-05-16","LV 2","VITAE","398829","Dispo permanent en stock",null,"","","",null,0,{"$f":"IFERROR(VLOOKUP(Produits_EPI[[#This Row],[Référence Produit]]&Produits_EPI[[#This Row],[Lieux]],inventaire,MATCH(\"Date maj\",OFFSET(inventaire,-1,,1),0),FALSE),0)","v":"00:00:00"},0,{"$f":"IFERROR(VLOOKUP(Produits_EPI[[#This Row],[Référence Produit]]&Produits_EPI[[#This Row],[Lieux]],inventaire,MATCH(\"Qté min\",OFFSET(inventaire,-1,,1),0),FALSE),0)","v":0},"",0,"Réserve COVID",0,""]
["GEL HYDRO KING  400 ml ","Flacon","400 ml","Gel hydro king biocide","2025-05-16","LV 2","VITAE","44035","Dispo permanent en stock",null,"","","",null,0,{"$f":"IFERROR(VLOOKUP(Produits_EPI[[#This Row],[Référence Produit]]&Produits_EPI[[#This Row],[Lieux]],inventaire,MATCH(\"Date maj\",OFFSET(inventaire,-1,,1),0),FALSE),0)","v":"00:00:00"},0,{"$f":"IFERROR(VLOOKUP(Produits_EPI[[#This Row],[Référence Produit]]&Produits_EPI[[#This Row],[Lieux]],inventaire,MATCH(\"Qté min\",OFFSET(inventaire,-1,,1),0),FALSE),0)","v":0},"",0,"Réserve COVID",0,""]
["GEL HYDRO RECETTE OMS 1000 ML","Flacon","1000 ml","GEL HYDRO RECETTE OMS 1000 ML","2025-05-16","LV 2","VITAE","44036","Dispo permanent en stock",null,"","","",null,0,{"$f":"IFERROR(VLOOKUP(Produits_EPI[[#This Row],[Référence Produit]]&Produits_EPI[[#This Row],[Lieux]],inventaire,MATCH(\"Date maj\",OFFSET(inventaire,-1,,1),0),FALSE),0)","v":"00:00:00"},0,{"$f":"IFERROR(VLOOKUP(Produits_EPI[[#This Row],[Référence Produit]]&Produits_EPI[[#This Row],[Lieux]],inventaire,MATCH(\"Qté min\",OFFSET(inventaire,-1,,1),0),FALSE),0)","v":0},"",0,"Réserve COVID",0,""]
["GEL HYDRO RECETTE OMS 1250 ML","Flacon","1250ml","GEL HYDRO RECETTE OMS 1250 ML","2025-05-16","LV 2","VITAE","44037","Dispo permanent en stock",null,"","","",null,0,{"$f":"IFERROR(VLOOKUP(Produits_EPI[[#This Row],[Référence Produit]]&Produits_EPI[[#This Row],[Lieux]],inventaire,MATCH(\"Date maj\",OFFSET(inventaire,-1,,1),0),FALSE),0)","v":"00:00:00"},0,{"$f":"IFERROR(VLOOKUP(Produits_EPI[[#This Row],[Référence Produit]]&Produits_EPI[[#This Row],[Lieux]],inventaire,MATCH(\"Qté min\",OFFSET(inventaire,-1,,1),0),FALSE),0)","v":0},"",0,"Réserve COVID",0,""]
["GEL HYDRO RECETTE OMS 400 ML","Flacon","400 ml","GEL HYDRO RECETTE OMS 400 ML","2025-05-16","LV 2","VITAE","44039","Dispo permanent en stock",34.659999999999997,"","","",null,0,{"$f":"IFERROR(VLOOKUP(Produits_EPI[[#This Row],[Référence Produit]]&Produits_EPI[[#This Row],[Lieux]],inventaire,MATCH(\"Date maj\",OFFSET(inventaire,-1,,1),0),FALSE),0)","v":"00:00:00"},0,{"$f":"IFERROR(VLOOKUP(Produits_EPI[[#This Row],[Référence Produit]]&Produits_EPI[[#This Row],[Lieux]],inventaire,MATCH(\"Qté min\",OFFSET(inventaire,-1,,1),0),FALSE),0)","v":0},"",0,"Réserve COVID",0,""]
["GEL HYDRO RECETTE OMS 5000 ML","Flacon","5000 ml","GEL HYDRO RECETTE OMS 5000 ml","2025-05-16","LV 2","VITAE","44040","Dispo permanent en stock",null,"","","",null,0,{"$f":"IFERROR(VLOOKUP(Produits_EPI[[#This Row],[Référence Produit]]&Produits_EPI[[#This Row],[Lieux]],inventaire,MATCH(\"Date maj\",OFFSET(inventaire,-1,,1),0),FALSE),0)","v":"00:00:00"},0,{"$f":"IFERROR(VLOOKUP(Produits_EPI[[#This Row],[Référence Produit]]&Produits_EPI[[#This Row],[Lieux]],inventaire,MATCH(\"Qté min\",OFFSET(inventaire,-1,,1),0),FALSE),0)","v":0},"",0,"Réserve COVID",0,""]
["GEL NETTOYANT CORPS ET CHEVEUX ID CARE 500ML","Flacon","500ml","GEL NETTOYANT CORPS ET CHEVEUX ID CARE 500ml","2025-05-16","LV 2","VITAE","44041","Dispo permanent en stock",null,"","","",null,0,{"$f":"IFERROR(VLOOKUP(Produits_EPI[[#This Row],[Référence Produit]]&Produits_EPI[[#This Row],[Lieux]],inventaire,MATCH(\"Date maj\",OFFSET(inventaire,-1,,1),0),FALSE),0)","v":"00:00:00"},0,{"$f":"IFERROR(VLOOKUP(Produits_EPI[[#This Row],[Référence Produit]]&Produits_EPI[[#This Row],[Lieux]],inventaire,MATCH(\"Qté min\",OFFSET(inventaire,-1,,1),0),FALSE),0)","v":0},"",0,"Réserve COVID",0,""]
["KIT VISITEUR JET CUISINE","Unité",null,"KIT VISITEUR JET taille unique ref 0711858","2025-05-16","LV 2","VITAE","44042","Dispo permanent en stock",null,"","","",null,0,{"$f":"IFERROR(VLOOKUP(Produits_EPI[[#This Row],[Référence Produit]]&Produits_EPI[[#This Row],[Lieux]],inventaire,MATCH(\"Date maj\",OFFSET(inventaire,-1,,1),0),FALSE),0)","v":"00:00:00"},0,{"$f":"IFERROR(VLOOKUP(Produits_EPI[[#This Row],[Référence Produit]]&Produits_EPI[[#This Row],[Lieux]],inventaire,MATCH(\"Qté min\",OFFSET(inventaire,-1,,1),0),FALSE),0)","v":0},"",0,"Réserve COVID",0,""]
["LAIT NETTOYANT MOISTURIZING 500ML","Flacon","500 ml","MOISTURIZING CLEANSING MILK 500ML péremption 12 mois aprés ouverture ONTEX  ref:859986301 ID CARE 500ml ","2025-05-16","LV 2","VITAE","44043","Dispo permanent en stock",null,"","","",null,0,{"$f":"IFERROR(VLOOKUP(Produits_EPI[[#This Row],[Référence Produit]]&Produits_EPI[[#This Row],[Lieux]],inventaire,MATCH(\"Date maj\",OFFSET(inventaire,-1,,1),0),FALSE),0)","v":"00:00:00"},0,{"$f":"IFERROR(VLOOKUP(Produits_EPI[[#This Row],[Référence Produit]]&Produits_EPI[[#This Row],[Lieux]],inventaire,MATCH(\"Qté min\",OFFSET(inventaire,-1,,1),0),FALSE),0)","v":0},"",0,"Réserve COVID",0,""]
["LINGETTE HOP'PRO DESINFECTANTE CUISINE","Boite","100 Lingettes","LINGETTE HOP'PRO DESINFECTANTE boite de 100 - 130*180mm-HOPEN MEDICOM COMPANY","2025-05-16","LV 2","VITAE","44044","Dispo permanent en stock",null,"","","",null,0,{"$f":"IFERROR(VLOOKUP(Produits_EPI[[#This Row],[Référence Produit]]&Produits_EPI[[#This Row],[Lieux]],inventaire,MATCH(\"Date maj\",OFFSET(inventaire,-1,,1),0),FALSE),0)","v":"00:00:00"},0,{"$f":"IFERROR(VLOOKUP(Produits_EPI[[#This Row],[Référence Produit]]&Produits_EPI[[#This Row],[Lieux]],inventaire,MATCH(\"Qté min\",OFFSET(inventaire,-1,,1),0),FALSE),0)","v":0},"",0,"Réserve COVID",0,""]
["LINGETTE WIP ANIOS EXCEL","Paquet","100 lingettes","Lingette WIP ANIOS EXCEL","2025-05-16","LV 2","VITAE","44293","Dispo permanent en stock",null,"","","",null,0,{"$f":"IFERROR(VLOOKUP(Produits_EPI[[#This Row],[Référence Produit]]&Produits_EPI[[#This Row],[Lieux]],inventaire,MATCH(\"Date maj\",OFFSET(inventaire,-1,,1),0),FALSE),0)","v":"00:00:00"},0,{"$f":"IFERROR(VLOOKUP(Produits_EPI[[#This Row],[Référence Produit]]&Produits_EPI[[#This Row],[Lieux]],inventaire,MATCH(\"Qté min\",OFFSET(inventaire,-1,,1),0),FALSE),0)","v":0},"",0,"Réserve COVID",0,""]
["LUNETTE DE PROTECTION","Unité",null,"LUNETTE DE PROTECTION DELTA PLUS","2025-05-16","LV 2","VITAE","44294","Dispo permanent en stock",null,"","","",null,0,{"$f":"IFERROR(VLOOKUP(Produits_EPI[[#This Row],[Référence Produit]]&Produits_EPI[[#This Row],[Lieux]],inventaire,MATCH(\"Date maj\",OFFSET(inventaire,-1,,1),0),FALSE),0)","v":"00:00:00"},0,{"$f":"IFERROR(VLOOKUP(Produits_EPI[[#This Row],[Référence Produit]]&Produits_EPI[[#This Row],[Lieux]],inventaire,MATCH(\"Qté min\",OFFSET(inventaire,-1,,1),0),FALSE),0)","v":0},"",0,"Réserve COVID",0,""]
["LUNETTE PROTECTION VUNIVET 712 ","Unité","Unité","LUNETTE PROTECTION VUNIVET 712  2 montures et 17 verre protection PVC ref:712.00.00.00","2025-05-16","LV 2","VITAE","44295","Dispo permanent en stock",null,"","","",null,0,{"$f":"IFERROR(VLOOKUP(Produits_EPI[[#This Row],[Référence Produit]]&Produits_EPI[[#This Row],[Lieux]],inventaire,MATCH(\"Date maj\",OFFSET(inventaire,-1,,1),0),FALSE),0)","v":"00:00:00"},0,{"$f":"IFERROR(VLOOKUP(Produits_EPI[[#This Row],[Référence Produit]]&Produits_EPI[[#This Row],[Lieux]],inventaire,MATCH(\"Qté min\",OFFSET(inventaire,-1,,1),0),FALSE),0)","v":0},"",0,"Réserve COVID",0,""]
["MANCHETTES POLYETHILENE BLANCHES",null,null,"MANCHETTES POLYETHILENE BLANCHES paquet de 100 ref 07VS4135I","2025-05-16","LV 2","VITAE","43926","Dispo permanent en stock",null,"","","",null,0,{"$f":"IFERROR(VLOOKUP(Produits_EPI[[#This Row],[Référence Produit]]&Produits_EPI[[#This Row],[Lieux]],inventaire,MATCH(\"Date maj\",OFFSET(inventaire,-1,,1),0),FALSE),0)","v":"00:00:00"},0,{"$f":"IFERROR(VLOOKUP(Produits_EPI[[#This Row],[Référence Produit]]&Produits_EPI[[#This Row],[Lieux]],inventaire,MATCH(\"Qté min\",OFFSET(inventaire,-1,,1),0),FALSE),0)","v":0},"",0,"Réserve COVID",0,""]
["MASQUE CHIRURGICAL BLEU SANDEL TYPE II REF 85001E","Unité","Unité","MASQUE CHIRURGICAL BLEU à fixation auriculaire SANDEL TYPE II ref 85001E","2025-05-16","LV 2","VITAE","46235","Dispo permanent en stock",null,"","","",null,0,{"$f":"IFERROR(VLOOKUP(Produits_EPI[[#This Row],[Référence Produit]]&Produits_EPI[[#This Row],[Lieux]],inventaire,MATCH(\"Date maj\",OFFSET(inventaire,-1,,1),0),FALSE),0)","v":"00:00:00"},0,{"$f":"IFERROR(VLOOKUP(Produits_EPI[[#This Row],[Référence Produit]]&Produits_EPI[[#This Row],[Lieux]],inventaire,MATCH(\"Qté min\",OFFSET(inventaire,-1,,1),0),FALSE),0)","v":0},"",0,"Réserve COVID",0,""]
["MASQUE CHIRURGICAL TYPE 2R A ELASTIQUE ","Unité","Unité","MASQUE de chirurgical TYPE 2R A Elastique DON ARS VALMY","2025-05-16","LV 2","VITAE","33079","Dispo permanent en stock",null,"","","",null,0,{"$f":"IFERROR(VLOOKUP(Produits_EPI[[#This Row],[Référence Produit]]&Produits_EPI[[#This Row],[Lieux]],inventaire,MATCH(\"Date maj\",OFFSET(inventaire,-1,,1),0),FALSE),0)","v":"00:00:00"},0,{"$f":"IFERROR(VLOOKUP(Produits_EPI[[#This Row],[Référence Produit]]&Produits_EPI[[#This Row],[Lieux]],inventaire,MATCH(\"Qté min\",OFFSET(inventaire,-1,,1),0),FALSE),0)","v":0},"",0,"Réserve COVID",0,""]
["MASQUE ELASTIQUE BLANC  THF TYPE 2 R 3 PLIS","Unité","Unité","Masque ELASTIQUE BLANC THF TYPE 2R 3 plis","2025-05-16","LV 3","VITAE","44068","Dispo permanent en stock",32.58,"","","",null,0,{"$f":"IFERROR(VLOOKUP(Produits_EPI[[#This Row],[Référence Produit]]&Produits_EPI[[#This Row],[Lieux]],inventaire,MATCH(\"Date maj\",OFFSET(inventaire,-1,,1),0),FALSE),0)","v":"00:00:00"},0,{"$f":"IFERROR(VLOOKUP(Produits_EPI[[#This Row],[Référence Produit]]&Produits_EPI[[#This Row],[Lieux]],inventaire,MATCH(\"Qté min\",OFFSET(inventaire,-1,,1),0),FALSE),0)","v":0},"",0,"Réserve COVID",0,""]
["MASQUE FFP2 KIMBERLY-CLARCK PFR P2 REF: 62408","Unité","Unité","MASQUE KIMBERLY-CLARCK PFR P2 REF 62408","2025-05-16","LV 3","VITAE","44053","Dispo permanent en stock",null,"","","",null,0,{"$f":"IFERROR(VLOOKUP(Produits_EPI[[#This Row],[Référence Produit]]&Produits_EPI[[#This Row],[Lieux]],inventaire,MATCH(\"Date maj\",OFFSET(inventaire,-1,,1),0),FALSE),0)","v":"00:00:00"},0,{"$f":"IFERROR(VLOOKUP(Produits_EPI[[#This Row],[Référence Produit]]&Produits_EPI[[#This Row],[Lieux]],inventaire,MATCH(\"Qté min\",OFFSET(inventaire,-1,,1),0),FALSE),0)","v":0},"",0,"Réserve COVID",0,""]
["MASQUE KIMBERLY-CLARK","Unité","Unité","MASQUE KIMBERLY-Clark latex ","2025-05-16","LV 3","VITAE","398828","Dispo permanent en stock",null,"","","",null,0,{"$f":"IFERROR(VLOOKUP(Produits_EPI[[#This Row],[Référence Produit]]&Produits_EPI[[#This Row],[Lieux]],inventaire,MATCH(\"Date maj\",OFFSET(inventaire,-1,,1),0),FALSE),0)","v":"00:00:00"},0,{"$f":"IFERROR(VLOOKUP(Produits_EPI[[#This Row],[Référence Produit]]&Produits_EPI[[#This Row],[Lieux]],inventaire,MATCH(\"Qté min\",OFFSET(inventaire,-1,,1),0),FALSE),0)","v":0},"",0,"Réserve COVID",0,""]
["MASQUE KINGSTAR PQT DE 10 REF: CHINOISE","Unité","Unité","Masque Kingstar ref chinoise paquet de 10 unités","2025-05-16","LV 3","VITAE","398829","Dispo permanent en stock",null,"","","",null,0,{"$f":"IFERROR(VLOOKUP(Produits_EPI[[#This Row],[Référence Produit]]&Produits_EPI[[#This Row],[Lieux]],inventaire,MATCH(\"Date maj\",OFFSET(inventaire,-1,,1),0),FALSE),0)","v":"00:00:00"},0,{"$f":"IFERROR(VLOOKUP(Produits_EPI[[#This Row],[Référence Produit]]&Produits_EPI[[#This Row],[Lieux]],inventaire,MATCH(\"Qté min\",OFFSET(inventaire,-1,,1),0),FALSE),0)","v":0},"",0,"Réserve COVID",0,""]
["MASQUE MASK +R","Unité","Unité","Masque MASK +R MEDISTOCK","2025-05-16","LV 3","VITAE","44035","Dispo permanent en stock",null,"","","",null,0,{"$f":"IFERROR(VLOOKUP(Produits_EPI[[#This Row],[Référence Produit]]&Produits_EPI[[#This Row],[Lieux]],inventaire,MATCH(\"Date maj\",OFFSET(inventaire,-1,,1),0),FALSE),0)","v":"00:00:00"},0,{"$f":"IFERROR(VLOOKUP(Produits_EPI[[#This Row],[Référence Produit]]&Produits_EPI[[#This Row],[Lieux]],inventaire,MATCH(\"Qté min\",OFFSET(inventaire,-1,,1),0),FALSE),0)","v":0},"",0,"Réserve COVID",0,""]
["NETTOYANT DESINFECTANT SURFACES ACTICIDE02 RTU","Bidon","5000 ml","NETTOYANT DESINFECTANT SURFACES ACTICIDE02 RTU DALTA","2025-05-16","LV 3","VITAE","44036","Dispo permanent en stock",null,"","","",null,0,{"$f":"IFERROR(VLOOKUP(Produits_EPI[[#This Row],[Référence Produit]]&Produits_EPI[[#This Row],[Lieux]],inventaire,MATCH(\"Date maj\",OFFSET(inventaire,-1,,1),0),FALSE),0)","v":"00:00:00"},0,{"$f":"IFERROR(VLOOKUP(Produits_EPI[[#This Row],[Référence Produit]]&Produits_EPI[[#This Row],[Lieux]],inventaire,MATCH(\"Qté min\",OFFSET(inventaire,-1,,1),0),FALSE),0)","v":0},"",0,"Réserve COVID",0,""]
["PHAGOSPRAY","Pulvérisateur","750 ml","PHAGOSPRAY DM ","2025-05-16","LV 3","VITAE","44037","Dispo permanent en stock",null,"","","",null,0,{"$f":"IFERROR(VLOOKUP(Produits_EPI[[#This Row],[Référence Produit]]&Produits_EPI[[#This Row],[Lieux]],inventaire,MATCH(\"Date maj\",OFFSET(inventaire,-1,,1),0),FALSE),0)","v":"00:00:00"},0,{"$f":"IFERROR(VLOOKUP(Produits_EPI[[#This Row],[Référence Produit]]&Produits_EPI[[#This Row],[Lieux]],inventaire,MATCH(\"Qté min\",OFFSET(inventaire,-1,,1),0),FALSE),0)","v":0},"",0,"Réserve COVID",0,""]
["SURCHAUSSURE BLEU","Unité",null,"SURCHAUSSURE FINE BLEU ref 100631","2025-05-16","LV 3","VITAE","44039","Dispo permanent en stock",34.659999999999997,"","","",null,0,{"$f":"IFERROR(VLOOKUP(Produits_EPI[[#This Row],[Référence Produit]]&Produits_EPI[[#This Row],[Lieux]],inventaire,MATCH(\"Date maj\",OFFSET(inventaire,-1,,1),0),FALSE),0)","v":"00:00:00"},0,{"$f":"IFERROR(VLOOKUP(Produits_EPI[[#This Row],[Référence Produit]]&Produits_EPI[[#This Row],[Lieux]],inventaire,MATCH(\"Qté min\",OFFSET(inventaire,-1,,1),0),FALSE),0)","v":0},"",0,"Réserve COVID",0,""]
["SURCHAUSSURE BLEU JET","Unité","Unité","SURCHAUSSURE BLEU JET ref:07CC0100I","2025-05-16","LV 3","VITAE","44040","Dispo permanent en stock",null,"","","",null,0,{"$f":"IFERROR(VLOOKUP(Produits_EPI[[#This Row],[Référence Produit]]&Produits_EPI[[#This Row],[Lieux]],inventaire,MATCH(\"Date maj\",OFFSET(inventaire,-1,,1),0),FALSE),0)","v":"00:00:00"},0,{"$f":"IFERROR(VLOOKUP(Produits_EPI[[#This Row],[Référence Produit]]&Produits_EPI[[#This Row],[Lieux]],inventaire,MATCH(\"Qté min\",OFFSET(inventaire,-1,,1),0),FALSE),0)","v":0},"",0,"Réserve COVID",0,""]
["SURCHAUSSURE BLEU MEDISTOCK","Unité","100 Surchaussures","SURCHAUSSURE BLEU MEDISTOCK ref 69PSC36BPE","2025-05-16","LV 3","VITAE","44041","Dispo permanent en stock",null,"","","",null,0,{"$f":"IFERROR(VLOOKUP(Produits_EPI[[#This Row],[Référence Produit]]&Produits_EPI[[#This Row],[Lieux]],inventaire,MATCH(\"Date maj\",OFFSET(inventaire,-1,,1),0),FALSE),0)","v":"00:00:00"},0,{"$f":"IFERROR(VLOOKUP(Produits_EPI[[#This Row],[Référence Produit]]&Produits_EPI[[#This Row],[Lieux]],inventaire,MATCH(\"Qté min\",OFFSET(inventaire,-1,,1),0),FALSE),0)","v":0},"",0,"Réserve COVID",0,""]
["SURCHAUSSURES BLEU","Unité","Unité","SURCHAUSSURES BLEU REF:S741001","2025-05-16","LV 3","VITAE","44042","Dispo permanent en stock",null,"","","",null,0,{"$f":"IFERROR(VLOOKUP(Produits_EPI[[#This Row],[Référence Produit]]&Produits_EPI[[#This Row],[Lieux]],inventaire,MATCH(\"Date maj\",OFFSET(inventaire,-1,,1),0),FALSE),0)","v":"00:00:00"},0,{"$f":"IFERROR(VLOOKUP(Produits_EPI[[#This Row],[Référence Produit]]&Produits_EPI[[#This Row],[Lieux]],inventaire,MATCH(\"Qté min\",OFFSET(inventaire,-1,,1),0),FALSE),0)","v":0},"",0,"Réserve COVID",0,""]
["SURCHAUSSURES PP BLANCHES JET ","Paquet",null,"SURCHAUSSURES BLANCHES taille unique JET 07CC3500I","2025-05-16","LV 3","VITAE","44043","Dispo permanent en stock",null,"","","",null,0,{"$f":"IFERROR(VLOOKUP(Produits_EPI[[#This Row],[Référence Produit]]&Produits_EPI[[#This Row],[Lieux]],inventaire,MATCH(\"Date maj\",OFFSET(inventaire,-1,,1),0),FALSE),0)","v":"00:00:00"},0,{"$f":"IFERROR(VLOOKUP(Produits_EPI[[#This Row],[Référence Produit]]&Produits_EPI[[#This Row],[Lieux]],inventaire,MATCH(\"Qté min\",OFFSET(inventaire,-1,,1),0),FALSE),0)","v":0},"",0,"Réserve COVID",0,""]
["TABLIER BLOUSE ANTI PROJECTION HOPEN 35","Unité","Unité","Tablier Blouse Anti projection CPE 35 Micron 119*128","2025-05-16","LV 3","VITAE","44044","Dispo permanent en stock",null,"","","",null,0,{"$f":"IFERROR(VLOOKUP(Produits_EPI[[#This Row],[Référence Produit]]&Produits_EPI[[#This Row],[Lieux]],inventaire,MATCH(\"Date maj\",OFFSET(inventaire,-1,,1),0),FALSE),0)","v":"00:00:00"},0,{"$f":"IFERROR(VLOOKUP(Produits_EPI[[#This Row],[Référence Produit]]&Produits_EPI[[#This Row],[Lieux]],inventaire,MATCH(\"Qté min\",OFFSET(inventaire,-1,,1),0),FALSE),0)","v":0},"",0,"Réserve COVID",0,""]
["THERMOMETRE DIGICOMED","Unité",null,"THERMOMETRE DIGICOMED","2025-05-16","LV 3","VITAE","44293","Dispo permanent en stock",null,"","","",null,0,{"$f":"IFERROR(VLOOKUP(Produits_EPI[[#This Row],[Référence Produit]]&Produits_EPI[[#This Row],[Lieux]],inventaire,MATCH(\"Date maj\",OFFSET(inventaire,-1,,1),0),FALSE),0)","v":"00:00:00"},0,{"$f":"IFERROR(VLOOKUP(Produits_EPI[[#This Row],[Référence Produit]]&Produits_EPI[[#This Row],[Lieux]],inventaire,MATCH(\"Qté min\",OFFSET(inventaire,-1,,1),0),FALSE),0)","v":0},"",0,"Réserve COVID",0,""]
["THERMOMETRE TORM","Unité",null,"Thermometre Torm","2025-05-16","LV 3","VITAE","44294","Dispo permanent en stock",null,"","","",null,0,{"$f":"IFERROR(VLOOKUP(Produits_EPI[[#This Row],[Référence Produit]]&Produits_EPI[[#This Row],[Lieux]],inventaire,MATCH(\"Date maj\",OFFSET(inventaire,-1,,1),0),FALSE),0)","v":"00:00:00"},0,{"$f":"IFERROR(VLOOKUP(Produits_EPI[[#This Row],[Référence Produit]]&Produits_EPI[[#This Row],[Lieux]],inventaire,MATCH(\"Qté min\",OFFSET(inventaire,-1,,1),0),FALSE),0)","v":0},"",0,"Réserve COVID",0,""]
["MASQUE KOLMI TYPE 2 R BLEU REF:M34101-30","Unité","Unité","MASQUE KOLMI Op Air One SPLASH NF EN 14683 TYPE 2 R BLEU REF:M34101-30","2025-05-16","LV 3","VITAE","44295","Dispo permanent en stock",null,"","","",null,0,{"$f":"IFERROR(VLOOKUP(Produits_EPI[[#This Row],[Référence Produit]]&Produits_EPI[[#This Row],[Lieux]],inventaire,MATCH(\"Date maj\",OFFSET(inventaire,-1,,1),0),FALSE),0)","v":"00:00:00"},0,{"$f":"IFERROR(VLOOKUP(Produits_EPI[[#This Row],[Référence Produit]]&Produits_EPI[[#This Row],[Lieux]],inventaire,MATCH(\"Qté min\",OFFSET(inventaire,-1,,1),0),FALSE),0)","v":0},"",0,"Réserve COVID",0,""]
["GANTS VINYLE L STRECH GN 66","Boite","Unité","Boite de 100 Gants d'examen Strech Vinyl GN 66 ref: GN66L","2025-05-16","LV 3","VITAE","43926","Dispo permanent en stock",null,"","","",null,0,{"$f":"IFERROR(VLOOKUP(Produits_EPI[[#This Row],[Référence Produit]]&Produits_EPI[[#This Row],[Lieux]],inventaire,MATCH(\"Date maj\",OFFSET(inventaire,-1,,1),0),FALSE),0)","v":"00:00:00"},0,{"$f":"IFERROR(VLOOKUP(Produits_EPI[[#This Row],[Référence Produit]]&Produits_EPI[[#This Row],[Lieux]],inventaire,MATCH(\"Qté min\",OFFSET(inventaire,-1,,1),0),FALSE),0)","v":0},"",0,"Réserve COVID",0,""]
["MASQUE BLEU FACE MASKS CHINOIS REF:GB/T32610-2016","Unité","Unité","Paquet de 50 masques FACE MASKS ref chinoise : GB/T32610-2016","2025-05-16","LV 3","VITAE","46235","Dispo permanent en stock",null,"","","",null,0,{"$f":"IFERROR(VLOOKUP(Produits_EPI[[#This Row],[Référence Produit]]&Produits_EPI[[#This Row],[Lieux]],inventaire,MATCH(\"Date maj\",OFFSET(inventaire,-1,,1),0),FALSE),0)","v":"00:00:00"},0,{"$f":"IFERROR(VLOOKUP(Produits_EPI[[#This Row],[Référence Produit]]&Produits_EPI[[#This Row],[Lieux]],inventaire,MATCH(\"Qté min\",OFFSET(inventaire,-1,,1),0),FALSE),0)","v":0},"",0,"Réserve COVID",0,""]
["GANTS VINYLE  S SHIELD GD10 TAILLE 6/7 ","Boite","unité","GANTS VINYL SHIELD GD10 POUDRE taille 6/7 S","2025-05-16","LV 3","VITAE","33079","Dispo permanent en stock",null,"","","",null,0,{"$f":"IFERROR(VLOOKUP(Produits_EPI[[#This Row],[Référence Produit]]&Produits_EPI[[#This Row],[Lieux]],inventaire,MATCH(\"Date maj\",OFFSET(inventaire,-1,,1),0),FALSE),0)","v":"00:00:00"},0,{"$f":"IFERROR(VLOOKUP(Produits_EPI[[#This Row],[Référence Produit]]&Produits_EPI[[#This Row],[Lieux]],inventaire,MATCH(\"Qté min\",OFFSET(inventaire,-1,,1),0),FALSE),0)","v":0},"",0,"Réserve COVID",0,""]
["MASQUE SEGETEX-EIF TYPE II REF M191-25","Unité","Unité","MASQUE Segetex-eif type II ref M191-25","2025-05-16","LV 4","VITAE","44068","Dispo permanent en stock",32.58,"","","",null,0,{"$f":"IFERROR(VLOOKUP(Produits_EPI[[#This Row],[Référence Produit]]&Produits_EPI[[#This Row],[Lieux]],inventaire,MATCH(\"Date maj\",OFFSET(inventaire,-1,,1),0),FALSE),0)","v":"00:00:00"},0,{"$f":"IFERROR(VLOOKUP(Produits_EPI[[#This Row],[Référence Produit]]&Produits_EPI[[#This Row],[Lieux]],inventaire,MATCH(\"Qté min\",OFFSET(inventaire,-1,,1),0),FALSE),0)","v":0},"",0,"Réserve COVID",0,""]
["MASQUE LYNCMED BLEU 302089","Unité","Unité","MASQUE LYNCMED BLEU à élastique 175*95mm ref 302089","2025-05-16","LV 4","VITAE","44053","Dispo permanent en stock",null,"","","",null,0,{"$f":"IFERROR(VLOOKUP(Produits_EPI[[#This Row],[Référence Produit]]&Produits_EPI[[#This Row],[Lieux]],inventaire,MATCH(\"Date maj\",OFFSET(inventaire,-1,,1),0),FALSE),0)","v":"00:00:00"},0,{"$f":"IFERROR(VLOOKUP(Produits_EPI[[#This Row],[Référence Produit]]&Produits_EPI[[#This Row],[Lieux]],inventaire,MATCH(\"Qté min\",OFFSET(inventaire,-1,,1),0),FALSE),0)","v":0},"",0,"Réserve COVID",0,""]
["GANTS NITRILE M D'EXAMEN BLEU  Blue Sail","Boite","Unité","GANTS NITRILE D'EXAMEN BLEU ref:942 001 Taille M Blue Sail","2025-05-16","LV 4","VITAE","398828","Dispo permanent en stock",null,"","","",null,0,{"$f":"IFERROR(VLOOKUP(Produits_EPI[[#This Row],[Référence Produit]]&Produits_EPI[[#This Row],[Lieux]],inventaire,MATCH(\"Date maj\",OFFSET(inventaire,-1,,1),0),FALSE),0)","v":"00:00:00"},0,{"$f":"IFERROR(VLOOKUP(Produits_EPI[[#This Row],[Référence Produit]]&Produits_EPI[[#This Row],[Lieux]],inventaire,MATCH(\"Qté min\",OFFSET(inventaire,-1,,1),0),FALSE),0)","v":0},"",0,"Réserve COVID",0,""]
["MASQUE BLEU 3 ÉPAISSEURS TYPE II REF S-17X9.5/X/B/III","Unité","Unité","MASQUE BLEU 3 ÉPAISSEURS TYPE II REF S-17X9.5/X/B/III importé par AMC","2025-05-16","LV 4","VITAE","398829","Dispo permanent en stock",null,"","","",null,0,{"$f":"IFERROR(VLOOKUP(Produits_EPI[[#This Row],[Référence Produit]]&Produits_EPI[[#This Row],[Lieux]],inventaire,MATCH(\"Date maj\",OFFSET(inventaire,-1,,1),0),FALSE),0)","v":"00:00:00"},0,{"$f":"IFERROR(VLOOKUP(Produits_EPI[[#This Row],[Référence Produit]]&Produits_EPI[[#This Row],[Lieux]],inventaire,MATCH(\"Qté min\",OFFSET(inventaire,-1,,1),0),FALSE),0)","v":0},"",0,"Réserve COVID",{"$f":"IF(O72>R72,\"\",(R72-O72)*J72)","v":0},""]
["GANTS VINYLE L VLX-03 SENSINYL LIGHT","Boite","Unité","GANTS VINYLE SENSINYL LIGHT d'examen non poudrés,non stériles taille M VLX-03 Sensinyl Light","2025-05-16","LV 4","VITAE","44035","Dispo permanent en stock",null,"","","",null,0,{"$f":"IFERROR(VLOOKUP(Produits_EPI[[#This Row],[Référence Produit]]&Produits_EPI[[#This Row],[Lieux]],inventaire,MATCH(\"Date maj\",OFFSET(inventaire,-1,,1),0),FALSE),0)","v":"00:00:00"},0,{"$f":"IFERROR(VLOOKUP(Produits_EPI[[#This Row],[Référence Produit]]&Produits_EPI[[#This Row],[Lieux]],inventaire,MATCH(\"Qté min\",OFFSET(inventaire,-1,,1),0),FALSE),0)","v":0},{"$f":"IF(OR(AND(NOT(ISBLANK($E73)),$E73<TODAY()),$O73-$R73<0),\"A COMMANDER\",\"\")","v":""},0,"Réserve COVID",0,""]
["MASQUE NATON BLEU TYPE II R À ÉLASTIQUE NT.KF.0095 ","Unité","Unité","MASQUE chirurgical Bleu NATON Type II R à élastique ref: NT.KF.0095","2025-05-16","LV 4","VITAE","44036","Dispo permanent en stock",null,"","","",null,0,{"$f":"IFERROR(VLOOKUP(Produits_EPI[[#This Row],[Référence Produit]]&Produits_EPI[[#This Row],[Lieux]],inventaire,MATCH(\"Date maj\",OFFSET(inventaire,-1,,1),0),FALSE),0)","v":"00:00:00"},0,{"$f":"IFERROR(VLOOKUP(Produits_EPI[[#This Row],[Référence Produit]]&Produits_EPI[[#This Row],[Lieux]],inventaire,MATCH(\"Qté min\",OFFSET(inventaire,-1,,1),0),FALSE),0)","v":0},"",0,"Réserve COVID",0,{"$f":"IF(O74<R74,R74-O74,\"\")","v":""}]
["GANTS NITRILE M MAXTER SANS POUDRE ","Boite","Unité","GANTS MAXTER bleu sans poudre en nitrile taille M ref:MX93777","2025-05-16","LV 4","VITAE","44037","Dispo permanent en stock",null,"","","",null,0,{"$f":"IFERROR(VLOOKUP(Produits_EPI[[#This Row],[Référence Produit]]&Produits_EPI[[#This Row],[Lieux]],inventaire,MATCH(\"Date maj\",OFFSET(inventaire,-1,,1),0),FALSE),0)","v":"00:00:00"},0,{"$f":"IFERROR(VLOOKUP(Produits_EPI[[#This Row],[Référence Produit]]&Produits_EPI[[#This Row],[Lieux]],inventaire,MATCH(\"Qté min\",OFFSET(inventaire,-1,,1),0),FALSE),0)","v":0},"",0,"Réserve COVID",0,""]
["TABLIER DE PROTECTION BLANC PVC","Unité","Unité","TABLIER DE PROTECTION BLANC PVC SANS MARQUE ET SANS DESCRIPTIF","2025-05-16","LV 4","VITAE","44039","Dispo permanent en stock",34.659999999999997,"","","",null,0,{"$f":"IFERROR(VLOOKUP(Produits_EPI[[#This Row],[Référence Produit]]&Produits_EPI[[#This Row],[Lieux]],inventaire,MATCH(\"Date maj\",OFFSET(inventaire,-1,,1),0),FALSE),0)","v":"00:00:00"},0,{"$f":"IFERROR(VLOOKUP(Produits_EPI[[#This Row],[Référence Produit]]&Produits_EPI[[#This Row],[Lieux]],inventaire,MATCH(\"Qté min\",OFFSET(inventaire,-1,,1),0),FALSE),0)","v":0},"",0,"Réserve COVID",0,""]
["EAU DE JAVEL BEC ","Bidon","2l","EAU DE JAVEL BEC bidon de 2l 2.6% de chlore actif","2025-05-16","LV 4","VITAE","44040","Dispo permanent en stock",null,"","","",null,0,{"$f":"IFERROR(VLOOKUP(Produits_EPI[[#This Row],[Référence Produit]]&Produits_EPI[[#This Row],[Lieux]],inventaire,MATCH(\"Date maj\",OFFSET(inventaire,-1,,1),0),FALSE),0)","v":"00:00:00"},0,{"$f":"IFERROR(VLOOKUP(Produits_EPI[[#This Row],[Référence Produit]]&Produits_EPI[[#This Row],[Lieux]],inventaire,MATCH(\"Qté min\",OFFSET(inventaire,-1,,1),0),FALSE),0)","v":0},"",0,"Réserve COVID",0,""]
["GEL HYDRO ABAX","Bidon","5000 ml","GEL HYDRO ABAX","2025-05-16","LV 4","VITAE","44041","Dispo permanent en stock",null,"","","",null,0,{"$f":"IFERROR(VLOOKUP(Produits_EPI[[#This Row],[Référence Produit]]&Produits_EPI[[#This Row],[Lieux]],inventaire,MATCH(\"Date maj\",OFFSET(inventaire,-1,,1),0),FALSE),0)","v":"00:00:00"},0,{"$f":"IFERROR(VLOOKUP(Produits_EPI[[#This Row],[Référence Produit]]&Produits_EPI[[#This Row],[Lieux]],inventaire,MATCH(\"Qté min\",OFFSET(inventaire,-1,,1),0),FALSE),0)","v":0},"",0,"Réserve COVID",0,""]
["VISIERES DE PROTECTION","Unité","Unité","VISIERES DE PROTECTION PVC","2025-05-16","LV 4","VITAE","44042","Dispo permanent en stock",null,"","","",null,0,{"$f":"IFERROR(VLOOKUP(Produits_EPI[[#This Row],[Référence Produit]]&Produits_EPI[[#This Row],[Lieux]],inventaire,MATCH(\"Date maj\",OFFSET(inventaire,-1,,1),0),FALSE),0)","v":"00:00:00"},0,{"$f":"IFERROR(VLOOKUP(Produits_EPI[[#This Row],[Référence Produit]]&Produits_EPI[[#This Row],[Lieux]],inventaire,MATCH(\"Qté min\",OFFSET(inventaire,-1,,1),0),FALSE),0)","v":0},"",0,"Réserve COVID",0,""]
["MASQUE FCHA TYPE II R BLEU À ÉLASTIQUE","Unité","Unité","MASQUE FCHA non stérile TYPE II R Bleu à élastique","2025-05-16","LV 4","VITAE","44043","Dispo permanent en stock",null,"","","",null,0,{"$f":"IFERROR(VLOOKUP(Produits_EPI[[#This Row],[Référence Produit]]&Produits_EPI[[#This Row],[Lieux]],inventaire,MATCH(\"Date maj\",OFFSET(inventaire,-1,,1),0),FALSE),0)","v":"00:00:00"},0,{"$f":"IFERROR(VLOOKUP(Produits_EPI[[#This Row],[Référence Produit]]&Produits_EPI[[#This Row],[Lieux]],inventaire,MATCH(\"Qté min\",OFFSET(inventaire,-1,,1),0),FALSE),0)","v":0},"",0,"Réserve COVID",0,""]
["TABLIER PE BLANC ARMOR","Unité","Unité","TABLIER PE BLANC de protection ARMOR ref:1873040","2025-05-16","LV 4","VITAE","44044","Dispo permanent en stock",null,"","","",null,0,{"$f":"IFERROR(VLOOKUP(Produits_EPI[[#This Row],[Référence Produit]]&Produits_EPI[[#This Row],[Lieux]],inventaire,MATCH(\"Date maj\",OFFSET(inventaire,-1,,1),0),FALSE),0)","v":"00:00:00"},0,{"$f":"IFERROR(VLOOKUP(Produits_EPI[[#This Row],[Référence Produit]]&Produits_EPI[[#This Row],[Lieux]],inventaire,MATCH(\"Qté min\",OFFSET(inventaire,-1,,1),0),FALSE),0)","v":0},"",0,"Réserve COVID",0,""]
["MASQUE FFP2 NR GUARDWE","Unité","Unité","MASQUE FFP2 NR GUARDWE 5 unités par paquet","2025-05-16","LV 4","VITAE","44293","Dispo permanent en stock",null,"","","",null,0,{"$f":"IFERROR(VLOOKUP(Produits_EPI[[#This Row],[Référence Produit]]&Produits_EPI[[#This Row],[Lieux]],inventaire,MATCH(\"Date maj\",OFFSET(inventaire,-1,,1),0),FALSE),0)","v":"00:00:00"},0,{"$f":"IFERROR(VLOOKUP(Produits_EPI[[#This Row],[Référence Produit]]&Produits_EPI[[#This Row],[Lieux]],inventaire,MATCH(\"Qté min\",OFFSET(inventaire,-1,,1),0),FALSE),0)","v":0},"",0,"Réserve COVID",0,""]
["GANTS VINYLE M DERM NATUREX 626 ","Unité","Unité","GANTS VINYLE DERM NATUREX 626 TAILLE M Cod.5602","2025-05-16","LV 4","VITAE","44294","Dispo permanent en stock",null,"","","",null,0,{"$f":"IFERROR(VLOOKUP(Produits_EPI[[#This Row],[Référence Produit]]&Produits_EPI[[#This Row],[Lieux]],inventaire,MATCH(\"Date maj\",OFFSET(inventaire,-1,,1),0),FALSE),0)","v":"00:00:00"},0,{"$f":"IFERROR(VLOOKUP(Produits_EPI[[#This Row],[Référence Produit]]&Produits_EPI[[#This Row],[Lieux]],inventaire,MATCH(\"Qté min\",OFFSET(inventaire,-1,,1),0),FALSE),0)","v":0},"",0,"Réserve COVID",0,""]
["VISIERE DE PROTECTION AVEC ÉLASTIQUE","Unité","Unité","VISIERE DE PROTECTION AVEC ÉLASTIQUE","2025-05-16","LV 4","VITAE","44295","Dispo permanent en stock",null,"","","",null,0,{"$f":"IFERROR(VLOOKUP(Produits_EPI[[#This Row],[Référence Produit]]&Produits_EPI[[#This Row],[Lieux]],inventaire,MATCH(\"Date maj\",OFFSET(inventaire,-1,,1),0),FALSE),0)","v":"00:00:00"},0,{"$f":"IFERROR(VLOOKUP(Produits_EPI[[#This Row],[Référence Produit]]&Produits_EPI[[#This Row],[Lieux]],inventaire,MATCH(\"Qté min\",OFFSET(inventaire,-1,,1),0),FALSE),0)","v":0},"",0,"Réserve COVID",0,""]
["MASQUE TYPE  II R FIRSTAR A ELASTIQUE","Unité","Unité","MASQUES TYPE  II R FIRSTAR","2025-05-16","LV 4","VITAE","43926","Dispo permanent en stock",null,"","","",null,0,{"$f":"IFERROR(VLOOKUP(Produits_EPI[[#This Row],[Référence Produit]]&Produits_EPI[[#This Row],[Lieux]],inventaire,MATCH(\"Date maj\",OFFSET(inventaire,-1,,1),0),FALSE),0)","v":"00:00:00"},0,{"$f":"IFERROR(VLOOKUP(Produits_EPI[[#This Row],[Référence Produit]]&Produits_EPI[[#This Row],[Lieux]],inventaire,MATCH(\"Qté min\",OFFSET(inventaire,-1,,1),0),FALSE),0)","v":0},"",0,"Réserve COVID",0,""]
["MASQUE FFP2 MASK BLANC À ÉLASTIQUE  BM198N","Unité","Unité","MASQUE FFP2 MASK BLANC À ÉLASTIQUE  BM198N ","2025-05-16","LV 4","VITAE","46235","Dispo permanent en stock",null,"","","",null,0,{"$f":"IFERROR(VLOOKUP(Produits_EPI[[#This Row],[Référence Produit]]&Produits_EPI[[#This Row],[Lieux]],inventaire,MATCH(\"Date maj\",OFFSET(inventaire,-1,,1),0),FALSE),0)","v":"00:00:00"},0,{"$f":"IFERROR(VLOOKUP(Produits_EPI[[#This Row],[Référence Produit]]&Produits_EPI[[#This Row],[Lieux]],inventaire,MATCH(\"Qté min\",OFFSET(inventaire,-1,,1),0),FALSE),0)","v":0},"",0,"Réserve COVID",0,""]
["TABLIERS PE JETABLES BLANC ","Unité","Unité","TABLIERS PE JETABLES BLANC 25 micron 70*120 ref:TABPEW70120","2025-05-16","LV 4","VITAE","33079","Dispo permanent en stock",null,"","","",null,0,{"$f":"IFERROR(VLOOKUP(Produits_EPI[[#This Row],[Référence Produit]]&Produits_EPI[[#This Row],[Lieux]],inventaire,MATCH(\"Date maj\",OFFSET(inventaire,-1,,1),0),FALSE),0)","v":"00:00:00"},0,{"$f":"IFERROR(VLOOKUP(Produits_EPI[[#This Row],[Référence Produit]]&Produits_EPI[[#This Row],[Lieux]],inventaire,MATCH(\"Qté min\",OFFSET(inventaire,-1,,1),0),FALSE),0)","v":0},"",0,"Réserve COVID",0,""]
["GANTS LATEX M SALUS NATUREX 626","Unité","Unité","GANTS LATEX M SALUS NATUREX 626","2025-05-16",null,null,null,null,null,null,null,null,null,0,{"$f":"IFERROR(VLOOKUP(Produits_EPI[[#This Row],[Référence Produit]]&Produits_EPI[[#This Row],[Lieux]],inventaire,MATCH(\"Date maj\",OFFSET(inventaire,-1,,1),0),FALSE),0)","v":"00:00:00"},0,{"$f":"IFERROR(VLOOKUP(Produits_EPI[[#This Row],[Référence Produit]]&Produits_EPI[[#This Row],[Lieux]],inventaire,MATCH(\"Qté min\",OFFSET(inventaire,-1,,1),0),FALSE),0)","v":0},"",0,"Réserve COVID",{"$f":"IF(O88>R88,\"\",(R88-O88)*J88)","v":0},{"$f":"IF(O88<R88,R88-O88,\"\")","v":""}]

{"sheet":"Stock Produits EPI","index":5,"n_rows":11,"n_cols":7,"rows_kept":11,"cut":false,"hidden":false,"merged":[[0,1,0,4]]}
[null,"STOCK PRODUITS"]
[null,null,null,null,null,null,{"$f":"IF(COUNTIF(G4:G207,\"Périmé\"),\"date de péremption dépassée\",\"OK\")","v":"OK"}]
["Référence Produit","Date de Fabrication","Date de Péremption","Quantité","Prix","Prix total","Périmé dans"]
["BLOUSE BLANCHE VISITEUR","2021-05-10","2025-05-16",450,1,{"$f":"Stock_EPI[[#This Row],[Quantité]]*Stock_EPI[[#This Row],[Prix]]","v":450},{"$f":"IF(OR(B4=\"\",C4=\"\"),\"\",IF(C4<=TODAY(),\"Périmé\",IF(DATEDIF(TODAY(),C4,\"m\")>0,DATEDIF(TODAY(),C4,\"m\")&\" mois et \",\"\")&DATEDIF(TODAY(),C4,\"md\")&IF(DATEDIF(TODAY(),C4,\"md\")=1,\" jour\",\" jours\")))","v":"47 mois et 29 jours"}]
["BLOUSE BLANCHE VISITEUR","2021-05-19","2025-05-22",200,1,{"$f":"Stock_EPI[[#This Row],[Quantité]]*Stock_EPI[[#This Row],[Prix]]","v":200},"48 mois et 5 jours"]
["BLOUSE BLANCHE VISITEUR","2021-05-26","2025-05-31",100,1,{"$f":"Stock_EPI[[#This Row],[Quantité]]*Stock_EPI[[#This Row],[Prix]]","v":100},"48 mois et 14 jours"]
["BLOUSE BLANCHE VISITEUR","2021-05-20","2025-05-31",50,1,{"$f":"Stock_EPI[[#This Row],[Quantité]]*Stock_EPI[[#This Row],[Prix]]","v":50},"48 mois et 14 jours"]
["TECHLINE ADDITIF MOUILLANT 20L","2020-04-11","2024-04-11",232,0,{"$f":"Stock_EPI[[#This Row],[Quantité]]*Stock_EPI[[#This Row],[Prix]]","v":0},"34 mois et 25 jours"]
["TECHLINE ADDITIF MOUILLANT 20L","2020-04-18","2024-04-26",90,2,{"$f":"Stock_EPI[[#This Row],[Quantité]]*Stock_EPI[[#This Row],[Prix]]","v":180},"35 mois et 9 jours"]
["TECHLINE JAVEL PASTILLES 500g","2020-04-11","2024-04-19",12,3.11,{"$f":"Stock_EPI[[#This Row],[Quantité]]*Stock_EPI[[#This Row],[Prix]]","v":37.32},"35 mois et 2 jours"]
["TRANSFIBRE 125g ABRICOT","2021-05-09","2025-05-24",200,1,{"$f":"Stock_EPI[[#This Row],[Quantité]]*Stock_EPI[[#This Row],[Prix]]","v":200},"48 mois et 7 jours"]

{"sheet":"Histo Stock Produits EPI","index":6,"n_rows":9,"n_cols":3,"rows_kept":9,"cut":false,"hidden":false,"merged":[]}
[null,"HISTORIQUE STOCK"]
[]
["Référence Produit","Date de situation","Quantité"]
["BLOUSE BLANCHE VISITEUR","2021-05-09",1000]
["TECHLINE ADDITIF MOUILLANT 20L","2020-04-10",332]
["TECHLINE ADDITIF MOUILLANT 20L","2020-04-09",0]
["TECHLINE ASSOUPLISSANT 20L","2020-04-09",5]
["TECHLINE JAVEL PASTILLES 500g","2020-04-10",10]
["TRANSFIBRE 125g ABRICOT","2021-05-08",20]

{"sheet":"EntreeSortie","index":7,"n_rows":12,"n_cols":11,"rows_kept":12,"cut":false,"hidden":false,"merged":[[1,0,1,10]]}
[]
["Entrée / Sortie Produits du Stock "]
["Référence interne","Désignation","Type","Date E/S","N° Bon","Date fabrication","Date péremption","Qté","Prix","Prix Total","Lieux"]
["BLOUSE BLANCHE VISITEUR","BLOUSE BLANCHE VISITEUR PE fermeture à pressions","entrée","2021-05-10",1,"2021-05-10","2025-05-17",200,1,{"$f":"Mouvements[[#This Row],[Qté]]*Mouvements[[#This Row],[Prix]]","v":200},"LV 1"]
["BLOUSE BLANCHE VISITEUR","BLOUSE BLANCHE VISITEUR PE fermeture à pressions","entrée","2021-05-10",2,"2021-05-10","2025-05-30",150,1,{"$f":"Mouvements[[#This Row],[Qté]]*Mouvements[[#This Row],[Prix]]","v":150},"MAS BQV"]
["BLOUSE BLANCHE VISITEUR","BLOUSE BLANCHE VISITEUR PE fermeture à pressions","entrée","2021-05-10",3,"2021-05-26","2025-05-31",100,1,{"$f":"Mouvements[[#This Row],[Qté]]*Mouvements[[#This Row],[Prix]]","v":100},"MAS BQV"]
["BLOUSE BLANCHE VISITEUR","BLOUSE BLANCHE VISITEUR PE fermeture à pressions","entrée","2021-05-10",4,"2021-05-20","2025-05-31",50,1,{"$f":"Mouvements[[#This Row],[Qté]]*Mouvements[[#This Row],[Prix]]","v":50},"MAS BQV"]
["BLOUSE BLANCHE VISITEUR","BLOUSE BLANCHE VISITEUR PE fermeture à pressions","entrée","2021-05-10",5,"2021-05-10","2025-05-31",100,1,{"$f":"Mouvements[[#This Row],[Qté]]*Mouvements[[#This Row],[Prix]]","v":100},"LV 1"]
["BLOUSE BLANCHE VISITEUR","BLOUSE BLANCHE VISITEUR PE fermeture à pressions","entrée","2021-05-10",6,"2021-05-10","2025-05-31",100,1,{"$f":"Mouvements[[#This Row],[Qté]]*Mouvements[[#This Row],[Prix]]","v":100},"LV 1"]
["BLOUSE BLANCHE VISITEUR","BLOUSE BLANCHE VISITEUR PE fermeture à pressions","entrée","2021-05-10",7,"2021-05-10","2025-05-16",100,1,{"$f":"Mouvements[[#This Row],[Qté]]*Mouvements[[#This Row],[Prix]]","v":100},"MAS BQV"]
["BLOUSE BLANCHE VISITEUR","BLOUSE BLANCHE VISITEUR PE fermeture à pressions","entrée","2021-05-10",8,"2021-05-19","2025-05-22",200,1,{"$f":"Mouvements[[#This Row],[Qté]]*Mouvements[[#This Row],[Prix]]","v":200},"MAS BQV"]
["BLOUSE BLANCHE VISITEUR","BLOUSE BLANCHE VISITEUR PE fermeture à pressions","Sortie ","2021-05-10",9,null,null,200,1,{"$f":"Mouvements[[#This Row],[Qté]]*Mouvements[[#This Row],[Prix]]","v":200},"LV 1"]

{"sheet":"Historique Commande","index":8,"n_rows":4923,"n_cols":13,"rows_kept":4923,"cut":false,"hidden":false,"merged":[]}
[null,null,null,null,null,null,null,null,null,null,null,{"$f":"IF(ISNA(VLOOKUP(\"Retard\",M3:M4990,1,FALSE)),\"OK\",VLOOKUP(\"Retard\",M3:M4990,1,FALSE))","v":"OK"},{"$f":"TODAY()","v":"2021-05-17"}]
["N°Co","Saisi Par","Réf Produit","Conditionnement","Dosage","Fournisseur","Référence fournisseur","Prix unitaire","Qté","Date de commande","Date livraison prévue","Date réception","Etat"]
[null,null,null,null,null,null,null,null,null,null,null,null,{"$f":"IF(J3=\"\",\"\",IF(L3<>\"\",\"OK\",IF(AND(K3<>\"\",K3<TODAY()),\"Retard\",\"Attente de Livraison\")))","v":""}]
[null,null,null,null,null,null,null,null,null,null,null,null,""]
[null,null,null,null,null,null,null,null,null,null,null,null,""]
[null,null,null,null,null,null,null,null,null,null,null,null,""]
[null,null,null,null,null,null,null,null,null,null,null,null,""]
[null,null,null,null,null,null,null,null,null,null,null,null,""]
[null,null,null,null,null,null,null,null,null,null,null,null,""]
[null,null,null,null,null,null,null,null,null,null,null,null,""]
[null,null,null,null,null,null,null,null,null,null,null,null,""]
[null,null,null,null,null,null,null,null,null,null,null,null,""]
[null,null,null,null,null,null,null,null,null,null,null,null,""]
[null,null,null,null,null,null,null,null,null,null,null,null,""]
[null,null,null,null,null,null,null,null,null,null,null,null,""]
[null,null,null,null,null,null,null,null,null,null,null,null,""]
[null,null,null,null,null,null,null,null,null,null,null,null,""]
[null,null,null,null,null,null,null,null,null,null,null,null,""]
[null,null,null,null,null,null,null,null,null,null,null,null,""]
[null,null,null,null,null,null,null,null,null,null,null,null,""]
[null,null,null,null,null,null,null,null,null,null,null,null,""]
[null,null,null,null,null,null,null,null,null,null,null,null,""]
[null,null,null,null,null,null,null,null,null,null,null,null,""]
[null,null,null,null,null,null,null,null,null,null,null,null,""]
[null,null,null,null,null,null,null,null,null,null,null,null,""]
[null,null,null,null,null,null,null,null,null,null,null,null,""]
[null,null,null,null,null,null,null,null,null,null,null,null,""]
[null,null,null,null,null,null,null,null,null,null,null,null,""]
[null,null,null,null,null,null,null,null,null,null,null,null,""]
[null,null,null,null,null,null,null,null,null,null,null,null,""]
[null,null,null,null,null,null,null,null,null,null,null,null,""]
[null,null,null,null,null,null,null,null,null,null,null,null,""]
[null,null,null,null,null,null,null,null,null,null,null,null,""]
[null,null,null,null,null,null,null,null,null,null,null,null,""]
[null,null,null,null,null,null,null,null,null,null,null,null,""]
[null,null,null,null,null,null,null,null,null,null,null,null,""]
[null,null,null,null,null,null,null,null,null,null,null,null,""]
[null,null,null,null,null,null,null,null,null,null,null,null,""]
[null,null,null,null,null,null,null,null,null,null,null,null,""]
[null,null,null,null,null,null,null,null,null,null,null,null,""]
[null,null,null,null,null,null,null,null,null,null,null,null,""]
[null,null,null,null,null,null,null,null,null,null,null,null,""]
[null,null,null,null,null,null,null,null,null,null,null,null,""]
[null,null,null,null,null,null,null,null,null,null,null,null,""]
[null,null,null,null,null,null,null,null,null,null,null,null,""]
[null,null,null,null,null,null,null,null,null,null,null,null,""]
[null,null,null,null,null,null,null,null,null,null,null,null,""]
[null,null,null,null,null,null,null,null,null,null,null,null,""]
[null,null,null,null,null,null,null,null,null,null,null,null,""]
[null,null,null,null,null,null,null,null,null,null,null,null,""]
[null,null,null,null,null,null,null,null,null,null,null,null,{"$f":"IF(J51=\"\",\"\",IF(L51<>\"\",\"OK\",IF(AND(K51<>\"\",K51<TODAY()),\"Retard\",\"Attente de Livraison\")))","v":""}]
[null,null,null,null,null,null,null,null,null,null,null,null,""]
[null,null,null,null,null,null,null,null,null,null,null,null,""]
[null,null,null,null,null,null,null,null,null,null,null,null,""]
[null,null,null,null,null,null,null,null,null,null,null,null,""]
[null,null,null,null,null,null,null,null,null,null,null,null,""]
[null,null,null,null,null,null,null,null,null,null,null,null,""]
[null,null,null,null,null,null,null,null,null,null,null,null,""]
[null,null,null,null,null,null,null,null,null,null,null,null,""]
[null,null,null,null,null,null,null,null,null,null,null,null,""]
[null,null,null,null,null,null,null,null,null,null,null,null,""]
[null,null,null,null,null,null,null,null,null,null,null,null,""]
[null,null,null,null,null,null,null,null,null,null,null,null,""]
[null,null,null,null,null,null,null,null,null,null,null,null,""]
[null,null,null,null,null,null,null,null,null,null,null,null,""]
[null,null,null,null,null,null,null,null,null,null,null,null,""]
[null,null,null,null,null,null,null,null,null,null,null,null,""]
[null,null,null,null,null,null,null,null,null,null,null,null,""]
[null,null,null,null,null,null,null,null,null,null,null,null,""]
[null,null,null,null,null,null,null,null,null,null,null,null,""]
[null,null,null,null,null,null,null,null,null,null,null,null,""]
[null,null,null,null,null,null,null,null,null,null,null,null,""]
[null,null,null,null,null,null,null,null,null,null,null,null,""]
[null,null,null,null,null,null,null,null,null,null,null,null,""]
[null,null,null,null,null,null,null,null,null,null,null,null,""]
[null,null,null,null,null,null,null,null,null,null,null,null,""]
[null,null,null,null,null,null,null,null,null,null,null,null,""]
[null,null,null,null,null,null,null,null,null,null,null,null,""]
[null,null,null,null,null,null,null,null,null,null,null,null,""]
[null,null,null,null,null,null,null,null,null,null,null,null,""]
[null,null,null,null,null,null,null,null,null,null,null,null,""]
[null,null,null,null,null,null,null,null,null,null,null,null,""]
[null,null,null,null,null,null,null,null,null,null,null,null,""]
[null,null,null,null,null,null,null,null,null,null,null,null,""]
[null,null,null,null,null,null,null,null,null,null,null,null,""]
[null,null,null,null,null,null,null,null,null,null,null,null,""]
[null,null,null,null,null,null,null,null,null,null,null,null,""]
[null,null,null,null,null,null,null,null,null,null,null,null,""]
[null,null,null,null,null,null,null,null,null,null,null,null,""]
[null,null,null,null,null,null,null,null,null,null,null,null,""]
[null,null,null,null,null,null,null,null,null,null,null,null,""]
[null,null,null,null,null,null,null,null,null,null,null,null,""]
[null,null,null,null,null,null,null,null,null,null,null,null,""]
[null,null,null,null,null,null,null,null,null,null,null,null,""]
[null,null,null,null,null,null,null,null,null,null,null,null,""]
[null,null,null,null,null,null,null,null,null,null,null,null,""]
[null,null,null,null,null,null,null,null,null,null,null,null,""]
[null,null,null,null,null,null,null,null,null,null,null,null,""]
[null,null,null,null,null,null,null,null,null,null,null,null,""]
[null,null,null,null,null,null,null,null,null,null,null,null,""]
[null,null,null,null,null,null,null,null,null,null,null,null,""]
[null,null,null,null,null,null,null,null,null,null,null,null,""]
[null,null,null,null,null,null,null,null,null,null,null,null,""]
[null,null,null,null,null,null,null,null,null,null,null,null,""]
[null,null,null,null,null,null,null,null,null,null,null,null,""]
[null,null,null,null,null,null,null,null,null,null,null,null,""]
[null,null,null,null,null,null,null,null,null,null,null,null,""]
[null,null,null,null,null,null,null,null,null,null,null,null,""]
[null,null,null,null,null,null,null,null,null,null,null,null,""]
[null,null,null,null,null,null,null,null,null,null,null,null,""]
[null,null,null,null,null,null,null,null,null,null,null,null,""]
[null,null,null,null,null,null,null,null,null,null,null,null,""]
[null,null,null,null,null,null,null,null,null,null,null,null,""]
[null,null,null,null,null,null,null,null,null,null,null,null,""]
[null,null,null,null,null,null,null,null,null,null,null,null,{"$f":"IF(J115=\"\",\"\",IF(L115<>\"\",\"OK\",IF(AND(K115<>\"\",K115<TODAY()),\"Retard\",\"Attente de Livraison\")))","v":""}]
[null,null,null,null,null,null,null,null,null,null,null,null,""]
[null,null,null,null,null,null,null,null,null,null,null,null,""]
[null,null,null,null,null,null,null,null,null,null,null,null,""]
[null,null,null,null,null,null,null,null,null,null,null,null,""]
[null,null,null,null,null,null,null,null,null,null,null,null,""]
[null,null,null,null,null,null,null,null,null,null,null,null,""]
[null,null,null,null,null,null,null,null,null,null,null,null,""]
[null,null,null,null,null,null,null,null,null,null,null,null,""]
[null,null,null,null,null,null,null,null,null,null,null,null,""]
[null,null,null,null,null,null,null,null,null,null,null,null,""]
[null,null,null,null,null,null,null,null,null,null,null,null,""]
[null,null,null,null,null,null,null,null,null,null,null,null,""]
[null,null,null,null,null,null,null,null,null,null,null,null,""]
[null,null,null,null,null,null,null,null,null,null,null,null,""]
[null,null,null,null,null,null,null,null,null,null,null,null,""]
[null,null,null,null,null,null,null,null,null,null,null,null,""]
[null,null,null,null,null,null,null,null,null,null,null,null,""]
[null,null,null,null,null,null,null,null,null,null,null,null,""]
[null,null,null,null,null,null,null,null,null,null,null,null,""]
[null,null,null,null,null,null,null,null,null,null,null,null,""]
[null,null,null,null,null,null,null,null,null,null,null,null,""]
[null,null,null,null,null,null,null,null,null,null,null,null,""]
[null,null,null,null,null,null,null,null,null,null,null,null,""]
[null,null,null,null,null,null,null,null,null,null,null,null,""]
[null,null,null,null,null,null,null,null,null,null,null,null,""]
[null,null,null,null,null,null,null,null,null,null,null,null,""]
[null,null,null,null,null,null,null,null,null,null,null,null,""]
[null,null,null,null,null,null,null,null,null,null,null,null,""]
[null,null,null,null,null,null,null,null,null,null,null,null,""]
[null,null,null,null,null,null,null,null,null,null,null,null,""]
[null,null,null,null,null,null,null,null,null,null,null,null,""]
[null,null,null,null,null,null,null,null,null,null,null,null,""]
[null,null,null,null,null,null,null,null,null,null,null,null,""]
[null,null,null,null,null,null,null,null,null,null,null,null,""]
[null,null,null,null,null,null,null,null,null,null,null,null,""]
[null,null,null,null,null,null,null,null,null,null,null,null,""]
[null,null,null,null,null,null,null,null,null,null,null,null,""]
[null,null,null,null,null,null,null,null,null,null,null,null,""]
[null,null,null,null,null,null,null,null,null,null,null,null,""]
[null,null,null,null,null,null,null,null,null,null,null,null,""]
[null,null,null,null,null,null,null,null,null,null,null,null,""]
[null,null,null,null,null,null,null,null,null,null,null,null,""]
[null,null,null,null,null,null,null,null,null,null,null,null,""]
[null,null,null,null,null,null,null,null,null,null,null,null,""]
[null,null,null,null,null,null,null,null,null,null,null,null,""]
[null,null,null,null,null,null,null,null,null,null,null,null,""]
[null,null,null,null,null,null,null,null,null,null,null,null,""]
[null,null,null,null,null,null,null,null,null,null,null,null,""]
[null,null,null,null,null,null,null,null,null,null,null,null,""]
[null,null,null,null,null,null,null,null,null,null,null,null,""]
[null,null,null,null,null,null,null,null,null,null,null,null,""]
[null,null,null,null,null,null,null,null,null,null,null,null,""]
[null,null,null,null,null,null,null,null,null,null,null,null,""]
[null,null,null,null,null,null,null,null,null,null,null,null,""]
[null,null,null,null,null,null,null,null,null,null,null,null,""]
[null,null,null,null,null,null,null,null,null,null,null,null,""]
[null,null,null,null,null,null,null,null,null,null,null,null,""]
[null,null,null,null,null,null,null,null,null,null,null,null,""]
[null,null,null,null,null,null,null,null,null,null,null,null,""]
[null,null,null,null,null,null,null,null,null,null,null,null,""]
[null,null,null,null,null,null,null,null,null,null,null,null,""]
[null,null,null,null,null,null,null,null,null,null,null,null,""]
[null,null,null,null,null,null,null,null,null,null,null,null,""]
[null,null,null,null,null,null,null,null,null,null,null,null,{"$f":"IF(J179=\"\",\"\",IF(L179<>\"\",\"OK\",IF(AND(K179<>\"\",K179<TODAY()),\"Retard\",\"Attente de Livraison\")))","v":""}]
[null,null,null,null,null,null,null,null,null,null,null,null,""]
[null,null,null,null,null,null,null,null,null,null,null,null,""]
[null,null,null,null,null,null,null,null,null,null,null,null,""]
[null,null,null,null,null,null,null,null,null,null,null,null,""]
[null,null,null,null,null,null,null,null,null,null,null,null,""]
[null,null,null,null,null,null,null,null,null,null,null,null,""]
[null,null,null,null,null,null,null,null,null,null,null,null,""]
[null,null,null,null,null,null,null,null,null,null,null,null,""]
[null,null,null,null,null,null,null,null,null,null,null,null,""]
[null,null,null,null,null,null,null,null,null,null,null,null,""]
[null,null,null,null,null,null,null,null,null,null,null,null,""]
[null,null,null,null,null,null,null,null,null,null,null,null,""]
[null,null,null,null,null,null,null,null,null,null,null,null,""]
[null,null,null,null,null,null,null,null,null,null,null,null,""]
[null,null,null,null,null,null,null,null,null,null,null,null,""]
[null,null,null,null,null,null,null,null,null,null,null,null,""]
[null,null,null,null,null,null,null,null,null,null,null,null,""]
[null,null,null,null,null,null,null,null,null,null,null,null,""]
[null,null,null,null,null,null,null,null,null,null,null,null,""]
[null,null,null,null,null,null,null,null,null,null,null,null,""]
[null,null,null,null,null,null,null,null,null,null,null,null,""]
[null,null,null,null,null,null,null,null,null,null,null,null,""]
[null,null,null,null,null,null,null,null,null,null,null,null,""]
[null,null,null,null,null,null,null,null,null,null,null,null,""]
[null,null,null,null,null,null,null,null,null,null,null,null,""]
[null,null,null,null,null,null,null,null,null,null,null,null,""]
[null,null,null,null,null,null,null,null,null,null,null,null,""]
[null,null,null,null,null,null,null,null,null,null,null,null,""]
[null,null,null,null,null,null,null,null,null,null,null,null,""]
[null,null,null,null,null,null,null,null,null,null,null,null,""]
[null,null,null,null,null,null,null,null,null,null,null,null,""]
[null,null,null,null,null,null,null,null,null,null,null,null,""]
[null,null,null,null,null,null,null,null,null,null,null,null,""]
[null,null,null,null,null,null,null,null,null,null,null,null,""]
[null,null,null,null,null,null,null,null,null,null,null,null,""]
[null,null,null,null,null,null,null,null,null,null,null,null,""]
[null,null,null,null,null,null,null,null,null,null,null,null,""]
[null,null,null,null,null,null,null,null,null,null,null,null,""]
[null,null,null,null,null,null,null,null,null,null,null,null,""]
[null,null,null,null,null,null,null,null,null,null,null,null,""]
[null,null,null,null,null,null,null,null,null,null,null,null,""]
[null,null,null,null,null,null,null,null,null,null,null,null,""]
[null,null,null,null,null,null,null,null,null,null,null,null,""]
[null,null,null,null,null,null,null,null,null,null,null,null,""]
[null,null,null,null,null,null,null,null,null,null,null,null,""]
[null,null,null,null,null,null,null,null,null,null,null,null,""]
[null,null,null,null,null,null,null,null,null,null,null,null,""]
[null,null,null,null,null,null,null,null,null,null,null,null,""]
[null,null,null,null,null,null,null,null,null,null,null,null,""]
[null,null,null,null,null,null,null,null,null,null,null,null,""]
[null,null,null,null,null,null,null,null,null,null,null,null,""]
[null,null,null,null,null,null,null,null,null,null,null,null,""]
[null,null,null,null,null,null,null,null,null,null,null,null,""]
[null,null,null,null,null,null,null,null,null,null,null,null,""]
[null,null,null,null,null,null,null,null,null,null,null,null,""]
[null,null,null,null,null,null,null,null,null,null,null,null,""]
[null,null,null,null,null,null,null,null,null,null,null,null,""]
[null,null,null,null,null,null,null,null,null,null,null,null,""]
[null,null,null,null,null,null,null,null,null,null,null,null,""]
[null,null,null,null,null,null,null,null,null,null,null,null,""]
[null,null,null,null,null,null,null,null,null,null,null,null,""]
[null,null,null,null,null,null,null,null,null,null,null,null,""]
[null,null,null,null,null,null,null,null,null,null,null,null,""]
[null,null,null,null,null,null,null,null,null,null,null,null,{"$f":"IF(J243=\"\",\"\",IF(L243<>\"\",\"OK\",IF(AND(K243<>\"\",K243<TODAY()),\"Retard\",\"Attente de Livraison\")))","v":""}]
[null,null,null,null,null,null,null,null,null,null,null,null,""]
[null,null,null,null,null,null,null,null,null,null,null,null,""]
[null,null,null,null,null,null,null,null,null,null,null,null,""]
[null,null,null,null,null,null,null,null,null,null,null,null,""]
[null,null,null,null,null,null,null,null,null,null,null,null,""]
[null,null,null,null,null,null,null,null,null,null,null,null,""]
[null,null,null,null,null,null,null,null,null,null,null,null,""]
[null,null,null,null,null,null,null,null,null,null,null,null,""]
[null,null,null,null,null,null,null,null,null,null,null,null,""]
[null,null,null,null,null,null,null,null,null,null,null,null,""]
[null,null,null,null,null,null,null,null,null,null,null,null,""]
[null,null,null,null,null,null,null,null,null,null,null,null,""]
[null,null,null,null,null,null,null,null,null,null,null,null,""]
[null,null,null,null,null,null,null,null,null,null,null,null,""]
[null,null,null,null,null,null,null,null,null,null,null,null,""]
[null,null,null,null,null,null,null,null,null,null,null,null,""]
[null,null,null,null,null,null,null,null,null,null,null,null,""]
[null,null,null,null,null,null,null,null,null,null,null,null,""]
[null,null,null,null,null,null,null,null,null,null,null,null,""]
[null,null,null,null,null,null,null,null,null,null,null,null,""]
[null,null,null,null,null,null,null,null,null,null,null,null,""]
[null,null,null,null,null,null,null,null,null,null,null,null,""]
[null,null,null,null,null,null,null,null,null,null,null,null,""]
[null,null,null,null,null,null,null,null,null,null,null,null,""]
[null,null,null,null,null,null,null,null,null,null,null,null,""]
[null,null,null,null,null,null,null,null,null,null,null,null,""]
[null,null,null,null,null,null,null,null,null,null,null,null,""]
[null,null,null,null,null,null,null,null,null,null,null,null,""]
[null,null,null,null,null,null,null,null,null,null,null,null,""]
[null,null,null,null,null,null,null,null,null,null,null,null,""]
[null,null,null,null,null,null,null,null,null,null,null,null,""]
[null,null,null,null,null,null,null,null,null,null,null,null,""]
[null,null,null,null,null,null,null,null,null,null,null,null,""]
[null,null,null,null,null,null,null,null,null,null,null,null,""]
[null,null,null,null,null,null,null,null,null,null,null,null,""]
[null,null,null,null,null,null,null,null,null,null,null,null,""]
[null,null,null,null,null,null,null,null,null,null,null,null,""]
[null,null,null,null,null,null,null,null,null,null,null,null,""]
[null,null,null,null,null,null,null,null,null,null,null,null,""]
[null,null,null,null,null,null,null,null,null,null,null,null,""]
[null,null,null,null,null,null,null,null,null,null,null,null,""]
[null,null,null,null,null,null,null,null,null,null,null,null,""]
[null,null,null,null,null,null,null,null,null,null,null,null,""]
[null,null,null,null,null,null,null,null,null,null,null,null,""]
[null,null,null,null,null,null,null,null,null,null,null,null,""]
[null,null,null,null,null,null,null,null,null,null,null,null,""]
[null,null,null,null,null,null,null,null,null,null,null,null,""]
[null,null,null,null,null,null,null,null,null,null,null,null,""]
[null,null,null,null,null,null,null,null,null,null,null,null,""]
[null,null,null,null,null,null,null,null,null,null,null,null,""]
[null,null,null,null,null,null,null,null,null,null,null,null,""]
[null,null,null,null,null,null,null,null,null,null,null,null,""]
[null,null,null,null,null,null,null,null,null,null,null,null,""]
[null,null,null,null,null,null,null,null,null,null,null,null,""]
[null,null,null,null,null,null,null,null,null,null,null,null,""]
[null,null,null,null,null,null,null,null,null,null,null,null,""]
[null,null,null,null,null,null,null,null,null,null,null,null,""]
[null,null,null,null,null,null,null,null,null,null,null,null,""]
[null,null,null,null,null,null,null,null,null,null,null,null,""]
[null,null,null,null,null,null,null,null,null,null,null,null,""]
[null,null,null,null,null,null,null,null,null,null,null,null,""]
[null,null,null,null,null,null,null,null,null,null,null,null,""]
[null,null,null,null,null,null,null,null,null,null,null,null,""]
[null,null,null,null,null,null,null,null,null,null,null,null,{"$f":"IF(J307=\"\",\"\",IF(L307<>\"\",\"OK\",IF(AND(K307<>\"\",K307<TODAY()),\"Retard\",\"Attente de Livraison\")))","v":""}]
[null,null,null,null,null,null,null,null,null,null,null,null,""]
[null,null,null,null,null,null,null,null,null,null,null,null,""]
[null,null,null,null,null,null,null,null,null,null,null,null,""]
[null,null,null,null,null,null,null,null,null,null,null,null,""]
[null,null,null,null,null,null,null,null,null,null,null,null,""]
[null,null,null,null,null,null,null,null,null,null,null,null,""]
[null,null,null,null,null,null,null,null,null,null,null,null,""]
[null,null,null,null,null,null,null,null,null,null,null,null,""]
[null,null,null,null,null,null,null,null,null,null,null,null,""]
[null,null,null,null,null,null,null,null,null,null,null,null,""]
[null,null,null,null,null,null,null,null,null,null,null,null,""]
[null,null,null,null,null,null,null,null,null,null,null,null,""]
[null,null,null,null,null,null,null,null,null,null,null,null,""]
[null,null,null,null,null,null,null,null,null,null,null,null,""]
[null,null,null,null,null,null,null,null,null,null,null,null,""]
[null,null,null,null,null,null,null,null,null,null,null,null,""]
[null,null,null,null,null,null,null,null,null,null,null,null,""]
[null,null,null,null,null,null,null,null,null,null,null,null,""]
[null,null,null,null,null,null,null,null,null,null,null,null,""]
[null,null,null,null,null,null,null,null,null,null,null,null,""]
[null,null,null,null,null,null,null,null,null,null,null,null,""]
[null,null,null,null,null,null,null,null,null,null,null,null,""]
[null,null,null,null,null,null,null,null,null,null,null,null,""]
[null,null,null,null,null,null,null,null,null,null,null,null,""]
[null,null,null,null,null,null,null,null,null,null,null,null,""]
[null,null,null,null,null,null,null,null,null,null,null,null,""]
[null,null,null,null,null,null,null,null,null,null,null,null,""]
[null,null,null,null,null,null,null,null,null,null,null,null,""]
[null,null,null,null,null,null,null,null,null,null,null,null,""]
[null,null,null,null,null,null,null,null,null,null,null,null,""]
[null,null,null,null,null,null,null,null,null,null,null,null,""]
[null,null,null,null,null,null,null,null,null,null,null,null,""]
[null,null,null,null,null,null,null,null,null,null,null,null,""]
[null,null,null,null,null,null,null,null,null,null,null,null,""]
[null,null,null,null,null,null,null,null,null,null,null,null,""]
[null,null,null,null,null,null,null,null,null,null,null,null,""]
[null,null,null,null,null,null,null,null,null,null,null,null,""]
[null,null,null,null,null,null,null,null,null,null,null,null,""]
[null,null,null,null,null,null,null,null,null,null,null,null,""]
[null,null,null,null,null,null,null,null,null,null,null,null,""]
[null,null,null,null,null,null,null,null,null,null,null,null,""]
[null,null,null,null,null,null,null,null,null,null,null,null,""]
[null,null,null,null,null,null,null,null,null,null,null,null,""]
[null,null,null,null,null,null,null,null,null,null,null,null,""]
[null,null,null,null,null,null,null,null,null,null,null,null,""]
[null,null,null,null,null,null,null,null,null,null,null,null,""]
[null,null,null,null,null,null,null,null,null,null,null,null,""]
[null,null,null,null,null,null,null,null,null,null,null,null,""]
[null,null,null,null,null,null,null,null,null,null,null,null,""]
[null,null,null,null,null,null,null,null,null,null,null,null,""]
[null,null,null,null,null,null,null,null,null,null,null,null,""]
[null,null,null,null,null,null,null,null,null,null,null,null,""]
[null,null,null,null,null,null,null,null,null,null,null,null,""]
[null,null,null,null,null,null,null,null,null,null,null,null,""]
[null,null,null,null,null,null,null,null,null,null,null,null,""]
[null,null,null,null,null,null,null,null,null,null,null,null,""]
[null,null,null,null,null,null,null,null,null,null,null,null,""]
[null,null,null,null,null,null,null,null,null,null,null,null,""]
[null,null,null,null,null,null,null,null,null,null,null,null,""]
[null,null,null,null,null,null,null,null,null,null,null,null,""]
[null,null,null,null,null,null,null,null,null,null,null,null,""]
[null,null,null,null,null,null,null,null,null,null,null,null,""]
[null,null,null,null,null,null,null,null,null,null,null,null,""]
[null,null,null,null,null,null,null,null,null,null,null,null,{"$f":"IF(J371=\"\",\"\",IF(L371<>\"\",\"OK\",IF(AND(K371<>\"\",K371<TODAY()),\"Retard\",\"Attente de Livraison\")))","v":""}]
[null,null,null,null,null,null,null,null,null,null,null,null,""]
[null,null,null,null,null,null,null,null,null,null,null,null,""]
[null,null,null,null,null,null,null,null,null,null,null,null,""]
[null,null,null,null,null,null,null,null,null,null,null,null,""]
[null,null,null,null,null,null,null,null,null,null,null,null,""]
[null,null,null,null,null,null,null,null,null,null,null,null,""]
[null,null,null,null,null,null,null,null,null,null,null,null,""]
[null,null,null,null,null,null,null,null,null,null,null,null,""]
[null,null,null,null,null,null,null,null,null,null,null,null,""]
[null,null,null,null,null,null,null,null,null,null,null,null,""]
[null,null,null,null,null,null,null,null,null,null,null,null,""]
[null,null,null,null,null,null,null,null,null,null,null,null,""]
[null,null,null,null,null,null,null,null,null,null,null,null,""]
[null,null,null,null,null,null,null,null,null,null,null,null,""]
[null,null,null,null,null,null,null,null,null,null,null,null,""]
[null,null,null,null,null,null,null,null,null,null,null,null,""]
[null,null,null,null,null,null,null,null,null,null,null,null,""]
[null,null,null,null,null,null,null,null,null,null,null,null,""]
[null,null,null,null,null,null,null,null,null,null,null,null,""]
[null,null,null,null,null,null,null,null,null,null,null,null,""]
[null,null,null,null,null,null,null,null,null,null,null,null,""]
[null,null,null,null,null,null,null,null,null,null,null,null,""]
[null,null,null,null,null,null,null,null,null,null,null,null,""]
[null,null,null,null,null,null,null,null,null,null,null,null,""]
[null,null,null,null,null,null,null,null,null,null,null,null,""]
[null,null,null,null,null,null,null,null,null,null,null,null,""]
[null,null,null,null,null,null,null,null,null,null,null,null,""]
[null,null,null,null,null,null,null,null,null,null,null,null,""]
[null,null,null,null,null,null,null,null,null,null,null,null,""]
[null,null,null,null,null,null,null,null,null,null,null,null,""]
[null,null,null,null,null,null,null,null,null,null,null,null,""]
[null,null,null,null,null,null,null,null,null,null,null,null,""]
[null,null,null,null,null,null,null,null,null,null,null,null,""]
[null,null,null,null,null,null,null,null,null,null,null,null,""]
[null,null,null,null,null,null,null,null,null,null,null,null,""]
[null,null,null,null,null,null,null,null,null,null,null,null,""]
[null,null,null,null,null,null,null,null,null,null,null,null,""]
[null,null,null,null,null,null,null,null,null,null,null,null,""]
[null,null,null,null,null,null,null,null,null,null,null,null,""]
[null,null,null,null,null,null,null,null,null,null,null,null,""]
[null,null,null,null,null,null,null,null,null,null,null,null,""]
[null,null,null,null,null,null,null,null,null,null,null,null,""]
[null,null,null,null,null,null,null,null,null,null,null,null,""]
[null,null,null,null,null,null,null,null,null,null,null,null,""]
[null,null,null,null,null,null,null,null,null,null,null,null,""]
[null,null,null,null,null,null,null,null,null,null,null,null,""]
[null,null,null,null,null,null,null,null,null,null,null,null,""]
[null,null,null,null,null,null,null,null,null,null,null,null,""]
[null,null,null,null,null,null,null,null,null,null,null,null,""]
[null,null,null,null,null,null,null,null,null,null,null,null,""]
[null,null,null,null,null,null,null,null,null,null,null,null,""]
[null,null,null,null,null,null,null,null,null,null,null,null,""]
[null,null,null,null,null,null,null,null,null,null,null,null,""]
[null,null,null,null,null,null,null,null,null,null,null,null,""]
[null,null,null,null,null,null,null,null,null,null,null,null,""]
[null,null,null,null,null,null,null,null,null,null,null,null,""]
[null,null,null,null,null,null,null,null,null,null,null,null,""]
[null,null,null,null,null,null,null,null,null,null,null,null,""]
[null,null,null,null,null,null,null,null,null,null,null,null,""]
[null,null,null,null,null,null,null,null,null,null,null,null,""]
[null,null,null,null,null,null,null,null,null,null,null,null,""]
[null,null,null,null,null,null,null,null,null,null,null,null,""]
[null,null,null,null,null,null,null,null,null,null,null,null,""]
[null,null,null,null,null,null,null,null,null,null,null,null,{"$f":"IF(J435=\"\",\"\",IF(L435<>\"\",\"OK\",IF(AND(K435<>\"\",K435<TODAY()),\"Retard\",\"Attente de Livraison\")))","v":""}]
[null,null,null,null,null,null,null,null,null,null,null,null,""]
[null,null,null,null,null,null,null,null,null,null,null,null,""]
[null,null,null,null,null,null,null,null,null,null,null,null,""]
[null,null,null,null,null,null,null,null,null,null,null,null,""]
[null,null,null,null,null,null,null,null,null,null,null,null,""]
[null,null,null,null,null,null,null,null,null,null,null,null,""]
[null,null,null,null,null,null,null,null,null,null,null,null,""]
[null,null,null,null,null,null,null,null,null,null,null,null,""]
[null,null,null,null,null,null,null,null,null,null,null,null,""]
[null,null,null,null,null,null,null,null,null,null,null,null,""]
[null,null,null,null,null,null,null,null,null,null,null,null,""]
[null,null,null,null,null,null,null,null,null,null,null,null,""]
[null,null,null,null,null,null,null,null,null,null,null,null,""]
[null,null,null,null,null,null,null,null,null,null,null,null,""]
[null,null,null,null,null,null,null,null,null,null,null,null,""]
[null,null,null,null,null,null,null,null,null,null,null,null,""]
[null,null,null,null,null,null,null,null,null,null,null,null,""]
[null,null,null,null,null,null,null,null,null,null,null,null,""]
[null,null,null,null,null,null,null,null,null,null,null,null,""]
[null,null,null,null,null,null,null,null,null,null,null,null,""]
[null,null,null,null,null,null,null,null,null,null,null,null,""]
[null,null,null,null,null,null,null,null,null,null,null,null,""]
[null,null,null,null,null,null,null,null,null,null,null,null,""]
[null,null,null,null,null,null,null,null,null,null,null,null,""]
[null,null,null,null,null,null,null,null,null,null,null,null,""]
[null,null,null,null,null,null,null,null,null,null,null,null,""]
[null,null,null,null,null,null,null,null,null,null,null,null,""]
[null,null,null,null,null,null,null,null,null,null,null,null,""]
[null,null,null,null,null,null,null,null,null,null,null,null,""]
[null,null,null,null,null,null,null,null,null,null,null,null,""]
[null,null,null,null,null,null,null,null,null,null,null,null,""]
[null,null,null,null,null,null,null,null,null,null,null,null,""]
[null,null,null,null,null,null,null,null,null,null,null,null,""]
[null,null,null,null,null,null,null,null,null,null,null,null,""]
[null,null,null,null,null,null,null,null,null,null,null,null,""]
[null,null,null,null,null,null,null,null,null,null,null,null,""]
[null,null,null,null,null,null,null,null,null,null,null,null,""]
[null,null,null,null,null,null,null,null,null,null,null,null,""]
[null,null,null,null,null,null,null,null,null,null,null,null,""]
[null,null,null,null,null,null,null,null,null,null,null,null,""]
[null,null,null,null,null,null,null,null,null,null,null,null,""]
[null,null,null,null,null,null,null,null,null,null,null,null,""]
[null,null,null,null,null,null,null,null,null,null,null,null,""]
[null,null,null,null,null,null,null,null,null,null,null,null,""]
[null,null,null,null,null,null,null,null,null,null,null,null,""]
[null,null,null,null,null,null,null,null,null,null,null,null,""]
[null,null,null,null,null,null,null,null,null,null,null,null,""]
[null,null,null,null,null,null,null,null,null,null,null,null,""]
[null,null,null,null,null,null,null,null,null,null,null,null,""]
[null,null,null,null,null,null,null,null,null,null,null,null,""]
[null,null,null,null,null,null,null,null,null,null,null,null,""]
[null,null,null,null,null,null,null,null,null,null,null,null,""]
[null,null,null,null,null,null,null,null,null,null,null,null,""]
[null,null,null,null,null,null,null,null,null,null,null,null,""]
[null,null,null,null,null,null,null,null,null,null,null,null,""]
[null,null,null,null,null,null,null,null,null,null,null,null,""]
[null,null,null,null,null,null,null,null,null,null,null,null,""]
[null,null,null,null,null,null,null,null,null,null,null,null,""]
[null,null,null,null,null,null,null,null,null,null,null,null,""]
[null,null,null,null,null,null,null,null,null,null,null,null,""]
[null,null,null,null,null,null,null,null,null,null,null,null,""]
[null,null,null,null,null,null,null,null,null,null,null,null,""]
[null,null,null,null,null,null,null,null,null,null,null,null,""]
[null,null,null,null,null,null,null,null,null,null,null,null,{"$f":"IF(J499=\"\",\"\",IF(L499<>\"\",\"OK\",IF(AND(K499<>\"\",K499<TODAY()),\"Retard\",\"Attente de Livraison\")))","v":""}]
[null,null,null,null,null,null,null,null,null,null,null,null,""]
[null,null,null,null,null,null,null,null,null,null,null,null,""]
[null,null,null,null,null,null,null,null,null,null,null,null,""]
[null,null,null,null,null,null,null,null,null,null,null,null,""]
[null,null,null,null,null,null,null,null,null,null,null,null,""]
[null,null,null,null,null,null,null,null,null,null,null,null,""]
[null,null,null,null,null,null,null,null,null,null,null,null,""]
[null,null,null,null,null,null,null,null,null,null,null,null,""]
[null,null,null,null,null,null,null,null,null,null,null,null,""]
[null,null,null,null,null,null,null,null,null,null,null,null,""]
[null,null,null,null,null,null,null,null,null,null,null,null,""]
[null,null,null,null,null,null,null,null,null,null,null,null,""]
[null,null,null,null,null,null,null,null,null,null,null,null,""]
[null,null,null,null,null,null,null,null,null,null,null,null,""]
[null,null,null,null,null,null,null,null,null,null,null,null,""]
[null,null,null,null,null,null,null,null,null,null,null,null,""]
[null,null,null,null,null,null,null,null,null,null,null,null,""]
[null,null,null,null,null,null,null,null,null,null,null,null,""]
[null,null,null,null,null,null,null,null,null,null,null,null,""]
[null,null,null,null,null,null,null,null,null,null,null,null,""]
[null,null,null,null,null,null,null,null,null,null,null,null,""]
[null,null,null,null,null,null,null,null,null,null,null,null,""]
[null,null,null,null,null,null,null,null,null,null,null,null,""]
[null,null,null,null,null,null,null,null,null,null,null,null,""]
[null,null,null,null,null,null,null,null,null,null,null,null,""]
[null,null,null,null,null,null,null,null,null,null,null,null,""]
[null,null,null,null,null,null,null,null,null,null,null,null,""]
[null,null,null,null,null,null,null,null,null,null,null,null,""]
[null,null,null,null,null,null,null,null,null,null,null,null,""]
[null,null,null,null,null,null,null,null,null,null,null,null,""]
[null,null,null,null,null,null,null,null,null,null,null,null,""]
[null,null,null,null,null,null,null,null,null,null,null,null,""]
[null,null,null,null,null,null,null,null,null,null,null,null,""]
[null,null,null,null,null,null,null,null,null,null,null,null,""]
[null,null,null,null,null,null,null,null,null,null,null,null,""]
[null,null,null,null,null,null,null,null,null,null,null,null,""]
[null,null,null,null,null,null,null,null,null,null,null,null,""]
[null,null,null,null,null,null,null,null,null,null,null,null,""]
[null,null,null,null,null,null,null,null,null,null,null,null,""]
[null,null,null,null,null,null,null,null,null,null,null,null,""]
[null,null,null,null,null,null,null,null,null,null,null,null,""]
[null,null,null,null,null,null,null,null,null,null,null,null,""]
[null,null,null,null,null,null,null,null,null,null,null,null,""]
[null,null,null,null,null,null,null,null,null,null,null,null,""]
[null,null,null,null,null,null,null,null,null,null,null,null,""]
[null,null,null,null,null,null,null,null,null,null,null,null,""]
[null,null,null,null,null,null,null,null,null,null,null,null,""]
[null,null,null,null,null,null,null,null,null,null,null,null,""]
[null,null,null,null,null,null,null,null,null,null,null,null,""]
[null,null,null,null,null,null,null,null,null,null,null,null,""]
[null,null,null,null,null,null,null,null,null,null,null,null,""]
[null,null,null,null,null,null,null,null,null,null,null,null,""]
[null,null,null,null,null,null,null,null,null,null,null,null,""]
[null,null,null,null,null,null,null,null,null,null,null,null,""]
[null,null,null,null,null,null,null,null,null,null,null,null,""]
[null,null,null,null,null,null,null,null,null,null,null,null,""]
[null,null,null,null,null,null,null,null,null,null,null,null,""]
[null,null,null,null,null,null,null,null,null,null,null,null,""]
[null,null,null,null,null,null,null,null,null,null,null,null,""]
[null,null,null,null,null,null,null,null,null,null,null,null,""]
[null,null,null,null,null,null,null,null,null,null,null,null,""]
[null,null,null,null,null,null,null,null,null,null,null,null,""]
[null,null,null,null,null,null,null,null,null,null,null,null,""]
[null,null,null,null,null,null,null,null,null,null,null,null,{"$f":"IF(J563=\"\",\"\",IF(L563<>\"\",\"OK\",IF(AND(K563<>\"\",K563<TODAY()),\"Retard\",\"Attente de Livraison\")))","v":""}]
[null,null,null,null,null,null,null,null,null,null,null,null,""]
[null,null,null,null,null,null,null,null,null,null,null,null,""]
[null,null,null,null,null,null,null,null,null,null,null,null,""]
[null,null,null,null,null,null,null,null,null,null,null,null,""]
[null,null,null,null,null,null,null,null,null,null,null,null,""]
[null,null,null,null,null,null,null,null,null,null,null,null,""]
[null,null,null,null,null,null,null,null,null,null,null,null,""]
[null,null,null,null,null,null,null,null,null,null,null,null,""]
[null,null,null,null,null,null,null,null,null,null,null,null,""]
[null,null,null,null,null,null,null,null,null,null,null,null,""]
[null,null,null,null,null,null,null,null,null,null,null,null,""]
[null,null,null,null,null,null,null,null,null,null,null,null,""]
[null,null,null,null,null,null,null,null,null,null,null,null,""]
[null,null,null,null,null,null,null,null,null,null,null,null,""]
[null,null,null,null,null,null,null,null,null,null,null,null,""]
[null,null,null,null,null,null,null,null,null,null,null,null,""]
[null,null,null,null,null,null,null,null,null,null,null,null,""]
[null,null,null,null,null,null,null,null,null,null,null,null,""]
[null,null,null,null,null,null,null,null,null,null,null,null,""]
[null,null,null,null,null,null,null,null,null,null,null,null,""]
[null,null,null,null,null,null,null,null,null,null,null,null,""]
[null,null,null,null,null,null,null,null,null,null,null,null,""]
[null,null,null,null,null,null,null,null,null,null,null,null,""]
[null,null,null,null,null,null,null,null,null,null,null,null,""]
[null,null,null,null,null,null,null,null,null,null,null,null,""]
[null,null,null,null,null,null,null,null,null,null,null,null,""]
[null,null,null,null,null,null,null,null,null,null,null,null,""]
[null,null,null,null,null,null,null,null,null,null,null,null,""]
[null,null,null,null,null,null,null,null,null,null,null,null,""]
[null,null,null,null,null,null,null,null,null,null,null,null,""]
[null,null,null,null,null,null,null,null,null,null,null,null,""]
[null,null,null,null,null,null,null,null,null,null,null,null,""]
[null,null,null,null,null,null,null,null,null,null,null,null,""]
[null,null,null,null,null,null,null,null,null,null,null,null,""]
[null,null,null,null,null,null,null,null,null,null,null,null,""]
[null,null,null,null,null,null,null,null,null,null,null,null,""]
[null,null,null,null,null,null,null,null,null,null,null,null,""]
[null,null,null,null,null,null,null,null,null,null,null,null,""]
[null,null,null,null,null,null,null,null,null,null,null,null,""]
[null,null,null,null,null,null,null,null,null,null,null,null,""]
[null,null,null,null,null,null,null,null,null,null,null,null,""]
[null,null,null,null,null,null,null,null,null,null,null,null,""]
[null,null,null,null,null,null,null,null,null,null,null,null,""]
[null,null,null,null,null,null,null,null,null,null,null,null,""]
[null,null,null,null,null,null,null,null,null,null,null,null,""]
[null,null,null,null,null,null,null,null,null,null,null,null,""]
[null,null,null,null,null,null,null,null,null,null,null,null,""]
[null,null,null,null,null,null,null,null,null,null,null,null,""]
[null,null,null,null,null,null,null,null,null,null,null,null,""]
[null,null,null,null,null,null,null,null,null,null,null,null,""]
[null,null,null,null,null,null,null,null,null,null,null,null,""]
[null,null,null,null,null,null,null,null,null,null,null,null,""]
[null,null,null,null,null,null,null,null,null,null,null,null,""]
[null,null,null,null,null,null,null,null,null,null,null,null,""]
[null,null,null,null,null,null,null,null,null,null,null,null,""]
[null,null,null,null,null,null,null,null,null,null,null,null,""]
[null,null,null,null,null,null,null,null,null,null,null,null,""]
[null,null,null,null,null,null,null,null,null,null,null,null,""]
[null,null,null,null,null,null,null,null,null,null,null,null,""]
[null,null,null,null,null,null,null,null,null,null,null,null,""]
[null,null,null,null,null,null,null,null,null,null,null,null,""]
[null,null,null,null,null,null,null,null,null,null,null,null,""]
[null,null,null,null,null,null,null,null,null,null,null,null,""]
[null,null,null,null,null,null,null,null,null,null,null,null,{"$f":"IF(J627=\"\",\"\",IF(L627<>\"\",\"OK\",IF(AND(K627<>\"\",K627<TODAY()),\"Retard\",\"Attente de Livraison\")))","v":""}]
[null,null,null,null,null,null,null,null,null,null,null,null,""]
[null,null,null,null,null,null,null,null,null,null,null,null,""]
[null,null,null,null,null,null,null,null,null,null,null,null,""]
[null,null,null,null,null,null,null,null,null,null,null,null,""]
[null,null,null,null,null,null,null,null,null,null,null,null,""]
[null,null,null,null,null,null,null,null,null,null,null,null,""]
[null,null,null,null,null,null,null,null,null,null,null,null,""]
[null,null,null,null,null,null,null,null,null,null,null,null,""]
[null,null,null,null,null,null,null,null,null,null,null,null,""]
[null,null,null,null,null,null,null,null,null,null,null,null,""]
[null,null,null,null,null,null,null,null,null,null,null,null,""]
[null,null,null,null,null,null,null,null,null,null,null,null,""]
[null,null,null,null,null,null,null,null,null,null,null,null,""]
[null,null,null,null,null,null,null,null,null,null,null,null,""]
[null,null,null,null,null,null,null,null,null,null,null,null,""]
[null,null,null,null,null,null,null,null,null,null,null,null,""]
[null,null,null,null,null,null,null,null,null,null,null,null,""]
[null,null,null,null,null,null,null,null,null,null,null,null,""]
[null,null,null,null,null,null,null,null,null,null,null,null,""]
[null,null,null,null,null,null,null,null,null,null,null,null,""]
[null,null,null,null,null,null,null,null,null,null,null,null,""]
[null,null,null,null,null,null,null,null,null,null,null,null,""]
[null,null,null,null,null,null,null,null,null,null,null,null,""]
[null,null,null,null,null,null,null,null,null,null,null,null,""]
[null,null,null,null,null,null,null,null,null,null,null,null,""]
[null,null,null,null,null,null,null,null,null,null,null,null,""]
[null,null,null,null,null,null,null,null,null,null,null,null,""]
[null,null,null,null,null,null,null,null,null,null,null,null,""]
[null,null,null,null,null,null,null,null,null,null,null,null,""]
[null,null,null,null,null,null,null,null,null,null,null,null,""]
[null,null,null,null,null,null,null,null,null,null,null,null,""]
[null,null,null,null,null,null,null,null,null,null,null,null,""]
[null,null,null,null,null,null,null,null,null,null,null,null,""]
[null,null,null,null,null,null,null,null,null,null,null,null,""]
[null,null,null,null,null,null,null,null,null,null,null,null,""]
[null,null,null,null,null,null,null,null,null,null,null,null,""]
[null,null,null,null,null,null,null,null,null,null,null,null,""]
[null,null,null,null,null,null,null,null,null,null,null,null,""]
[null,null,null,null,null,null,null,null,null,null,null,null,""]
[null,null,null,null,null,null,null,null,null,null,null,null,""]
[null,null,null,null,null,null,null,null,null,null,null,null,""]
[null,null,null,null,null,null,null,null,null,null,null,null,""]
[null,null,null,null,null,null,null,null,null,null,null,null,""]
[null,null,null,null,null,null,null,null,null,null,null,null,""]
[null,null,null,null,null,null,null,null,null,null,null,null,""]
[null,null,null,null,null,null,null,null,null,null,null,null,""]
[null,null,null,null,null,null,null,null,null,null,null,null,""]
[null,null,null,null,null,null,null,null,null,null,null,null,""]
[null,null,null,null,null,null,null,null,null,null,null,null,""]
[null,null,null,null,null,null,null,null,null,null,null,null,""]
[null,null,null,null,null,null,null,null,null,null,null,null,""]
[null,null,null,null,null,null,null,null,null,null,null,null,""]
[null,null,null,null,null,null,null,null,null,null,null,null,""]
[null,null,null,null,null,null,null,null,null,null,null,null,""]
[null,null,null,null,null,null,null,null,null,null,null,null,""]
[null,null,null,null,null,null,null,null,null,null,null,null,""]
[null,null,null,null,null,null,null,null,null,null,null,null,""]
[null,null,null,null,null,null,null,null,null,null,null,null,""]
[null,null,null,null,null,null,null,null,null,null,null,null,""]
[null,null,null,null,null,null,null,null,null,null,null,null,""]
[null,null,null,null,null,null,null,null,null,null,null,null,""]
[null,null,null,null,null,null,null,null,null,null,null,null,""]
[null,null,null,null,null,null,null,null,null,null,null,null,""]
[null,null,null,null,null,null,null,null,null,null,null,null,{"$f":"IF(J691=\"\",\"\",IF(L691<>\"\",\"OK\",IF(AND(K691<>\"\",K691<TODAY()),\"Retard\",\"Attente de Livraison\")))","v":""}]
[null,null,null,null,null,null,null,null,null,null,null,null,""]
[null,null,null,null,null,null,null,null,null,null,null,null,""]
[null,null,null,null,null,null,null,null,null,null,null,null,""]
[null,null,null,null,null,null,null,null,null,null,null,null,""]
[null,null,null,null,null,null,null,null,null,null,null,null,""]
[null,null,null,null,null,null,null,null,null,null,null,null,""]
[null,null,null,null,null,null,null,null,null,null,null,null,""]
[null,null,null,null,null,null,null,null,null,null,null,null,""]
[null,null,null,null,null,null,null,null,null,null,null,null,""]
[null,null,null,null,null,null,null,null,null,null,null,null,""]
[null,null,null,null,null,null,null,null,null,null,null,null,""]
[null,null,null,null,null,null,null,null,null,null,null,null,""]
[null,null,null,null,null,null,null,null,null,null,null,null,""]
[null,null,null,null,null,null,null,null,null,null,null,null,""]
[null,null,null,null,null,null,null,null,null,null,null,null,""]
[null,null,null,null,null,null,null,null,null,null,null,null,""]
[null,null,null,null,null,null,null,null,null,null,null,null,""]
[null,null,null,null,null,null,null,null,null,null,null,null,""]
[null,null,null,null,null,null,null,null,null,null,null,null,""]
[null,null,null,null,null,null,null,null,null,null,null,null,""]
[null,null,null,null,null,null,null,null,null,null,null,null,""]
[null,null,null,null,null,null,null,null,null,null,null,null,""]
[null,null,null,null,null,null,null,null,null,null,null,null,""]
[null,null,null,null,null,null,null,null,null,null,null,null,""]
[null,null,null,null,null,null,null,null,null,null,null,null,""]
[null,null,null,null,null,null,null,null,null,null,null,null,""]
[null,null,null,null,null,null,null,null,null,null,null,null,""]
[null,null,null,null,null,null,null,null,null,null,null,null,""]
[null,null,null,null,null,null,null,null,null,null,null,null,""]
[null,null,null,null,null,null,null,null,null,null,null,null,""]
[null,null,null,null,null,null,null,null,null,null,null,null,""]
[null,null,null,null,null,null,null,null,null,null,null,null,""]
[null,null,null,null,null,null,null,null,null,null,null,null,""]
[null,null,null,null,null,null,null,null,null,null,null,null,""]
[null,null,null,null,null,null,null,null,null,null,null,null,""]
[null,null,null,null,null,null,null,null,null,null,null,null,""]
[null,null,null,null,null,null,null,null,null,null,null,null,""]
[null,null,null,null,null,null,null,null,null,null,null,null,""]
[null,null,null,null,null,null,null,null,null,null,null,null,""]
[null,null,null,null,null,null,null,null,null,null,null,null,""]
[null,null,null,null,null,null,null,null,null,null,null,null,""]
[null,null,null,null,null,null,null,null,null,null,null,null,""]
[null,null,null,null,null,null,null,null,null,null,null,null,""]
[null,null,null,null,null,null,null,null,null,null,null,null,""]
[null,null,null,null,null,null,null,null,null,null,null,null,""]
[null,null,null,null,null,null,null,null,null,null,null,null,""]
[null,null,null,null,null,null,null,null,null,null,null,null,""]
[null,null,null,null,null,null,null,null,null,null,null,null,""]
[null,null,null,null,null,null,null,null,null,null,null,null,""]
[null,null,null,null,null,null,null,null,null,null,null,null,""]
[null,null,null,null,null,null,null,null,null,null,null,null,""]
[null,null,null,null,null,null,null,null,null,null,null,null,""]
[null,null,null,null,null,null,null,null,null,null,null,null,""]
[null,null,null,null,null,null,null,null,null,null,null,null,""]
[null,null,null,null,null,null,null,null,null,null,null,null,""]
[null,null,null,null,null,null,null,null,null,null,null,null,""]
[null,null,null,null,null,null,null,null,null,null,null,null,""]
[null,null,null,null,null,null,null,null,null,null,null,null,""]
[null,null,null,null,null,null,null,null,null,null,null,null,""]
[null,null,null,null,null,null,null,null,null,null,null,null,""]
[null,null,null,null,null,null,null,null,null,null,null,null,""]
[null,null,null,null,null,null,null,null,null,null,null,null,""]
[null,null,null,null,null,null,null,null,null,null,null,null,""]
[null,null,null,null,null,null,null,null,null,null,null,null,{"$f":"IF(J755=\"\",\"\",IF(L755<>\"\",\"OK\",IF(AND(K755<>\"\",K755<TODAY()),\"Retard\",\"Attente de Livraison\")))","v":""}]
[null,null,null,null,null,null,null,null,null,null,null,null,""]
[null,null,null,null,null,null,null,null,null,null,null,null,""]
[null,null,null,null,null,null,null,null,null,null,null,null,""]
[null,null,null,null,null,null,null,null,null,null,null,null,""]
[null,null,null,null,null,null,null,null,null,null,null,null,""]
[null,null,null,null,null,null,null,null,null,null,null,null,""]
[null,null,null,null,null,null,null,null,null,null,null,null,""]
[null,null,null,null,null,null,null,null,null,null,null,null,""]
[null,null,null,null,null,null,null,null,null,null,null,null,""]
[null,null,null,null,null,null,null,null,null,null,null,null,""]
[null,null,null,null,null,null,null,null,null,null,null,null,""]
[null,null,null,null,null,null,null,null,null,null,null,null,""]
[null,null,null,null,null,null,null,null,null,null,null,null,""]
[null,null,null,null,null,null,null,null,null,null,null,null,""]
[null,null,null,null,null,null,null,null,null,null,null,null,""]
[null,null,null,null,null,null,null,null,null,null,null,null,""]
[null,null,null,null,null,null,null,null,null,null,null,null,""]
[null,null,null,null,null,null,null,null,null,null,null,null,""]
[null,null,null,null,null,null,null,null,null,null,null,null,""]
[null,null,null,null,null,null,null,null,null,null,null,null,""]
[null,null,null,null,null,null,null,null,null,null,null,null,""]
[null,null,null,null,null,null,null,null,null,null,null,null,""]
[null,null,null,null,null,null,null,null,null,null,null,null,""]
[null,null,null,null,null,null,null,null,null,null,null,null,""]
[null,null,null,null,null,null,null,null,null,null,null,null,""]
[null,null,null,null,null,null,null,null,null,null,null,null,""]
[null,null,null,null,null,null,null,null,null,null,null,null,""]
[null,null,null,null,null,null,null,null,null,null,null,null,""]
[null,null,null,null,null,null,null,null,null,null,null,null,""]
[null,null,null,null,null,null,null,null,null,null,null,null,""]
[null,null,null,null,null,null,null,null,null,null,null,null,""]
[null,null,null,null,null,null,null,null,null,null,null,null,""]
[null,null,null,null,null,null,null,null,null,null,null,null,""]
[null,null,null,null,null,null,null,null,null,null,null,null,""]
[null,null,null,null,null,null,null,null,null,null,null,null,""]
[null,null,null,null,null,null,null,null,null,null,null,null,""]
[null,null,null,null,null,null,null,null,null,null,null,null,""]
[null,null,null,null,null,null,null,null,null,null,null,null,""]
[null,null,null,null,null,null,null,null,null,null,null,null,""]
[null,null,null,null,null,null,null,null,null,null,null,null,""]
[null,null,null,null,null,null,null,null,null,null,null,null,""]
[null,null,null,null,null,null,null,null,null,null,null,null,""]
[null,null,null,null,null,null,null,null,null,null,null,null,""]
[null,null,null,null,null,null,null,null,null,null,null,null,""]
[null,null,null,null,null,null,null,null,null,null,null,null,""]
[null,null,null,null,null,null,null,null,null,null,null,null,""]
[null,null,null,null,null,null,null,null,null,null,null,null,""]
[null,null,null,null,null,null,null,null,null,null,null,null,""]
[null,null,null,null,null,null,null,null,null,null,null,null,""]
[null,null,null,null,null,null,null,null,null,null,null,null,""]
[null,null,null,null,null,null,null,null,null,null,null,null,""]
[null,null,null,null,null,null,null,null,null,null,null,null,""]
[null,null,null,null,null,null,null,null,null,null,null,null,""]
[null,null,null,null,null,null,null,null,null,null,null,null,""]
[null,null,null,null,null,null,null,null,null,null,null,null,""]
[null,null,null,null,null,null,null,null,null,null,null,null,""]
[null,null,null,null,null,null,null,null,null,null,null,null,""]
[null,null,null,null,null,null,null,null,null,null,null,null,""]
[null,null,null,null,null,null,null,null,null,null,null,null,""]
[null,null,null,null,null,null,null,null,null,null,null,null,""]
[null,null,null,null,null,null,null,null,null,null,null,null,""]
[null,null,null,null,null,null,null,null,null,null,null,null,""]
[null,null,null,null,null,null,null,null,null,null,null,null,""]
[null,null,null,null,null,null,null,null,null,null,null,null,{"$f":"IF(J819=\"\",\"\",IF(L819<>\"\",\"OK\",IF(AND(K819<>\"\",K819<TODAY()),\"Retard\",\"Attente de Livraison\")))","v":""}]
[null,null,null,null,null,null,null,null,null,null,null,null,""]
[null,null,null,null,null,null,null,null,null,null,null,null,""]
[null,null,null,null,null,null,null,null,null,null,null,null,""]
[null,null,null,null,null,null,null,null,null,null,null,null,""]
[null,null,null,null,null,null,null,null,null,null,null,null,""]
[null,null,null,null,null,null,null,null,null,null,null,null,""]
[null,null,null,null,null,null,null,null,null,null,null,null,""]
[null,null,null,null,null,null,null,null,null,null,null,null,""]
[null,null,null,null,null,null,null,null,null,null,null,null,""]
[null,null,null,null,null,null,null,null,null,null,null,null,""]
[null,null,null,null,null,null,null,null,null,null,null,null,""]
[null,null,null,null,null,null,null,null,null,null,null,null,""]
[null,null,null,null,null,null,null,null,null,null,null,null,""]
[null,null,null,null,null,null,null,null,null,null,null,null,""]
[null,null,null,null,null,null,null,null,null,null,null,null,""]
[null,null,null,null,null,null,null,null,null,null,null,null,""]
[null,null,null,null,null,null,null,null,null,null,null,null,""]
[null,null,null,null,null,null,null,null,null,null,null,null,""]
[null,null,null,null,null,null,null,null,null,null,null,null,""]
[null,null,null,null,null,null,null,null,null,null,null,null,""]
[null,null,null,null,null,null,null,null,null,null,null,null,""]
[null,null,null,null,null,null,null,null,null,null,null,null,""]
[null,null,null,null,null,null,null,null,null,null,null,null,""]
[null,null,null,null,null,null,null,null,null,null,null,null,""]
[null,null,null,null,null,null,null,null,null,null,null,null,""]
[null,null,null,null,null,null,null,null,null,null,null,null,""]
[null,null,null,null,null,null,null,null,null,null,null,null,""]
[null,null,null,null,null,null,null,null,null,null,null,null,""]
[null,null,null,null,null,null,null,null,null,null,null,null,""]
[null,null,null,null,null,null,null,null,null,null,null,null,""]
[null,null,null,null,null,null,null,null,null,null,null,null,""]
[null,null,null,null,null,null,null,null,null,null,null,null,""]
[null,null,null,null,null,null,null,null,null,null,null,null,""]
[null,null,null,null,null,null,null,null,null,null,null,null,""]
[null,null,null,null,null,null,null,null,null,null,null,null,""]
[null,null,null,null,null,null,null,null,null,null,null,null,""]
[null,null,null,null,null,null,null,null,null,null,null,null,""]
[null,null,null,null,null,null,null,null,null,null,null,null,""]
[null,null,null,null,null,null,null,null,null,null,null,null,""]
[null,null,null,null,null,null,null,null,null,null,null,null,""]
[null,null,null,null,null,null,null,null,null,null,null,null,""]
[null,null,null,null,null,null,null,null,null,null,null,null,""]
[null,null,null,null,null,null,null,null,null,null,null,null,""]
[null,null,null,null,null,null,null,null,null,null,null,null,""]
[null,null,null,null,null,null,null,null,null,null,null,null,""]
[null,null,null,null,null,null,null,null,null,null,null,null,""]
[null,null,null,null,null,null,null,null,null,null,null,null,""]
[null,null,null,null,null,null,null,null,null,null,null,null,""]
[null,null,null,null,null,null,null,null,null,null,null,null,""]
[null,null,null,null,null,null,null,null,null,null,null,null,""]
[null,null,null,null,null,null,null,null,null,null,null,null,""]
[null,null,null,null,null,null,null,null,null,null,null,null,""]
[null,null,null,null,null,null,null,null,null,null,null,null,""]
[null,null,null,null,null,null,null,null,null,null,null,null,""]
[null,null,null,null,null,null,null,null,null,null,null,null,""]
[null,null,null,null,null,null,null,null,null,null,null,null,""]
[null,null,null,null,null,null,null,null,null,null,null,null,""]
[null,null,null,null,null,null,null,null,null,null,null,null,""]
[null,null,null,null,null,null,null,null,null,null,null,null,""]
[null,null,null,null,null,null,null,null,null,null,null,null,""]
[null,null,null,null,null,null,null,null,null,null,null,null,""]
[null,null,null,null,null,null,null,null,null,null,null,null,""]
[null,null,null,null,null,null,null,null,null,null,null,null,""]
[null,null,null,null,null,null,null,null,null,null,null,null,{"$f":"IF(J883=\"\",\"\",IF(L883<>\"\",\"OK\",IF(AND(K883<>\"\",K883<TODAY()),\"Retard\",\"Attente de Livraison\")))","v":""}]
[null,null,null,null,null,null,null,null,null,null,null,null,""]
[null,null,null,null,null,null,null,null,null,null,null,null,""]
[null,null,null,null,null,null,null,null,null,null,null,null,""]
[null,null,null,null,null,null,null,null,null,null,null,null,""]
[null,null,null,null,null,null,null,null,null,null,null,null,""]
[null,null,null,null,null,null,null,null,null,null,null,null,""]
[null,null,null,null,null,null,null,null,null,null,null,null,""]
[null,null,null,null,null,null,null,null,null,null,null,null,""]
[null,null,null,null,null,null,null,null,null,null,null,null,""]
[null,null,null,null,null,null,null,null,null,null,null,null,""]
[null,null,null,null,null,null,null,null,null,null,null,null,""]
[null,null,null,null,null,null,null,null,null,null,null,null,""]
[null,null,null,null,null,null,null,null,null,null,null,null,""]
[null,null,null,null,null,null,null,null,null,null,null,null,""]
[null,null,null,null,null,null,null,null,null,null,null,null,""]
[null,null,null,null,null,null,null,null,null,null,null,null,""]
[null,null,null,null,null,null,null,null,null,null,null,null,""]
[null,null,null,null,null,null,null,null,null,null,null,null,""]
[null,null,null,null,null,null,null,null,null,null,null,null,""]
[null,null,null,null,null,null,null,null,null,null,null,null,""]
[null,null,null,null,null,null,null,null,null,null,null,null,""]
[null,null,null,null,null,null,null,null,null,null,null,null,""]
[null,null,null,null,null,null,null,null,null,null,null,null,""]
[null,null,null,null,null,null,null,null,null,null,null,null,""]
[null,null,null,null,null,null,null,null,null,null,null,null,""]
[null,null,null,null,null,null,null,null,null,null,null,null,""]
[null,null,null,null,null,null,null,null,null,null,null,null,""]
[null,null,null,null,null,null,null,null,null,null,null,null,""]
[null,null,null,null,null,null,null,null,null,null,null,null,""]
[null,null,null,null,null,null,null,null,null,null,null,null,""]
[null,null,null,null,null,null,null,null,null,null,null,null,""]
[null,null,null,null,null,null,null,null,null,null,null,null,""]
[null,null,null,null,null,null,null,null,null,null,null,null,""]
[null,null,null,null,null,null,null,null,null,null,null,null,""]
[null,null,null,null,null,null,null,null,null,null,null,null,""]
[null,null,null,null,null,null,null,null,null,null,null,null,""]
[null,null,null,null,null,null,null,null,null,null,null,null,""]
[null,null,null,null,null,null,null,null,null,null,null,null,""]
[null,null,null,null,null,null,null,null,null,null,null,null,""]
[null,null,null,null,null,null,null,null,null,null,null,null,""]
[null,null,null,null,null,null,null,null,null,null,null,null,""]
[null,null,null,null,null,null,null,null,null,null,null,null,""]
[null,null,null,null,null,null,null,null,null,null,null,null,""]
[null,null,null,null,null,null,null,null,null,null,null,null,""]
[null,null,null,null,null,null,null,null,null,null,null,null,""]
[null,null,null,null,null,null,null,null,null,null,null,null,""]
[null,null,null,null,null,null,null,null,null,null,null,null,""]
[null,null,null,null,null,null,null,null,null,null,null,null,""]
[null,null,null,null,null,null,null,null,null,null,null,null,""]
[null,null,null,null,null,null,null,null,null,null,null,null,""]
[null,null,null,null,null,null,null,null,null,null,null,null,""]
[null,null,null,null,null,null,null,null,null,null,null,null,""]
[null,null,null,null,null,null,null,null,null,null,null,null,""]
[null,null,null,null,null,null,null,null,null,null,null,null,""]
[null,null,null,null,null,null,null,null,null,null,null,null,""]
[null,null,null,null,null,null,null,null,null,null,null,null,""]
[null,null,null,null,null,null,null,null,null,null,null,null,""]
[null,null,null,null,null,null,null,null,null,null,null,null,""]
[null,null,null,null,null,null,null,null,null,null,null,null,""]
[null,null,null,null,null,null,null,null,null,null,null,null,""]
[null,null,null,null,null,null,null,null,null,null,null,null,""]
[null,null,null,null,null,null,null,null,null,null,null,null,""]
[null,null,null,null,null,null,null,null,null,null,null,null,""]
[null,null,null,null,null,null,null,null,null,null,null,null,{"$f":"IF(J947=\"\",\"\",IF(L947<>\"\",\"OK\",IF(AND(K947<>\"\",K947<TODAY()),\"Retard\",\"Attente de Livraison\")))","v":""}]
[null,null,null,null,null,null,null,null,null,null,null,null,""]
[null,null,null,null,null,null,null,null,null,null,null,null,""]
[null,null,null,null,null,null,null,null,null,null,null,null,""]
[null,null,null,null,null,null,null,null,null,null,null,null,""]
[null,null,null,null,null,null,null,null,null,null,null,null,""]
[null,null,null,null,null,null,null,null,null,null,null,null,""]
[null,null,null,null,null,null,null,null,null,null,null,null,""]
[null,null,null,null,null,null,null,null,null,null,null,null,""]
[null,null,null,null,null,null,null,null,null,null,null,null,""]
[null,null,null,null,null,null,null,null,null,null,null,null,""]
[null,null,null,null,null,null,null,null,null,null,null,null,""]
[null,null,null,null,null,null,null,null,null,null,null,null,""]
[null,null,null,null,null,null,null,null,null,null,null,null,""]
[null,null,null,null,null,null,null,null,null,null,null,null,""]
[null,null,null,null,null,null,null,null,null,null,null,null,""]
[null,null,null,null,null,null,null,null,null,null,null,null,""]
[null,null,null,null,null,null,null,null,null,null,null,null,""]
[null,null,null,null,null,null,null,null,null,null,null,null,""]
[null,null,null,null,null,null,null,null,null,null,null,null,""]
[null,null,null,null,null,null,null,null,null,null,null,null,""]
[null,null,null,null,null,null,null,null,null,null,null,null,""]
[null,null,null,null,null,null,null,null,null,null,null,null,""]
[null,null,null,null,null,null,null,null,null,null,null,null,""]
[null,null,null,null,null,null,null,null,null,null,null,null,""]
[null,null,null,null,null,null,null,null,null,null,null,null,""]
[null,null,null,null,null,null,null,null,null,null,null,null,""]
[null,null,null,null,null,null,null,null,null,null,null,null,""]
[null,null,null,null,null,null,null,null,null,null,null,null,""]
[null,null,null,null,null,null,null,null,null,null,null,null,""]
[null,null,null,null,null,null,null,null,null,null,null,null,""]
[null,null,null,null,null,null,null,null,null,null,null,null,""]
[null,null,null,null,null,null,null,null,null,null,null,null,""]
[null,null,null,null,null,null,null,null,null,null,null,null,""]
[null,null,null,null,null,null,null,null,null,null,null,null,""]
[null,null,null,null,null,null,null,null,null,null,null,null,""]
[null,null,null,null,null,null,null,null,null,null,null,null,""]
[null,null,null,null,null,null,null,null,null,null,null,null,""]
[null,null,null,null,null,null,null,null,null,null,null,null,""]
[null,null,null,null,null,null,null,null,null,null,null,null,""]
[null,null,null,null,null,null,null,null,null,null,null,null,""]
[null,null,null,null,null,null,null,null,null,null,null,null,""]
[null,null,null,null,null,null,null,null,null,null,null,null,""]
[null,null,null,null,null,null,null,null,null,null,null,null,""]
[null,null,null,null,null,null,null,null,null,null,null,null,""]
[null,null,null,null,null,null,null,null,null,null,null,null,""]
[null,null,null,null,null,null,null,null,null,null,null,null,""]
[null,null,null,null,null,null,null,null,null,null,null,null,""]
[null,null,null,null,null,null,null,null,null,null,null,null,""]
[null,null,null,null,null,null,null,null,null,null,null,null,""]
[null,null,null,null,null,null,null,null,null,null,null,null,""]
[null,null,null,null,null,null,null,null,null,null,null,null,""]
[null,null,null,null,null,null,null,null,null,null,null,null,""]
[null,null,null,null,null,null,null,null,null,null,null,null,""]
[null,null,null,null,null,null,null,null,null,null,null,null,""]
[null,null,null,null,null,null,null,null,null,null,null,null,""]
[null,null,null,null,null,null,null,null,null,null,null,null,""]
[null,null,null,null,null,null,null,null,null,null,null,null,""]
[null,null,null,null,null,null,null,null,null,null,null,null,""]
[null,null,null,null,null,null,null,null,null,null,null,null,""]
[null,null,null,null,null,null,null,null,null,null,null,null,""]
[null,null,null,null,null,null,null,null,null,null,null,null,""]
[null,null,null,null,null,null,null,null,null,null,null,null,""]
[null,null,null,null,null,null,null,null,null,null,null,null,""]
[null,null,null,null,null,null,null,null,null,null,null,null,{"$f":"IF(J1011=\"\",\"\",IF(L1011<>\"\",\"OK\",IF(AND(K1011<>\"\",K1011<TODAY()),\"Retard\",\"Attente de Livraison\")))","v":""}]
[null,null,null,null,null,null,null,null,null,null,null,null,""]
[null,null,null,null,null,null,null,null,null,null,null,null,""]
[null,null,null,null,null,null,null,null,null,null,null,null,""]
[null,null,null,null,null,null,null,null,null,null,null,null,""]
[null,null,null,null,null,null,null,null,null,null,null,null,""]
[null,null,null,null,null,null,null,null,null,null,null,null,""]
[null,null,null,null,null,null,null,null,null,null,null,null,""]
[null,null,null,null,null,null,null,null,null,null,null,null,""]
[null,null,null,null,null,null,null,null,null,null,null,null,""]
[null,null,null,null,null,null,null,null,null,null,null,null,""]
[null,null,null,null,null,null,null,null,null,null,null,null,""]
[null,null,null,null,null,null,null,null,null,null,null,null,""]
[null,null,null,null,null,null,null,null,null,null,null,null,""]
[null,null,null,null,null,null,null,null,null,null,null,null,""]
[null,null,null,null,null,null,null,null,null,null,null,null,""]
[null,null,null,null,null,null,null,null,null,null,null,null,""]
[null,null,null,null,null,null,null,null,null,null,null,null,""]
[null,null,null,null,null,null,null,null,null,null,null,null,""]
[null,null,null,null,null,null,null,null,null,null,null,null,""]
[null,null,null,null,null,null,null,null,null,null,null,null,""]
[null,null,null,null,null,null,null,null,null,null,null,null,""]
[null,null,null,null,null,null,null,null,null,null,null,null,""]
[null,null,null,null,null,null,null,null,null,null,null,null,""]
[null,null,null,null,null,null,null,null,null,null,null,null,""]
[null,null,null,null,null,null,null,null,null,null,null,null,""]
[null,null,null,null,null,null,null,null,null,null,null,null,""]
[null,null,null,null,null,null,null,null,null,null,null,null,""]
[null,null,null,null,null,null,null,null,null,null,null,null,""]
[null,null,null,null,null,null,null,null,null,null,null,null,""]
[null,null,null,null,null,null,null,null,null,null,null,null,""]
[null,null,null,null,null,null,null,null,null,null,null,null,""]
[null,null,null,null,null,null,null,null,null,null,null,null,""]
[null,null,null,null,null,null,null,null,null,null,null,null,""]
[null,null,null,null,null,null,null,null,null,null,null,null,""]
[null,null,null,null,null,null,null,null,null,null,null,null,""]
[null,null,null,null,null,null,null,null,null,null,null,null,""]
[null,null,null,null,null,null,null,null,null,null,null,null,""]
[null,null,null,null,null,null,null,null,null,null,null,null,""]
[null,null,null,null,null,null,null,null,null,null,null,null,""]
[null,null,null,null,null,null,null,null,null,null,null,null,""]
[null,null,null,null,null,null,null,null,null,null,null,null,""]
[null,null,null,null,null,null,null,null,null,null,null,null,""]
[null,null,null,null,null,null,null,null,null,null,null,null,""]
[null,null,null,null,null,null,null,null,null,null,null,null,""]
[null,null,null,null,null,null,null,null,null,null,null,null,""]
[null,null,null,null,null,null,null,null,null,null,null,null,""]
[null,null,null,null,null,null,null,null,null,null,null,null,""]
[null,null,null,null,null,null,null,null,null,null,null,null,""]
[null,null,null,null,null,null,null,null,null,null,null,null,""]
[null,null,null,null,null,null,null,null,null,null,null,null,""]
[null,null,null,null,null,null,null,null,null,null,null,null,""]
[null,null,null,null,null,null,null,null,null,null,null,null,""]
[null,null,null,null,null,null,null,null,null,null,null,null,""]
[null,null,null,null,null,null,null,null,null,null,null,null,""]
[null,null,null,null,null,null,null,null,null,null,null,null,""]
[null,null,null,null,null,null,null,null,null,null,null,null,""]
[null,null,null,null,null,null,null,null,null,null,null,null,""]
[null,null,null,null,null,null,null,null,null,null,null,null,""]
[null,null,null,null,null,null,null,null,null,null,null,null,""]
[null,null,null,null,null,null,null,null,null,null,null,null,""]
[null,null,null,null,null,null,null,null,null,null,null,null,""]
[null,null,null,null,null,null,null,null,null,null,null,null,""]
[null,null,null,null,null,null,null,null,null,null,null,null,""]
[null,null,null,null,null,null,null,null,null,null,null,null,{"$f":"IF(J1075=\"\",\"\",IF(L1075<>\"\",\"OK\",IF(AND(K1075<>\"\",K1075<TODAY()),\"Retard\",\"Attente de Livraison\")))","v":""}]
[null,null,null,null,null,null,null,null,null,null,null,null,""]
[null,null,null,null,null,null,null,null,null,null,null,null,""]
[null,null,null,null,null,null,null,null,null,null,null,null,""]
[null,null,null,null,null,null,null,null,null,null,null,null,""]
[null,null,null,null,null,null,null,null,null,null,null,null,""]
[null,null,null,null,null,null,null,null,null,null,null,null,""]
[null,null,null,null,null,null,null,null,null,null,null,null,""]
[null,null,null,null,null,null,null,null,null,null,null,null,""]
[null,null,null,null,null,null,null,null,null,null,null,null,""]
[null,null,null,null,null,null,null,null,null,null,null,null,""]
[null,null,null,null,null,null,null,null,null,null,null,null,""]
[null,null,null,null,null,null,null,null,null,null,null,null,""]
[null,null,null,null,null,null,null,null,null,null,null,null,""]
[null,null,null,null,null,null,null,null,null,null,null,null,""]
[null,null,null,null,null,null,null,null,null,null,null,null,""]
[null,null,null,null,null,null,null,null,null,null,null,null,""]
[null,null,null,null,null,null,null,null,null,null,null,null,""]
[null,null,null,null,null,null,null,null,null,null,null,null,""]
[null,null,null,null,null,null,null,null,null,null,null,null,""]
[null,null,null,null,null,null,null,null,null,null,null,null,""]
[null,null,null,null,null,null,null,null,null,null,null,null,""]
[null,null,null,null,null,null,null,null,null,null,null,null,""]
[null,null,null,null,null,null,null,null,null,null,null,null,""]
[null,null,null,null,null,null,null,null,null,null,null,null,""]
[null,null,null,null,null,null,null,null,null,null,null,null,""]
[null,null,null,null,null,null,null,null,null,null,null,null,""]
[null,null,null,null,null,null,null,null,null,null,null,null,""]
[null,null,null,null,null,null,null,null,null,null,null,null,""]
[null,null,null,null,null,null,null,null,null,null,null,null,""]
[null,null,null,null,null,null,null,null,null,null,null,null,""]
[null,null,null,null,null,null,null,null,null,null,null,null,""]
[null,null,null,null,null,null,null,null,null,null,null,null,""]
[null,null,null,null,null,null,null,null,null,null,null,null,""]
[null,null,null,null,null,null,null,null,null,null,null,null,""]
[null,null,null,null,null,null,null,null,null,null,null,null,""]
[null,null,null,null,null,null,null,null,null,null,null,null,""]
[null,null,null,null,null,null,null,null,null,null,null,null,""]
[null,null,null,null,null,null,null,null,null,null,null,null,""]
[null,null,null,null,null,null,null,null,null,null,null,null,""]
[null,null,null,null,null,null,null,null,null,null,null,null,""]
[null,null,null,null,null,null,null,null,null,null,null,null,""]
[null,null,null,null,null,null,null,null,null,null,null,null,""]
[null,null,null,null,null,null,null,null,null,null,null,null,""]
[null,null,null,null,null,null,null,null,null,null,null,null,""]
[null,null,null,null,null,null,null,null,null,null,null,null,""]
[null,null,null,null,null,null,null,null,null,null,null,null,""]
[null,null,null,null,null,null,null,null,null,null,null,null,""]
[null,null,null,null,null,null,null,null,null,null,null,null,""]
[null,null,null,null,null,null,null,null,null,null,null,null,""]
[null,null,null,null,null,null,null,null,null,null,null,null,""]
[null,null,null,null,null,null,null,null,null,null,null,null,""]
[null,null,null,null,null,null,null,null,null,null,null,null,""]
[null,null,null,null,null,null,null,null,null,null,null,null,""]
[null,null,null,null,null,null,null,null,null,null,null,null,""]
[null,null,null,null,null,null,null,null,null,null,null,null,""]
[null,null,null,null,null,null,null,null,null,null,null,null,""]
[null,null,null,null,null,null,null,null,null,null,null,null,""]
[null,null,null,null,null,null,null,null,null,null,null,null,""]
[null,null,null,null,null,null,null,null,null,null,null,null,""]
[null,null,null,null,null,null,null,null,null,null,null,null,""]
[null,null,null,null,null,null,null,null,null,null,null,null,""]
[null,null,null,null,null,null,null,null,null,null,null,null,""]
[null,null,null,null,null,null,null,null,null,null,null,null,""]
[null,null,null,null,null,null,null,null,null,null,null,null,{"$f":"IF(J1139=\"\",\"\",IF(L1139<>\"\",\"OK\",IF(AND(K1139<>\"\",K1139<TODAY()),\"Retard\",\"Attente de Livraison\")))","v":""}]
[null,null,null,null,null,null,null,null,null,null,null,null,""]
[null,null,null,null,null,null,null,null,null,null,null,null,""]
[null,null,null,null,null,null,null,null,null,null,null,null,""]
[null,null,null,null,null,null,null,null,null,null,null,null,""]
[null,null,null,null,null,null,null,null,null,null,null,null,""]
[null,null,null,null,null,null,null,null,null,null,null,null,""]
[null,null,null,null,null,null,null,null,null,null,null,null,""]
[null,null,null,null,null,null,null,null,null,null,null,null,""]
[null,null,null,null,null,null,null,null,null,null,null,null,""]
[null,null,null,null,null,null,null,null,null,null,null,null,""]
[null,null,null,null,null,null,null,null,null,null,null,null,""]
[null,null,null,null,null,null,null,null,null,null,null,null,""]
[null,null,null,null,null,null,null,null,null,null,null,null,""]
[null,null,null,null,null,null,null,null,null,null,null,null,""]
[null,null,null,null,null,null,null,null,null,null,null,null,""]
[null,null,null,null,null,null,null,null,null,null,null,null,""]
[null,null,null,null,null,null,null,null,null,null,null,null,""]
[null,null,null,null,null,null,null,null,null,null,null,null,""]
[null,null,null,null,null,null,null,null,null,null,null,null,""]
[null,null,null,null,null,null,null,null,null,null,null,null,""]
[null,null,null,null,null,null,null,null,null,null,null,null,""]
[null,null,null,null,null,null,null,null,null,null,null,null,""]
[null,null,null,null,null,null,null,null,null,null,null,null,""]
[null,null,null,null,null,null,null,null,null,null,null,null,""]
[null,null,null,null,null,null,null,null,null,null,null,null,""]
[null,null,null,null,null,null,null,null,null,null,null,null,""]
[null,null,null,null,null,null,null,null,null,null,null,null,""]
[null,null,null,null,null,null,null,null,null,null,null,null,""]
[null,null,null,null,null,null,null,null,null,null,null,null,""]
[null,null,null,null,null,null,null,null,null,null,null,null,""]
[null,null,null,null,null,null,null,null,null,null,null,null,""]
[null,null,null,null,null,null,null,null,null,null,null,null,""]
[null,null,null,null,null,null,null,null,null,null,null,null,""]
[null,null,null,null,null,null,null,null,null,null,null,null,""]
[null,null,null,null,null,null,null,null,null,null,null,null,""]
[null,null,null,null,null,null,null,null,null,null,null,null,""]
[null,null,null,null,null,null,null,null,null,null,null,null,""]
[null,null,null,null,null,null,null,null,null,null,null,null,""]
[null,null,null,null,null,null,null,null,null,null,null,null,""]
[null,null,null,null,null,null,null,null,null,null,null,null,""]
[null,null,null,null,null,null,null,null,null,null,null,null,""]
[null,null,null,null,null,null,null,null,null,null,null,null,""]
[null,null,null,null,null,null,null,null,null,null,null,null,""]
[null,null,null,null,null,null,null,null,null,null,null,null,""]
[null,null,null,null,null,null,null,null,null,null,null,null,""]
[null,null,null,null,null,null,null,null,null,null,null,null,""]
[null,null,null,null,null,null,null,null,null,null,null,null,""]
[null,null,null,null,null,null,null,null,null,null,null,null,""]
[null,null,null,null,null,null,null,null,null,null,null,null,""]
[null,null,null,null,null,null,null,null,null,null,null,null,""]
[null,null,null,null,null,null,null,null,null,null,null,null,""]
[null,null,null,null,null,null,null,null,null,null,null,null,""]
[null,null,null,null,null,null,null,null,null,null,null,null,""]
[null,null,null,null,null,null,null,null,null,null,null,null,""]
[null,null,null,null,null,null,null,null,null,null,null,null,""]
[null,null,null,null,null,null,null,null,null,null,null,null,""]
[null,null,null,null,null,null,null,null,null,null,null,null,""]
[null,null,null,null,null,null,null,null,null,null,null,null,""]
[null,null,null,null,null,null,null,null,null,null,null,null,""]
[null,null,null,null,null,null,null,null,null,null,null,null,""]
[null,null,null,null,null,null,null,null,null,null,null,null,""]
[null,null,null,null,null,null,null,null,null,null,null,null,""]
[null,null,null,null,null,null,null,null,null,null,null,null,""]
[null,null,null,null,null,null,null,null,null,null,null,null,{"$f":"IF(J1203=\"\",\"\",IF(L1203<>\"\",\"OK\",IF(AND(K1203<>\"\",K1203<TODAY()),\"Retard\",\"Attente de Livraison\")))","v":""}]
[null,null,null,null,null,null,null,null,null,null,null,null,""]
[null,null,null,null,null,null,null,null,null,null,null,null,""]
[null,null,null,null,null,null,null,null,null,null,null,null,""]
[null,null,null,null,null,null,null,null,null,null,null,null,""]
[null,null,null,null,null,null,null,null,null,null,null,null,""]
[null,null,null,null,null,null,null,null,null,null,null,null,""]
[null,null,null,null,null,null,null,null,null,null,null,null,""]
[null,null,null,null,null,null,null,null,null,null,null,null,""]
[null,null,null,null,null,null,null,null,null,null,null,null,""]
[null,null,null,null,null,null,null,null,null,null,null,null,""]
[null,null,null,null,null,null,null,null,null,null,null,null,""]
[null,null,null,null,null,null,null,null,null,null,null,null,""]
[null,null,null,null,null,null,null,null,null,null,null,null,""]
[null,null,null,null,null,null,null,null,null,null,null,null,""]
[null,null,null,null,null,null,null,null,null,null,null,null,""]
[null,null,null,null,null,null,null,null,null,null,null,null,""]
[null,null,null,null,null,null,null,null,null,null,null,null,""]
[null,null,null,null,null,null,null,null,null,null,null,null,""]
[null,null,null,null,null,null,null,null,null,null,null,null,""]
[null,null,null,null,null,null,null,null,null,null,null,null,""]
[null,null,null,null,null,null,null,null,null,null,null,null,""]
[null,null,null,null,null,null,null,null,null,null,null,null,""]
[null,null,null,null,null,null,null,null,null,null,null,null,""]
[null,null,null,null,null,null,null,null,null,null,null,null,""]
[null,null,null,null,null,null,null,null,null,null,null,null,""]
[null,null,null,null,null,null,null,null,null,null,null,null,""]
[null,null,null,null,null,null,null,null,null,null,null,null,""]
[null,null,null,null,null,null,null,null,null,null,null,null,""]
[null,null,null,null,null,null,null,null,null,null,null,null,""]
[null,null,null,null,null,null,null,null,null,null,null,null,""]
[null,null,null,null,null,null,null,null,null,null,null,null,""]
[null,null,null,null,null,null,null,null,null,null,null,null,""]
[null,null,null,null,null,null,null,null,null,null,null,null,""]
[null,null,null,null,null,null,null,null,null,null,null,null,""]
[null,null,null,null,null,null,null,null,null,null,null,null,""]
[null,null,null,null,null,null,null,null,null,null,null,null,""]
[null,null,null,null,null,null,null,null,null,null,null,null,""]
[null,null,null,null,null,null,null,null,null,null,null,null,""]
[null,null,null,null,null,null,null,null,null,null,null,null,""]
[null,null,null,null,null,null,null,null,null,null,null,null,""]
[null,null,null,null,null,null,null,null,null,null,null,null,""]
[null,null,null,null,null,null,null,null,null,null,null,null,""]
[null,null,null,null,null,null,null,null,null,null,null,null,""]
[null,null,null,null,null,null,null,null,null,null,null,null,""]
[null,null,null,null,null,null,null,null,null,null,null,null,""]
[null,null,null,null,null,null,null,null,null,null,null,null,""]
[null,null,null,null,null,null,null,null,null,null,null,null,""]
[null,null,null,null,null,null,null,null,null,null,null,null,""]
[null,null,null,null,null,null,null,null,null,null,null,null,""]
[null,null,null,null,null,null,null,null,null,null,null,null,""]
[null,null,null,null,null,null,null,null,null,null,null,null,""]
[null,null,null,null,null,null,null,null,null,null,null,null,""]
[null,null,null,null,null,null,null,null,null,null,null,null,""]
[null,null,null,null,null,null,null,null,null,null,null,null,""]
[null,null,null,null,null,null,null,null,null,null,null,null,""]
[null,null,null,null,null,null,null,null,null,null,null,null,""]
[null,null,null,null,null,null,null,null,null,null,null,null,""]
[null,null,null,null,null,null,null,null,null,null,null,null,""]
[null,null,null,null,null,null,null,null,null,null,null,null,""]
[null,null,null,null,null,null,null,null,null,null,null,null,""]
[null,null,null,null,null,null,null,null,null,null,null,null,""]
[null,null,null,null,null,null,null,null,null,null,null,null,""]
[null,null,null,null,null,null,null,null,null,null,null,null,""]
[null,null,null,null,null,null,null,null,null,null,null,null,{"$f":"IF(J1267=\"\",\"\",IF(L1267<>\"\",\"OK\",IF(AND(K1267<>\"\",K1267<TODAY()),\"Retard\",\"Attente de Livraison\")))","v":""}]
[null,null,null,null,null,null,null,null,null,null,null,null,""]
[null,null,null,null,null,null,null,null,null,null,null,null,""]
[null,null,null,null,null,null,null,null,null,null,null,null,""]
[null,null,null,null,null,null,null,null,null,null,null,null,""]
[null,null,null,null,null,null,null,null,null,null,null,null,""]
[null,null,null,null,null,null,null,null,null,null,null,null,""]
[null,null,null,null,null,null,null,null,null,null,null,null,""]
[null,null,null,null,null,null,null,null,null,null,null,null,""]
[null,null,null,null,null,null,null,null,null,null,null,null,""]
[null,null,null,null,null,null,null,null,null,null,null,null,""]
[null,null,null,null,null,null,null,null,null,null,null,null,""]
[null,null,null,null,null,null,null,null,null,null,null,null,""]
[null,null,null,null,null,null,null,null,null,null,null,null,""]
[null,null,null,null,null,null,null,null,null,null,null,null,""]
[null,null,null,null,null,null,null,null,null,null,null,null,""]
[null,null,null,null,null,null,null,null,null,null,null,null,""]
[null,null,null,null,null,null,null,null,null,null,null,null,""]
[null,null,null,null,null,null,null,null,null,null,null,null,""]
[null,null,null,null,null,null,null,null,null,null,null,null,""]
[null,null,null,null,null,null,null,null,null,null,null,null,""]
[null,null,null,null,null,null,null,null,null,null,null,null,""]
[null,null,null,null,null,null,null,null,null,null,null,null,""]
[null,null,null,null,null,null,null,null,null,null,null,null,""]
[null,null,null,null,null,null,null,null,null,null,null,null,""]
[null,null,null,null,null,null,null,null,null,null,null,null,""]
[null,null,null,null,null,null,null,null,null,null,null,null,""]
[null,null,null,null,null,null,null,null,null,null,null,null,""]
[null,null,null,null,null,null,null,null,null,null,null,null,""]
[null,null,null,null,null,null,null,null,null,null,null,null,""]
[null,null,null,null,null,null,null,null,null,null,null,null,""]
[null,null,null,null,null,null,null,null,null,null,null,null,""]
[null,null,null,null,null,null,null,null,null,null,null,null,""]
[null,null,null,null,null,null,null,null,null,null,null,null,""]
[null,null,null,null,null,null,null,null,null,null,null,null,""]
[null,null,null,null,null,null,null,null,null,null,null,null,""]
[null,null,null,null,null,null,null,null,null,null,null,null,""]
[null,null,null,null,null,null,null,null,null,null,null,null,""]
[null,null,null,null,null,null,null,null,null,null,null,null,""]
[null,null,null,null,null,null,null,null,null,null,null,null,""]
[null,null,null,null,null,null,null,null,null,null,null,null,""]
[null,null,null,null,null,null,null,null,null,null,null,null,""]
[null,null,null,null,null,null,null,null,null,null,null,null,""]
[null,null,null,null,null,null,null,null,null,null,null,null,""]
[null,null,null,null,null,null,null,null,null,null,null,null,""]
[null,null,null,null,null,null,null,null,null,null,null,null,""]
[null,null,null,null,null,null,null,null,null,null,null,null,""]
[null,null,null,null,null,null,null,null,null,null,null,null,""]
[null,null,null,null,null,null,null,null,null,null,null,null,""]
[null,null,null,null,null,null,null,null,null,null,null,null,""]
[null,null,null,null,null,null,null,null,null,null,null,null,""]
[null,null,null,null,null,null,null,null,null,null,null,null,""]
[null,null,null,null,null,null,null,null,null,null,null,null,""]
[null,null,null,null,null,null,null,null,null,null,null,null,""]
[null,null,null,null,null,null,null,null,null,null,null,null,""]
[null,null,null,null,null,null,null,null,null,null,null,null,""]
[null,null,null,null,null,null,null,null,null,null,null,null,""]
[null,null,null,null,null,null,null,null,null,null,null,null,""]
[null,null,null,null,null,null,null,null,null,null,null,null,""]
[null,null,null,null,null,null,null,null,null,null,null,null,""]
[null,null,null,null,null,null,null,null,null,null,null,null,""]
[null,null,null,null,null,null,null,null,null,null,null,null,""]
[null,null,null,null,null,null,null,null,null,null,null,null,""]
[null,null,null,null,null,null,null,null,null,null,null,null,""]
[null,null,null,null,null,null,null,null,null,null,null,null,{"$f":"IF(J1331=\"\",\"\",IF(L1331<>\"\",\"OK\",IF(AND(K1331<>\"\",K1331<TODAY()),\"Retard\",\"Attente de Livraison\")))","v":""}]
[null,null,null,null,null,null,null,null,null,null,null,null,""]
[null,null,null,null,null,null,null,null,null,null,null,null,""]
[null,null,null,null,null,null,null,null,null,null,null,null,""]
[null,null,null,null,null,null,null,null,null,null,null,null,""]
[null,null,null,null,null,null,null,null,null,null,null,null,""]
[null,null,null,null,null,null,null,null,null,null,null,null,""]
[null,null,null,null,null,null,null,null,null,null,null,null,""]
[null,null,null,null,null,null,null,null,null,null,null,null,""]
[null,null,null,null,null,null,null,null,null,null,null,null,""]
[null,null,null,null,null,null,null,null,null,null,null,null,""]
[null,null,null,null,null,null,null,null,null,null,null,null,""]
[null,null,null,null,null,null,null,null,null,null,null,null,""]
[null,null,null,null,null,null,null,null,null,null,null,null,""]
[null,null,null,null,null,null,null,null,null,null,null,null,""]
[null,null,null,null,null,null,null,null,null,null,null,null,""]
[null,null,null,null,null,null,null,null,null,null,null,null,""]
[null,null,null,null,null,null,null,null,null,null,null,null,""]
[null,null,null,null,null,null,null,null,null,null,null,null,""]
[null,null,null,null,null,null,null,null,null,null,null,null,""]
[null,null,null,null,null,null,null,null,null,null,null,null,""]
[null,null,null,null,null,null,null,null,null,null,null,null,""]
[null,null,null,null,null,null,null,null,null,null,null,null,""]
[null,null,null,null,null,null,null,null,null,null,null,null,""]
[null,null,null,null,null,null,null,null,null,null,null,null,""]
[null,null,null,null,null,null,null,null,null,null,null,null,""]
[null,null,null,null,null,null,null,null,null,null,null,null,""]
[null,null,null,null,null,null,null,null,null,null,null,null,""]
[null,null,null,null,null,null,null,null,null,null,null,null,""]
[null,null,null,null,null,null,null,null,null,null,null,null,""]
[null,null,null,null,null,null,null,null,null,null,null,null,""]
[null,null,null,null,null,null,null,null,null,null,null,null,""]
[null,null,null,null,null,null,null,null,null,null,null,null,""]
[null,null,null,null,null,null,null,null,null,null,null,null,""]
[null,null,null,null,null,null,null,null,null,null,null,null,""]
[null,null,null,null,null,null,null,null,null,null,null,null,""]
[null,null,null,null,null,null,null,null,null,null,null,null,""]
[null,null,null,null,null,null,null,null,null,null,null,null,""]
[null,null,null,null,null,null,null,null,null,null,null,null,""]
[null,null,null,null,null,null,null,null,null,null,null,null,""]
[null,null,null,null,null,null,null,null,null,null,null,null,""]
[null,null,null,null,null,null,null,null,null,null,null,null,""]
[null,null,null,null,null,null,null,null,null,null,null,null,""]
[null,null,null,null,null,null,null,null,null,null,null,null,""]
[null,null,null,null,null,null,null,null,null,null,null,null,""]
[null,null,null,null,null,null,null,null,null,null,null,null,""]
[null,null,null,null,null,null,null,null,null,null,null,null,""]
[null,null,null,null,null,null,null,null,null,null,null,null,""]
[null,null,null,null,null,null,null,null,null,null,null,null,""]
[null,null,null,null,null,null,null,null,null,null,null,null,""]
[null,null,null,null,null,null,null,null,null,null,null,null,""]
[null,null,null,null,null,null,null,null,null,null,null,null,""]
[null,null,null,null,null,null,null,null,null,null,null,null,""]
[null,null,null,null,null,null,null,null,null,null,null,null,""]
[null,null,null,null,null,null,null,null,null,null,null,null,""]
[null,null,null,null,null,null,null,null,null,null,null,null,""]
[null,null,null,null,null,null,null,null,null,null,null,null,""]
[null,null,null,null,null,null,null,null,null,null,null,null,""]
[null,null,null,null,null,null,null,null,null,null,null,null,""]
[null,null,null,null,null,null,null,null,null,null,null,null,""]
[null,null,null,null,null,null,null,null,null,null,null,null,""]
[null,null,null,null,null,null,null,null,null,null,null,null,""]
[null,null,null,null,null,null,null,null,null,null,null,null,""]
[null,null,null,null,null,null,null,null,null,null,null,null,""]
[null,null,null,null,null,null,null,null,null,null,null,null,{"$f":"IF(J1395=\"\",\"\",IF(L1395<>\"\",\"OK\",IF(AND(K1395<>\"\",K1395<TODAY()),\"Retard\",\"Attente de Livraison\")))","v":""}]
[null,null,null,null,null,null,null,null,null,null,null,null,""]
[null,null,null,null,null,null,null,null,null,null,null,null,""]
[null,null,null,null,null,null,null,null,null,null,null,null,""]
[null,null,null,null,null,null,null,null,null,null,null,null,""]
[null,null,null,null,null,null,null,null,null,null,null,null,""]
[null,null,null,null,null,null,null,null,null,null,null,null,""]
[null,null,null,null,null,null,null,null,null,null,null,null,""]
[null,null,null,null,null,null,null,null,null,null,null,null,""]
[null,null,null,null,null,null,null,null,null,null,null,null,""]
[null,null,null,null,null,null,null,null,null,null,null,null,""]
[null,null,null,null,null,null,null,null,null,null,null,null,""]
[null,null,null,null,null,null,null,null,null,null,null,null,""]
[null,null,null,null,null,null,null,null,null,null,null,null,""]
[null,null,null,null,null,null,null,null,null,null,null,null,""]
[null,null,null,null,null,null,null,null,null,null,null,null,""]
[null,null,null,null,null,null,null,null,null,null,null,null,""]
[null,null,null,null,null,null,null,null,null,null,null,null,""]
[null,null,null,null,null,null,null,null,null,null,null,null,""]
[null,null,null,null,null,null,null,null,null,null,null,null,""]
[null,null,null,null,null,null,null,null,null,null,null,null,""]
[null,null,null,null,null,null,null,null,null,null,null,null,""]
[null,null,null,null,null,null,null,null,null,null,null,null,""]
[null,null,null,null,null,null,null,null,null,null,null,null,""]
[null,null,null,null,null,null,null,null,null,null,null,null,""]
[null,null,null,null,null,null,null,null,null,null,null,null,""]
[null,null,null,null,null,null,null,null,null,null,null,null,""]
[null,null,null,null,null,null,null,null,null,null,null,null,""]
[null,null,null,null,null,null,null,null,null,null,null,null,""]
[null,null,null,null,null,null,null,null,null,null,null,null,""]
[null,null,null,null,null,null,null,null,null,null,null,null,""]
[null,null,null,null,null,null,null,null,null,null,null,null,""]
[null,null,null,null,null,null,null,null,null,null,null,null,""]
[null,null,null,null,null,null,null,null,null,null,null,null,""]
[null,null,null,null,null,null,null,null,null,null,null,null,""]
[null,null,null,null,null,null,null,null,null,null,null,null,""]
[null,null,null,null,null,null,null,null,null,null,null,null,""]
[null,null,null,null,null,null,null,null,null,null,null,null,""]
[null,null,null,null,null,null,null,null,null,null,null,null,""]
[null,null,null,null,null,null,null,null,null,null,null,null,""]
[null,null,null,null,null,null,null,null,null,null,null,null,""]
[null,null,null,null,null,null,null,null,null,null,null,null,""]
[null,null,null,null,null,null,null,null,null,null,null,null,""]
[null,null,null,null,null,null,null,null,null,null,null,null,""]
[null,null,null,null,null,null,null,null,null,null,null,null,""]
[null,null,null,null,null,null,null,null,null,null,null,null,""]
[null,null,null,null,null,null,null,null,null,null,null,null,""]
[null,null,null,null,null,null,null,null,null,null,null,null,""]
[null,null,null,null,null,null,null,null,null,null,null,null,""]
[null,null,null,null,null,null,null,null,null,null,null,null,""]
[null,null,null,null,null,null,null,null,null,null,null,null,""]
[null,null,null,null,null,null,null,null,null,null,null,null,""]
[null,null,null,null,null,null,null,null,null,null,null,null,""]
[null,null,null,null,null,null,null,null,null,null,null,null,""]
[null,null,null,null,null,null,null,null,null,null,null,null,""]
[null,null,null,null,null,null,null,null,null,null,null,null,""]
[null,null,null,null,null,null,null,null,null,null,null,null,""]
[null,null,null,null,null,null,null,null,null,null,null,null,""]
[null,null,null,null,null,null,null,null,null,null,null,null,""]
[null,null,null,null,null,null,null,null,null,null,null,null,""]
[null,null,null,null,null,null,null,null,null,null,null,null,""]
[null,null,null,null,null,null,null,null,null,null,null,null,""]
[null,null,null,null,null,null,null,null,null,null,null,null,""]
[null,null,null,null,null,null,null,null,null,null,null,null,""]
[null,null,null,null,null,null,null,null,null,null,null,null,{"$f":"IF(J1459=\"\",\"\",IF(L1459<>\"\",\"OK\",IF(AND(K1459<>\"\",K1459<TODAY()),\"Retard\",\"Attente de Livraison\")))","v":""}]
[null,null,null,null,null,null,null,null,null,null,null,null,""]
[null,null,null,null,null,null,null,null,null,null,null,null,""]
[null,null,null,null,null,null,null,null,null,null,null,null,""]
[null,null,null,null,null,null,null,null,null,null,null,null,""]
[null,null,null,null,null,null,null,null,null,null,null,null,""]
[null,null,null,null,null,null,null,null,null,null,null,null,""]
[null,null,null,null,null,null,null,null,null,null,null,null,""]
[null,null,null,null,null,null,null,null,null,null,null,null,""]
[null,null,null,null,null,null,null,null,null,null,null,null,""]
[null,null,null,null,null,null,null,null,null,null,null,null,""]
[null,null,null,null,null,null,null,null,null,null,null,null,""]
[null,null,null,null,null,null,null,null,null,null,null,null,""]
[null,null,null,null,null,null,null,null,null,null,null,null,""]
[null,null,null,null,null,null,null,null,null,null,null,null,""]
[null,null,null,null,null,null,null,null,null,null,null,null,""]
[null,null,null,null,null,null,null,null,null,null,null,null,""]
[null,null,null,null,null,null,null,null,null,null,null,null,""]
[null,null,null,null,null,null,null,null,null,null,null,null,""]
[null,null,null,null,null,null,null,null,null,null,null,null,""]
[null,null,null,null,null,null,null,null,null,null,null,null,""]
[null,null,null,null,null,null,null,null,null,null,null,null,""]
[null,null,null,null,null,null,null,null,null,null,null,null,""]
[null,null,null,null,null,null,null,null,null,null,null,null,""]
[null,null,null,null,null,null,null,null,null,null,null,null,""]
[null,null,null,null,null,null,null,null,null,null,null,null,""]
[null,null,null,null,null,null,null,null,null,null,null,null,""]
[null,null,null,null,null,null,null,null,null,null,null,null,""]
[null,null,null,null,null,null,null,null,null,null,null,null,""]
[null,null,null,null,null,null,null,null,null,null,null,null,""]
[null,null,null,null,null,null,null,null,null,null,null,null,""]
[null,null,null,null,null,null,null,null,null,null,null,null,""]
[null,null,null,null,null,null,null,null,null,null,null,null,""]
[null,null,null,null,null,null,null,null,null,null,null,null,""]
[null,null,null,null,null,null,null,null,null,null,null,null,""]
[null,null,null,null,null,null,null,null,null,null,null,null,""]
[null,null,null,null,null,null,null,null,null,null,null,null,""]
[null,null,null,null,null,null,null,null,null,null,null,null,""]
[null,null,null,null,null,null,null,null,null,null,null,null,""]
[null,null,null,null,null,null,null,null,null,null,null,null,""]
[null,null,null,null,null,null,null,null,null,null,null,null,""]
[null,null,null,null,null,null,null,null,null,null,null,null,""]
[null,null,null,null,null,null,null,null,null,null,null,null,""]
[null,null,null,null,null,null,null,null,null,null,null,null,""]
[null,null,null,null,null,null,null,null,null,null,null,null,""]
[null,null,null,null,null,null,null,null,null,null,null,null,""]
[null,null,null,null,null,null,null,null,null,null,null,null,""]
[null,null,null,null,null,null,null,null,null,null,null,null,""]
[null,null,null,null,null,null,null,null,null,null,null,null,""]
[null,null,null,null,null,null,null,null,null,null,null,null,""]
[null,null,null,null,null,null,null,null,null,null,null,null,""]
[null,null,null,null,null,null,null,null,null,null,null,null,""]
[null,null,null,null,null,null,null,null,null,null,null,null,""]
[null,null,null,null,null,null,null,null,null,null,null,null,""]
[null,null,null,null,null,null,null,null,null,null,null,null,""]
[null,null,null,null,null,null,null,null,null,null,null,null,""]
[null,null,null,null,null,null,null,null,null,null,null,null,""]
[null,null,null,null,null,null,null,null,null,null,null,null,""]
[null,null,null,null,null,null,null,null,null,null,null,null,""]
[null,null,null,null,null,null,null,null,null,null,null,null,""]
[null,null,null,null,null,null,null,null,null,null,null,null,""]
[null,null,null,null,null,null,null,null,null,null,null,null,""]
[null,null,null,null,null,null,null,null,null,null,null,null,""]
[null,null,null,null,null,null,null,null,null,null,null,null,""]
[null,null,null,null,null,null,null,null,null,null,null,null,{"$f":"IF(J1523=\"\",\"\",IF(L1523<>\"\",\"OK\",IF(AND(K1523<>\"\",K1523<TODAY()),\"Retard\",\"Attente de Livraison\")))","v":""}]
[null,null,null,null,null,null,null,null,null,null,null,null,""]
[null,null,null,null,null,null,null,null,null,null,null,null,""]
[null,null,null,null,null,null,null,null,null,null,null,null,""]
[null,null,null,null,null,null,null,null,null,null,null,null,""]
[null,null,null,null,null,null,null,null,null,null,null,null,""]
[null,null,null,null,null,null,null,null,null,null,null,null,""]
[null,null,null,null,null,null,null,null,null,null,null,null,""]
[null,null,null,null,null,null,null,null,null,null,null,null,""]
[null,null,null,null,null,null,null,null,null,null,null,null,""]
[null,null,null,null,null,null,null,null,null,null,null,null,""]
[null,null,null,null,null,null,null,null,null,null,null,null,""]
[null,null,null,null,null,null,null,null,null,null,null,null,""]
[null,null,null,null,null,null,null,null,null,null,null,null,""]
[null,null,null,null,null,null,null,null,null,null,null,null,""]
[null,null,null,null,null,null,null,null,null,null,null,null,""]
[null,null,null,null,null,null,null,null,null,null,null,null,""]
[null,null,null,null,null,null,null,null,null,null,null,null,""]
[null,null,null,null,null,null,null,null,null,null,null,null,""]
[null,null,null,null,null,null,null,null,null,null,null,null,""]
[null,null,null,null,null,null,null,null,null,null,null,null,""]
[null,null,null,null,null,null,null,null,null,null,null,null,""]
[null,null,null,null,null,null,null,null,null,null,null,null,""]
[null,null,null,null,null,null,null,null,null,null,null,null,""]
[null,null,null,null,null,null,null,null,null,null,null,null,""]
[null,null,null,null,null,null,null,null,null,null,null,null,""]
[null,null,null,null,null,null,null,null,null,null,null,null,""]
[null,null,null,null,null,null,null,null,null,null,null,null,""]
[null,null,null,null,null,null,null,null,null,null,null,null,""]
[null,null,null,null,null,null,null,null,null,null,null,null,""]
[null,null,null,null,null,null,null,null,null,null,null,null,""]
[null,null,null,null,null,null,null,null,null,null,null,null,""]
[null,null,null,null,null,null,null,null,null,null,null,null,""]
[null,null,null,null,null,null,null,null,null,null,null,null,""]
[null,null,null,null,null,null,null,null,null,null,null,null,""]
[null,null,null,null,null,null,null,null,null,null,null,null,""]
[null,null,null,null,null,null,null,null,null,null,null,null,""]
[null,null,null,null,null,null,null,null,null,null,null,null,""]
[null,null,null,null,null,null,null,null,null,null,null,null,""]
[null,null,null,null,null,null,null,null,null,null,null,null,""]
[null,null,null,null,null,null,null,null,null,null,null,null,""]
[null,null,null,null,null,null,null,null,null,null,null,null,""]
[null,null,null,null,null,null,null,null,null,null,null,null,""]
[null,null,null,null,null,null,null,null,null,null,null,null,""]
[null,null,null,null,null,null,null,null,null,null,null,null,""]
[null,null,null,null,null,null,null,null,null,null,null,null,""]
[null,null,null,null,null,null,null,null,null,null,null,null,""]
[null,null,null,null,null,null,null,null,null,null,null,null,""]
[null,null,null,null,null,null,null,null,null,null,null,null,""]
[null,null,null,null,null,null,null,null,null,null,null,null,""]
[null,null,null,null,null,null,null,null,null,null,null,null,""]
[null,null,null,null,null,null,null,null,null,null,null,null,""]
[null,null,null,null,null,null,null,null,null,null,null,null,""]
[null,null,null,null,null,null,null,null,null,null,null,null,""]
[null,null,null,null,null,null,null,null,null,null,null,null,""]
[null,null,null,null,null,null,null,null,null,null,null,null,""]
[null,null,null,null,null,null,null,null,null,null,null,null,""]
[null,null,null,null,null,null,null,null,null,null,null,null,""]
[null,null,null,null,null,null,null,null,null,null,null,null,""]
[null,null,null,null,null,null,null,null,null,null,null,null,""]
[null,null,null,null,null,null,null,null,null,null,null,null,""]
[null,null,null,null,null,null,null,null,null,null,null,null,""]
[null,null,null,null,null,null,null,null,null,null,null,null,""]
[null,null,null,null,null,null,null,null,null,null,null,null,""]
[null,null,null,null,null,null,null,null,null,null,null,null,{"$f":"IF(J1587=\"\",\"\",IF(L1587<>\"\",\"OK\",IF(AND(K1587<>\"\",K1587<TODAY()),\"Retard\",\"Attente de Livraison\")))","v":""}]
[null,null,null,null,null,null,null,null,null,null,null,null,""]
[null,null,null,null,null,null,null,null,null,null,null,null,""]
[null,null,null,null,null,null,null,null,null,null,null,null,""]
[null,null,null,null,null,null,null,null,null,null,null,null,""]
[null,null,null,null,null,null,null,null,null,null,null,null,""]
[null,null,null,null,null,null,null,null,null,null,null,null,""]
[null,null,null,null,null,null,null,null,null,null,null,null,""]
[null,null,null,null,null,null,null,null,null,null,null,null,""]
[null,null,null,null,null,null,null,null,null,null,null,null,""]
[null,null,null,null,null,null,null,null,null,null,null,null,""]
[null,null,null,null,null,null,null,null,null,null,null,null,""]
[null,null,null,null,null,null,null,null,null,null,null,null,""]
[null,null,null,null,null,null,null,null,null,null,null,null,""]
[null,null,null,null,null,null,null,null,null,null,null,null,""]
[null,null,null,null,null,null,null,null,null,null,null,null,""]
[null,null,null,null,null,null,null,null,null,null,null,null,""]
[null,null,null,null,null,null,null,null,null,null,null,null,""]
[null,null,null,null,null,null,null,null,null,null,null,null,""]
[null,null,null,null,null,null,null,null,null,null,null,null,""]
[null,null,null,null,null,null,null,null,null,null,null,null,""]
[null,null,null,null,null,null,null,null,null,null,null,null,""]
[null,null,null,null,null,null,null,null,null,null,null,null,""]
[null,null,null,null,null,null,null,null,null,null,null,null,""]
[null,null,null,null,null,null,null,null,null,null,null,null,""]
[null,null,null,null,null,null,null,null,null,null,null,null,""]
[null,null,null,null,null,null,null,null,null,null,null,null,""]
[null,null,null,null,null,null,null,null,null,null,null,null,""]
[null,null,null,null,null,null,null,null,null,null,null,null,""]
[null,null,null,null,null,null,null,null,null,null,null,null,""]
[null,null,null,null,null,null,null,null,null,null,null,null,""]
[null,null,null,null,null,null,null,null,null,null,null,null,""]
[null,null,null,null,null,null,null,null,null,null,null,null,""]
[null,null,null,null,null,null,null,null,null,null,null,null,""]
[null,null,null,null,null,null,null,null,null,null,null,null,""]
[null,null,null,null,null,null,null,null,null,null,null,null,""]
[null,null,null,null,null,null,null,null,null,null,null,null,""]
[null,null,null,null,null,null,null,null,null,null,null,null,""]
[null,null,null,null,null,null,null,null,null,null,null,null,""]
[null,null,null,null,null,null,null,null,null,null,null,null,""]
[null,null,null,null,null,null,null,null,null,null,null,null,""]
[null,null,null,null,null,null,null,null,null,null,null,null,""]
[null,null,null,null,null,null,null,null,null,null,null,null,""]
[null,null,null,null,null,null,null,null,null,null,null,null,""]
[null,null,null,null,null,null,null,null,null,null,null,null,""]
[null,null,null,null,null,null,null,null,null,null,null,null,""]
[null,null,null,null,null,null,null,null,null,null,null,null,""]
[null,null,null,null,null,null,null,null,null,null,null,null,""]
[null,null,null,null,null,null,null,null,null,null,null,null,""]
[null,null,null,null,null,null,null,null,null,null,null,null,""]
[null,null,null,null,null,null,null,null,null,null,null,null,""]
[null,null,null,null,null,null,null,null,null,null,null,null,""]
[null,null,null,null,null,null,null,null,null,null,null,null,""]
[null,null,null,null,null,null,null,null,null,null,null,null,""]
[null,null,null,null,null,null,null,null,null,null,null,null,""]
[null,null,null,null,null,null,null,null,null,null,null,null,""]
[null,null,null,null,null,null,null,null,null,null,null,null,""]
[null,null,null,null,null,null,null,null,null,null,null,null,""]
[null,null,null,null,null,null,null,null,null,null,null,null,""]
[null,null,null,null,null,null,null,null,null,null,null,null,""]
[null,null,null,null,null,null,null,null,null,null,null,null,""]
[null,null,null,null,null,null,null,null,null,null,null,null,""]
[null,null,null,null,null,null,null,null,null,null,null,null,""]
[null,null,null,null,null,null,null,null,null,null,null,null,""]
[null,null,null,null,null,null,null,null,null,null,null,null,{"$f":"IF(J1651=\"\",\"\",IF(L1651<>\"\",\"OK\",IF(AND(K1651<>\"\",K1651<TODAY()),\"Retard\",\"Attente de Livraison\")))","v":""}]
[null,null,null,null,null,null,null,null,null,null,null,null,""]
[null,null,null,null,null,null,null,null,null,null,null,null,""]
[null,null,null,null,null,null,null,null,null,null,null,null,""]
[null,null,null,null,null,null,null,null,null,null,null,null,""]
[null,null,null,null,null,null,null,null,null,null,null,null,""]
[null,null,null,null,null,null,null,null,null,null,null,null,""]
[null,null,null,null,null,null,null,null,null,null,null,null,""]
[null,null,null,null,null,null,null,null,null,null,null,null,""]
[null,null,null,null,null,null,null,null,null,null,null,null,""]
[null,null,null,null,null,null,null,null,null,null,null,null,""]
[null,null,null,null,null,null,null,null,null,null,null,null,""]
[null,null,null,null,null,null,null,null,null,null,null,null,""]
[null,null,null,null,null,null,null,null,null,null,null,null,""]
[null,null,null,null,null,null,null,null,null,null,null,null,""]
[null,null,null,null,null,null,null,null,null,null,null,null,""]
[null,null,null,null,null,null,null,null,null,null,null,null,""]
[null,null,null,null,null,null,null,null,null,null,null,null,""]
[null,null,null,null,null,null,null,null,null,null,null,null,""]
[null,null,null,null,null,null,null,null,null,null,null,null,""]
[null,null,null,null,null,null,null,null,null,null,null,null,""]
[null,null,null,null,null,null,null,null,null,null,null,null,""]
[null,null,null,null,null,null,null,null,null,null,null,null,""]
[null,null,null,null,null,null,null,null,null,null,null,null,""]
[null,null,null,null,null,null,null,null,null,null,null,null,""]
[null,null,null,null,null,null,null,null,null,null,null,null,""]
[null,null,null,null,null,null,null,null,null,null,null,null,""]
[null,null,null,null,null,null,null,null,null,null,null,null,""]
[null,null,null,null,null,null,null,null,null,null,null,null,""]
[null,null,null,null,null,null,null,null,null,null,null,null,""]
[null,null,null,null,null,null,null,null,null,null,null,null,""]
[null,null,null,null,null,null,null,null,null,null,null,null,""]
[null,null,null,null,null,null,null,null,null,null,null,null,""]
[null,null,null,null,null,null,null,null,null,null,null,null,""]
[null,null,null,null,null,null,null,null,null,null,null,null,""]
[null,null,null,null,null,null,null,null,null,null,null,null,""]
[null,null,null,null,null,null,null,null,null,null,null,null,""]
[null,null,null,null,null,null,null,null,null,null,null,null,""]
[null,null,null,null,null,null,null,null,null,null,null,null,""]
[null,null,null,null,null,null,null,null,null,null,null,null,""]
[null,null,null,null,null,null,null,null,null,null,null,null,""]
[null,null,null,null,null,null,null,null,null,null,null,null,""]
[null,null,null,null,null,null,null,null,null,null,null,null,""]
[null,null,null,null,null,null,null,null,null,null,null,null,""]
[null,null,null,null,null,null,null,null,null,null,null,null,""]
[null,null,null,null,null,null,null,null,null,null,null,null,""]
[null,null,null,null,null,null,null,null,null,null,null,null,""]
[null,null,null,null,null,null,null,null,null,null,null,null,""]
[null,null,null,null,null,null,null,null,null,null,null,null,""]
[null,null,null,null,null,null,null,null,null,null,null,null,""]
[null,null,null,null,null,null,null,null,null,null,null,null,""]
[null,null,null,null,null,null,null,null,null,null,null,null,""]
[null,null,null,null,null,null,null,null,null,null,null,null,""]
[null,null,null,null,null,null,null,null,null,null,null,null,""]
[null,null,null,null,null,null,null,null,null,null,null,null,""]
[null,null,null,null,null,null,null,null,null,null,null,null,""]
[null,null,null,null,null,null,null,null,null,null,null,null,""]
[null,null,null,null,null,null,null,null,null,null,null,null,""]
[null,null,null,null,null,null,null,null,null,null,null,null,""]
[null,null,null,null,null,null,null,null,null,null,null,null,""]
[null,null,null,null,null,null,null,null,null,null,null,null,""]
[null,null,null,null,null,null,null,null,null,null,null,null,""]
[null,null,null,null,null,null,null,null,null,null,null,null,""]
[null,null,null,null,null,null,null,null,null,null,null,null,""]
[null,null,null,null,null,null,null,null,null,null,null,null,{"$f":"IF(J1715=\"\",\"\",IF(L1715<>\"\",\"OK\",IF(AND(K1715<>\"\",K1715<TODAY()),\"Retard\",\"Attente de Livraison\")))","v":""}]
[null,null,null,null,null,null,null,null,null,null,null,null,""]
[null,null,null,null,null,null,null,null,null,null,null,null,""]
[null,null,null,null,null,null,null,null,null,null,null,null,""]
[null,null,null,null,null,null,null,null,null,null,null,null,""]
[null,null,null,null,null,null,null,null,null,null,null,null,""]
[null,null,null,null,null,null,null,null,null,null,null,null,""]
[null,null,null,null,null,null,null,null,null,null,null,null,""]
[null,null,null,null,null,null,null,null,null,null,null,null,""]
[null,null,null,null,null,null,null,null,null,null,null,null,""]
[null,null,null,null,null,null,null,null,null,null,null,null,""]
[null,null,null,null,null,null,null,null,null,null,null,null,""]
[null,null,null,null,null,null,null,null,null,null,null,null,""]
[null,null,null,null,null,null,null,null,null,null,null,null,""]
[null,null,null,null,null,null,null,null,null,null,null,null,""]
[null,null,null,null,null,null,null,null,null,null,null,null,""]
[null,null,null,null,null,null,null,null,null,null,null,null,""]
[null,null,null,null,null,null,null,null,null,null,null,null,""]
[null,null,null,null,null,null,null,null,null,null,null,null,""]
[null,null,null,null,null,null,null,null,null,null,null,null,""]
[null,null,null,null,null,null,null,null,null,null,null,null,""]
[null,null,null,null,null,null,null,null,null,null,null,null,""]
[null,null,null,null,null,null,null,null,null,null,null,null,""]
[null,null,null,null,null,null,null,null,null,null,null,null,""]
[null,null,null,null,null,null,null,null,null,null,null,null,""]
[null,null,null,null,null,null,null,null,null,null,null,null,""]
[null,null,null,null,null,null,null,null,null,null,null,null,""]
[null,null,null,null,null,null,null,null,null,null,null,null,""]
[null,null,null,null,null,null,null,null,null,null,null,null,""]
[null,null,null,null,null,null,null,null,null,null,null,null,""]
[null,null,null,null,null,null,null,null,null,null,null,null,""]
[null,null,null,null,null,null,null,null,null,null,null,null,""]
[null,null,null,null,null,null,null,null,null,null,null,null,""]
[null,null,null,null,null,null,null,null,null,null,null,null,""]
[null,null,null,null,null,null,null,null,null,null,null,null,""]
[null,null,null,null,null,null,null,null,null,null,null,null,""]
[null,null,null,null,null,null,null,null,null,null,null,null,""]
[null,null,null,null,null,null,null,null,null,null,null,null,""]
[null,null,null,null,null,null,null,null,null,null,null,null,""]
[null,null,null,null,null,null,null,null,null,null,null,null,""]
[null,null,null,null,null,null,null,null,null,null,null,null,""]
[null,null,null,null,null,null,null,null,null,null,null,null,""]
[null,null,null,null,null,null,null,null,null,null,null,null,""]
[null,null,null,null,null,null,null,null,null,null,null,null,""]
[null,null,null,null,null,null,null,null,null,null,null,null,""]
[null,null,null,null,null,null,null,null,null,null,null,null,""]
[null,null,null,null,null,null,null,null,null,null,null,null,""]
[null,null,null,null,null,null,null,null,null,null,null,null,""]
[null,null,null,null,null,null,null,null,null,null,null,null,""]
[null,null,null,null,null,null,null,null,null,null,null,null,""]
[null,null,null,null,null,null,null,null,null,null,null,null,""]
[null,null,null,null,null,null,null,null,null,null,null,null,""]
[null,null,null,null,null,null,null,null,null,null,null,null,""]
[null,null,null,null,null,null,null,null,null,null,null,null,""]
[null,null,null,null,null,null,null,null,null,null,null,null,""]
[null,null,null,null,null,null,null,null,null,null,null,null,""]
[null,null,null,null,null,null,null,null,null,null,null,null,""]
[null,null,null,null,null,null,null,null,null,null,null,null,""]
[null,null,null,null,null,null,null,null,null,null,null,null,""]
[null,null,null,null,null,null,null,null,null,null,null,null,""]
[null,null,null,null,null,null,null,null,null,null,null,null,""]
[null,null,null,null,null,null,null,null,null,null,null,null,""]
[null,null,null,null,null,null,null,null,null,null,null,null,""]
[null,null,null,null,null,null,null,null,null,null,null,null,""]
[null,null,null,null,null,null,null,null,null,null,null,null,{"$f":"IF(J1779=\"\",\"\",IF(L1779<>\"\",\"OK\",IF(AND(K1779<>\"\",K1779<TODAY()),\"Retard\",\"Attente de Livraison\")))","v":""}]
[null,null,null,null,null,null,null,null,null,null,null,null,""]
[null,null,null,null,null,null,null,null,null,null,null,null,""]
[null,null,null,null,null,null,null,null,null,null,null,null,""]
[null,null,null,null,null,null,null,null,null,null,null,null,""]
[null,null,null,null,null,null,null,null,null,null,null,null,""]
[null,null,null,null,null,null,null,null,null,null,null,null,""]
[null,null,null,null,null,null,null,null,null,null,null,null,""]
[null,null,null,null,null,null,null,null,null,null,null,null,""]
[null,null,null,null,null,null,null,null,null,null,null,null,""]
[null,null,null,null,null,null,null,null,null,null,null,null,""]
[null,null,null,null,null,null,null,null,null,null,null,null,""]
[null,null,null,null,null,null,null,null,null,null,null,null,""]
[null,null,null,null,null,null,null,null,null,null,null,null,""]
[null,null,null,null,null,null,null,null,null,null,null,null,""]
[null,null,null,null,null,null,null,null,null,null,null,null,""]
[null,null,null,null,null,null,null,null,null,null,null,null,""]
[null,null,null,null,null,null,null,null,null,null,null,null,""]
[null,null,null,null,null,null,null,null,null,null,null,null,""]
[null,null,null,null,null,null,null,null,null,null,null,null,""]
[null,null,null,null,null,null,null,null,null,null,null,null,""]
[null,null,null,null,null,null,null,null,null,null,null,null,""]
[null,null,null,null,null,null,null,null,null,null,null,null,""]
[null,null,null,null,null,null,null,null,null,null,null,null,""]
[null,null,null,null,null,null,null,null,null,null,null,null,""]
[null,null,null,null,null,null,null,null,null,null,null,null,""]
[null,null,null,null,null,null,null,null,null,null,null,null,""]
[null,null,null,null,null,null,null,null,null,null,null,null,""]
[null,null,null,null,null,null,null,null,null,null,null,null,""]
[null,null,null,null,null,null,null,null,null,null,null,null,""]
[null,null,null,null,null,null,null,null,null,null,null,null,""]
[null,null,null,null,null,null,null,null,null,null,null,null,""]
[null,null,null,null,null,null,null,null,null,null,null,null,""]
[null,null,null,null,null,null,null,null,null,null,null,null,""]
[null,null,null,null,null,null,null,null,null,null,null,null,""]
[null,null,null,null,null,null,null,null,null,null,null,null,""]
[null,null,null,null,null,null,null,null,null,null,null,null,""]
[null,null,null,null,null,null,null,null,null,null,null,null,""]
[null,null,null,null,null,null,null,null,null,null,null,null,""]
[null,null,null,null,null,null,null,null,null,null,null,null,""]
[null,null,null,null,null,null,null,null,null,null,null,null,""]
[null,null,null,null,null,null,null,null,null,null,null,null,""]
[null,null,null,null,null,null,null,null,null,null,null,null,""]
[null,null,null,null,null,null,null,null,null,null,null,null,""]
[null,null,null,null,null,null,null,null,null,null,null,null,""]
[null,null,null,null,null,null,null,null,null,null,null,null,""]
[null,null,null,null,null,null,null,null,null,null,null,null,""]
[null,null,null,null,null,null,null,null,null,null,null,null,""]
[null,null,null,null,null,null,null,null,null,null,null,null,""]
[null,null,null,null,null,null,null,null,null,null,null,null,""]
[null,null,null,null,null,null,null,null,null,null,null,null,""]
[null,null,null,null,null,null,null,null,null,null,null,null,""]
[null,null,null,null,null,null,null,null,null,null,null,null,""]
[null,null,null,null,null,null,null,null,null,null,null,null,""]
[null,null,null,null,null,null,null,null,null,null,null,null,""]
[null,null,null,null,null,null,null,null,null,null,null,null,""]
[null,null,null,null,null,null,null,null,null,null,null,null,""]
[null,null,null,null,null,null,null,null,null,null,null,null,""]
[null,null,null,null,null,null,null,null,null,null,null,null,""]
[null,null,null,null,null,null,null,null,null,null,null,null,""]
[null,null,null,null,null,null,null,null,null,null,null,null,""]
[null,null,null,null,null,null,null,null,null,null,null,null,""]
[null,null,null,null,null,null,null,null,null,null,null,null,""]
[null,null,null,null,null,null,null,null,null,null,null,null,""]
[null,null,null,null,null,null,null,null,null,null,null,null,{"$f":"IF(J1843=\"\",\"\",IF(L1843<>\"\",\"OK\",IF(AND(K1843<>\"\",K1843<TODAY()),\"Retard\",\"Attente de Livraison\")))","v":""}]
[null,null,null,null,null,null,null,null,null,null,null,null,""]
[null,null,null,null,null,null,null,null,null,null,null,null,""]
[null,null,null,null,null,null,null,null,null,null,null,null,""]
[null,null,null,null,null,null,null,null,null,null,null,null,""]
[null,null,null,null,null,null,null,null,null,null,null,null,""]
[null,null,null,null,null,null,null,null,null,null,null,null,""]
[null,null,null,null,null,null,null,null,null,null,null,null,""]
[null,null,null,null,null,null,null,null,null,null,null,null,""]
[null,null,null,null,null,null,null,null,null,null,null,null,""]
[null,null,null,null,null,null,null,null,null,null,null,null,""]
[null,null,null,null,null,null,null,null,null,null,null,null,""]
[null,null,null,null,null,null,null,null,null,null,null,null,""]
[null,null,null,null,null,null,null,null,null,null,null,null,""]
[null,null,null,null,null,null,null,null,null,null,null,null,""]
[null,null,null,null,null,null,null,null,null,null,null,null,""]
[null,null,null,null,null,null,null,null,null,null,null,null,""]
[null,null,null,null,null,null,null,null,null,null,null,null,""]
[null,null,null,null,null,null,null,null,null,null,null,null,""]
[null,null,null,null,null,null,null,null,null,null,null,null,""]
[null,null,null,null,null,null,null,null,null,null,null,null,""]
[null,null,null,null,null,null,null,null,null,null,null,null,""]
[null,null,null,null,null,null,null,null,null,null,null,null,""]
[null,null,null,null,null,null,null,null,null,null,null,null,""]
[null,null,null,null,null,null,null,null,null,null,null,null,""]
[null,null,null,null,null,null,null,null,null,null,null,null,""]
[null,null,null,null,null,null,null,null,null,null,null,null,""]
[null,null,null,null,null,null,null,null,null,null,null,null,""]
[null,null,null,null,null,null,null,null,null,null,null,null,""]
[null,null,null,null,null,null,null,null,null,null,null,null,""]
[null,null,null,null,null,null,null,null,null,null,null,null,""]
[null,null,null,null,null,null,null,null,null,null,null,null,""]
[null,null,null,null,null,null,null,null,null,null,null,null,""]
[null,null,null,null,null,null,null,null,null,null,null,null,""]
[null,null,null,null,null,null,null,null,null,null,null,null,""]
[null,null,null,null,null,null,null,null,null,null,null,null,""]
[null,null,null,null,null,null,null,null,null,null,null,null,""]
[null,null,null,null,null,null,null,null,null,null,null,null,""]
[null,null,null,null,null,null,null,null,null,null,null,null,""]
[null,null,null,null,null,null,null,null,null,null,null,null,""]
[null,null,null,null,null,null,null,null,null,null,null,null,""]
[null,null,null,null,null,null,null,null,null,null,null,null,""]
[null,null,null,null,null,null,null,null,null,null,null,null,""]
[null,null,null,null,null,null,null,null,null,null,null,null,""]
[null,null,null,null,null,null,null,null,null,null,null,null,""]
[null,null,null,null,null,null,null,null,null,null,null,null,""]
[null,null,null,null,null,null,null,null,null,null,null,null,""]
[null,null,null,null,null,null,null,null,null,null,null,null,""]
[null,null,null,null,null,null,null,null,null,null,null,null,""]
[null,null,null,null,null,null,null,null,null,null,null,null,""]
[null,null,null,null,null,null,null,null,null,null,null,null,""]
[null,null,null,null,null,null,null,null,null,null,null,null,""]
[null,null,null,null,null,null,null,null,null,null,null,null,""]
[null,null,null,null,null,null,null,null,null,null,null,null,""]
[null,null,null,null,null,null,null,null,null,null,null,null,""]
[null,null,null,null,null,null,null,null,null,null,null,null,""]
[null,null,null,null,null,null,null,null,null,null,null,null,""]
[null,null,null,null,null,null,null,null,null,null,null,null,""]
[null,null,null,null,null,null,null,null,null,null,null,null,""]
[null,null,null,null,null,null,null,null,null,null,null,null,""]
[null,null,null,null,null,null,null,null,null,null,null,null,""]
[null,null,null,null,null,null,null,null,null,null,null,null,""]
[null,null,null,null,null,null,null,null,null,null,null,null,""]
[null,null,null,null,null,null,null,null,null,null,null,null,""]
[null,null,null,null,null,null,null,null,null,null,null,null,{"$f":"IF(J1907=\"\",\"\",IF(L1907<>\"\",\"OK\",IF(AND(K1907<>\"\",K1907<TODAY()),\"Retard\",\"Attente de Livraison\")))","v":""}]
[null,null,null,null,null,null,null,null,null,null,null,null,""]
[null,null,null,null,null,null,null,null,null,null,null,null,""]
[null,null,null,null,null,null,null,null,null,null,null,null,""]
[null,null,null,null,null,null,null,null,null,null,null,null,""]
[null,null,null,null,null,null,null,null,null,null,null,null,""]
[null,null,null,null,null,null,null,null,null,null,null,null,""]
[null,null,null,null,null,null,null,null,null,null,null,null,""]
[null,null,null,null,null,null,null,null,null,null,null,null,""]
[null,null,null,null,null,null,null,null,null,null,null,null,""]
[null,null,null,null,null,null,null,null,null,null,null,null,""]
[null,null,null,null,null,null,null,null,null,null,null,null,""]
[null,null,null,null,null,null,null,null,null,null,null,null,""]
[null,null,null,null,null,null,null,null,null,null,null,null,""]
[null,null,null,null,null,null,null,null,null,null,null,null,""]
[null,null,null,null,null,null,null,null,null,null,null,null,""]
[null,null,null,null,null,null,null,null,null,null,null,null,""]
[null,null,null,null,null,null,null,null,null,null,null,null,""]
[null,null,null,null,null,null,null,null,null,null,null,null,""]
[null,null,null,null,null,null,null,null,null,null,null,null,""]
[null,null,null,null,null,null,null,null,null,null,null,null,""]
[null,null,null,null,null,null,null,null,null,null,null,null,""]
[null,null,null,null,null,null,null,null,null,null,null,null,""]
[null,null,null,null,null,null,null,null,null,null,null,null,""]
[null,null,null,null,null,null,null,null,null,null,null,null,""]
[null,null,null,null,null,null,null,null,null,null,null,null,""]
[null,null,null,null,null,null,null,null,null,null,null,null,""]
[null,null,null,null,null,null,null,null,null,null,null,null,""]
[null,null,null,null,null,null,null,null,null,null,null,null,""]
[null,null,null,null,null,null,null,null,null,null,null,null,""]
[null,null,null,null,null,null,null,null,null,null,null,null,""]
[null,null,null,null,null,null,null,null,null,null,null,null,""]
[null,null,null,null,null,null,null,null,null,null,null,null,""]
[null,null,null,null,null,null,null,null,null,null,null,null,""]
[null,null,null,null,null,null,null,null,null,null,null,null,""]
[null,null,null,null,null,null,null,null,null,null,null,null,""]
[null,null,null,null,null,null,null,null,null,null,null,null,""]
[null,null,null,null,null,null,null,null,null,null,null,null,""]
[null,null,null,null,null,null,null,null,null,null,null,null,""]
[null,null,null,null,null,null,null,null,null,null,null,null,""]
[null,null,null,null,null,null,null,null,null,null,null,null,""]
[null,null,null,null,null,null,null,null,null,null,null,null,""]
[null,null,null,null,null,null,null,null,null,null,null,null,""]
[null,null,null,null,null,null,null,null,null,null,null,null,""]
[null,null,null,null,null,null,null,null,null,null,null,null,""]
[null,null,null,null,null,null,null,null,null,null,null,null,""]
[null,null,null,null,null,null,null,null,null,null,null,null,""]
[null,null,null,null,null,null,null,null,null,null,null,null,""]
[null,null,null,null,null,null,null,null,null,null,null,null,""]
[null,null,null,null,null,null,null,null,null,null,null,null,""]
[null,null,null,null,null,null,null,null,null,null,null,null,""]
[null,null,null,null,null,null,null,null,null,null,null,null,""]
[null,null,null,null,null,null,null,null,null,null,null,null,""]
[null,null,null,null,null,null,null,null,null,null,null,null,""]
[null,null,null,null,null,null,null,null,null,null,null,null,""]
[null,null,null,null,null,null,null,null,null,null,null,null,""]
[null,null,null,null,null,null,null,null,null,null,null,null,""]
[null,null,null,null,null,null,null,null,null,null,null,null,""]
[null,null,null,null,null,null,null,null,null,null,null,null,""]
[null,null,null,null,null,null,null,null,null,null,null,null,""]
[null,null,null,null,null,null,null,null,null,null,null,null,""]
[null,null,null,null,null,null,null,null,null,null,null,null,""]
[null,null,null,null,null,null,null,null,null,null,null,null,""]
[null,null,null,null,null,null,null,null,null,null,null,null,""]
[null,null,null,null,null,null,null,null,null,null,null,null,{"$f":"IF(J1971=\"\",\"\",IF(L1971<>\"\",\"OK\",IF(AND(K1971<>\"\",K1971<TODAY()),\"Retard\",\"Attente de Livraison\")))","v":""}]
[null,null,null,null,null,null,null,null,null,null,null,null,""]
[null,null,null,null,null,null,null,null,null,null,null,null,""]
[null,null,null,null,null,null,null,null,null,null,null,null,""]
[null,null,null,null,null,null,null,null,null,null,null,null,""]
[null,null,null,null,null,null,null,null,null,null,null,null,""]
[null,null,null,null,null,null,null,null,null,null,null,null,""]
[null,null,null,null,null,null,null,null,null,null,null,null,""]
[null,null,null,null,null,null,null,null,null,null,null,null,""]
[null,null,null,null,null,null,null,null,null,null,null,null,""]
[null,null,null,null,null,null,null,null,null,null,null,null,""]
[null,null,null,null,null,null,null,null,null,null,null,null,""]
[null,null,null,null,null,null,null,null,null,null,null,null,""]
[null,null,null,null,null,null,null,null,null,null,null,null,""]
[null,null,null,null,null,null,null,null,null,null,null,null,""]
[null,null,null,null,null,null,null,null,null,null,null,null,""]
[null,null,null,null,null,null,null,null,null,null,null,null,""]
[null,null,null,null,null,null,null,null,null,null,null,null,""]
[null,null,null,null,null,null,null,null,null,null,null,null,""]
[null,null,null,null,null,null,null,null,null,null,null,null,""]
[null,null,null,null,null,null,null,null,null,null,null,null,""]
[null,null,null,null,null,null,null,null,null,null,null,null,""]
[null,null,null,null,null,null,null,null,null,null,null,null,""]
[null,null,null,null,null,null,null,null,null,null,null,null,""]
[null,null,null,null,null,null,null,null,null,null,null,null,""]
[null,null,null,null,null,null,null,null,null,null,null,null,""]
[null,null,null,null,null,null,null,null,null,null,null,null,""]
[null,null,null,null,null,null,null,null,null,null,null,null,""]
[null,null,null,null,null,null,null,null,null,null,null,null,""]
[null,null,null,null,null,null,null,null,null,null,null,null,""]
[null,null,null,null,null,null,null,null,null,null,null,null,""]
[null,null,null,null,null,null,null,null,null,null,null,null,""]
[null,null,null,null,null,null,null,null,null,null,null,null,""]
[null,null,null,null,null,null,null,null,null,null,null,null,""]
[null,null,null,null,null,null,null,null,null,null,null,null,""]
[null,null,null,null,null,null,null,null,null,null,null,null,""]
[null,null,null,null,null,null,null,null,null,null,null,null,""]
[null,null,null,null,null,null,null,null,null,null,null,null,""]
[null,null,null,null,null,null,null,null,null,null,null,null,""]
[null,null,null,null,null,null,null,null,null,null,null,null,""]
[null,null,null,null,null,null,null,null,null,null,null,null,""]
[null,null,null,null,null,null,null,null,null,null,null,null,""]
[null,null,null,null,null,null,null,null,null,null,null,null,""]
[null,null,null,null,null,null,null,null,null,null,null,null,""]
[null,null,null,null,null,null,null,null,null,null,null,null,""]
[null,null,null,null,null,null,null,null,null,null,null,null,""]
[null,null,null,null,null,null,null,null,null,null,null,null,""]
[null,null,null,null,null,null,null,null,null,null,null,null,""]
[null,null,null,null,null,null,null,null,null,null,null,null,""]
[null,null,null,null,null,null,null,null,null,null,null,null,""]
[null,null,null,null,null,null,null,null,null,null,null,null,""]
[null,null,null,null,null,null,null,null,null,null,null,null,""]
[null,null,null,null,null,null,null,null,null,null,null,null,""]
[null,null,null,null,null,null,null,null,null,null,null,null,""]
[null,null,null,null,null,null,null,null,null,null,null,null,""]
[null,null,null,null,null,null,null,null,null,null,null,null,""]
[null,null,null,null,null,null,null,null,null,null,null,null,""]
[null,null,null,null,null,null,null,null,null,null,null,null,""]
[null,null,null,null,null,null,null,null,null,null,null,null,""]
[null,null,null,null,null,null,null,null,null,null,null,null,""]
[null,null,null,null,null,null,null,null,null,null,null,null,""]
[null,null,null,null,null,null,null,null,null,null,null,null,""]
[null,null,null,null,null,null,null,null,null,null,null,null,""]
[null,null,null,null,null,null,null,null,null,null,null,null,""]
[null,null,null,null,null,null,null,null,null,null,null,null,{"$f":"IF(J2035=\"\",\"\",IF(L2035<>\"\",\"OK\",IF(AND(K2035<>\"\",K2035<TODAY()),\"Retard\",\"Attente de Livraison\")))","v":""}]
[null,null,null,null,null,null,null,null,null,null,null,null,""]
[null,null,null,null,null,null,null,null,null,null,null,null,""]
[null,null,null,null,null,null,null,null,null,null,null,null,""]
[null,null,null,null,null,null,null,null,null,null,null,null,""]
[null,null,null,null,null,null,null,null,null,null,null,null,""]
[null,null,null,null,null,null,null,null,null,null,null,null,""]
[null,null,null,null,null,null,null,null,null,null,null,null,""]
[null,null,null,null,null,null,null,null,null,null,null,null,""]
[null,null,null,null,null,null,null,null,null,null,null,null,""]
[null,null,null,null,null,null,null,null,null,null,null,null,""]
[null,null,null,null,null,null,null,null,null,null,null,null,""]
[null,null,null,null,null,null,null,null,null,null,null,null,""]
[null,null,null,null,null,null,null,null,null,null,null,null,""]
[null,null,null,null,null,null,null,null,null,null,null,null,""]
[null,null,null,null,null,null,null,null,null,null,null,null,""]
[null,null,null,null,null,null,null,null,null,null,null,null,""]
[null,null,null,null,null,null,null,null,null,null,null,null,""]
[null,null,null,null,null,null,null,null,null,null,null,null,""]
[null,null,null,null,null,null,null,null,null,null,null,null,""]
[null,null,null,null,null,null,null,null,null,null,null,null,""]
[null,null,null,null,null,null,null,null,null,null,null,null,""]
[null,null,null,null,null,null,null,null,null,null,null,null,""]
[null,null,null,null,null,null,null,null,null,null,null,null,""]
[null,null,null,null,null,null,null,null,null,null,null,null,""]
[null,null,null,null,null,null,null,null,null,null,null,null,""]
[null,null,null,null,null,null,null,null,null,null,null,null,""]
[null,null,null,null,null,null,null,null,null,null,null,null,""]
[null,null,null,null,null,null,null,null,null,null,null,null,""]
[null,null,null,null,null,null,null,null,null,null,null,null,""]
[null,null,null,null,null,null,null,null,null,null,null,null,""]
[null,null,null,null,null,null,null,null,null,null,null,null,""]
[null,null,null,null,null,null,null,null,null,null,null,null,""]
[null,null,null,null,null,null,null,null,null,null,null,null,""]
[null,null,null,null,null,null,null,null,null,null,null,null,""]
[null,null,null,null,null,null,null,null,null,null,null,null,""]
[null,null,null,null,null,null,null,null,null,null,null,null,""]
[null,null,null,null,null,null,null,null,null,null,null,null,""]
[null,null,null,null,null,null,null,null,null,null,null,null,""]
[null,null,null,null,null,null,null,null,null,null,null,null,""]
[null,null,null,null,null,null,null,null,null,null,null,null,""]
[null,null,null,null,null,null,null,null,null,null,null,null,""]
[null,null,null,null,null,null,null,null,null,null,null,null,""]
[null,null,null,null,null,null,null,null,null,null,null,null,""]
[null,null,null,null,null,null,null,null,null,null,null,null,""]
[null,null,null,null,null,null,null,null,null,null,null,null,""]
[null,null,null,null,null,null,null,null,null,null,null,null,""]
[null,null,null,null,null,null,null,null,null,null,null,null,""]
[null,null,null,null,null,null,null,null,null,null,null,null,""]
[null,null,null,null,null,null,null,null,null,null,null,null,""]
[null,null,null,null,null,null,null,null,null,null,null,null,""]
[null,null,null,null,null,null,null,null,null,null,null,null,""]
[null,null,null,null,null,null,null,null,null,null,null,null,""]
[null,null,null,null,null,null,null,null,null,null,null,null,""]
[null,null,null,null,null,null,null,null,null,null,null,null,""]
[null,null,null,null,null,null,null,null,null,null,null,null,""]
[null,null,null,null,null,null,null,null,null,null,null,null,""]
[null,null,null,null,null,null,null,null,null,null,null,null,""]
[null,null,null,null,null,null,null,null,null,null,null,null,""]
[null,null,null,null,null,null,null,null,null,null,null,null,""]
[null,null,null,null,null,null,null,null,null,null,null,null,""]
[null,null,null,null,null,null,null,null,null,null,null,null,""]
[null,null,null,null,null,null,null,null,null,null,null,null,""]
[null,null,null,null,null,null,null,null,null,null,null,null,""]
[null,null,null,null,null,null,null,null,null,null,null,null,{"$f":"IF(J2099=\"\",\"\",IF(L2099<>\"\",\"OK\",IF(AND(K2099<>\"\",K2099<TODAY()),\"Retard\",\"Attente de Livraison\")))","v":""}]
[null,null,null,null,null,null,null,null,null,null,null,null,""]
[null,null,null,null,null,null,null,null,null,null,null,null,""]
[null,null,null,null,null,null,null,null,null,null,null,null,""]
[null,null,null,null,null,null,null,null,null,null,null,null,""]
[null,null,null,null,null,null,null,null,null,null,null,null,""]
[null,null,null,null,null,null,null,null,null,null,null,null,""]
[null,null,null,null,null,null,null,null,null,null,null,null,""]
[null,null,null,null,null,null,null,null,null,null,null,null,""]
[null,null,null,null,null,null,null,null,null,null,null,null,""]
[null,null,null,null,null,null,null,null,null,null,null,null,""]
[null,null,null,null,null,null,null,null,null,null,null,null,""]
[null,null,null,null,null,null,null,null,null,null,null,null,""]
[null,null,null,null,null,null,null,null,null,null,null,null,""]
[null,null,null,null,null,null,null,null,null,null,null,null,""]
[null,null,null,null,null,null,null,null,null,null,null,null,""]
[null,null,null,null,null,null,null,null,null,null,null,null,""]
[null,null,null,null,null,null,null,null,null,null,null,null,""]
[null,null,null,null,null,null,null,null,null,null,null,null,""]
[null,null,null,null,null,null,null,null,null,null,null,null,""]
[null,null,null,null,null,null,null,null,null,null,null,null,""]
[null,null,null,null,null,null,null,null,null,null,null,null,""]
[null,null,null,null,null,null,null,null,null,null,null,null,""]
[null,null,null,null,null,null,null,null,null,null,null,null,""]
[null,null,null,null,null,null,null,null,null,null,null,null,""]
[null,null,null,null,null,null,null,null,null,null,null,null,""]
[null,null,null,null,null,null,null,null,null,null,null,null,""]
[null,null,null,null,null,null,null,null,null,null,null,null,""]
[null,null,null,null,null,null,null,null,null,null,null,null,""]
[null,null,null,null,null,null,null,null,null,null,null,null,""]
[null,null,null,null,null,null,null,null,null,null,null,null,""]
[null,null,null,null,null,null,null,null,null,null,null,null,""]
[null,null,null,null,null,null,null,null,null,null,null,null,""]
[null,null,null,null,null,null,null,null,null,null,null,null,""]
[null,null,null,null,null,null,null,null,null,null,null,null,""]
[null,null,null,null,null,null,null,null,null,null,null,null,""]
[null,null,null,null,null,null,null,null,null,null,null,null,""]
[null,null,null,null,null,null,null,null,null,null,null,null,""]
[null,null,null,null,null,null,null,null,null,null,null,null,""]
[null,null,null,null,null,null,null,null,null,null,null,null,""]
[null,null,null,null,null,null,null,null,null,null,null,null,""]
[null,null,null,null,null,null,null,null,null,null,null,null,""]
[null,null,null,null,null,null,null,null,null,null,null,null,""]
[null,null,null,null,null,null,null,null,null,null,null,null,""]
[null,null,null,null,null,null,null,null,null,null,null,null,""]
[null,null,null,null,null,null,null,null,null,null,null,null,""]
[null,null,null,null,null,null,null,null,null,null,null,null,""]
[null,null,null,null,null,null,null,null,null,null,null,null,""]
[null,null,null,null,null,null,null,null,null,null,null,null,""]
[null,null,null,null,null,null,null,null,null,null,null,null,""]
[null,null,null,null,null,null,null,null,null,null,null,null,""]
[null,null,null,null,null,null,null,null,null,null,null,null,""]
[null,null,null,null,null,null,null,null,null,null,null,null,""]
[null,null,null,null,null,null,null,null,null,null,null,null,""]
[null,null,null,null,null,null,null,null,null,null,null,null,""]
[null,null,null,null,null,null,null,null,null,null,null,null,""]
[null,null,null,null,null,null,null,null,null,null,null,null,""]
[null,null,null,null,null,null,null,null,null,null,null,null,""]
[null,null,null,null,null,null,null,null,null,null,null,null,""]
[null,null,null,null,null,null,null,null,null,null,null,null,""]
[null,null,null,null,null,null,null,null,null,null,null,null,""]
[null,null,null,null,null,null,null,null,null,null,null,null,""]
[null,null,null,null,null,null,null,null,null,null,null,null,""]
[null,null,null,null,null,null,null,null,null,null,null,null,""]
[null,null,null,null,null,null,null,null,null,null,null,null,{"$f":"IF(J2163=\"\",\"\",IF(L2163<>\"\",\"OK\",IF(AND(K2163<>\"\",K2163<TODAY()),\"Retard\",\"Attente de Livraison\")))","v":""}]
[null,null,null,null,null,null,null,null,null,null,null,null,""]
[null,null,null,null,null,null,null,null,null,null,null,null,""]
[null,null,null,null,null,null,null,null,null,null,null,null,""]
[null,null,null,null,null,null,null,null,null,null,null,null,""]
[null,null,null,null,null,null,null,null,null,null,null,null,""]
[null,null,null,null,null,null,null,null,null,null,null,null,""]
[null,null,null,null,null,null,null,null,null,null,null,null,""]
[null,null,null,null,null,null,null,null,null,null,null,null,""]
[null,null,null,null,null,null,null,null,null,null,null,null,""]
[null,null,null,null,null,null,null,null,null,null,null,null,""]
[null,null,null,null,null,null,null,null,null,null,null,null,""]
[null,null,null,null,null,null,null,null,null,null,null,null,""]
[null,null,null,null,null,null,null,null,null,null,null,null,""]
[null,null,null,null,null,null,null,null,null,null,null,null,""]
[null,null,null,null,null,null,null,null,null,null,null,null,""]
[null,null,null,null,null,null,null,null,null,null,null,null,""]
[null,null,null,null,null,null,null,null,null,null,null,null,""]
[null,null,null,null,null,null,null,null,null,null,null,null,""]
[null,null,null,null,null,null,null,null,null,null,null,null,""]
[null,null,null,null,null,null,null,null,null,null,null,null,""]
[null,null,null,null,null,null,null,null,null,null,null,null,""]
[null,null,null,null,null,null,null,null,null,null,null,null,""]
[null,null,null,null,null,null,null,null,null,null,null,null,""]
[null,null,null,null,null,null,null,null,null,null,null,null,""]
[null,null,null,null,null,null,null,null,null,null,null,null,""]
[null,null,null,null,null,null,null,null,null,null,null,null,""]
[null,null,null,null,null,null,null,null,null,null,null,null,""]
[null,null,null,null,null,null,null,null,null,null,null,null,""]
[null,null,null,null,null,null,null,null,null,null,null,null,""]
[null,null,null,null,null,null,null,null,null,null,null,null,""]
[null,null,null,null,null,null,null,null,null,null,null,null,""]
[null,null,null,null,null,null,null,null,null,null,null,null,""]
[null,null,null,null,null,null,null,null,null,null,null,null,""]
[null,null,null,null,null,null,null,null,null,null,null,null,""]
[null,null,null,null,null,null,null,null,null,null,null,null,""]
[null,null,null,null,null,null,null,null,null,null,null,null,""]
[null,null,null,null,null,null,null,null,null,null,null,null,""]
[null,null,null,null,null,null,null,null,null,null,null,null,""]
[null,null,null,null,null,null,null,null,null,null,null,null,""]
[null,null,null,null,null,null,null,null,null,null,null,null,""]
[null,null,null,null,null,null,null,null,null,null,null,null,""]
[null,null,null,null,null,null,null,null,null,null,null,null,""]
[null,null,null,null,null,null,null,null,null,null,null,null,""]
[null,null,null,null,null,null,null,null,null,null,null,null,""]
[null,null,null,null,null,null,null,null,null,null,null,null,""]
[null,null,null,null,null,null,null,null,null,null,null,null,""]
[null,null,null,null,null,null,null,null,null,null,null,null,""]
[null,null,null,null,null,null,null,null,null,null,null,null,""]
[null,null,null,null,null,null,null,null,null,null,null,null,""]
[null,null,null,null,null,null,null,null,null,null,null,null,""]
[null,null,null,null,null,null,null,null,null,null,null,null,""]
[null,null,null,null,null,null,null,null,null,null,null,null,""]
[null,null,null,null,null,null,null,null,null,null,null,null,""]
[null,null,null,null,null,null,null,null,null,null,null,null,""]
[null,null,null,null,null,null,null,null,null,null,null,null,""]
[null,null,null,null,null,null,null,null,null,null,null,null,""]
[null,null,null,null,null,null,null,null,null,null,null,null,""]
[null,null,null,null,null,null,null,null,null,null,null,null,""]
[null,null,null,null,null,null,null,null,null,null,null,null,""]
[null,null,null,null,null,null,null,null,null,null,null,null,""]
[null,null,null,null,null,null,null,null,null,null,null,null,""]
[null,null,null,null,null,null,null,null,null,null,null,null,""]
[null,null,null,null,null,null,null,null,null,null,null,null,""]
[null,null,null,null,null,null,null,null,null,null,null,null,{"$f":"IF(J2227=\"\",\"\",IF(L2227<>\"\",\"OK\",IF(AND(K2227<>\"\",K2227<TODAY()),\"Retard\",\"Attente de Livraison\")))","v":""}]
[null,null,null,null,null,null,null,null,null,null,null,null,""]
[null,null,null,null,null,null,null,null,null,null,null,null,""]
[null,null,null,null,null,null,null,null,null,null,null,null,""]
[null,null,null,null,null,null,null,null,null,null,null,null,""]
[null,null,null,null,null,null,null,null,null,null,null,null,""]
[null,null,null,null,null,null,null,null,null,null,null,null,""]
[null,null,null,null,null,null,null,null,null,null,null,null,""]
[null,null,null,null,null,null,null,null,null,null,null,null,""]
[null,null,null,null,null,null,null,null,null,null,null,null,""]
[null,null,null,null,null,null,null,null,null,null,null,null,""]
[null,null,null,null,null,null,null,null,null,null,null,null,""]
[null,null,null,null,null,null,null,null,null,null,null,null,""]
[null,null,null,null,null,null,null,null,null,null,null,null,""]
[null,null,null,null,null,null,null,null,null,null,null,null,""]
[null,null,null,null,null,null,null,null,null,null,null,null,""]
[null,null,null,null,null,null,null,null,null,null,null,null,""]
[null,null,null,null,null,null,null,null,null,null,null,null,""]
[null,null,null,null,null,null,null,null,null,null,null,null,""]
[null,null,null,null,null,null,null,null,null,null,null,null,""]
[null,null,null,null,null,null,null,null,null,null,null,null,""]
[null,null,null,null,null,null,null,null,null,null,null,null,""]
[null,null,null,null,null,null,null,null,null,null,null,null,""]
[null,null,null,null,null,null,null,null,null,null,null,null,""]
[null,null,null,null,null,null,null,null,null,null,null,null,""]
[null,null,null,null,null,null,null,null,null,null,null,null,""]
[null,null,null,null,null,null,null,null,null,null,null,null,""]
[null,null,null,null,null,null,null,null,null,null,null,null,""]
[null,null,null,null,null,null,null,null,null,null,null,null,""]
[null,null,null,null,null,null,null,null,null,null,null,null,""]
[null,null,null,null,null,null,null,null,null,null,null,null,""]
[null,null,null,null,null,null,null,null,null,null,null,null,""]
[null,null,null,null,null,null,null,null,null,null,null,null,""]
[null,null,null,null,null,null,null,null,null,null,null,null,""]
[null,null,null,null,null,null,null,null,null,null,null,null,""]
[null,null,null,null,null,null,null,null,null,null,null,null,""]
[null,null,null,null,null,null,null,null,null,null,null,null,""]
[null,null,null,null,null,null,null,null,null,null,null,null,""]
[null,null,null,null,null,null,null,null,null,null,null,null,""]
[null,null,null,null,null,null,null,null,null,null,null,null,""]
[null,null,null,null,null,null,null,null,null,null,null,null,""]
[null,null,null,null,null,null,null,null,null,null,null,null,""]
[null,null,null,null,null,null,null,null,null,null,null,null,""]
[null,null,null,null,null,null,null,null,null,null,null,null,""]
[null,null,null,null,null,null,null,null,null,null,null,null,""]
[null,null,null,null,null,null,null,null,null,null,null,null,""]
[null,null,null,null,null,null,null,null,null,null,null,null,""]
[null,null,null,null,null,null,null,null,null,null,null,null,""]
[null,null,null,null,null,null,null,null,null,null,null,null,""]
[null,null,null,null,null,null,null,null,null,null,null,null,""]
[null,null,null,null,null,null,null,null,null,null,null,null,""]
[null,null,null,null,null,null,null,null,null,null,null,null,""]
[null,null,null,null,null,null,null,null,null,null,null,null,""]
[null,null,null,null,null,null,null,null,null,null,null,null,""]
[null,null,null,null,null,null,null,null,null,null,null,null,""]
[null,null,null,null,null,null,null,null,null,null,null,null,""]
[null,null,null,null,null,null,null,null,null,null,null,null,""]
[null,null,null,null,null,null,null,null,null,null,null,null,""]
[null,null,null,null,null,null,null,null,null,null,null,null,""]
[null,null,null,null,null,null,null,null,null,null,null,null,""]
[null,null,null,null,null,null,null,null,null,null,null,null,""]
[null,null,null,null,null,null,null,null,null,null,null,null,""]
[null,null,null,null,null,null,null,null,null,null,null,null,""]
[null,null,null,null,null,null,null,null,null,null,null,null,""]
[null,null,null,null,null,null,null,null,null,null,null,null,{"$f":"IF(J2291=\"\",\"\",IF(L2291<>\"\",\"OK\",IF(AND(K2291<>\"\",K2291<TODAY()),\"Retard\",\"Attente de Livraison\")))","v":""}]
[null,null,null,null,null,null,null,null,null,null,null,null,""]
[null,null,null,null,null,null,null,null,null,null,null,null,""]
[null,null,null,null,null,null,null,null,null,null,null,null,""]
[null,null,null,null,null,null,null,null,null,null,null,null,""]
[null,null,null,null,null,null,null,null,null,null,null,null,""]
[null,null,null,null,null,null,null,null,null,null,null,null,""]
[null,null,null,null,null,null,null,null,null,null,null,null,""]
[null,null,null,null,null,null,null,null,null,null,null,null,""]
[null,null,null,null,null,null,null,null,null,null,null,null,""]
[null,null,null,null,null,null,null,null,null,null,null,null,""]
[null,null,null,null,null,null,null,null,null,null,null,null,""]
[null,null,null,null,null,null,null,null,null,null,null,null,""]
[null,null,null,null,null,null,null,null,null,null,null,null,""]
[null,null,null,null,null,null,null,null,null,null,null,null,""]
[null,null,null,null,null,null,null,null,null,null,null,null,""]
[null,null,null,null,null,null,null,null,null,null,null,null,""]
[null,null,null,null,null,null,null,null,null,null,null,null,""]
[null,null,null,null,null,null,null,null,null,null,null,null,""]
[null,null,null,null,null,null,null,null,null,null,null,null,""]
[null,null,null,null,null,null,null,null,null,null,null,null,""]
[null,null,null,null,null,null,null,null,null,null,null,null,""]
[null,null,null,null,null,null,null,null,null,null,null,null,""]
[null,null,null,null,null,null,null,null,null,null,null,null,""]
[null,null,null,null,null,null,null,null,null,null,null,null,""]
[null,null,null,null,null,null,null,null,null,null,null,null,""]
[null,null,null,null,null,null,null,null,null,null,null,null,""]
[null,null,null,null,null,null,null,null,null,null,null,null,""]
[null,null,null,null,null,null,null,null,null,null,null,null,""]
[null,null,null,null,null,null,null,null,null,null,null,null,""]
[null,null,null,null,null,null,null,null,null,null,null,null,""]
[null,null,null,null,null,null,null,null,null,null,null,null,""]
[null,null,null,null,null,null,null,null,null,null,null,null,""]
[null,null,null,null,null,null,null,null,null,null,null,null,""]
[null,null,null,null,null,null,null,null,null,null,null,null,""]
[null,null,null,null,null,null,null,null,null,null,null,null,""]
[null,null,null,null,null,null,null,null,null,null,null,null,""]
[null,null,null,null,null,null,null,null,null,null,null,null,""]
[null,null,null,null,null,null,null,null,null,null,null,null,""]
[null,null,null,null,null,null,null,null,null,null,null,null,""]
[null,null,null,null,null,null,null,null,null,null,null,null,""]
[null,null,null,null,null,null,null,null,null,null,null,null,""]
[null,null,null,null,null,null,null,null,null,null,null,null,""]
[null,null,null,null,null,null,null,null,null,null,null,null,""]
[null,null,null,null,null,null,null,null,null,null,null,null,""]
[null,null,null,null,null,null,null,null,null,null,null,null,""]
[null,null,null,null,null,null,null,null,null,null,null,null,""]
[null,null,null,null,null,null,null,null,null,null,null,null,""]
[null,null,null,null,null,null,null,null,null,null,null,null,""]
[null,null,null,null,null,null,null,null,null,null,null,null,""]
[null,null,null,null,null,null,null,null,null,null,null,null,""]
[null,null,null,null,null,null,null,null,null,null,null,null,""]
[null,null,null,null,null,null,null,null,null,null,null,null,""]
[null,null,null,null,null,null,null,null,null,null,null,null,""]
[null,null,null,null,null,null,null,null,null,null,null,null,""]
[null,null,null,null,null,null,null,null,null,null,null,null,""]
[null,null,null,null,null,null,null,null,null,null,null,null,""]
[null,null,null,null,null,null,null,null,null,null,null,null,""]
[null,null,null,null,null,null,null,null,null,null,null,null,""]
[null,null,null,null,null,null,null,null,null,null,null,null,""]
[null,null,null,null,null,null,null,null,null,null,null,null,""]
[null,null,null,null,null,null,null,null,null,null,null,null,""]
[null,null,null,null,null,null,null,null,null,null,null,null,""]
[null,null,null,null,null,null,null,null,null,null,null,null,""]
[null,null,null,null,null,null,null,null,null,null,null,null,{"$f":"IF(J2355=\"\",\"\",IF(L2355<>\"\",\"OK\",IF(AND(K2355<>\"\",K2355<TODAY()),\"Retard\",\"Attente de Livraison\")))","v":""}]
[null,null,null,null,null,null,null,null,null,null,null,null,""]
[null,null,null,null,null,null,null,null,null,null,null,null,""]
[null,null,null,null,null,null,null,null,null,null,null,null,""]
[null,null,null,null,null,null,null,null,null,null,null,null,""]
[null,null,null,null,null,null,null,null,null,null,null,null,""]
[null,null,null,null,null,null,null,null,null,null,null,null,""]
[null,null,null,null,null,null,null,null,null,null,null,null,""]
[null,null,null,null,null,null,null,null,null,null,null,null,""]
[null,null,null,null,null,null,null,null,null,null,null,null,""]
[null,null,null,null,null,null,null,null,null,null,null,null,""]
[null,null,null,null,null,null,null,null,null,null,null,null,""]
[null,null,null,null,null,null,null,null,null,null,null,null,""]
[null,null,null,null,null,null,null,null,null,null,null,null,""]
[null,null,null,null,null,null,null,null,null,null,null,null,""]
[null,null,null,null,null,null,null,null,null,null,null,null,""]
[null,null,null,null,null,null,null,null,null,null,null,null,""]
[null,null,null,null,null,null,null,null,null,null,null,null,""]
[null,null,null,null,null,null,null,null,null,null,null,null,""]
[null,null,null,null,null,null,null,null,null,null,null,null,""]
[null,null,null,null,null,null,null,null,null,null,null,null,""]
[null,null,null,null,null,null,null,null,null,null,null,null,""]
[null,null,null,null,null,null,null,null,null,null,null,null,""]
[null,null,null,null,null,null,null,null,null,null,null,null,""]
[null,null,null,null,null,null,null,null,null,null,null,null,""]
[null,null,null,null,null,null,null,null,null,null,null,null,""]
[null,null,null,null,null,null,null,null,null,null,null,null,""]
[null,null,null,null,null,null,null,null,null,null,null,null,""]
[null,null,null,null,null,null,null,null,null,null,null,null,""]
[null,null,null,null,null,null,null,null,null,null,null,null,""]
[null,null,null,null,null,null,null,null,null,null,null,null,""]
[null,null,null,null,null,null,null,null,null,null,null,null,""]
[null,null,null,null,null,null,null,null,null,null,null,null,""]
[null,null,null,null,null,null,null,null,null,null,null,null,""]
[null,null,null,null,null,null,null,null,null,null,null,null,""]
[null,null,null,null,null,null,null,null,null,null,null,null,""]
[null,null,null,null,null,null,null,null,null,null,null,null,""]
[null,null,null,null,null,null,null,null,null,null,null,null,""]
[null,null,null,null,null,null,null,null,null,null,null,null,""]
[null,null,null,null,null,null,null,null,null,null,null,null,""]
[null,null,null,null,null,null,null,null,null,null,null,null,""]
[null,null,null,null,null,null,null,null,null,null,null,null,""]
[null,null,null,null,null,null,null,null,null,null,null,null,""]
[null,null,null,null,null,null,null,null,null,null,null,null,""]
[null,null,null,null,null,null,null,null,null,null,null,null,""]
[null,null,null,null,null,null,null,null,null,null,null,null,""]
[null,null,null,null,null,null,null,null,null,null,null,null,""]
[null,null,null,null,null,null,null,null,null,null,null,null,""]
[null,null,null,null,null,null,null,null,null,null,null,null,""]
[null,null,null,null,null,null,null,null,null,null,null,null,""]
[null,null,null,null,null,null,null,null,null,null,null,null,""]
[null,null,null,null,null,null,null,null,null,null,null,null,""]
[null,null,null,null,null,null,null,null,null,null,null,null,""]
[null,null,null,null,null,null,null,null,null,null,null,null,""]
[null,null,null,null,null,null,null,null,null,null,null,null,""]
[null,null,null,null,null,null,null,null,null,null,null,null,""]
[null,null,null,null,null,null,null,null,null,null,null,null,""]
[null,null,null,null,null,null,null,null,null,null,null,null,""]
[null,null,null,null,null,null,null,null,null,null,null,null,""]
[null,null,null,null,null,null,null,null,null,null,null,null,""]
[null,null,null,null,null,null,null,null,null,null,null,null,""]
[null,null,null,null,null,null,null,null,null,null,null,null,""]
[null,null,null,null,null,null,null,null,null,null,null,null,""]
[null,null,null,null,null,null,null,null,null,null,null,null,""]
[null,null,null,null,null,null,null,null,null,null,null,null,{"$f":"IF(J2419=\"\",\"\",IF(L2419<>\"\",\"OK\",IF(AND(K2419<>\"\",K2419<TODAY()),\"Retard\",\"Attente de Livraison\")))","v":""}]
[null,null,null,null,null,null,null,null,null,null,null,null,""]
[null,null,null,null,null,null,null,null,null,null,null,null,""]
[null,null,null,null,null,null,null,null,null,null,null,null,""]
[null,null,null,null,null,null,null,null,null,null,null,null,""]
[null,null,null,null,null,null,null,null,null,null,null,null,""]
[null,null,null,null,null,null,null,null,null,null,null,null,""]
[null,null,null,null,null,null,null,null,null,null,null,null,""]
[null,null,null,null,null,null,null,null,null,null,null,null,""]
[null,null,null,null,null,null,null,null,null,null,null,null,""]
[null,null,null,null,null,null,null,null,null,null,null,null,""]
[null,null,null,null,null,null,null,null,null,null,null,null,""]
[null,null,null,null,null,null,null,null,null,null,null,null,""]
[null,null,null,null,null,null,null,null,null,null,null,null,""]
[null,null,null,null,null,null,null,null,null,null,null,null,""]
[null,null,null,null,null,null,null,null,null,null,null,null,""]
[null,null,null,null,null,null,null,null,null,null,null,null,""]
[null,null,null,null,null,null,null,null,null,null,null,null,""]
[null,null,null,null,null,null,null,null,null,null,null,null,""]
[null,null,null,null,null,null,null,null,null,null,null,null,""]
[null,null,null,null,null,null,null,null,null,null,null,null,""]
[null,null,null,null,null,null,null,null,null,null,null,null,""]
[null,null,null,null,null,null,null,null,null,null,null,null,""]
[null,null,null,null,null,null,null,null,null,null,null,null,""]
[null,null,null,null,null,null,null,null,null,null,null,null,""]
[null,null,null,null,null,null,null,null,null,null,null,null,""]
[null,null,null,null,null,null,null,null,null,null,null,null,""]
[null,null,null,null,null,null,null,null,null,null,null,null,""]
[null,null,null,null,null,null,null,null,null,null,null,null,""]
[null,null,null,null,null,null,null,null,null,null,null,null,""]
[null,null,null,null,null,null,null,null,null,null,null,null,""]
[null,null,null,null,null,null,null,null,null,null,null,null,""]
[null,null,null,null,null,null,null,null,null,null,null,null,""]
[null,null,null,null,null,null,null,null,null,null,null,null,""]
[null,null,null,null,null,null,null,null,null,null,null,null,""]
[null,null,null,null,null,null,null,null,null,null,null,null,""]
[null,null,null,null,null,null,null,null,null,null,null,null,""]
[null,null,null,null,null,null,null,null,null,null,null,null,""]
[null,null,null,null,null,null,null,null,null,null,null,null,""]
[null,null,null,null,null,null,null,null,null,null,null,null,""]
[null,null,null,null,null,null,null,null,null,null,null,null,""]
[null,null,null,null,null,null,null,null,null,null,null,null,""]
[null,null,null,null,null,null,null,null,null,null,null,null,""]
[null,null,null,null,null,null,null,null,null,null,null,null,""]
[null,null,null,null,null,null,null,null,null,null,null,null,""]
[null,null,null,null,null,null,null,null,null,null,null,null,""]
[null,null,null,null,null,null,null,null,null,null,null,null,""]
[null,null,null,null,null,null,null,null,null,null,null,null,""]
[null,null,null,null,null,null,null,null,null,null,null,null,""]
[null,null,null,null,null,null,null,null,null,null,null,null,""]
[null,null,null,null,null,null,null,null,null,null,null,null,""]
[null,null,null,null,null,null,null,null,null,null,null,null,""]
[null,null,null,null,null,null,null,null,null,null,null,null,""]
[null,null,null,null,null,null,null,null,null,null,null,null,""]
[null,null,null,null,null,null,null,null,null,null,null,null,""]
[null,null,null,null,null,null,null,null,null,null,null,null,""]
[null,null,null,null,null,null,null,null,null,null,null,null,""]
[null,null,null,null,null,null,null,null,null,null,null,null,""]
[null,null,null,null,null,null,null,null,null,null,null,null,""]
[null,null,null,null,null,null,null,null,null,null,null,null,""]
[null,null,null,null,null,null,null,null,null,null,null,null,""]
[null,null,null,null,null,null,null,null,null,null,null,null,""]
[null,null,null,null,null,null,null,null,null,null,null,null,""]
[null,null,null,null,null,null,null,null,null,null,null,null,""]
[null,null,null,null,null,null,null,null,null,null,null,null,{"$f":"IF(J2483=\"\",\"\",IF(L2483<>\"\",\"OK\",IF(AND(K2483<>\"\",K2483<TODAY()),\"Retard\",\"Attente de Livraison\")))","v":""}]
[null,null,null,null,null,null,null,null,null,null,null,null,""]
[null,null,null,null,null,null,null,null,null,null,null,null,""]
[null,null,null,null,null,null,null,null,null,null,null,null,""]
[null,null,null,null,null,null,null,null,null,null,null,null,""]
[null,null,null,null,null,null,null,null,null,null,null,null,""]
[null,null,null,null,null,null,null,null,null,null,null,null,""]
[null,null,null,null,null,null,null,null,null,null,null,null,""]
[null,null,null,null,null,null,null,null,null,null,null,null,""]
[null,null,null,null,null,null,null,null,null,null,null,null,""]
[null,null,null,null,null,null,null,null,null,null,null,null,""]
[null,null,null,null,null,null,null,null,null,null,null,null,""]
[null,null,null,null,null,null,null,null,null,null,null,null,""]
[null,null,null,null,null,null,null,null,null,null,null,null,""]
[null,null,null,null,null,null,null,null,null,null,null,null,""]
[null,null,null,null,null,null,null,null,null,null,null,null,""]
[null,null,null,null,null,null,null,null,null,null,null,null,""]
[null,null,null,null,null,null,null,null,null,null,null,null,""]
[null,null,null,null,null,null,null,null,null,null,null,null,""]
[null,null,null,null,null,null,null,null,null,null,null,null,""]
[null,null,null,null,null,null,null,null,null,null,null,null,""]
[null,null,null,null,null,null,null,null,null,null,null,null,""]
[null,null,null,null,null,null,null,null,null,null,null,null,""]
[null,null,null,null,null,null,null,null,null,null,null,null,""]
[null,null,null,null,null,null,null,null,null,null,null,null,""]
[null,null,null,null,null,null,null,null,null,null,null,null,""]
[null,null,null,null,null,null,null,null,null,null,null,null,""]
[null,null,null,null,null,null,null,null,null,null,null,null,""]
[null,null,null,null,null,null,null,null,null,null,null,null,""]
[null,null,null,null,null,null,null,null,null,null,null,null,""]
[null,null,null,null,null,null,null,null,null,null,null,null,""]
[null,null,null,null,null,null,null,null,null,null,null,null,""]
[null,null,null,null,null,null,null,null,null,null,null,null,""]
[null,null,null,null,null,null,null,null,null,null,null,null,""]
[null,null,null,null,null,null,null,null,null,null,null,null,""]
[null,null,null,null,null,null,null,null,null,null,null,null,""]
[null,null,null,null,null,null,null,null,null,null,null,null,""]
[null,null,null,null,null,null,null,null,null,null,null,null,""]
[null,null,null,null,null,null,null,null,null,null,null,null,""]
[null,null,null,null,null,null,null,null,null,null,null,null,""]
[null,null,null,null,null,null,null,null,null,null,null,null,""]
[null,null,null,null,null,null,null,null,null,null,null,null,""]
[null,null,null,null,null,null,null,null,null,null,null,null,""]
[null,null,null,null,null,null,null,null,null,null,null,null,""]
[null,null,null,null,null,null,null,null,null,null,null,null,""]
[null,null,null,null,null,null,null,null,null,null,null,null,""]
[null,null,null,null,null,null,null,null,null,null,null,null,""]
[null,null,null,null,null,null,null,null,null,null,null,null,""]
[null,null,null,null,null,null,null,null,null,null,null,null,""]
[null,null,null,null,null,null,null,null,null,null,null,null,""]
[null,null,null,null,null,null,null,null,null,null,null,null,""]
[null,null,null,null,null,null,null,null,null,null,null,null,""]
[null,null,null,null,null,null,null,null,null,null,null,null,""]
[null,null,null,null,null,null,null,null,null,null,null,null,""]
[null,null,null,null,null,null,null,null,null,null,null,null,""]
[null,null,null,null,null,null,null,null,null,null,null,null,""]
[null,null,null,null,null,null,null,null,null,null,null,null,""]
[null,null,null,null,null,null,null,null,null,null,null,null,""]
[null,null,null,null,null,null,null,null,null,null,null,null,""]
[null,null,null,null,null,null,null,null,null,null,null,null,""]
[null,null,null,null,null,null,null,null,null,null,null,null,""]
[null,null,null,null,null,null,null,null,null,null,null,null,""]
[null,null,null,null,null,null,null,null,null,null,null,null,""]
[null,null,null,null,null,null,null,null,null,null,null,null,""]
[null,null,null,null,null,null,null,null,null,null,null,null,{"$f":"IF(J2547=\"\",\"\",IF(L2547<>\"\",\"OK\",IF(AND(K2547<>\"\",K2547<TODAY()),\"Retard\",\"Attente de Livraison\")))","v":""}]
[null,null,null,null,null,null,null,null,null,null,null,null,""]
[null,null,null,null,null,null,null,null,null,null,null,null,""]
[null,null,null,null,null,null,null,null,null,null,null,null,""]
[null,null,null,null,null,null,null,null,null,null,null,null,""]
[null,null,null,null,null,null,null,null,null,null,null,null,""]
[null,null,null,null,null,null,null,null,null,null,null,null,""]
[null,null,null,null,null,null,null,null,null,null,null,null,""]
[null,null,null,null,null,null,null,null,null,null,null,null,""]
[null,null,null,null,null,null,null,null,null,null,null,null,""]
[null,null,null,null,null,null,null,null,null,null,null,null,""]
[null,null,null,null,null,null,null,null,null,null,null,null,""]
[null,null,null,null,null,null,null,null,null,null,null,null,""]
[null,null,null,null,null,null,null,null,null,null,null,null,""]
[null,null,null,null,null,null,null,null,null,null,null,null,""]
[null,null,null,null,null,null,null,null,null,null,null,null,""]
[null,null,null,null,null,null,null,null,null,null,null,null,""]
[null,null,null,null,null,null,null,null,null,null,null,null,""]
[null,null,null,null,null,null,null,null,null,null,null,null,""]
[null,null,null,null,null,null,null,null,null,null,null,null,""]
[null,null,null,null,null,null,null,null,null,null,null,null,""]
[null,null,null,null,null,null,null,null,null,null,null,null,""]
[null,null,null,null,null,null,null,null,null,null,null,null,""]
[null,null,null,null,null,null,null,null,null,null,null,null,""]
[null,null,null,null,null,null,null,null,null,null,null,null,""]
[null,null,null,null,null,null,null,null,null,null,null,null,""]
[null,null,null,null,null,null,null,null,null,null,null,null,""]
[null,null,null,null,null,null,null,null,null,null,null,null,""]
[null,null,null,null,null,null,null,null,null,null,null,null,""]
[null,null,null,null,null,null,null,null,null,null,null,null,""]
[null,null,null,null,null,null,null,null,null,null,null,null,""]
[null,null,null,null,null,null,null,null,null,null,null,null,""]
[null,null,null,null,null,null,null,null,null,null,null,null,""]
[null,null,null,null,null,null,null,null,null,null,null,null,""]
[null,null,null,null,null,null,null,null,null,null,null,null,""]
[null,null,null,null,null,null,null,null,null,null,null,null,""]
[null,null,null,null,null,null,null,null,null,null,null,null,""]
[null,null,null,null,null,null,null,null,null,null,null,null,""]
[null,null,null,null,null,null,null,null,null,null,null,null,""]
[null,null,null,null,null,null,null,null,null,null,null,null,""]
[null,null,null,null,null,null,null,null,null,null,null,null,""]
[null,null,null,null,null,null,null,null,null,null,null,null,""]
[null,null,null,null,null,null,null,null,null,null,null,null,""]
[null,null,null,null,null,null,null,null,null,null,null,null,""]
[null,null,null,null,null,null,null,null,null,null,null,null,""]
[null,null,null,null,null,null,null,null,null,null,null,null,""]
[null,null,null,null,null,null,null,null,null,null,null,null,""]
[null,null,null,null,null,null,null,null,null,null,null,null,""]
[null,null,null,null,null,null,null,null,null,null,null,null,""]
[null,null,null,null,null,null,null,null,null,null,null,null,""]
[null,null,null,null,null,null,null,null,null,null,null,null,""]
[null,null,null,null,null,null,null,null,null,null,null,null,""]
[null,null,null,null,null,null,null,null,null,null,null,null,""]
[null,null,null,null,null,null,null,null,null,null,null,null,""]
[null,null,null,null,null,null,null,null,null,null,null,null,""]
[null,null,null,null,null,null,null,null,null,null,null,null,""]
[null,null,null,null,null,null,null,null,null,null,null,null,""]
[null,null,null,null,null,null,null,null,null,null,null,null,""]
[null,null,null,null,null,null,null,null,null,null,null,null,""]
[null,null,null,null,null,null,null,null,null,null,null,null,""]
[null,null,null,null,null,null,null,null,null,null,null,null,""]
[null,null,null,null,null,null,null,null,null,null,null,null,""]
[null,null,null,null,null,null,null,null,null,null,null,null,""]
[null,null,null,null,null,null,null,null,null,null,null,null,""]
[null,null,null,null,null,null,null,null,null,null,null,null,{"$f":"IF(J2611=\"\",\"\",IF(L2611<>\"\",\"OK\",IF(AND(K2611<>\"\",K2611<TODAY()),\"Retard\",\"Attente de Livraison\")))","v":""}]
[null,null,null,null,null,null,null,null,null,null,null,null,""]
[null,null,null,null,null,null,null,null,null,null,null,null,""]
[null,null,null,null,null,null,null,null,null,null,null,null,""]
[null,null,null,null,null,null,null,null,null,null,null,null,""]
[null,null,null,null,null,null,null,null,null,null,null,null,""]
[null,null,null,null,null,null,null,null,null,null,null,null,""]
[null,null,null,null,null,null,null,null,null,null,null,null,""]
[null,null,null,null,null,null,null,null,null,null,null,null,""]
[null,null,null,null,null,null,null,null,null,null,null,null,""]
[null,null,null,null,null,null,null,null,null,null,null,null,""]
[null,null,null,null,null,null,null,null,null,null,null,null,""]
[null,null,null,null,null,null,null,null,null,null,null,null,""]
[null,null,null,null,null,null,null,null,null,null,null,null,""]
[null,null,null,null,null,null,null,null,null,null,null,null,""]
[null,null,null,null,null,null,null,null,null,null,null,null,""]
[null,null,null,null,null,null,null,null,null,null,null,null,""]
[null,null,null,null,null,null,null,null,null,null,null,null,""]
[null,null,null,null,null,null,null,null,null,null,null,null,""]
[null,null,null,null,null,null,null,null,null,null,null,null,""]
[null,null,null,null,null,null,null,null,null,null,null,null,""]
[null,null,null,null,null,null,null,null,null,null,null,null,""]
[null,null,null,null,null,null,null,null,null,null,null,null,""]
[null,null,null,null,null,null,null,null,null,null,null,null,""]
[null,null,null,null,null,null,null,null,null,null,null,null,""]
[null,null,null,null,null,null,null,null,null,null,null,null,""]
[null,null,null,null,null,null,null,null,null,null,null,null,""]
[null,null,null,null,null,null,null,null,null,null,null,null,""]
[null,null,null,null,null,null,null,null,null,null,null,null,""]
[null,null,null,null,null,null,null,null,null,null,null,null,""]
[null,null,null,null,null,null,null,null,null,null,null,null,""]
[null,null,null,null,null,null,null,null,null,null,null,null,""]
[null,null,null,null,null,null,null,null,null,null,null,null,""]
[null,null,null,null,null,null,null,null,null,null,null,null,""]
[null,null,null,null,null,null,null,null,null,null,null,null,""]
[null,null,null,null,null,null,null,null,null,null,null,null,""]
[null,null,null,null,null,null,null,null,null,null,null,null,""]
[null,null,null,null,null,null,null,null,null,null,null,null,""]
[null,null,null,null,null,null,null,null,null,null,null,null,""]
[null,null,null,null,null,null,null,null,null,null,null,null,""]
[null,null,null,null,null,null,null,null,null,null,null,null,""]
[null,null,null,null,null,null,null,null,null,null,null,null,""]
[null,null,null,null,null,null,null,null,null,null,null,null,""]
[null,null,null,null,null,null,null,null,null,null,null,null,""]
[null,null,null,null,null,null,null,null,null,null,null,null,""]
[null,null,null,null,null,null,null,null,null,null,null,null,""]
[null,null,null,null,null,null,null,null,null,null,null,null,""]
[null,null,null,null,null,null,null,null,null,null,null,null,""]
[null,null,null,null,null,null,null,null,null,null,null,null,""]
[null,null,null,null,null,null,null,null,null,null,null,null,""]
[null,null,null,null,null,null,null,null,null,null,null,null,""]
[null,null,null,null,null,null,null,null,null,null,null,null,""]
[null,null,null,null,null,null,null,null,null,null,null,null,""]
[null,null,null,null,null,null,null,null,null,null,null,null,""]
[null,null,null,null,null,null,null,null,null,null,null,null,""]
[null,null,null,null,null,null,null,null,null,null,null,null,""]
[null,null,null,null,null,null,null,null,null,null,null,null,""]
[null,null,null,null,null,null,null,null,null,null,null,null,""]
[null,null,null,null,null,null,null,null,null,null,null,null,""]
[null,null,null,null,null,null,null,null,null,null,null,null,""]
[null,null,null,null,null,null,null,null,null,null,null,null,""]
[null,null,null,null,null,null,null,null,null,null,null,null,""]
[null,null,null,null,null,null,null,null,null,null,null,null,""]
[null,null,null,null,null,null,null,null,null,null,null,null,""]
[null,null,null,null,null,null,null,null,null,null,null,null,{"$f":"IF(J2675=\"\",\"\",IF(L2675<>\"\",\"OK\",IF(AND(K2675<>\"\",K2675<TODAY()),\"Retard\",\"Attente de Livraison\")))","v":""}]
[null,null,null,null,null,null,null,null,null,null,null,null,""]
[null,null,null,null,null,null,null,null,null,null,null,null,""]
[null,null,null,null,null,null,null,null,null,null,null,null,""]
[null,null,null,null,null,null,null,null,null,null,null,null,""]
[null,null,null,null,null,null,null,null,null,null,null,null,""]
[null,null,null,null,null,null,null,null,null,null,null,null,""]
[null,null,null,null,null,null,null,null,null,null,null,null,""]
[null,null,null,null,null,null,null,null,null,null,null,null,""]
[null,null,null,null,null,null,null,null,null,null,null,null,""]
[null,null,null,null,null,null,null,null,null,null,null,null,""]
[null,null,null,null,null,null,null,null,null,null,null,null,""]
[null,null,null,null,null,null,null,null,null,null,null,null,""]
[null,null,null,null,null,null,null,null,null,null,null,null,""]
[null,null,null,null,null,null,null,null,null,null,null,null,""]
[null,null,null,null,null,null,null,null,null,null,null,null,""]
[null,null,null,null,null,null,null,null,null,null,null,null,""]
[null,null,null,null,null,null,null,null,null,null,null,null,""]
[null,null,null,null,null,null,null,null,null,null,null,null,""]
[null,null,null,null,null,null,null,null,null,null,null,null,""]
[null,null,null,null,null,null,null,null,null,null,null,null,""]
[null,null,null,null,null,null,null,null,null,null,null,null,""]
[null,null,null,null,null,null,null,null,null,null,null,null,""]
[null,null,null,null,null,null,null,null,null,null,null,null,""]
[null,null,null,null,null,null,null,null,null,null,null,null,""]
[null,null,null,null,null,null,null,null,null,null,null,null,""]
[null,null,null,null,null,null,null,null,null,null,null,null,""]
[null,null,null,null,null,null,null,null,null,null,null,null,""]
[null,null,null,null,null,null,null,null,null,null,null,null,""]
[null,null,null,null,null,null,null,null,null,null,null,null,""]
[null,null,null,null,null,null,null,null,null,null,null,null,""]
[null,null,null,null,null,null,null,null,null,null,null,null,""]
[null,null,null,null,null,null,null,null,null,null,null,null,""]
[null,null,null,null,null,null,null,null,null,null,null,null,""]
[null,null,null,null,null,null,null,null,null,null,null,null,""]
[null,null,null,null,null,null,null,null,null,null,null,null,""]
[null,null,null,null,null,null,null,null,null,null,null,null,""]
[null,null,null,null,null,null,null,null,null,null,null,null,""]
[null,null,null,null,null,null,null,null,null,null,null,null,""]
[null,null,null,null,null,null,null,null,null,null,null,null,""]
[null,null,null,null,null,null,null,null,null,null,null,null,""]
[null,null,null,null,null,null,null,null,null,null,null,null,""]
[null,null,null,null,null,null,null,null,null,null,null,null,""]
[null,null,null,null,null,null,null,null,null,null,null,null,""]
[null,null,null,null,null,null,null,null,null,null,null,null,""]
[null,null,null,null,null,null,null,null,null,null,null,null,""]
[null,null,null,null,null,null,null,null,null,null,null,null,""]
[null,null,null,null,null,null,null,null,null,null,null,null,""]
[null,null,null,null,null,null,null,null,null,null,null,null,""]
[null,null,null,null,null,null,null,null,null,null,null,null,""]
[null,null,null,null,null,null,null,null,null,null,null,null,""]
[null,null,null,null,null,null,null,null,null,null,null,null,""]
[null,null,null,null,null,null,null,null,null,null,null,null,""]
[null,null,null,null,null,null,null,null,null,null,null,null,""]
[null,null,null,null,null,null,null,null,null,null,null,null,""]
[null,null,null,null,null,null,null,null,null,null,null,null,""]
[null,null,null,null,null,null,null,null,null,null,null,null,""]
[null,null,null,null,null,null,null,null,null,null,null,null,""]
[null,null,null,null,null,null,null,null,null,null,null,null,""]
[null,null,null,null,null,null,null,null,null,null,null,null,""]
[null,null,null,null,null,null,null,null,null,null,null,null,""]
[null,null,null,null,null,null,null,null,null,null,null,null,""]
[null,null,null,null,null,null,null,null,null,null,null,null,""]
[null,null,null,null,null,null,null,null,null,null,null,null,""]
[null,null,null,null,null,null,null,null,null,null,null,null,{"$f":"IF(J2739=\"\",\"\",IF(L2739<>\"\",\"OK\",IF(AND(K2739<>\"\",K2739<TODAY()),\"Retard\",\"Attente de Livraison\")))","v":""}]
[null,null,null,null,null,null,null,null,null,null,null,null,""]
[null,null,null,null,null,null,null,null,null,null,null,null,""]
[null,null,null,null,null,null,null,null,null,null,null,null,""]
[null,null,null,null,null,null,null,null,null,null,null,null,""]
[null,null,null,null,null,null,null,null,null,null,null,null,""]
[null,null,null,null,null,null,null,null,null,null,null,null,""]
[null,null,null,null,null,null,null,null,null,null,null,null,""]
[null,null,null,null,null,null,null,null,null,null,null,null,""]
[null,null,null,null,null,null,null,null,null,null,null,null,""]
[null,null,null,null,null,null,null,null,null,null,null,null,""]
[null,null,null,null,null,null,null,null,null,null,null,null,""]
[null,null,null,null,null,null,null,null,null,null,null,null,""]
[null,null,null,null,null,null,null,null,null,null,null,null,""]
[null,null,null,null,null,null,null,null,null,null,null,null,""]
[null,null,null,null,null,null,null,null,null,null,null,null,""]
[null,null,null,null,null,null,null,null,null,null,null,null,""]
[null,null,null,null,null,null,null,null,null,null,null,null,""]
[null,null,null,null,null,null,null,null,null,null,null,null,""]
[null,null,null,null,null,null,null,null,null,null,null,null,""]
[null,null,null,null,null,null,null,null,null,null,null,null,""]
[null,null,null,null,null,null,null,null,null,null,null,null,""]
[null,null,null,null,null,null,null,null,null,null,null,null,""]
[null,null,null,null,null,null,null,null,null,null,null,null,""]
[null,null,null,null,null,null,null,null,null,null,null,null,""]
[null,null,null,null,null,null,null,null,null,null,null,null,""]
[null,null,null,null,null,null,null,null,null,null,null,null,""]
[null,null,null,null,null,null,null,null,null,null,null,null,""]
[null,null,null,null,null,null,null,null,null,null,null,null,""]
[null,null,null,null,null,null,null,null,null,null,null,null,""]
[null,null,null,null,null,null,null,null,null,null,null,null,""]
[null,null,null,null,null,null,null,null,null,null,null,null,""]
[null,null,null,null,null,null,null,null,null,null,null,null,""]
[null,null,null,null,null,null,null,null,null,null,null,null,""]
[null,null,null,null,null,null,null,null,null,null,null,null,""]
[null,null,null,null,null,null,null,null,null,null,null,null,""]
[null,null,null,null,null,null,null,null,null,null,null,null,""]
[null,null,null,null,null,null,null,null,null,null,null,null,""]
[null,null,null,null,null,null,null,null,null,null,null,null,""]
[null,null,null,null,null,null,null,null,null,null,null,null,""]
[null,null,null,null,null,null,null,null,null,null,null,null,""]
[null,null,null,null,null,null,null,null,null,null,null,null,""]
[null,null,null,null,null,null,null,null,null,null,null,null,""]
[null,null,null,null,null,null,null,null,null,null,null,null,""]
[null,null,null,null,null,null,null,null,null,null,null,null,""]
[null,null,null,null,null,null,null,null,null,null,null,null,""]
[null,null,null,null,null,null,null,null,null,null,null,null,""]
[null,null,null,null,null,null,null,null,null,null,null,null,""]
[null,null,null,null,null,null,null,null,null,null,null,null,""]
[null,null,null,null,null,null,null,null,null,null,null,null,""]
[null,null,null,null,null,null,null,null,null,null,null,null,""]
[null,null,null,null,null,null,null,null,null,null,null,null,""]
[null,null,null,null,null,null,null,null,null,null,null,null,""]
[null,null,null,null,null,null,null,null,null,null,null,null,""]
[null,null,null,null,null,null,null,null,null,null,null,null,""]
[null,null,null,null,null,null,null,null,null,null,null,null,""]
[null,null,null,null,null,null,null,null,null,null,null,null,""]
[null,null,null,null,null,null,null,null,null,null,null,null,""]
[null,null,null,null,null,null,null,null,null,null,null,null,""]
[null,null,null,null,null,null,null,null,null,null,null,null,""]
[null,null,null,null,null,null,null,null,null,null,null,null,""]
[null,null,null,null,null,null,null,null,null,null,null,null,""]
[null,null,null,null,null,null,null,null,null,null,null,null,""]
[null,null,null,null,null,null,null,null,null,null,null,null,""]
[null,null,null,null,null,null,null,null,null,null,null,null,{"$f":"IF(J2803=\"\",\"\",IF(L2803<>\"\",\"OK\",IF(AND(K2803<>\"\",K2803<TODAY()),\"Retard\",\"Attente de Livraison\")))","v":""}]
[null,null,null,null,null,null,null,null,null,null,null,null,""]
[null,null,null,null,null,null,null,null,null,null,null,null,""]
[null,null,null,null,null,null,null,null,null,null,null,null,""]
[null,null,null,null,null,null,null,null,null,null,null,null,""]
[null,null,null,null,null,null,null,null,null,null,null,null,""]
[null,null,null,null,null,null,null,null,null,null,null,null,""]
[null,null,null,null,null,null,null,null,null,null,null,null,""]
[null,null,null,null,null,null,null,null,null,null,null,null,""]
[null,null,null,null,null,null,null,null,null,null,null,null,""]
[null,null,null,null,null,null,null,null,null,null,null,null,""]
[null,null,null,null,null,null,null,null,null,null,null,null,""]
[null,null,null,null,null,null,null,null,null,null,null,null,""]
[null,null,null,null,null,null,null,null,null,null,null,null,""]
[null,null,null,null,null,null,null,null,null,null,null,null,""]
[null,null,null,null,null,null,null,null,null,null,null,null,""]
[null,null,null,null,null,null,null,null,null,null,null,null,""]
[null,null,null,null,null,null,null,null,null,null,null,null,""]
[null,null,null,null,null,null,null,null,null,null,null,null,""]
[null,null,null,null,null,null,null,null,null,null,null,null,""]
[null,null,null,null,null,null,null,null,null,null,null,null,""]
[null,null,null,null,null,null,null,null,null,null,null,null,""]
[null,null,null,null,null,null,null,null,null,null,null,null,""]
[null,null,null,null,null,null,null,null,null,null,null,null,""]
[null,null,null,null,null,null,null,null,null,null,null,null,""]
[null,null,null,null,null,null,null,null,null,null,null,null,""]
[null,null,null,null,null,null,null,null,null,null,null,null,""]
[null,null,null,null,null,null,null,null,null,null,null,null,""]
[null,null,null,null,null,null,null,null,null,null,null,null,""]
[null,null,null,null,null,null,null,null,null,null,null,null,""]
[null,null,null,null,null,null,null,null,null,null,null,null,""]
[null,null,null,null,null,null,null,null,null,null,null,null,""]
[null,null,null,null,null,null,null,null,null,null,null,null,""]
[null,null,null,null,null,null,null,null,null,null,null,null,""]
[null,null,null,null,null,null,null,null,null,null,null,null,""]
[null,null,null,null,null,null,null,null,null,null,null,null,""]
[null,null,null,null,null,null,null,null,null,null,null,null,""]
[null,null,null,null,null,null,null,null,null,null,null,null,""]
[null,null,null,null,null,null,null,null,null,null,null,null,""]
[null,null,null,null,null,null,null,null,null,null,null,null,""]
[null,null,null,null,null,null,null,null,null,null,null,null,""]
[null,null,null,null,null,null,null,null,null,null,null,null,""]
[null,null,null,null,null,null,null,null,null,null,null,null,""]
[null,null,null,null,null,null,null,null,null,null,null,null,""]
[null,null,null,null,null,null,null,null,null,null,null,null,""]
[null,null,null,null,null,null,null,null,null,null,null,null,""]
[null,null,null,null,null,null,null,null,null,null,null,null,""]
[null,null,null,null,null,null,null,null,null,null,null,null,""]
[null,null,null,null,null,null,null,null,null,null,null,null,""]
[null,null,null,null,null,null,null,null,null,null,null,null,""]
[null,null,null,null,null,null,null,null,null,null,null,null,""]
[null,null,null,null,null,null,null,null,null,null,null,null,""]
[null,null,null,null,null,null,null,null,null,null,null,null,""]
[null,null,null,null,null,null,null,null,null,null,null,null,""]
[null,null,null,null,null,null,null,null,null,null,null,null,""]
[null,null,null,null,null,null,null,null,null,null,null,null,""]
[null,null,null,null,null,null,null,null,null,null,null,null,""]
[null,null,null,null,null,null,null,null,null,null,null,null,""]
[null,null,null,null,null,null,null,null,null,null,null,null,""]
[null,null,null,null,null,null,null,null,null,null,null,null,""]
[null,null,null,null,null,null,null,null,null,null,null,null,""]
[null,null,null,null,null,null,null,null,null,null,null,null,""]
[null,null,null,null,null,null,null,null,null,null,null,null,""]
[null,null,null,null,null,null,null,null,null,null,null,null,""]
[null,null,null,null,null,null,null,null,null,null,null,null,{"$f":"IF(J2867=\"\",\"\",IF(L2867<>\"\",\"OK\",IF(AND(K2867<>\"\",K2867<TODAY()),\"Retard\",\"Attente de Livraison\")))","v":""}]
[null,null,null,null,null,null,null,null,null,null,null,null,""]
[null,null,null,null,null,null,null,null,null,null,null,null,""]
[null,null,null,null,null,null,null,null,null,null,null,null,""]
[null,null,null,null,null,null,null,null,null,null,null,null,""]
[null,null,null,null,null,null,null,null,null,null,null,null,""]
[null,null,null,null,null,null,null,null,null,null,null,null,""]
[null,null,null,null,null,null,null,null,null,null,null,null,""]
[null,null,null,null,null,null,null,null,null,null,null,null,""]
[null,null,null,null,null,null,null,null,null,null,null,null,""]
[null,null,null,null,null,null,null,null,null,null,null,null,""]
[null,null,null,null,null,null,null,null,null,null,null,null,""]
[null,null,null,null,null,null,null,null,null,null,null,null,""]
[null,null,null,null,null,null,null,null,null,null,null,null,""]
[null,null,null,null,null,null,null,null,null,null,null,null,""]
[null,null,null,null,null,null,null,null,null,null,null,null,""]
[null,null,null,null,null,null,null,null,null,null,null,null,""]
[null,null,null,null,null,null,null,null,null,null,null,null,""]
[null,null,null,null,null,null,null,null,null,null,null,null,""]
[null,null,null,null,null,null,null,null,null,null,null,null,""]
[null,null,null,null,null,null,null,null,null,null,null,null,""]
[null,null,null,null,null,null,null,null,null,null,null,null,""]
[null,null,null,null,null,null,null,null,null,null,null,null,""]
[null,null,null,null,null,null,null,null,null,null,null,null,""]
[null,null,null,null,null,null,null,null,null,null,null,null,""]
[null,null,null,null,null,null,null,null,null,null,null,null,""]
[null,null,null,null,null,null,null,null,null,null,null,null,""]
[null,null,null,null,null,null,null,null,null,null,null,null,""]
[null,null,null,null,null,null,null,null,null,null,null,null,""]
[null,null,null,null,null,null,null,null,null,null,null,null,""]
[null,null,null,null,null,null,null,null,null,null,null,null,""]
[null,null,null,null,null,null,null,null,null,null,null,null,""]
[null,null,null,null,null,null,null,null,null,null,null,null,""]
[null,null,null,null,null,null,null,null,null,null,null,null,""]
[null,null,null,null,null,null,null,null,null,null,null,null,""]
[null,null,null,null,null,null,null,null,null,null,null,null,""]
[null,null,null,null,null,null,null,null,null,null,null,null,""]
[null,null,null,null,null,null,null,null,null,null,null,null,""]
[null,null,null,null,null,null,null,null,null,null,null,null,""]
[null,null,null,null,null,null,null,null,null,null,null,null,""]
[null,null,null,null,null,null,null,null,null,null,null,null,""]
[null,null,null,null,null,null,null,null,null,null,null,null,""]
[null,null,null,null,null,null,null,null,null,null,null,null,""]
[null,null,null,null,null,null,null,null,null,null,null,null,""]
[null,null,null,null,null,null,null,null,null,null,null,null,""]
[null,null,null,null,null,null,null,null,null,null,null,null,""]
[null,null,null,null,null,null,null,null,null,null,null,null,""]
[null,null,null,null,null,null,null,null,null,null,null,null,""]
[null,null,null,null,null,null,null,null,null,null,null,null,""]
[null,null,null,null,null,null,null,null,null,null,null,null,""]
[null,null,null,null,null,null,null,null,null,null,null,null,""]
[null,null,null,null,null,null,null,null,null,null,null,null,""]
[null,null,null,null,null,null,null,null,null,null,null,null,""]
[null,null,null,null,null,null,null,null,null,null,null,null,""]
[null,null,null,null,null,null,null,null,null,null,null,null,""]
[null,null,null,null,null,null,null,null,null,null,null,null,""]
[null,null,null,null,null,null,null,null,null,null,null,null,""]
[null,null,null,null,null,null,null,null,null,null,null,null,""]
[null,null,null,null,null,null,null,null,null,null,null,null,""]
[null,null,null,null,null,null,null,null,null,null,null,null,""]
[null,null,null,null,null,null,null,null,null,null,null,null,""]
[null,null,null,null,null,null,null,null,null,null,null,null,""]
[null,null,null,null,null,null,null,null,null,null,null,null,""]
[null,null,null,null,null,null,null,null,null,null,null,null,""]
[null,null,null,null,null,null,null,null,null,null,null,null,{"$f":"IF(J2931=\"\",\"\",IF(L2931<>\"\",\"OK\",IF(AND(K2931<>\"\",K2931<TODAY()),\"Retard\",\"Attente de Livraison\")))","v":""}]
[null,null,null,null,null,null,null,null,null,null,null,null,""]
[null,null,null,null,null,null,null,null,null,null,null,null,""]
[null,null,null,null,null,null,null,null,null,null,null,null,""]
[null,null,null,null,null,null,null,null,null,null,null,null,""]
[null,null,null,null,null,null,null,null,null,null,null,null,""]
[null,null,null,null,null,null,null,null,null,null,null,null,""]
[null,null,null,null,null,null,null,null,null,null,null,null,""]
[null,null,null,null,null,null,null,null,null,null,null,null,""]
[null,null,null,null,null,null,null,null,null,null,null,null,""]
[null,null,null,null,null,null,null,null,null,null,null,null,""]
[null,null,null,null,null,null,null,null,null,null,null,null,""]
[null,null,null,null,null,null,null,null,null,null,null,null,""]
[null,null,null,null,null,null,null,null,null,null,null,null,""]
[null,null,null,null,null,null,null,null,null,null,null,null,""]
[null,null,null,null,null,null,null,null,null,null,null,null,""]
[null,null,null,null,null,null,null,null,null,null,null,null,""]
[null,null,null,null,null,null,null,null,null,null,null,null,""]
[null,null,null,null,null,null,null,null,null,null,null,null,""]
[null,null,null,null,null,null,null,null,null,null,null,null,""]
[null,null,null,null,null,null,null,null,null,null,null,null,""]
[null,null,null,null,null,null,null,null,null,null,null,null,""]
[null,null,null,null,null,null,null,null,null,null,null,null,""]
[null,null,null,null,null,null,null,null,null,null,null,null,""]
[null,null,null,null,null,null,null,null,null,null,null,null,""]
[null,null,null,null,null,null,null,null,null,null,null,null,""]
[null,null,null,null,null,null,null,null,null,null,null,null,""]
[null,null,null,null,null,null,null,null,null,null,null,null,""]
[null,null,null,null,null,null,null,null,null,null,null,null,""]
[null,null,null,null,null,null,null,null,null,null,null,null,""]
[null,null,null,null,null,null,null,null,null,null,null,null,""]
[null,null,null,null,null,null,null,null,null,null,null,null,""]
[null,null,null,null,null,null,null,null,null,null,null,null,""]
[null,null,null,null,null,null,null,null,null,null,null,null,""]
[null,null,null,null,null,null,null,null,null,null,null,null,""]
[null,null,null,null,null,null,null,null,null,null,null,null,""]
[null,null,null,null,null,null,null,null,null,null,null,null,""]
[null,null,null,null,null,null,null,null,null,null,null,null,""]
[null,null,null,null,null,null,null,null,null,null,null,null,""]
[null,null,null,null,null,null,null,null,null,null,null,null,""]
[null,null,null,null,null,null,null,null,null,null,null,null,""]
[null,null,null,null,null,null,null,null,null,null,null,null,""]
[null,null,null,null,null,null,null,null,null,null,null,null,""]
[null,null,null,null,null,null,null,null,null,null,null,null,""]
[null,null,null,null,null,null,null,null,null,null,null,null,""]
[null,null,null,null,null,null,null,null,null,null,null,null,""]
[null,null,null,null,null,null,null,null,null,null,null,null,""]
[null,null,null,null,null,null,null,null,null,null,null,null,""]
[null,null,null,null,null,null,null,null,null,null,null,null,""]
[null,null,null,null,null,null,null,null,null,null,null,null,""]
[null,null,null,null,null,null,null,null,null,null,null,null,""]
[null,null,null,null,null,null,null,null,null,null,null,null,""]
[null,null,null,null,null,null,null,null,null,null,null,null,""]
[null,null,null,null,null,null,null,null,null,null,null,null,""]
[null,null,null,null,null,null,null,null,null,null,null,null,""]
[null,null,null,null,null,null,null,null,null,null,null,null,""]
[null,null,null,null,null,null,null,null,null,null,null,null,""]
[null,null,null,null,null,null,null,null,null,null,null,null,""]
[null,null,null,null,null,null,null,null,null,null,null,null,""]
[null,null,null,null,null,null,null,null,null,null,null,null,""]
[null,null,null,null,null,null,null,null,null,null,null,null,""]
[null,null,null,null,null,null,null,null,null,null,null,null,""]
[null,null,null,null,null,null,null,null,null,null,null,null,""]
[null,null,null,null,null,null,null,null,null,null,null,null,""]
[null,null,null,null,null,null,null,null,null,null,null,null,{"$f":"IF(J2995=\"\",\"\",IF(L2995<>\"\",\"OK\",IF(AND(K2995<>\"\",K2995<TODAY()),\"Retard\",\"Attente de Livraison\")))","v":""}]
[null,null,null,null,null,null,null,null,null,null,null,null,""]
[null,null,null,null,null,null,null,null,null,null,null,null,""]
[null,null,null,null,null,null,null,null,null,null,null,null,""]
[null,null,null,null,null,null,null,null,null,null,null,null,""]
[null,null,null,null,null,null,null,null,null,null,null,null,""]
[null,null,null,null,null,null,null,null,null,null,null,null,""]
[null,null,null,null,null,null,null,null,null,null,null,null,""]
[null,null,null,null,null,null,null,null,null,null,null,null,""]
[null,null,null,null,null,null,null,null,null,null,null,null,""]
[null,null,null,null,null,null,null,null,null,null,null,null,""]
[null,null,null,null,null,null,null,null,null,null,null,null,""]
[null,null,null,null,null,null,null,null,null,null,null,null,""]
[null,null,null,null,null,null,null,null,null,null,null,null,""]
[null,null,null,null,null,null,null,null,null,null,null,null,""]
[null,null,null,null,null,null,null,null,null,null,null,null,""]
[null,null,null,null,null,null,null,null,null,null,null,null,""]
[null,null,null,null,null,null,null,null,null,null,null,null,""]
[null,null,null,null,null,null,null,null,null,null,null,null,""]
[null,null,null,null,null,null,null,null,null,null,null,null,""]
[null,null,null,null,null,null,null,null,null,null,null,null,""]
[null,null,null,null,null,null,null,null,null,null,null,null,""]
[null,null,null,null,null,null,null,null,null,null,null,null,""]
[null,null,null,null,null,null,null,null,null,null,null,null,""]
[null,null,null,null,null,null,null,null,null,null,null,null,""]
[null,null,null,null,null,null,null,null,null,null,null,null,""]
[null,null,null,null,null,null,null,null,null,null,null,null,""]
[null,null,null,null,null,null,null,null,null,null,null,null,""]
[null,null,null,null,null,null,null,null,null,null,null,null,""]
[null,null,null,null,null,null,null,null,null,null,null,null,""]
[null,null,null,null,null,null,null,null,null,null,null,null,""]
[null,null,null,null,null,null,null,null,null,null,null,null,""]
[null,null,null,null,null,null,null,null,null,null,null,null,""]
[null,null,null,null,null,null,null,null,null,null,null,null,""]
[null,null,null,null,null,null,null,null,null,null,null,null,""]
[null,null,null,null,null,null,null,null,null,null,null,null,""]
[null,null,null,null,null,null,null,null,null,null,null,null,""]
[null,null,null,null,null,null,null,null,null,null,null,null,""]
[null,null,null,null,null,null,null,null,null,null,null,null,""]
[null,null,null,null,null,null,null,null,null,null,null,null,""]
[null,null,null,null,null,null,null,null,null,null,null,null,""]
[null,null,null,null,null,null,null,null,null,null,null,null,""]
[null,null,null,null,null,null,null,null,null,null,null,null,""]
[null,null,null,null,null,null,null,null,null,null,null,null,""]
[null,null,null,null,null,null,null,null,null,null,null,null,""]
[null,null,null,null,null,null,null,null,null,null,null,null,""]
[null,null,null,null,null,null,null,null,null,null,null,null,""]
[null,null,null,null,null,null,null,null,null,null,null,null,""]
[null,null,null,null,null,null,null,null,null,null,null,null,""]
[null,null,null,null,null,null,null,null,null,null,null,null,""]
[null,null,null,null,null,null,null,null,null,null,null,null,""]
[null,null,null,null,null,null,null,null,null,null,null,null,""]
[null,null,null,null,null,null,null,null,null,null,null,null,""]
[null,null,null,null,null,null,null,null,null,null,null,null,""]
[null,null,null,null,null,null,null,null,null,null,null,null,""]
[null,null,null,null,null,null,null,null,null,null,null,null,""]
[null,null,null,null,null,null,null,null,null,null,null,null,""]
[null,null,null,null,null,null,null,null,null,null,null,null,""]
[null,null,null,null,null,null,null,null,null,null,null,null,""]
[null,null,null,null,null,null,null,null,null,null,null,null,""]
[null,null,null,null,null,null,null,null,null,null,null,null,""]
[null,null,null,null,null,null,null,null,null,null,null,null,""]
[null,null,null,null,null,null,null,null,null,null,null,null,""]
[null,null,null,null,null,null,null,null,null,null,null,null,""]
[null,null,null,null,null,null,null,null,null,null,null,null,{"$f":"IF(J3059=\"\",\"\",IF(L3059<>\"\",\"OK\",IF(AND(K3059<>\"\",K3059<TODAY()),\"Retard\",\"Attente de Livraison\")))","v":""}]
[null,null,null,null,null,null,null,null,null,null,null,null,""]
[null,null,null,null,null,null,null,null,null,null,null,null,""]
[null,null,null,null,null,null,null,null,null,null,null,null,""]
[null,null,null,null,null,null,null,null,null,null,null,null,""]
[null,null,null,null,null,null,null,null,null,null,null,null,""]
[null,null,null,null,null,null,null,null,null,null,null,null,""]
[null,null,null,null,null,null,null,null,null,null,null,null,""]
[null,null,null,null,null,null,null,null,null,null,null,null,""]
[null,null,null,null,null,null,null,null,null,null,null,null,""]
[null,null,null,null,null,null,null,null,null,null,null,null,""]
[null,null,null,null,null,null,null,null,null,null,null,null,""]
[null,null,null,null,null,null,null,null,null,null,null,null,""]
[null,null,null,null,null,null,null,null,null,null,null,null,""]
[null,null,null,null,null,null,null,null,null,null,null,null,""]
[null,null,null,null,null,null,null,null,null,null,null,null,""]
[null,null,null,null,null,null,null,null,null,null,null,null,""]
[null,null,null,null,null,null,null,null,null,null,null,null,""]
[null,null,null,null,null,null,null,null,null,null,null,null,""]
[null,null,null,null,null,null,null,null,null,null,null,null,""]
[null,null,null,null,null,null,null,null,null,null,null,null,""]
[null,null,null,null,null,null,null,null,null,null,null,null,""]
[null,null,null,null,null,null,null,null,null,null,null,null,""]
[null,null,null,null,null,null,null,null,null,null,null,null,""]
[null,null,null,null,null,null,null,null,null,null,null,null,""]
[null,null,null,null,null,null,null,null,null,null,null,null,""]
[null,null,null,null,null,null,null,null,null,null,null,null,""]
[null,null,null,null,null,null,null,null,null,null,null,null,""]
[null,null,null,null,null,null,null,null,null,null,null,null,""]
[null,null,null,null,null,null,null,null,null,null,null,null,""]
[null,null,null,null,null,null,null,null,null,null,null,null,""]
[null,null,null,null,null,null,null,null,null,null,null,null,""]
[null,null,null,null,null,null,null,null,null,null,null,null,""]
[null,null,null,null,null,null,null,null,null,null,null,null,""]
[null,null,null,null,null,null,null,null,null,null,null,null,""]
[null,null,null,null,null,null,null,null,null,null,null,null,""]
[null,null,null,null,null,null,null,null,null,null,null,null,""]
[null,null,null,null,null,null,null,null,null,null,null,null,""]
[null,null,null,null,null,null,null,null,null,null,null,null,""]
[null,null,null,null,null,null,null,null,null,null,null,null,""]
[null,null,null,null,null,null,null,null,null,null,null,null,""]
[null,null,null,null,null,null,null,null,null,null,null,null,""]
[null,null,null,null,null,null,null,null,null,null,null,null,""]
[null,null,null,null,null,null,null,null,null,null,null,null,""]
[null,null,null,null,null,null,null,null,null,null,null,null,""]
[null,null,null,null,null,null,null,null,null,null,null,null,""]
[null,null,null,null,null,null,null,null,null,null,null,null,""]
[null,null,null,null,null,null,null,null,null,null,null,null,""]
[null,null,null,null,null,null,null,null,null,null,null,null,""]
[null,null,null,null,null,null,null,null,null,null,null,null,""]
[null,null,null,null,null,null,null,null,null,null,null,null,""]
[null,null,null,null,null,null,null,null,null,null,null,null,""]
[null,null,null,null,null,null,null,null,null,null,null,null,""]
[null,null,null,null,null,null,null,null,null,null,null,null,""]
[null,null,null,null,null,null,null,null,null,null,null,null,""]
[null,null,null,null,null,null,null,null,null,null,null,null,""]
[null,null,null,null,null,null,null,null,null,null,null,null,""]
[null,null,null,null,null,null,null,null,null,null,null,null,""]
[null,null,null,null,null,null,null,null,null,null,null,null,""]
[null,null,null,null,null,null,null,null,null,null,null,null,""]
[null,null,null,null,null,null,null,null,null,null,null,null,""]
[null,null,null,null,null,null,null,null,null,null,null,null,""]
[null,null,null,null,null,null,null,null,null,null,null,null,""]
[null,null,null,null,null,null,null,null,null,null,null,null,""]
[null,null,null,null,null,null,null,null,null,null,null,null,{"$f":"IF(J3123=\"\",\"\",IF(L3123<>\"\",\"OK\",IF(AND(K3123<>\"\",K3123<TODAY()),\"Retard\",\"Attente de Livraison\")))","v":""}]
[null,null,null,null,null,null,null,null,null,null,null,null,""]
[null,null,null,null,null,null,null,null,null,null,null,null,""]
[null,null,null,null,null,null,null,null,null,null,null,null,""]
[null,null,null,null,null,null,null,null,null,null,null,null,""]
[null,null,null,null,null,null,null,null,null,null,null,null,""]
[null,null,null,null,null,null,null,null,null,null,null,null,""]
[null,null,null,null,null,null,null,null,null,null,null,null,""]
[null,null,null,null,null,null,null,null,null,null,null,null,""]
[null,null,null,null,null,null,null,null,null,null,null,null,""]
[null,null,null,null,null,null,null,null,null,null,null,null,""]
[null,null,null,null,null,null,null,null,null,null,null,null,""]
[null,null,null,null,null,null,null,null,null,null,null,null,""]
[null,null,null,null,null,null,null,null,null,null,null,null,""]
[null,null,null,null,null,null,null,null,null,null,null,null,""]
[null,null,null,null,null,null,null,null,null,null,null,null,""]
[null,null,null,null,null,null,null,null,null,null,null,null,""]
[null,null,null,null,null,null,null,null,null,null,null,null,""]
[null,null,null,null,null,null,null,null,null,null,null,null,""]
[null,null,null,null,null,null,null,null,null,null,null,null,""]
[null,null,null,null,null,null,null,null,null,null,null,null,""]
[null,null,null,null,null,null,null,null,null,null,null,null,""]
[null,null,null,null,null,null,null,null,null,null,null,null,""]
[null,null,null,null,null,null,null,null,null,null,null,null,""]
[null,null,null,null,null,null,null,null,null,null,null,null,""]
[null,null,null,null,null,null,null,null,null,null,null,null,""]
[null,null,null,null,null,null,null,null,null,null,null,null,""]
[null,null,null,null,null,null,null,null,null,null,null,null,""]
[null,null,null,null,null,null,null,null,null,null,null,null,""]
[null,null,null,null,null,null,null,null,null,null,null,null,""]
[null,null,null,null,null,null,null,null,null,null,null,null,""]
[null,null,null,null,null,null,null,null,null,null,null,null,""]
[null,null,null,null,null,null,null,null,null,null,null,null,""]
[null,null,null,null,null,null,null,null,null,null,null,null,""]
[null,null,null,null,null,null,null,null,null,null,null,null,""]
[null,null,null,null,null,null,null,null,null,null,null,null,""]
[null,null,null,null,null,null,null,null,null,null,null,null,""]
[null,null,null,null,null,null,null,null,null,null,null,null,""]
[null,null,null,null,null,null,null,null,null,null,null,null,""]
[null,null,null,null,null,null,null,null,null,null,null,null,""]
[null,null,null,null,null,null,null,null,null,null,null,null,""]
[null,null,null,null,null,null,null,null,null,null,null,null,""]
[null,null,null,null,null,null,null,null,null,null,null,null,""]
[null,null,null,null,null,null,null,null,null,null,null,null,""]
[null,null,null,null,null,null,null,null,null,null,null,null,""]
[null,null,null,null,null,null,null,null,null,null,null,null,""]
[null,null,null,null,null,null,null,null,null,null,null,null,""]
[null,null,null,null,null,null,null,null,null,null,null,null,""]
[null,null,null,null,null,null,null,null,null,null,null,null,""]
[null,null,null,null,null,null,null,null,null,null,null,null,""]
[null,null,null,null,null,null,null,null,null,null,null,null,""]
[null,null,null,null,null,null,null,null,null,null,null,null,""]
[null,null,null,null,null,null,null,null,null,null,null,null,""]
[null,null,null,null,null,null,null,null,null,null,null,null,""]
[null,null,null,null,null,null,null,null,null,null,null,null,""]
[null,null,null,null,null,null,null,null,null,null,null,null,""]
[null,null,null,null,null,null,null,null,null,null,null,null,""]
[null,null,null,null,null,null,null,null,null,null,null,null,""]
[null,null,null,null,null,null,null,null,null,null,null,null,""]
[null,null,null,null,null,null,null,null,null,null,null,null,""]
[null,null,null,null,null,null,null,null,null,null,null,null,""]
[null,null,null,null,null,null,null,null,null,null,null,null,""]
[null,null,null,null,null,null,null,null,null,null,null,null,""]
[null,null,null,null,null,null,null,null,null,null,null,null,""]
[null,null,null,null,null,null,null,null,null,null,null,null,{"$f":"IF(J3187=\"\",\"\",IF(L3187<>\"\",\"OK\",IF(AND(K3187<>\"\",K3187<TODAY()),\"Retard\",\"Attente de Livraison\")))","v":""}]
[null,null,null,null,null,null,null,null,null,null,null,null,""]
[null,null,null,null,null,null,null,null,null,null,null,null,""]
[null,null,null,null,null,null,null,null,null,null,null,null,""]
[null,null,null,null,null,null,null,null,null,null,null,null,""]
[null,null,null,null,null,null,null,null,null,null,null,null,""]
[null,null,null,null,null,null,null,null,null,null,null,null,""]
[null,null,null,null,null,null,null,null,null,null,null,null,""]
[null,null,null,null,null,null,null,null,null,null,null,null,""]
[null,null,null,null,null,null,null,null,null,null,null,null,""]
[null,null,null,null,null,null,null,null,null,null,null,null,""]
[null,null,null,null,null,null,null,null,null,null,null,null,""]
[null,null,null,null,null,null,null,null,null,null,null,null,""]
[null,null,null,null,null,null,null,null,null,null,null,null,""]
[null,null,null,null,null,null,null,null,null,null,null,null,""]
[null,null,null,null,null,null,null,null,null,null,null,null,""]
[null,null,null,null,null,null,null,null,null,null,null,null,""]
[null,null,null,null,null,null,null,null,null,null,null,null,""]
[null,null,null,null,null,null,null,null,null,null,null,null,""]
[null,null,null,null,null,null,null,null,null,null,null,null,""]
[null,null,null,null,null,null,null,null,null,null,null,null,""]
[null,null,null,null,null,null,null,null,null,null,null,null,""]
[null,null,null,null,null,null,null,null,null,null,null,null,""]
[null,null,null,null,null,null,null,null,null,null,null,null,""]
[null,null,null,null,null,null,null,null,null,null,null,null,""]
[null,null,null,null,null,null,null,null,null,null,null,null,""]
[null,null,null,null,null,null,null,null,null,null,null,null,""]
[null,null,null,null,null,null,null,null,null,null,null,null,""]
[null,null,null,null,null,null,null,null,null,null,null,null,""]
[null,null,null,null,null,null,null,null,null,null,null,null,""]
[null,null,null,null,null,null,null,null,null,null,null,null,""]
[null,null,null,null,null,null,null,null,null,null,null,null,""]
[null,null,null,null,null,null,null,null,null,null,null,null,""]
[null,null,null,null,null,null,null,null,null,null,null,null,""]
[null,null,null,null,null,null,null,null,null,null,null,null,""]
[null,null,null,null,null,null,null,null,null,null,null,null,""]
[null,null,null,null,null,null,null,null,null,null,null,null,""]
[null,null,null,null,null,null,null,null,null,null,null,null,""]
[null,null,null,null,null,null,null,null,null,null,null,null,""]
[null,null,null,null,null,null,null,null,null,null,null,null,""]
[null,null,null,null,null,null,null,null,null,null,null,null,""]
[null,null,null,null,null,null,null,null,null,null,null,null,""]
[null,null,null,null,null,null,null,null,null,null,null,null,""]
[null,null,null,null,null,null,null,null,null,null,null,null,""]
[null,null,null,null,null,null,null,null,null,null,null,null,""]
[null,null,null,null,null,null,null,null,null,null,null,null,""]
[null,null,null,null,null,null,null,null,null,null,null,null,""]
[null,null,null,null,null,null,null,null,null,null,null,null,""]
[null,null,null,null,null,null,null,null,null,null,null,null,""]
[null,null,null,null,null,null,null,null,null,null,null,null,""]
[null,null,null,null,null,null,null,null,null,null,null,null,""]
[null,null,null,null,null,null,null,null,null,null,null,null,""]
[null,null,null,null,null,null,null,null,null,null,null,null,""]
[null,null,null,null,null,null,null,null,null,null,null,null,""]
[null,null,null,null,null,null,null,null,null,null,null,null,""]
[null,null,null,null,null,null,null,null,null,null,null,null,""]
[null,null,null,null,null,null,null,null,null,null,null,null,""]
[null,null,null,null,null,null,null,null,null,null,null,null,""]
[null,null,null,null,null,null,null,null,null,null,null,null,""]
[null,null,null,null,null,null,null,null,null,null,null,null,""]
[null,null,null,null,null,null,null,null,null,null,null,null,""]
[null,null,null,null,null,null,null,null,null,null,null,null,""]
[null,null,null,null,null,null,null,null,null,null,null,null,""]
[null,null,null,null,null,null,null,null,null,null,null,null,""]
[null,null,null,null,null,null,null,null,null,null,null,null,{"$f":"IF(J3251=\"\",\"\",IF(L3251<>\"\",\"OK\",IF(AND(K3251<>\"\",K3251<TODAY()),\"Retard\",\"Attente de Livraison\")))","v":""}]
[null,null,null,null,null,null,null,null,null,null,null,null,""]
[null,null,null,null,null,null,null,null,null,null,null,null,""]
[null,null,null,null,null,null,null,null,null,null,null,null,""]
[null,null,null,null,null,null,null,null,null,null,null,null,""]
[null,null,null,null,null,null,null,null,null,null,null,null,""]
[null,null,null,null,null,null,null,null,null,null,null,null,""]
[null,null,null,null,null,null,null,null,null,null,null,null,""]
[null,null,null,null,null,null,null,null,null,null,null,null,""]
[null,null,null,null,null,null,null,null,null,null,null,null,""]
[null,null,null,null,null,null,null,null,null,null,null,null,""]
[null,null,null,null,null,null,null,null,null,null,null,null,""]
[null,null,null,null,null,null,null,null,null,null,null,null,""]
[null,null,null,null,null,null,null,null,null,null,null,null,""]
[null,null,null,null,null,null,null,null,null,null,null,null,""]
[null,null,null,null,null,null,null,null,null,null,null,null,""]
[null,null,null,null,null,null,null,null,null,null,null,null,""]
[null,null,null,null,null,null,null,null,null,null,null,null,""]
[null,null,null,null,null,null,null,null,null,null,null,null,""]
[null,null,null,null,null,null,null,null,null,null,null,null,""]
[null,null,null,null,null,null,null,null,null,null,null,null,""]
[null,null,null,null,null,null,null,null,null,null,null,null,""]
[null,null,null,null,null,null,null,null,null,null,null,null,""]
[null,null,null,null,null,null,null,null,null,null,null,null,""]
[null,null,null,null,null,null,null,null,null,null,null,null,""]
[null,null,null,null,null,null,null,null,null,null,null,null,""]
[null,null,null,null,null,null,null,null,null,null,null,null,""]
[null,null,null,null,null,null,null,null,null,null,null,null,""]
[null,null,null,null,null,null,null,null,null,null,null,null,""]
[null,null,null,null,null,null,null,null,null,null,null,null,""]
[null,null,null,null,null,null,null,null,null,null,null,null,""]
[null,null,null,null,null,null,null,null,null,null,null,null,""]
[null,null,null,null,null,null,null,null,null,null,null,null,""]
[null,null,null,null,null,null,null,null,null,null,null,null,""]
[null,null,null,null,null,null,null,null,null,null,null,null,""]
[null,null,null,null,null,null,null,null,null,null,null,null,""]
[null,null,null,null,null,null,null,null,null,null,null,null,""]
[null,null,null,null,null,null,null,null,null,null,null,null,""]
[null,null,null,null,null,null,null,null,null,null,null,null,""]
[null,null,null,null,null,null,null,null,null,null,null,null,""]
[null,null,null,null,null,null,null,null,null,null,null,null,""]
[null,null,null,null,null,null,null,null,null,null,null,null,""]
[null,null,null,null,null,null,null,null,null,null,null,null,""]
[null,null,null,null,null,null,null,null,null,null,null,null,""]
[null,null,null,null,null,null,null,null,null,null,null,null,""]
[null,null,null,null,null,null,null,null,null,null,null,null,""]
[null,null,null,null,null,null,null,null,null,null,null,null,""]
[null,null,null,null,null,null,null,null,null,null,null,null,""]
[null,null,null,null,null,null,null,null,null,null,null,null,""]
[null,null,null,null,null,null,null,null,null,null,null,null,""]
[null,null,null,null,null,null,null,null,null,null,null,null,""]
[null,null,null,null,null,null,null,null,null,null,null,null,""]
[null,null,null,null,null,null,null,null,null,null,null,null,""]
[null,null,null,null,null,null,null,null,null,null,null,null,""]
[null,null,null,null,null,null,null,null,null,null,null,null,""]
[null,null,null,null,null,null,null,null,null,null,null,null,""]
[null,null,null,null,null,null,null,null,null,null,null,null,""]
[null,null,null,null,null,null,null,null,null,null,null,null,""]
[null,null,null,null,null,null,null,null,null,null,null,null,""]
[null,null,null,null,null,null,null,null,null,null,null,null,""]
[null,null,null,null,null,null,null,null,null,null,null,null,""]
[null,null,null,null,null,null,null,null,null,null,null,null,""]
[null,null,null,null,null,null,null,null,null,null,null,null,""]
[null,null,null,null,null,null,null,null,null,null,null,null,""]
[null,null,null,null,null,null,null,null,null,null,null,null,{"$f":"IF(J3315=\"\",\"\",IF(L3315<>\"\",\"OK\",IF(AND(K3315<>\"\",K3315<TODAY()),\"Retard\",\"Attente de Livraison\")))","v":""}]
[null,null,null,null,null,null,null,null,null,null,null,null,""]
[null,null,null,null,null,null,null,null,null,null,null,null,""]
[null,null,null,null,null,null,null,null,null,null,null,null,""]
[null,null,null,null,null,null,null,null,null,null,null,null,""]
[null,null,null,null,null,null,null,null,null,null,null,null,""]
[null,null,null,null,null,null,null,null,null,null,null,null,""]
[null,null,null,null,null,null,null,null,null,null,null,null,""]
[null,null,null,null,null,null,null,null,null,null,null,null,""]
[null,null,null,null,null,null,null,null,null,null,null,null,""]
[null,null,null,null,null,null,null,null,null,null,null,null,""]
[null,null,null,null,null,null,null,null,null,null,null,null,""]
[null,null,null,null,null,null,null,null,null,null,null,null,""]
[null,null,null,null,null,null,null,null,null,null,null,null,""]
[null,null,null,null,null,null,null,null,null,null,null,null,""]
[null,null,null,null,null,null,null,null,null,null,null,null,""]
[null,null,null,null,null,null,null,null,null,null,null,null,""]
[null,null,null,null,null,null,null,null,null,null,null,null,""]
[null,null,null,null,null,null,null,null,null,null,null,null,""]
[null,null,null,null,null,null,null,null,null,null,null,null,""]
[null,null,null,null,null,null,null,null,null,null,null,null,""]
[null,null,null,null,null,null,null,null,null,null,null,null,""]
[null,null,null,null,null,null,null,null,null,null,null,null,""]
[null,null,null,null,null,null,null,null,null,null,null,null,""]
[null,null,null,null,null,null,null,null,null,null,null,null,""]
[null,null,null,null,null,null,null,null,null,null,null,null,""]
[null,null,null,null,null,null,null,null,null,null,null,null,""]
[null,null,null,null,null,null,null,null,null,null,null,null,""]
[null,null,null,null,null,null,null,null,null,null,null,null,""]
[null,null,null,null,null,null,null,null,null,null,null,null,""]
[null,null,null,null,null,null,null,null,null,null,null,null,""]
[null,null,null,null,null,null,null,null,null,null,null,null,""]
[null,null,null,null,null,null,null,null,null,null,null,null,""]
[null,null,null,null,null,null,null,null,null,null,null,null,""]
[null,null,null,null,null,null,null,null,null,null,null,null,""]
[null,null,null,null,null,null,null,null,null,null,null,null,""]
[null,null,null,null,null,null,null,null,null,null,null,null,""]
[null,null,null,null,null,null,null,null,null,null,null,null,""]
[null,null,null,null,null,null,null,null,null,null,null,null,""]
[null,null,null,null,null,null,null,null,null,null,null,null,""]
[null,null,null,null,null,null,null,null,null,null,null,null,""]
[null,null,null,null,null,null,null,null,null,null,null,null,""]
[null,null,null,null,null,null,null,null,null,null,null,null,""]
[null,null,null,null,null,null,null,null,null,null,null,null,""]
[null,null,null,null,null,null,null,null,null,null,null,null,""]
[null,null,null,null,null,null,null,null,null,null,null,null,""]
[null,null,null,null,null,null,null,null,null,null,null,null,""]
[null,null,null,null,null,null,null,null,null,null,null,null,""]
[null,null,null,null,null,null,null,null,null,null,null,null,""]
[null,null,null,null,null,null,null,null,null,null,null,null,""]
[null,null,null,null,null,null,null,null,null,null,null,null,""]
[null,null,null,null,null,null,null,null,null,null,null,null,""]
[null,null,null,null,null,null,null,null,null,null,null,null,""]
[null,null,null,null,null,null,null,null,null,null,null,null,""]
[null,null,null,null,null,null,null,null,null,null,null,null,""]
[null,null,null,null,null,null,null,null,null,null,null,null,""]
[null,null,null,null,null,null,null,null,null,null,null,null,""]
[null,null,null,null,null,null,null,null,null,null,null,null,""]
[null,null,null,null,null,null,null,null,null,null,null,null,""]
[null,null,null,null,null,null,null,null,null,null,null,null,""]
[null,null,null,null,null,null,null,null,null,null,null,null,""]
[null,null,null,null,null,null,null,null,null,null,null,null,""]
[null,null,null,null,null,null,null,null,null,null,null,null,""]
[null,null,null,null,null,null,null,null,null,null,null,null,""]
[null,null,null,null,null,null,null,null,null,null,null,null,{"$f":"IF(J3379=\"\",\"\",IF(L3379<>\"\",\"OK\",IF(AND(K3379<>\"\",K3379<TODAY()),\"Retard\",\"Attente de Livraison\")))","v":""}]
[null,null,null,null,null,null,null,null,null,null,null,null,""]
[null,null,null,null,null,null,null,null,null,null,null,null,""]
[null,null,null,null,null,null,null,null,null,null,null,null,""]
[null,null,null,null,null,null,null,null,null,null,null,null,""]
[null,null,null,null,null,null,null,null,null,null,null,null,""]
[null,null,null,null,null,null,null,null,null,null,null,null,""]
[null,null,null,null,null,null,null,null,null,null,null,null,""]
[null,null,null,null,null,null,null,null,null,null,null,null,""]
[null,null,null,null,null,null,null,null,null,null,null,null,""]
[null,null,null,null,null,null,null,null,null,null,null,null,""]
[null,null,null,null,null,null,null,null,null,null,null,null,""]
[null,null,null,null,null,null,null,null,null,null,null,null,""]
[null,null,null,null,null,null,null,null,null,null,null,null,""]
[null,null,null,null,null,null,null,null,null,null,null,null,""]
[null,null,null,null,null,null,null,null,null,null,null,null,""]
[null,null,null,null,null,null,null,null,null,null,null,null,""]
[null,null,null,null,null,null,null,null,null,null,null,null,""]
[null,null,null,null,null,null,null,null,null,null,null,null,""]
[null,null,null,null,null,null,null,null,null,null,null,null,""]
[null,null,null,null,null,null,null,null,null,null,null,null,""]
[null,null,null,null,null,null,null,null,null,null,null,null,""]
[null,null,null,null,null,null,null,null,null,null,null,null,""]
[null,null,null,null,null,null,null,null,null,null,null,null,""]
[null,null,null,null,null,null,null,null,null,null,null,null,""]
[null,null,null,null,null,null,null,null,null,null,null,null,""]
[null,null,null,null,null,null,null,null,null,null,null,null,""]
[null,null,null,null,null,null,null,null,null,null,null,null,""]
[null,null,null,null,null,null,null,null,null,null,null,null,""]
[null,null,null,null,null,null,null,null,null,null,null,null,""]
[null,null,null,null,null,null,null,null,null,null,null,null,""]
[null,null,null,null,null,null,null,null,null,null,null,null,""]
[null,null,null,null,null,null,null,null,null,null,null,null,""]
[null,null,null,null,null,null,null,null,null,null,null,null,""]
[null,null,null,null,null,null,null,null,null,null,null,null,""]
[null,null,null,null,null,null,null,null,null,null,null,null,""]
[null,null,null,null,null,null,null,null,null,null,null,null,""]
[null,null,null,null,null,null,null,null,null,null,null,null,""]
[null,null,null,null,null,null,null,null,null,null,null,null,""]
[null,null,null,null,null,null,null,null,null,null,null,null,""]
[null,null,null,null,null,null,null,null,null,null,null,null,""]
[null,null,null,null,null,null,null,null,null,null,null,null,""]
[null,null,null,null,null,null,null,null,null,null,null,null,""]
[null,null,null,null,null,null,null,null,null,null,null,null,""]
[null,null,null,null,null,null,null,null,null,null,null,null,""]
[null,null,null,null,null,null,null,null,null,null,null,null,""]
[null,null,null,null,null,null,null,null,null,null,null,null,""]
[null,null,null,null,null,null,null,null,null,null,null,null,""]
[null,null,null,null,null,null,null,null,null,null,null,null,""]
[null,null,null,null,null,null,null,null,null,null,null,null,""]
[null,null,null,null,null,null,null,null,null,null,null,null,""]
[null,null,null,null,null,null,null,null,null,null,null,null,""]
[null,null,null,null,null,null,null,null,null,null,null,null,""]
[null,null,null,null,null,null,null,null,null,null,null,null,""]
[null,null,null,null,null,null,null,null,null,null,null,null,""]
[null,null,null,null,null,null,null,null,null,null,null,null,""]
[null,null,null,null,null,null,null,null,null,null,null,null,""]
[null,null,null,null,null,null,null,null,null,null,null,null,""]
[null,null,null,null,null,null,null,null,null,null,null,null,""]
[null,null,null,null,null,null,null,null,null,null,null,null,""]
[null,null,null,null,null,null,null,null,null,null,null,null,""]
[null,null,null,null,null,null,null,null,null,null,null,null,""]
[null,null,null,null,null,null,null,null,null,null,null,null,""]
[null,null,null,null,null,null,null,null,null,null,null,null,""]
[null,null,null,null,null,null,null,null,null,null,null,null,{"$f":"IF(J3443=\"\",\"\",IF(L3443<>\"\",\"OK\",IF(AND(K3443<>\"\",K3443<TODAY()),\"Retard\",\"Attente de Livraison\")))","v":""}]
[null,null,null,null,null,null,null,null,null,null,null,null,""]
[null,null,null,null,null,null,null,null,null,null,null,null,""]
[null,null,null,null,null,null,null,null,null,null,null,null,""]
[null,null,null,null,null,null,null,null,null,null,null,null,""]
[null,null,null,null,null,null,null,null,null,null,null,null,""]
[null,null,null,null,null,null,null,null,null,null,null,null,""]
[null,null,null,null,null,null,null,null,null,null,null,null,""]
[null,null,null,null,null,null,null,null,null,null,null,null,""]
[null,null,null,null,null,null,null,null,null,null,null,null,""]
[null,null,null,null,null,null,null,null,null,null,null,null,""]
[null,null,null,null,null,null,null,null,null,null,null,null,""]
[null,null,null,null,null,null,null,null,null,null,null,null,""]
[null,null,null,null,null,null,null,null,null,null,null,null,""]
[null,null,null,null,null,null,null,null,null,null,null,null,""]
[null,null,null,null,null,null,null,null,null,null,null,null,""]
[null,null,null,null,null,null,null,null,null,null,null,null,""]
[null,null,null,null,null,null,null,null,null,null,null,null,""]
[null,null,null,null,null,null,null,null,null,null,null,null,""]
[null,null,null,null,null,null,null,null,null,null,null,null,""]
[null,null,null,null,null,null,null,null,null,null,null,null,""]
[null,null,null,null,null,null,null,null,null,null,null,null,""]
[null,null,null,null,null,null,null,null,null,null,null,null,""]
[null,null,null,null,null,null,null,null,null,null,null,null,""]
[null,null,null,null,null,null,null,null,null,null,null,null,""]
[null,null,null,null,null,null,null,null,null,null,null,null,""]
[null,null,null,null,null,null,null,null,null,null,null,null,""]
[null,null,null,null,null,null,null,null,null,null,null,null,""]
[null,null,null,null,null,null,null,null,null,null,null,null,""]
[null,null,null,null,null,null,null,null,null,null,null,null,""]
[null,null,null,null,null,null,null,null,null,null,null,null,""]
[null,null,null,null,null,null,null,null,null,null,null,null,""]
[null,null,null,null,null,null,null,null,null,null,null,null,""]
[null,null,null,null,null,null,null,null,null,null,null,null,""]
[null,null,null,null,null,null,null,null,null,null,null,null,""]
[null,null,null,null,null,null,null,null,null,null,null,null,""]
[null,null,null,null,null,null,null,null,null,null,null,null,""]
[null,null,null,null,null,null,null,null,null,null,null,null,""]
[null,null,null,null,null,null,null,null,null,null,null,null,""]
[null,null,null,null,null,null,null,null,null,null,null,null,""]
[null,null,null,null,null,null,null,null,null,null,null,null,""]
[null,null,null,null,null,null,null,null,null,null,null,null,""]
[null,null,null,null,null,null,null,null,null,null,null,null,""]
[null,null,null,null,null,null,null,null,null,null,null,null,""]
[null,null,null,null,null,null,null,null,null,null,null,null,""]
[null,null,null,null,null,null,null,null,null,null,null,null,""]
[null,null,null,null,null,null,null,null,null,null,null,null,""]
[null,null,null,null,null,null,null,null,null,null,null,null,""]
[null,null,null,null,null,null,null,null,null,null,null,null,""]
[null,null,null,null,null,null,null,null,null,null,null,null,""]
[null,null,null,null,null,null,null,null,null,null,null,null,""]
[null,null,null,null,null,null,null,null,null,null,null,null,""]
[null,null,null,null,null,null,null,null,null,null,null,null,""]
[null,null,null,null,null,null,null,null,null,null,null,null,""]
[null,null,null,null,null,null,null,null,null,null,null,null,""]
[null,null,null,null,null,null,null,null,null,null,null,null,""]
[null,null,null,null,null,null,null,null,null,null,null,null,""]
[null,null,null,null,null,null,null,null,null,null,null,null,""]
[null,null,null,null,null,null,null,null,null,null,null,null,""]
[null,null,null,null,null,null,null,null,null,null,null,null,""]
[null,null,null,null,null,null,null,null,null,null,null,null,""]
[null,null,null,null,null,null,null,null,null,null,null,null,""]
[null,null,null,null,null,null,null,null,null,null,null,null,""]
[null,null,null,null,null,null,null,null,null,null,null,null,""]
[null,null,null,null,null,null,null,null,null,null,null,null,{"$f":"IF(J3507=\"\",\"\",IF(L3507<>\"\",\"OK\",IF(AND(K3507<>\"\",K3507<TODAY()),\"Retard\",\"Attente de Livraison\")))","v":""}]
[null,null,null,null,null,null,null,null,null,null,null,null,""]
[null,null,null,null,null,null,null,null,null,null,null,null,""]
[null,null,null,null,null,null,null,null,null,null,null,null,""]
[null,null,null,null,null,null,null,null,null,null,null,null,""]
[null,null,null,null,null,null,null,null,null,null,null,null,""]
[null,null,null,null,null,null,null,null,null,null,null,null,""]
[null,null,null,null,null,null,null,null,null,null,null,null,""]
[null,null,null,null,null,null,null,null,null,null,null,null,""]
[null,null,null,null,null,null,null,null,null,null,null,null,""]
[null,null,null,null,null,null,null,null,null,null,null,null,""]
[null,null,null,null,null,null,null,null,null,null,null,null,""]
[null,null,null,null,null,null,null,null,null,null,null,null,""]
[null,null,null,null,null,null,null,null,null,null,null,null,""]
[null,null,null,null,null,null,null,null,null,null,null,null,""]
[null,null,null,null,null,null,null,null,null,null,null,null,""]
[null,null,null,null,null,null,null,null,null,null,null,null,""]
[null,null,null,null,null,null,null,null,null,null,null,null,""]
[null,null,null,null,null,null,null,null,null,null,null,null,""]
[null,null,null,null,null,null,null,null,null,null,null,null,""]
[null,null,null,null,null,null,null,null,null,null,null,null,""]
[null,null,null,null,null,null,null,null,null,null,null,null,""]
[null,null,null,null,null,null,null,null,null,null,null,null,""]
[null,null,null,null,null,null,null,null,null,null,null,null,""]
[null,null,null,null,null,null,null,null,null,null,null,null,""]
[null,null,null,null,null,null,null,null,null,null,null,null,""]
[null,null,null,null,null,null,null,null,null,null,null,null,""]
[null,null,null,null,null,null,null,null,null,null,null,null,""]
[null,null,null,null,null,null,null,null,null,null,null,null,""]
[null,null,null,null,null,null,null,null,null,null,null,null,""]
[null,null,null,null,null,null,null,null,null,null,null,null,""]
[null,null,null,null,null,null,null,null,null,null,null,null,""]
[null,null,null,null,null,null,null,null,null,null,null,null,""]
[null,null,null,null,null,null,null,null,null,null,null,null,""]
[null,null,null,null,null,null,null,null,null,null,null,null,""]
[null,null,null,null,null,null,null,null,null,null,null,null,""]
[null,null,null,null,null,null,null,null,null,null,null,null,""]
[null,null,null,null,null,null,null,null,null,null,null,null,""]
[null,null,null,null,null,null,null,null,null,null,null,null,""]
[null,null,null,null,null,null,null,null,null,null,null,null,""]
[null,null,null,null,null,null,null,null,null,null,null,null,""]
[null,null,null,null,null,null,null,null,null,null,null,null,""]
[null,null,null,null,null,null,null,null,null,null,null,null,""]
[null,null,null,null,null,null,null,null,null,null,null,null,""]
[null,null,null,null,null,null,null,null,null,null,null,null,""]
[null,null,null,null,null,null,null,null,null,null,null,null,""]
[null,null,null,null,null,null,null,null,null,null,null,null,""]
[null,null,null,null,null,null,null,null,null,null,null,null,""]
[null,null,null,null,null,null,null,null,null,null,null,null,""]
[null,null,null,null,null,null,null,null,null,null,null,null,""]
[null,null,null,null,null,null,null,null,null,null,null,null,""]
[null,null,null,null,null,null,null,null,null,null,null,null,""]
[null,null,null,null,null,null,null,null,null,null,null,null,""]
[null,null,null,null,null,null,null,null,null,null,null,null,""]
[null,null,null,null,null,null,null,null,null,null,null,null,""]
[null,null,null,null,null,null,null,null,null,null,null,null,""]
[null,null,null,null,null,null,null,null,null,null,null,null,""]
[null,null,null,null,null,null,null,null,null,null,null,null,""]
[null,null,null,null,null,null,null,null,null,null,null,null,""]
[null,null,null,null,null,null,null,null,null,null,null,null,""]
[null,null,null,null,null,null,null,null,null,null,null,null,""]
[null,null,null,null,null,null,null,null,null,null,null,null,""]
[null,null,null,null,null,null,null,null,null,null,null,null,""]
[null,null,null,null,null,null,null,null,null,null,null,null,""]
[null,null,null,null,null,null,null,null,null,null,null,null,{"$f":"IF(J3571=\"\",\"\",IF(L3571<>\"\",\"OK\",IF(AND(K3571<>\"\",K3571<TODAY()),\"Retard\",\"Attente de Livraison\")))","v":""}]
[null,null,null,null,null,null,null,null,null,null,null,null,""]
[null,null,null,null,null,null,null,null,null,null,null,null,""]
[null,null,null,null,null,null,null,null,null,null,null,null,""]
[null,null,null,null,null,null,null,null,null,null,null,null,""]
[null,null,null,null,null,null,null,null,null,null,null,null,""]
[null,null,null,null,null,null,null,null,null,null,null,null,""]
[null,null,null,null,null,null,null,null,null,null,null,null,""]
[null,null,null,null,null,null,null,null,null,null,null,null,""]
[null,null,null,null,null,null,null,null,null,null,null,null,""]
[null,null,null,null,null,null,null,null,null,null,null,null,""]
[null,null,null,null,null,null,null,null,null,null,null,null,""]
[null,null,null,null,null,null,null,null,null,null,null,null,""]
[null,null,null,null,null,null,null,null,null,null,null,null,""]
[null,null,null,null,null,null,null,null,null,null,null,null,""]
[null,null,null,null,null,null,null,null,null,null,null,null,""]
[null,null,null,null,null,null,null,null,null,null,null,null,""]
[null,null,null,null,null,null,null,null,null,null,null,null,""]
[null,null,null,null,null,null,null,null,null,null,null,null,""]
[null,null,null,null,null,null,null,null,null,null,null,null,""]
[null,null,null,null,null,null,null,null,null,null,null,null,""]
[null,null,null,null,null,null,null,null,null,null,null,null,""]
[null,null,null,null,null,null,null,null,null,null,null,null,""]
[null,null,null,null,null,null,null,null,null,null,null,null,""]
[null,null,null,null,null,null,null,null,null,null,null,null,""]
[null,null,null,null,null,null,null,null,null,null,null,null,""]
[null,null,null,null,null,null,null,null,null,null,null,null,""]
[null,null,null,null,null,null,null,null,null,null,null,null,""]
[null,null,null,null,null,null,null,null,null,null,null,null,""]
[null,null,null,null,null,null,null,null,null,null,null,null,""]
[null,null,null,null,null,null,null,null,null,null,null,null,""]
[null,null,null,null,null,null,null,null,null,null,null,null,""]
[null,null,null,null,null,null,null,null,null,null,null,null,""]
[null,null,null,null,null,null,null,null,null,null,null,null,""]
[null,null,null,null,null,null,null,null,null,null,null,null,""]
[null,null,null,null,null,null,null,null,null,null,null,null,""]
[null,null,null,null,null,null,null,null,null,null,null,null,""]
[null,null,null,null,null,null,null,null,null,null,null,null,""]
[null,null,null,null,null,null,null,null,null,null,null,null,""]
[null,null,null,null,null,null,null,null,null,null,null,null,""]
[null,null,null,null,null,null,null,null,null,null,null,null,""]
[null,null,null,null,null,null,null,null,null,null,null,null,""]
[null,null,null,null,null,null,null,null,null,null,null,null,""]
[null,null,null,null,null,null,null,null,null,null,null,null,""]
[null,null,null,null,null,null,null,null,null,null,null,null,""]
[null,null,null,null,null,null,null,null,null,null,null,null,""]
[null,null,null,null,null,null,null,null,null,null,null,null,""]
[null,null,null,null,null,null,null,null,null,null,null,null,""]
[null,null,null,null,null,null,null,null,null,null,null,null,""]
[null,null,null,null,null,null,null,null,null,null,null,null,""]
[null,null,null,null,null,null,null,null,null,null,null,null,""]
[null,null,null,null,null,null,null,null,null,null,null,null,""]
[null,null,null,null,null,null,null,null,null,null,null,null,""]
[null,null,null,null,null,null,null,null,null,null,null,null,""]
[null,null,null,null,null,null,null,null,null,null,null,null,""]
[null,null,null,null,null,null,null,null,null,null,null,null,""]
[null,null,null,null,null,null,null,null,null,null,null,null,""]
[null,null,null,null,null,null,null,null,null,null,null,null,""]
[null,null,null,null,null,null,null,null,null,null,null,null,""]
[null,null,null,null,null,null,null,null,null,null,null,null,""]
[null,null,null,null,null,null,null,null,null,null,null,null,""]
[null,null,null,null,null,null,null,null,null,null,null,null,""]
[null,null,null,null,null,null,null,null,null,null,null,null,""]
[null,null,null,null,null,null,null,null,null,null,null,null,""]
[null,null,null,null,null,null,null,null,null,null,null,null,{"$f":"IF(J3635=\"\",\"\",IF(L3635<>\"\",\"OK\",IF(AND(K3635<>\"\",K3635<TODAY()),\"Retard\",\"Attente de Livraison\")))","v":""}]
[null,null,null,null,null,null,null,null,null,null,null,null,""]
[null,null,null,null,null,null,null,null,null,null,null,null,""]
[null,null,null,null,null,null,null,null,null,null,null,null,""]
[null,null,null,null,null,null,null,null,null,null,null,null,""]
[null,null,null,null,null,null,null,null,null,null,null,null,""]
[null,null,null,null,null,null,null,null,null,null,null,null,""]
[null,null,null,null,null,null,null,null,null,null,null,null,""]
[null,null,null,null,null,null,null,null,null,null,null,null,""]
[null,null,null,null,null,null,null,null,null,null,null,null,""]
[null,null,null,null,null,null,null,null,null,null,null,null,""]
[null,null,null,null,null,null,null,null,null,null,null,null,""]
[null,null,null,null,null,null,null,null,null,null,null,null,""]
[null,null,null,null,null,null,null,null,null,null,null,null,""]
[null,null,null,null,null,null,null,null,null,null,null,null,""]
[null,null,null,null,null,null,null,null,null,null,null,null,""]
[null,null,null,null,null,null,null,null,null,null,null,null,""]
[null,null,null,null,null,null,null,null,null,null,null,null,""]
[null,null,null,null,null,null,null,null,null,null,null,null,""]
[null,null,null,null,null,null,null,null,null,null,null,null,""]
[null,null,null,null,null,null,null,null,null,null,null,null,""]
[null,null,null,null,null,null,null,null,null,null,null,null,""]
[null,null,null,null,null,null,null,null,null,null,null,null,""]
[null,null,null,null,null,null,null,null,null,null,null,null,""]
[null,null,null,null,null,null,null,null,null,null,null,null,""]
[null,null,null,null,null,null,null,null,null,null,null,null,""]
[null,null,null,null,null,null,null,null,null,null,null,null,""]
[null,null,null,null,null,null,null,null,null,null,null,null,""]
[null,null,null,null,null,null,null,null,null,null,null,null,""]
[null,null,null,null,null,null,null,null,null,null,null,null,""]
[null,null,null,null,null,null,null,null,null,null,null,null,""]
[null,null,null,null,null,null,null,null,null,null,null,null,""]
[null,null,null,null,null,null,null,null,null,null,null,null,""]
[null,null,null,null,null,null,null,null,null,null,null,null,""]
[null,null,null,null,null,null,null,null,null,null,null,null,""]
[null,null,null,null,null,null,null,null,null,null,null,null,""]
[null,null,null,null,null,null,null,null,null,null,null,null,""]
[null,null,null,null,null,null,null,null,null,null,null,null,""]
[null,null,null,null,null,null,null,null,null,null,null,null,""]
[null,null,null,null,null,null,null,null,null,null,null,null,""]
[null,null,null,null,null,null,null,null,null,null,null,null,""]
[null,null,null,null,null,null,null,null,null,null,null,null,""]
[null,null,null,null,null,null,null,null,null,null,null,null,""]
[null,null,null,null,null,null,null,null,null,null,null,null,""]
[null,null,null,null,null,null,null,null,null,null,null,null,""]
[null,null,null,null,null,null,null,null,null,null,null,null,""]
[null,null,null,null,null,null,null,null,null,null,null,null,""]
[null,null,null,null,null,null,null,null,null,null,null,null,""]
[null,null,null,null,null,null,null,null,null,null,null,null,""]
[null,null,null,null,null,null,null,null,null,null,null,null,""]
[null,null,null,null,null,null,null,null,null,null,null,null,""]
[null,null,null,null,null,null,null,null,null,null,null,null,""]
[null,null,null,null,null,null,null,null,null,null,null,null,""]
[null,null,null,null,null,null,null,null,null,null,null,null,""]
[null,null,null,null,null,null,null,null,null,null,null,null,""]
[null,null,null,null,null,null,null,null,null,null,null,null,""]
[null,null,null,null,null,null,null,null,null,null,null,null,""]
[null,null,null,null,null,null,null,null,null,null,null,null,""]
[null,null,null,null,null,null,null,null,null,null,null,null,""]
[null,null,null,null,null,null,null,null,null,null,null,null,""]
[null,null,null,null,null,null,null,null,null,null,null,null,""]
[null,null,null,null,null,null,null,null,null,null,null,null,""]
[null,null,null,null,null,null,null,null,null,null,null,null,""]
[null,null,null,null,null,null,null,null,null,null,null,null,""]
[null,null,null,null,null,null,null,null,null,null,null,null,{"$f":"IF(J3699=\"\",\"\",IF(L3699<>\"\",\"OK\",IF(AND(K3699<>\"\",K3699<TODAY()),\"Retard\",\"Attente de Livraison\")))","v":""}]
[null,null,null,null,null,null,null,null,null,null,null,null,""]
[null,null,null,null,null,null,null,null,null,null,null,null,""]
[null,null,null,null,null,null,null,null,null,null,null,null,""]
[null,null,null,null,null,null,null,null,null,null,null,null,""]
[null,null,null,null,null,null,null,null,null,null,null,null,""]
[null,null,null,null,null,null,null,null,null,null,null,null,""]
[null,null,null,null,null,null,null,null,null,null,null,null,""]
[null,null,null,null,null,null,null,null,null,null,null,null,""]
[null,null,null,null,null,null,null,null,null,null,null,null,""]
[null,null,null,null,null,null,null,null,null,null,null,null,""]
[null,null,null,null,null,null,null,null,null,null,null,null,""]
[null,null,null,null,null,null,null,null,null,null,null,null,""]
[null,null,null,null,null,null,null,null,null,null,null,null,""]
[null,null,null,null,null,null,null,null,null,null,null,null,""]
[null,null,null,null,null,null,null,null,null,null,null,null,""]
[null,null,null,null,null,null,null,null,null,null,null,null,""]
[null,null,null,null,null,null,null,null,null,null,null,null,""]
[null,null,null,null,null,null,null,null,null,null,null,null,""]
[null,null,null,null,null,null,null,null,null,null,null,null,""]
[null,null,null,null,null,null,null,null,null,null,null,null,""]
[null,null,null,null,null,null,null,null,null,null,null,null,""]
[null,null,null,null,null,null,null,null,null,null,null,null,""]
[null,null,null,null,null,null,null,null,null,null,null,null,""]
[null,null,null,null,null,null,null,null,null,null,null,null,""]
[null,null,null,null,null,null,null,null,null,null,null,null,""]
[null,null,null,null,null,null,null,null,null,null,null,null,""]
[null,null,null,null,null,null,null,null,null,null,null,null,""]
[null,null,null,null,null,null,null,null,null,null,null,null,""]
[null,null,null,null,null,null,null,null,null,null,null,null,""]
[null,null,null,null,null,null,null,null,null,null,null,null,""]
[null,null,null,null,null,null,null,null,null,null,null,null,""]
[null,null,null,null,null,null,null,null,null,null,null,null,""]
[null,null,null,null,null,null,null,null,null,null,null,null,""]
[null,null,null,null,null,null,null,null,null,null,null,null,""]
[null,null,null,null,null,null,null,null,null,null,null,null,""]
[null,null,null,null,null,null,null,null,null,null,null,null,""]
[null,null,null,null,null,null,null,null,null,null,null,null,""]
[null,null,null,null,null,null,null,null,null,null,null,null,""]
[null,null,null,null,null,null,null,null,null,null,null,null,""]
[null,null,null,null,null,null,null,null,null,null,null,null,""]
[null,null,null,null,null,null,null,null,null,null,null,null,""]
[null,null,null,null,null,null,null,null,null,null,null,null,""]
[null,null,null,null,null,null,null,null,null,null,null,null,""]
[null,null,null,null,null,null,null,null,null,null,null,null,""]
[null,null,null,null,null,null,null,null,null,null,null,null,""]
[null,null,null,null,null,null,null,null,null,null,null,null,""]
[null,null,null,null,null,null,null,null,null,null,null,null,""]
[null,null,null,null,null,null,null,null,null,null,null,null,""]
[null,null,null,null,null,null,null,null,null,null,null,null,""]
[null,null,null,null,null,null,null,null,null,null,null,null,""]
[null,null,null,null,null,null,null,null,null,null,null,null,""]
[null,null,null,null,null,null,null,null,null,null,null,null,""]
[null,null,null,null,null,null,null,null,null,null,null,null,""]
[null,null,null,null,null,null,null,null,null,null,null,null,""]
[null,null,null,null,null,null,null,null,null,null,null,null,""]
[null,null,null,null,null,null,null,null,null,null,null,null,""]
[null,null,null,null,null,null,null,null,null,null,null,null,""]
[null,null,null,null,null,null,null,null,null,null,null,null,""]
[null,null,null,null,null,null,null,null,null,null,null,null,""]
[null,null,null,null,null,null,null,null,null,null,null,null,""]
[null,null,null,null,null,null,null,null,null,null,null,null,""]
[null,null,null,null,null,null,null,null,null,null,null,null,""]
[null,null,null,null,null,null,null,null,null,null,null,null,""]
[null,null,null,null,null,null,null,null,null,null,null,null,{"$f":"IF(J3763=\"\",\"\",IF(L3763<>\"\",\"OK\",IF(AND(K3763<>\"\",K3763<TODAY()),\"Retard\",\"Attente de Livraison\")))","v":""}]
[null,null,null,null,null,null,null,null,null,null,null,null,""]
[null,null,null,null,null,null,null,null,null,null,null,null,""]
[null,null,null,null,null,null,null,null,null,null,null,null,""]
[null,null,null,null,null,null,null,null,null,null,null,null,""]
[null,null,null,null,null,null,null,null,null,null,null,null,""]
[null,null,null,null,null,null,null,null,null,null,null,null,""]
[null,null,null,null,null,null,null,null,null,null,null,null,""]
[null,null,null,null,null,null,null,null,null,null,null,null,""]
[null,null,null,null,null,null,null,null,null,null,null,null,""]
[null,null,null,null,null,null,null,null,null,null,null,null,""]
[null,null,null,null,null,null,null,null,null,null,null,null,""]
[null,null,null,null,null,null,null,null,null,null,null,null,""]
[null,null,null,null,null,null,null,null,null,null,null,null,""]
[null,null,null,null,null,null,null,null,null,null,null,null,""]
[null,null,null,null,null,null,null,null,null,null,null,null,""]
[null,null,null,null,null,null,null,null,null,null,null,null,""]
[null,null,null,null,null,null,null,null,null,null,null,null,""]
[null,null,null,null,null,null,null,null,null,null,null,null,""]
[null,null,null,null,null,null,null,null,null,null,null,null,""]
[null,null,null,null,null,null,null,null,null,null,null,null,""]
[null,null,null,null,null,null,null,null,null,null,null,null,""]
[null,null,null,null,null,null,null,null,null,null,null,null,""]
[null,null,null,null,null,null,null,null,null,null,null,null,""]
[null,null,null,null,null,null,null,null,null,null,null,null,""]
[null,null,null,null,null,null,null,null,null,null,null,null,""]
[null,null,null,null,null,null,null,null,null,null,null,null,""]
[null,null,null,null,null,null,null,null,null,null,null,null,""]
[null,null,null,null,null,null,null,null,null,null,null,null,""]
[null,null,null,null,null,null,null,null,null,null,null,null,""]
[null,null,null,null,null,null,null,null,null,null,null,null,""]
[null,null,null,null,null,null,null,null,null,null,null,null,""]
[null,null,null,null,null,null,null,null,null,null,null,null,""]
[null,null,null,null,null,null,null,null,null,null,null,null,""]
[null,null,null,null,null,null,null,null,null,null,null,null,""]
[null,null,null,null,null,null,null,null,null,null,null,null,""]
[null,null,null,null,null,null,null,null,null,null,null,null,""]
[null,null,null,null,null,null,null,null,null,null,null,null,""]
[null,null,null,null,null,null,null,null,null,null,null,null,""]
[null,null,null,null,null,null,null,null,null,null,null,null,""]
[null,null,null,null,null,null,null,null,null,null,null,null,""]
[null,null,null,null,null,null,null,null,null,null,null,null,""]
[null,null,null,null,null,null,null,null,null,null,null,null,""]
[null,null,null,null,null,null,null,null,null,null,null,null,""]
[null,null,null,null,null,null,null,null,null,null,null,null,""]
[null,null,null,null,null,null,null,null,null,null,null,null,""]
[null,null,null,null,null,null,null,null,null,null,null,null,""]
[null,null,null,null,null,null,null,null,null,null,null,null,""]
[null,null,null,null,null,null,null,null,null,null,null,null,""]
[null,null,null,null,null,null,null,null,null,null,null,null,""]
[null,null,null,null,null,null,null,null,null,null,null,null,""]
[null,null,null,null,null,null,null,null,null,null,null,null,""]
[null,null,null,null,null,null,null,null,null,null,null,null,""]
[null,null,null,null,null,null,null,null,null,null,null,null,""]
[null,null,null,null,null,null,null,null,null,null,null,null,""]
[null,null,null,null,null,null,null,null,null,null,null,null,""]
[null,null,null,null,null,null,null,null,null,null,null,null,""]
[null,null,null,null,null,null,null,null,null,null,null,null,""]
[null,null,null,null,null,null,null,null,null,null,null,null,""]
[null,null,null,null,null,null,null,null,null,null,null,null,""]
[null,null,null,null,null,null,null,null,null,null,null,null,""]
[null,null,null,null,null,null,null,null,null,null,null,null,""]
[null,null,null,null,null,null,null,null,null,null,null,null,""]
[null,null,null,null,null,null,null,null,null,null,null,null,""]
[null,null,null,null,null,null,null,null,null,null,null,null,{"$f":"IF(J3827=\"\",\"\",IF(L3827<>\"\",\"OK\",IF(AND(K3827<>\"\",K3827<TODAY()),\"Retard\",\"Attente de Livraison\")))","v":""}]
[null,null,null,null,null,null,null,null,null,null,null,null,""]
[null,null,null,null,null,null,null,null,null,null,null,null,""]
[null,null,null,null,null,null,null,null,null,null,null,null,""]
[null,null,null,null,null,null,null,null,null,null,null,null,""]
[null,null,null,null,null,null,null,null,null,null,null,null,""]
[null,null,null,null,null,null,null,null,null,null,null,null,""]
[null,null,null,null,null,null,null,null,null,null,null,null,""]
[null,null,null,null,null,null,null,null,null,null,null,null,""]
[null,null,null,null,null,null,null,null,null,null,null,null,""]
[null,null,null,null,null,null,null,null,null,null,null,null,""]
[null,null,null,null,null,null,null,null,null,null,null,null,""]
[null,null,null,null,null,null,null,null,null,null,null,null,""]
[null,null,null,null,null,null,null,null,null,null,null,null,""]
[null,null,null,null,null,null,null,null,null,null,null,null,""]
[null,null,null,null,null,null,null,null,null,null,null,null,""]
[null,null,null,null,null,null,null,null,null,null,null,null,""]
[null,null,null,null,null,null,null,null,null,null,null,null,""]
[null,null,null,null,null,null,null,null,null,null,null,null,""]
[null,null,null,null,null,null,null,null,null,null,null,null,""]
[null,null,null,null,null,null,null,null,null,null,null,null,""]
[null,null,null,null,null,null,null,null,null,null,null,null,""]
[null,null,null,null,null,null,null,null,null,null,null,null,""]
[null,null,null,null,null,null,null,null,null,null,null,null,""]
[null,null,null,null,null,null,null,null,null,null,null,null,""]
[null,null,null,null,null,null,null,null,null,null,null,null,""]
[null,null,null,null,null,null,null,null,null,null,null,null,""]
[null,null,null,null,null,null,null,null,null,null,null,null,""]
[null,null,null,null,null,null,null,null,null,null,null,null,""]
[null,null,null,null,null,null,null,null,null,null,null,null,""]
[null,null,null,null,null,null,null,null,null,null,null,null,""]
[null,null,null,null,null,null,null,null,null,null,null,null,""]
[null,null,null,null,null,null,null,null,null,null,null,null,""]
[null,null,null,null,null,null,null,null,null,null,null,null,""]
[null,null,null,null,null,null,null,null,null,null,null,null,""]
[null,null,null,null,null,null,null,null,null,null,null,null,""]
[null,null,null,null,null,null,null,null,null,null,null,null,""]
[null,null,null,null,null,null,null,null,null,null,null,null,""]
[null,null,null,null,null,null,null,null,null,null,null,null,""]
[null,null,null,null,null,null,null,null,null,null,null,null,""]
[null,null,null,null,null,null,null,null,null,null,null,null,""]
[null,null,null,null,null,null,null,null,null,null,null,null,""]
[null,null,null,null,null,null,null,null,null,null,null,null,""]
[null,null,null,null,null,null,null,null,null,null,null,null,""]
[null,null,null,null,null,null,null,null,null,null,null,null,""]
[null,null,null,null,null,null,null,null,null,null,null,null,""]
[null,null,null,null,null,null,null,null,null,null,null,null,""]
[null,null,null,null,null,null,null,null,null,null,null,null,""]
[null,null,null,null,null,null,null,null,null,null,null,null,""]
[null,null,null,null,null,null,null,null,null,null,null,null,""]
[null,null,null,null,null,null,null,null,null,null,null,null,""]
[null,null,null,null,null,null,null,null,null,null,null,null,""]
[null,null,null,null,null,null,null,null,null,null,null,null,""]
[null,null,null,null,null,null,null,null,null,null,null,null,""]
[null,null,null,null,null,null,null,null,null,null,null,null,""]
[null,null,null,null,null,null,null,null,null,null,null,null,""]
[null,null,null,null,null,null,null,null,null,null,null,null,""]
[null,null,null,null,null,null,null,null,null,null,null,null,""]
[null,null,null,null,null,null,null,null,null,null,null,null,""]
[null,null,null,null,null,null,null,null,null,null,null,null,""]
[null,null,null,null,null,null,null,null,null,null,null,null,""]
[null,null,null,null,null,null,null,null,null,null,null,null,""]
[null,null,null,null,null,null,null,null,null,null,null,null,""]
[null,null,null,null,null,null,null,null,null,null,null,null,""]
[null,null,null,null,null,null,null,null,null,null,null,null,{"$f":"IF(J3891=\"\",\"\",IF(L3891<>\"\",\"OK\",IF(AND(K3891<>\"\",K3891<TODAY()),\"Retard\",\"Attente de Livraison\")))","v":""}]
[null,null,null,null,null,null,null,null,null,null,null,null,""]
[null,null,null,null,null,null,null,null,null,null,null,null,""]
[null,null,null,null,null,null,null,null,null,null,null,null,""]
[null,null,null,null,null,null,null,null,null,null,null,null,""]
[null,null,null,null,null,null,null,null,null,null,null,null,""]
[null,null,null,null,null,null,null,null,null,null,null,null,""]
[null,null,null,null,null,null,null,null,null,null,null,null,""]
[null,null,null,null,null,null,null,null,null,null,null,null,""]
[null,null,null,null,null,null,null,null,null,null,null,null,""]
[null,null,null,null,null,null,null,null,null,null,null,null,""]
[null,null,null,null,null,null,null,null,null,null,null,null,""]
[null,null,null,null,null,null,null,null,null,null,null,null,""]
[null,null,null,null,null,null,null,null,null,null,null,null,""]
[null,null,null,null,null,null,null,null,null,null,null,null,""]
[null,null,null,null,null,null,null,null,null,null,null,null,""]
[null,null,null,null,null,null,null,null,null,null,null,null,""]
[null,null,null,null,null,null,null,null,null,null,null,null,""]
[null,null,null,null,null,null,null,null,null,null,null,null,""]
[null,null,null,null,null,null,null,null,null,null,null,null,""]
[null,null,null,null,null,null,null,null,null,null,null,null,""]
[null,null,null,null,null,null,null,null,null,null,null,null,""]
[null,null,null,null,null,null,null,null,null,null,null,null,""]
[null,null,null,null,null,null,null,null,null,null,null,null,""]
[null,null,null,null,null,null,null,null,null,null,null,null,""]
[null,null,null,null,null,null,null,null,null,null,null,null,""]
[null,null,null,null,null,null,null,null,null,null,null,null,""]
[null,null,null,null,null,null,null,null,null,null,null,null,""]
[null,null,null,null,null,null,null,null,null,null,null,null,""]
[null,null,null,null,null,null,null,null,null,null,null,null,""]
[null,null,null,null,null,null,null,null,null,null,null,null,""]
[null,null,null,null,null,null,null,null,null,null,null,null,""]
[null,null,null,null,null,null,null,null,null,null,null,null,""]
[null,null,null,null,null,null,null,null,null,null,null,null,""]
[null,null,null,null,null,null,null,null,null,null,null,null,""]
[null,null,null,null,null,null,null,null,null,null,null,null,""]
[null,null,null,null,null,null,null,null,null,null,null,null,""]
[null,null,null,null,null,null,null,null,null,null,null,null,""]
[null,null,null,null,null,null,null,null,null,null,null,null,""]
[null,null,null,null,null,null,null,null,null,null,null,null,""]
[null,null,null,null,null,null,null,null,null,null,null,null,""]
[null,null,null,null,null,null,null,null,null,null,null,null,""]
[null,null,null,null,null,null,null,null,null,null,null,null,""]
[null,null,null,null,null,null,null,null,null,null,null,null,""]
[null,null,null,null,null,null,null,null,null,null,null,null,""]
[null,null,null,null,null,null,null,null,null,null,null,null,""]
[null,null,null,null,null,null,null,null,null,null,null,null,""]
[null,null,null,null,null,null,null,null,null,null,null,null,""]
[null,null,null,null,null,null,null,null,null,null,null,null,""]
[null,null,null,null,null,null,null,null,null,null,null,null,""]
[null,null,null,null,null,null,null,null,null,null,null,null,""]
[null,null,null,null,null,null,null,null,null,null,null,null,""]
[null,null,null,null,null,null,null,null,null,null,null,null,""]
[null,null,null,null,null,null,null,null,null,null,null,null,""]
[null,null,null,null,null,null,null,null,null,null,null,null,""]
[null,null,null,null,null,null,null,null,null,null,null,null,""]
[null,null,null,null,null,null,null,null,null,null,null,null,""]
[null,null,null,null,null,null,null,null,null,null,null,null,""]
[null,null,null,null,null,null,null,null,null,null,null,null,""]
[null,null,null,null,null,null,null,null,null,null,null,null,""]
[null,null,null,null,null,null,null,null,null,null,null,null,""]
[null,null,null,null,null,null,null,null,null,null,null,null,""]
[null,null,null,null,null,null,null,null,null,null,null,null,""]
[null,null,null,null,null,null,null,null,null,null,null,null,""]
[null,null,null,null,null,null,null,null,null,null,null,null,{"$f":"IF(J3955=\"\",\"\",IF(L3955<>\"\",\"OK\",IF(AND(K3955<>\"\",K3955<TODAY()),\"Retard\",\"Attente de Livraison\")))","v":""}]
[null,null,null,null,null,null,null,null,null,null,null,null,""]
[null,null,null,null,null,null,null,null,null,null,null,null,""]
[null,null,null,null,null,null,null,null,null,null,null,null,""]
[null,null,null,null,null,null,null,null,null,null,null,null,""]
[null,null,null,null,null,null,null,null,null,null,null,null,""]
[null,null,null,null,null,null,null,null,null,null,null,null,""]
[null,null,null,null,null,null,null,null,null,null,null,null,""]
[null,null,null,null,null,null,null,null,null,null,null,null,""]
[null,null,null,null,null,null,null,null,null,null,null,null,""]
[null,null,null,null,null,null,null,null,null,null,null,null,""]
[null,null,null,null,null,null,null,null,null,null,null,null,""]
[null,null,null,null,null,null,null,null,null,null,null,null,""]
[null,null,null,null,null,null,null,null,null,null,null,null,""]
[null,null,null,null,null,null,null,null,null,null,null,null,""]
[null,null,null,null,null,null,null,null,null,null,null,null,""]
[null,null,null,null,null,null,null,null,null,null,null,null,""]
[null,null,null,null,null,null,null,null,null,null,null,null,""]
[null,null,null,null,null,null,null,null,null,null,null,null,""]
[null,null,null,null,null,null,null,null,null,null,null,null,""]
[null,null,null,null,null,null,null,null,null,null,null,null,""]
[null,null,null,null,null,null,null,null,null,null,null,null,""]
[null,null,null,null,null,null,null,null,null,null,null,null,""]
[null,null,null,null,null,null,null,null,null,null,null,null,""]
[null,null,null,null,null,null,null,null,null,null,null,null,""]
[null,null,null,null,null,null,null,null,null,null,null,null,""]
[null,null,null,null,null,null,null,null,null,null,null,null,""]
[null,null,null,null,null,null,null,null,null,null,null,null,""]
[null,null,null,null,null,null,null,null,null,null,null,null,""]
[null,null,null,null,null,null,null,null,null,null,null,null,""]
[null,null,null,null,null,null,null,null,null,null,null,null,""]
[null,null,null,null,null,null,null,null,null,null,null,null,""]
[null,null,null,null,null,null,null,null,null,null,null,null,""]
[null,null,null,null,null,null,null,null,null,null,null,null,""]
[null,null,null,null,null,null,null,null,null,null,null,null,""]
[null,null,null,null,null,null,null,null,null,null,null,null,""]
[null,null,null,null,null,null,null,null,null,null,null,null,""]
[null,null,null,null,null,null,null,null,null,null,null,null,""]
[null,null,null,null,null,null,null,null,null,null,null,null,""]
[null,null,null,null,null,null,null,null,null,null,null,null,""]
[null,null,null,null,null,null,null,null,null,null,null,null,""]
[null,null,null,null,null,null,null,null,null,null,null,null,""]
[null,null,null,null,null,null,null,null,null,null,null,null,""]
[null,null,null,null,null,null,null,null,null,null,null,null,""]
[null,null,null,null,null,null,null,null,null,null,null,null,""]
[null,null,null,null,null,null,null,null,null,null,null,null,""]
[null,null,null,null,null,null,null,null,null,null,null,null,""]
[null,null,null,null,null,null,null,null,null,null,null,null,""]
[null,null,null,null,null,null,null,null,null,null,null,null,""]
[null,null,null,null,null,null,null,null,null,null,null,null,""]
[null,null,null,null,null,null,null,null,null,null,null,null,""]
[null,null,null,null,null,null,null,null,null,null,null,null,""]
[null,null,null,null,null,null,null,null,null,null,null,null,""]
[null,null,null,null,null,null,null,null,null,null,null,null,""]
[null,null,null,null,null,null,null,null,null,null,null,null,""]
[null,null,null,null,null,null,null,null,null,null,null,null,""]
[null,null,null,null,null,null,null,null,null,null,null,null,""]
[null,null,null,null,null,null,null,null,null,null,null,null,""]
[null,null,null,null,null,null,null,null,null,null,null,null,""]
[null,null,null,null,null,null,null,null,null,null,null,null,""]
[null,null,null,null,null,null,null,null,null,null,null,null,""]
[null,null,null,null,null,null,null,null,null,null,null,null,""]
[null,null,null,null,null,null,null,null,null,null,null,null,""]
[null,null,null,null,null,null,null,null,null,null,null,null,""]
[null,null,null,null,null,null,null,null,null,null,null,null,{"$f":"IF(J4019=\"\",\"\",IF(L4019<>\"\",\"OK\",IF(AND(K4019<>\"\",K4019<TODAY()),\"Retard\",\"Attente de Livraison\")))","v":""}]
[null,null,null,null,null,null,null,null,null,null,null,null,""]
[null,null,null,null,null,null,null,null,null,null,null,null,""]
[null,null,null,null,null,null,null,null,null,null,null,null,""]
[null,null,null,null,null,null,null,null,null,null,null,null,""]
[null,null,null,null,null,null,null,null,null,null,null,null,""]
[null,null,null,null,null,null,null,null,null,null,null,null,""]
[null,null,null,null,null,null,null,null,null,null,null,null,""]
[null,null,null,null,null,null,null,null,null,null,null,null,""]
[null,null,null,null,null,null,null,null,null,null,null,null,""]
[null,null,null,null,null,null,null,null,null,null,null,null,""]
[null,null,null,null,null,null,null,null,null,null,null,null,""]
[null,null,null,null,null,null,null,null,null,null,null,null,""]
[null,null,null,null,null,null,null,null,null,null,null,null,""]
[null,null,null,null,null,null,null,null,null,null,null,null,""]
[null,null,null,null,null,null,null,null,null,null,null,null,""]
[null,null,null,null,null,null,null,null,null,null,null,null,""]
[null,null,null,null,null,null,null,null,null,null,null,null,""]
[null,null,null,null,null,null,null,null,null,null,null,null,""]
[null,null,null,null,null,null,null,null,null,null,null,null,""]
[null,null,null,null,null,null,null,null,null,null,null,null,""]
[null,null,null,null,null,null,null,null,null,null,null,null,""]
[null,null,null,null,null,null,null,null,null,null,null,null,""]
[null,null,null,null,null,null,null,null,null,null,null,null,""]
[null,null,null,null,null,null,null,null,null,null,null,null,""]
[null,null,null,null,null,null,null,null,null,null,null,null,""]
[null,null,null,null,null,null,null,null,null,null,null,null,""]
[null,null,null,null,null,null,null,null,null,null,null,null,""]
[null,null,null,null,null,null,null,null,null,null,null,null,""]
[null,null,null,null,null,null,null,null,null,null,null,null,""]
[null,null,null,null,null,null,null,null,null,null,null,null,""]
[null,null,null,null,null,null,null,null,null,null,null,null,""]
[null,null,null,null,null,null,null,null,null,null,null,null,""]
[null,null,null,null,null,null,null,null,null,null,null,null,""]
[null,null,null,null,null,null,null,null,null,null,null,null,""]
[null,null,null,null,null,null,null,null,null,null,null,null,""]
[null,null,null,null,null,null,null,null,null,null,null,null,""]
[null,null,null,null,null,null,null,null,null,null,null,null,""]
[null,null,null,null,null,null,null,null,null,null,null,null,""]
[null,null,null,null,null,null,null,null,null,null,null,null,""]
[null,null,null,null,null,null,null,null,null,null,null,null,""]
[null,null,null,null,null,null,null,null,null,null,null,null,""]
[null,null,null,null,null,null,null,null,null,null,null,null,""]
[null,null,null,null,null,null,null,null,null,null,null,null,""]
[null,null,null,null,null,null,null,null,null,null,null,null,""]
[null,null,null,null,null,null,null,null,null,null,null,null,""]
[null,null,null,null,null,null,null,null,null,null,null,null,""]
[null,null,null,null,null,null,null,null,null,null,null,null,""]
[null,null,null,null,null,null,null,null,null,null,null,null,""]
[null,null,null,null,null,null,null,null,null,null,null,null,""]
[null,null,null,null,null,null,null,null,null,null,null,null,""]
[null,null,null,null,null,null,null,null,null,null,null,null,""]
[null,null,null,null,null,null,null,null,null,null,null,null,""]
[null,null,null,null,null,null,null,null,null,null,null,null,""]
[null,null,null,null,null,null,null,null,null,null,null,null,""]
[null,null,null,null,null,null,null,null,null,null,null,null,""]
[null,null,null,null,null,null,null,null,null,null,null,null,""]
[null,null,null,null,null,null,null,null,null,null,null,null,""]
[null,null,null,null,null,null,null,null,null,null,null,null,""]
[null,null,null,null,null,null,null,null,null,null,null,null,""]
[null,null,null,null,null,null,null,null,null,null,null,null,""]
[null,null,null,null,null,null,null,null,null,null,null,null,""]
[null,null,null,null,null,null,null,null,null,null,null,null,""]
[null,null,null,null,null,null,null,null,null,null,null,null,""]
[null,null,null,null,null,null,null,null,null,null,null,null,{"$f":"IF(J4083=\"\",\"\",IF(L4083<>\"\",\"OK\",IF(AND(K4083<>\"\",K4083<TODAY()),\"Retard\",\"Attente de Livraison\")))","v":""}]
[null,null,null,null,null,null,null,null,null,null,null,null,""]
[null,null,null,null,null,null,null,null,null,null,null,null,""]
[null,null,null,null,null,null,null,null,null,null,null,null,""]
[null,null,null,null,null,null,null,null,null,null,null,null,""]
[null,null,null,null,null,null,null,null,null,null,null,null,""]
[null,null,null,null,null,null,null,null,null,null,null,null,""]
[null,null,null,null,null,null,null,null,null,null,null,null,""]
[null,null,null,null,null,null,null,null,null,null,null,null,""]
[null,null,null,null,null,null,null,null,null,null,null,null,""]
[null,null,null,null,null,null,null,null,null,null,null,null,""]
[null,null,null,null,null,null,null,null,null,null,null,null,""]
[null,null,null,null,null,null,null,null,null,null,null,null,""]
[null,null,null,null,null,null,null,null,null,null,null,null,""]
[null,null,null,null,null,null,null,null,null,null,null,null,""]
[null,null,null,null,null,null,null,null,null,null,null,null,""]
[null,null,null,null,null,null,null,null,null,null,null,null,""]
[null,null,null,null,null,null,null,null,null,null,null,null,""]
[null,null,null,null,null,null,null,null,null,null,null,null,""]
[null,null,null,null,null,null,null,null,null,null,null,null,""]
[null,null,null,null,null,null,null,null,null,null,null,null,""]
[null,null,null,null,null,null,null,null,null,null,null,null,""]
[null,null,null,null,null,null,null,null,null,null,null,null,""]
[null,null,null,null,null,null,null,null,null,null,null,null,""]
[null,null,null,null,null,null,null,null,null,null,null,null,""]
[null,null,null,null,null,null,null,null,null,null,null,null,""]
[null,null,null,null,null,null,null,null,null,null,null,null,""]
[null,null,null,null,null,null,null,null,null,null,null,null,""]
[null,null,null,null,null,null,null,null,null,null,null,null,""]
[null,null,null,null,null,null,null,null,null,null,null,null,""]
[null,null,null,null,null,null,null,null,null,null,null,null,""]
[null,null,null,null,null,null,null,null,null,null,null,null,""]
[null,null,null,null,null,null,null,null,null,null,null,null,""]
[null,null,null,null,null,null,null,null,null,null,null,null,""]
[null,null,null,null,null,null,null,null,null,null,null,null,""]
[null,null,null,null,null,null,null,null,null,null,null,null,""]
[null,null,null,null,null,null,null,null,null,null,null,null,""]
[null,null,null,null,null,null,null,null,null,null,null,null,""]
[null,null,null,null,null,null,null,null,null,null,null,null,""]
[null,null,null,null,null,null,null,null,null,null,null,null,""]
[null,null,null,null,null,null,null,null,null,null,null,null,""]
[null,null,null,null,null,null,null,null,null,null,null,null,""]
[null,null,null,null,null,null,null,null,null,null,null,null,""]
[null,null,null,null,null,null,null,null,null,null,null,null,""]
[null,null,null,null,null,null,null,null,null,null,null,null,""]
[null,null,null,null,null,null,null,null,null,null,null,null,""]
[null,null,null,null,null,null,null,null,null,null,null,null,""]
[null,null,null,null,null,null,null,null,null,null,null,null,""]
[null,null,null,null,null,null,null,null,null,null,null,null,""]
[null,null,null,null,null,null,null,null,null,null,null,null,""]
[null,null,null,null,null,null,null,null,null,null,null,null,""]
[null,null,null,null,null,null,null,null,null,null,null,null,""]
[null,null,null,null,null,null,null,null,null,null,null,null,""]
[null,null,null,null,null,null,null,null,null,null,null,null,""]
[null,null,null,null,null,null,null,null,null,null,null,null,""]
[null,null,null,null,null,null,null,null,null,null,null,null,""]
[null,null,null,null,null,null,null,null,null,null,null,null,""]
[null,null,null,null,null,null,null,null,null,null,null,null,""]
[null,null,null,null,null,null,null,null,null,null,null,null,""]
[null,null,null,null,null,null,null,null,null,null,null,null,""]
[null,null,null,null,null,null,null,null,null,null,null,null,""]
[null,null,null,null,null,null,null,null,null,null,null,null,""]
[null,null,null,null,null,null,null,null,null,null,null,null,""]
[null,null,null,null,null,null,null,null,null,null,null,null,""]
[null,null,null,null,null,null,null,null,null,null,null,null,{"$f":"IF(J4147=\"\",\"\",IF(L4147<>\"\",\"OK\",IF(AND(K4147<>\"\",K4147<TODAY()),\"Retard\",\"Attente de Livraison\")))","v":""}]
[null,null,null,null,null,null,null,null,null,null,null,null,""]
[null,null,null,null,null,null,null,null,null,null,null,null,""]
[null,null,null,null,null,null,null,null,null,null,null,null,""]
[null,null,null,null,null,null,null,null,null,null,null,null,""]
[null,null,null,null,null,null,null,null,null,null,null,null,""]
[null,null,null,null,null,null,null,null,null,null,null,null,""]
[null,null,null,null,null,null,null,null,null,null,null,null,""]
[null,null,null,null,null,null,null,null,null,null,null,null,""]
[null,null,null,null,null,null,null,null,null,null,null,null,""]
[null,null,null,null,null,null,null,null,null,null,null,null,""]
[null,null,null,null,null,null,null,null,null,null,null,null,""]
[null,null,null,null,null,null,null,null,null,null,null,null,""]
[null,null,null,null,null,null,null,null,null,null,null,null,""]
[null,null,null,null,null,null,null,null,null,null,null,null,""]
[null,null,null,null,null,null,null,null,null,null,null,null,""]
[null,null,null,null,null,null,null,null,null,null,null,null,""]
[null,null,null,null,null,null,null,null,null,null,null,null,""]
[null,null,null,null,null,null,null,null,null,null,null,null,""]
[null,null,null,null,null,null,null,null,null,null,null,null,""]
[null,null,null,null,null,null,null,null,null,null,null,null,""]
[null,null,null,null,null,null,null,null,null,null,null,null,""]
[null,null,null,null,null,null,null,null,null,null,null,null,""]
[null,null,null,null,null,null,null,null,null,null,null,null,""]
[null,null,null,null,null,null,null,null,null,null,null,null,""]
[null,null,null,null,null,null,null,null,null,null,null,null,""]
[null,null,null,null,null,null,null,null,null,null,null,null,""]
[null,null,null,null,null,null,null,null,null,null,null,null,""]
[null,null,null,null,null,null,null,null,null,null,null,null,""]
[null,null,null,null,null,null,null,null,null,null,null,null,""]
[null,null,null,null,null,null,null,null,null,null,null,null,""]
[null,null,null,null,null,null,null,null,null,null,null,null,""]
[null,null,null,null,null,null,null,null,null,null,null,null,""]
[null,null,null,null,null,null,null,null,null,null,null,null,""]
[null,null,null,null,null,null,null,null,null,null,null,null,""]
[null,null,null,null,null,null,null,null,null,null,null,null,""]
[null,null,null,null,null,null,null,null,null,null,null,null,""]
[null,null,null,null,null,null,null,null,null,null,null,null,""]
[null,null,null,null,null,null,null,null,null,null,null,null,""]
[null,null,null,null,null,null,null,null,null,null,null,null,""]
[null,null,null,null,null,null,null,null,null,null,null,null,""]
[null,null,null,null,null,null,null,null,null,null,null,null,""]
[null,null,null,null,null,null,null,null,null,null,null,null,""]
[null,null,null,null,null,null,null,null,null,null,null,null,""]
[null,null,null,null,null,null,null,null,null,null,null,null,""]
[null,null,null,null,null,null,null,null,null,null,null,null,""]
[null,null,null,null,null,null,null,null,null,null,null,null,""]
[null,null,null,null,null,null,null,null,null,null,null,null,""]
[null,null,null,null,null,null,null,null,null,null,null,null,""]
[null,null,null,null,null,null,null,null,null,null,null,null,""]
[null,null,null,null,null,null,null,null,null,null,null,null,""]
[null,null,null,null,null,null,null,null,null,null,null,null,""]
[null,null,null,null,null,null,null,null,null,null,null,null,""]
[null,null,null,null,null,null,null,null,null,null,null,null,""]
[null,null,null,null,null,null,null,null,null,null,null,null,""]
[null,null,null,null,null,null,null,null,null,null,null,null,""]
[null,null,null,null,null,null,null,null,null,null,null,null,""]
[null,null,null,null,null,null,null,null,null,null,null,null,""]
[null,null,null,null,null,null,null,null,null,null,null,null,""]
[null,null,null,null,null,null,null,null,null,null,null,null,""]
[null,null,null,null,null,null,null,null,null,null,null,null,""]
[null,null,null,null,null,null,null,null,null,null,null,null,""]
[null,null,null,null,null,null,null,null,null,null,null,null,""]
[null,null,null,null,null,null,null,null,null,null,null,null,""]
[null,null,null,null,null,null,null,null,null,null,null,null,{"$f":"IF(J4211=\"\",\"\",IF(L4211<>\"\",\"OK\",IF(AND(K4211<>\"\",K4211<TODAY()),\"Retard\",\"Attente de Livraison\")))","v":""}]
[null,null,null,null,null,null,null,null,null,null,null,null,""]
[null,null,null,null,null,null,null,null,null,null,null,null,""]
[null,null,null,null,null,null,null,null,null,null,null,null,""]
[null,null,null,null,null,null,null,null,null,null,null,null,""]
[null,null,null,null,null,null,null,null,null,null,null,null,""]
[null,null,null,null,null,null,null,null,null,null,null,null,""]
[null,null,null,null,null,null,null,null,null,null,null,null,""]
[null,null,null,null,null,null,null,null,null,null,null,null,""]
[null,null,null,null,null,null,null,null,null,null,null,null,""]
[null,null,null,null,null,null,null,null,null,null,null,null,""]
[null,null,null,null,null,null,null,null,null,null,null,null,""]
[null,null,null,null,null,null,null,null,null,null,null,null,""]
[null,null,null,null,null,null,null,null,null,null,null,null,""]
[null,null,null,null,null,null,null,null,null,null,null,null,""]
[null,null,null,null,null,null,null,null,null,null,null,null,""]
[null,null,null,null,null,null,null,null,null,null,null,null,""]
[null,null,null,null,null,null,null,null,null,null,null,null,""]
[null,null,null,null,null,null,null,null,null,null,null,null,""]
[null,null,null,null,null,null,null,null,null,null,null,null,""]
[null,null,null,null,null,null,null,null,null,null,null,null,""]
[null,null,null,null,null,null,null,null,null,null,null,null,""]
[null,null,null,null,null,null,null,null,null,null,null,null,""]
[null,null,null,null,null,null,null,null,null,null,null,null,""]
[null,null,null,null,null,null,null,null,null,null,null,null,""]
[null,null,null,null,null,null,null,null,null,null,null,null,""]
[null,null,null,null,null,null,null,null,null,null,null,null,""]
[null,null,null,null,null,null,null,null,null,null,null,null,""]
[null,null,null,null,null,null,null,null,null,null,null,null,""]
[null,null,null,null,null,null,null,null,null,null,null,null,""]
[null,null,null,null,null,null,null,null,null,null,null,null,""]
[null,null,null,null,null,null,null,null,null,null,null,null,""]
[null,null,null,null,null,null,null,null,null,null,null,null,""]
[null,null,null,null,null,null,null,null,null,null,null,null,""]
[null,null,null,null,null,null,null,null,null,null,null,null,""]
[null,null,null,null,null,null,null,null,null,null,null,null,""]
[null,null,null,null,null,null,null,null,null,null,null,null,""]
[null,null,null,null,null,null,null,null,null,null,null,null,""]
[null,null,null,null,null,null,null,null,null,null,null,null,""]
[null,null,null,null,null,null,null,null,null,null,null,null,""]
[null,null,null,null,null,null,null,null,null,null,null,null,""]
[null,null,null,null,null,null,null,null,null,null,null,null,""]
[null,null,null,null,null,null,null,null,null,null,null,null,""]
[null,null,null,null,null,null,null,null,null,null,null,null,""]
[null,null,null,null,null,null,null,null,null,null,null,null,""]
[null,null,null,null,null,null,null,null,null,null,null,null,""]
[null,null,null,null,null,null,null,null,null,null,null,null,""]
[null,null,null,null,null,null,null,null,null,null,null,null,""]
[null,null,null,null,null,null,null,null,null,null,null,null,""]
[null,null,null,null,null,null,null,null,null,null,null,null,""]
[null,null,null,null,null,null,null,null,null,null,null,null,""]
[null,null,null,null,null,null,null,null,null,null,null,null,""]
[null,null,null,null,null,null,null,null,null,null,null,null,""]
[null,null,null,null,null,null,null,null,null,null,null,null,""]
[null,null,null,null,null,null,null,null,null,null,null,null,""]
[null,null,null,null,null,null,null,null,null,null,null,null,""]
[null,null,null,null,null,null,null,null,null,null,null,null,""]
[null,null,null,null,null,null,null,null,null,null,null,null,""]
[null,null,null,null,null,null,null,null,null,null,null,null,""]
[null,null,null,null,null,null,null,null,null,null,null,null,""]
[null,null,null,null,null,null,null,null,null,null,null,null,""]
[null,null,null,null,null,null,null,null,null,null,null,null,""]
[null,null,null,null,null,null,null,null,null,null,null,null,""]
[null,null,null,null,null,null,null,null,null,null,null,null,""]
[null,null,null,null,null,null,null,null,null,null,null,null,{"$f":"IF(J4275=\"\",\"\",IF(L4275<>\"\",\"OK\",IF(AND(K4275<>\"\",K4275<TODAY()),\"Retard\",\"Attente de Livraison\")))","v":""}]
[null,null,null,null,null,null,null,null,null,null,null,null,""]
[null,null,null,null,null,null,null,null,null,null,null,null,""]
[null,null,null,null,null,null,null,null,null,null,null,null,""]
[null,null,null,null,null,null,null,null,null,null,null,null,""]
[null,null,null,null,null,null,null,null,null,null,null,null,""]
[null,null,null,null,null,null,null,null,null,null,null,null,""]
[null,null,null,null,null,null,null,null,null,null,null,null,""]
[null,null,null,null,null,null,null,null,null,null,null,null,""]
[null,null,null,null,null,null,null,null,null,null,null,null,""]
[null,null,null,null,null,null,null,null,null,null,null,null,""]
[null,null,null,null,null,null,null,null,null,null,null,null,""]
[null,null,null,null,null,null,null,null,null,null,null,null,""]
[null,null,null,null,null,null,null,null,null,null,null,null,""]
[null,null,null,null,null,null,null,null,null,null,null,null,""]
[null,null,null,null,null,null,null,null,null,null,null,null,""]
[null,null,null,null,null,null,null,null,null,null,null,null,""]
[null,null,null,null,null,null,null,null,null,null,null,null,""]
[null,null,null,null,null,null,null,null,null,null,null,null,""]
[null,null,null,null,null,null,null,null,null,null,null,null,""]
[null,null,null,null,null,null,null,null,null,null,null,null,""]
[null,null,null,null,null,null,null,null,null,null,null,null,""]
[null,null,null,null,null,null,null,null,null,null,null,null,""]
[null,null,null,null,null,null,null,null,null,null,null,null,""]
[null,null,null,null,null,null,null,null,null,null,null,null,""]
[null,null,null,null,null,null,null,null,null,null,null,null,""]
[null,null,null,null,null,null,null,null,null,null,null,null,""]
[null,null,null,null,null,null,null,null,null,null,null,null,""]
[null,null,null,null,null,null,null,null,null,null,null,null,""]
[null,null,null,null,null,null,null,null,null,null,null,null,""]
[null,null,null,null,null,null,null,null,null,null,null,null,""]
[null,null,null,null,null,null,null,null,null,null,null,null,""]
[null,null,null,null,null,null,null,null,null,null,null,null,""]
[null,null,null,null,null,null,null,null,null,null,null,null,""]
[null,null,null,null,null,null,null,null,null,null,null,null,""]
[null,null,null,null,null,null,null,null,null,null,null,null,""]
[null,null,null,null,null,null,null,null,null,null,null,null,""]
[null,null,null,null,null,null,null,null,null,null,null,null,""]
[null,null,null,null,null,null,null,null,null,null,null,null,""]
[null,null,null,null,null,null,null,null,null,null,null,null,""]
[null,null,null,null,null,null,null,null,null,null,null,null,""]
[null,null,null,null,null,null,null,null,null,null,null,null,""]
[null,null,null,null,null,null,null,null,null,null,null,null,""]
[null,null,null,null,null,null,null,null,null,null,null,null,""]
[null,null,null,null,null,null,null,null,null,null,null,null,""]
[null,null,null,null,null,null,null,null,null,null,null,null,""]
[null,null,null,null,null,null,null,null,null,null,null,null,""]
[null,null,null,null,null,null,null,null,null,null,null,null,""]
[null,null,null,null,null,null,null,null,null,null,null,null,""]
[null,null,null,null,null,null,null,null,null,null,null,null,""]
[null,null,null,null,null,null,null,null,null,null,null,null,""]
[null,null,null,null,null,null,null,null,null,null,null,null,""]
[null,null,null,null,null,null,null,null,null,null,null,null,""]
[null,null,null,null,null,null,null,null,null,null,null,null,""]
[null,null,null,null,null,null,null,null,null,null,null,null,""]
[null,null,null,null,null,null,null,null,null,null,null,null,""]
[null,null,null,null,null,null,null,null,null,null,null,null,""]
[null,null,null,null,null,null,null,null,null,null,null,null,""]
[null,null,null,null,null,null,null,null,null,null,null,null,""]
[null,null,null,null,null,null,null,null,null,null,null,null,""]
[null,null,null,null,null,null,null,null,null,null,null,null,""]
[null,null,null,null,null,null,null,null,null,null,null,null,""]
[null,null,null,null,null,null,null,null,null,null,null,null,""]
[null,null,null,null,null,null,null,null,null,null,null,null,""]
[null,null,null,null,null,null,null,null,null,null,null,null,{"$f":"IF(J4339=\"\",\"\",IF(L4339<>\"\",\"OK\",IF(AND(K4339<>\"\",K4339<TODAY()),\"Retard\",\"Attente de Livraison\")))","v":""}]
[null,null,null,null,null,null,null,null,null,null,null,null,""]
[null,null,null,null,null,null,null,null,null,null,null,null,""]
[null,null,null,null,null,null,null,null,null,null,null,null,""]
[null,null,null,null,null,null,null,null,null,null,null,null,""]
[null,null,null,null,null,null,null,null,null,null,null,null,""]
[null,null,null,null,null,null,null,null,null,null,null,null,""]
[null,null,null,null,null,null,null,null,null,null,null,null,""]
[null,null,null,null,null,null,null,null,null,null,null,null,""]
[null,null,null,null,null,null,null,null,null,null,null,null,""]
[null,null,null,null,null,null,null,null,null,null,null,null,""]
[null,null,null,null,null,null,null,null,null,null,null,null,""]
[null,null,null,null,null,null,null,null,null,null,null,null,""]
[null,null,null,null,null,null,null,null,null,null,null,null,""]
[null,null,null,null,null,null,null,null,null,null,null,null,""]
[null,null,null,null,null,null,null,null,null,null,null,null,""]
[null,null,null,null,null,null,null,null,null,null,null,null,""]
[null,null,null,null,null,null,null,null,null,null,null,null,""]
[null,null,null,null,null,null,null,null,null,null,null,null,""]
[null,null,null,null,null,null,null,null,null,null,null,null,""]
[null,null,null,null,null,null,null,null,null,null,null,null,""]
[null,null,null,null,null,null,null,null,null,null,null,null,""]
[null,null,null,null,null,null,null,null,null,null,null,null,""]
[null,null,null,null,null,null,null,null,null,null,null,null,""]
[null,null,null,null,null,null,null,null,null,null,null,null,""]
[null,null,null,null,null,null,null,null,null,null,null,null,""]
[null,null,null,null,null,null,null,null,null,null,null,null,""]
[null,null,null,null,null,null,null,null,null,null,null,null,""]
[null,null,null,null,null,null,null,null,null,null,null,null,""]
[null,null,null,null,null,null,null,null,null,null,null,null,""]
[null,null,null,null,null,null,null,null,null,null,null,null,""]
[null,null,null,null,null,null,null,null,null,null,null,null,""]
[null,null,null,null,null,null,null,null,null,null,null,null,""]
[null,null,null,null,null,null,null,null,null,null,null,null,""]
[null,null,null,null,null,null,null,null,null,null,null,null,""]
[null,null,null,null,null,null,null,null,null,null,null,null,""]
[null,null,null,null,null,null,null,null,null,null,null,null,""]
[null,null,null,null,null,null,null,null,null,null,null,null,""]
[null,null,null,null,null,null,null,null,null,null,null,null,""]
[null,null,null,null,null,null,null,null,null,null,null,null,""]
[null,null,null,null,null,null,null,null,null,null,null,null,""]
[null,null,null,null,null,null,null,null,null,null,null,null,""]
[null,null,null,null,null,null,null,null,null,null,null,null,""]
[null,null,null,null,null,null,null,null,null,null,null,null,""]
[null,null,null,null,null,null,null,null,null,null,null,null,""]
[null,null,null,null,null,null,null,null,null,null,null,null,""]
[null,null,null,null,null,null,null,null,null,null,null,null,""]
[null,null,null,null,null,null,null,null,null,null,null,null,""]
[null,null,null,null,null,null,null,null,null,null,null,null,""]
[null,null,null,null,null,null,null,null,null,null,null,null,""]
[null,null,null,null,null,null,null,null,null,null,null,null,""]
[null,null,null,null,null,null,null,null,null,null,null,null,""]
[null,null,null,null,null,null,null,null,null,null,null,null,""]
[null,null,null,null,null,null,null,null,null,null,null,null,""]
[null,null,null,null,null,null,null,null,null,null,null,null,""]
[null,null,null,null,null,null,null,null,null,null,null,null,""]
[null,null,null,null,null,null,null,null,null,null,null,null,""]
[null,null,null,null,null,null,null,null,null,null,null,null,""]
[null,null,null,null,null,null,null,null,null,null,null,null,""]
[null,null,null,null,null,null,null,null,null,null,null,null,""]
[null,null,null,null,null,null,null,null,null,null,null,null,""]
[null,null,null,null,null,null,null,null,null,null,null,null,""]
[null,null,null,null,null,null,null,null,null,null,null,null,""]
[null,null,null,null,null,null,null,null,null,null,null,null,""]
[null,null,null,null,null,null,null,null,null,null,null,null,{"$f":"IF(J4403=\"\",\"\",IF(L4403<>\"\",\"OK\",IF(AND(K4403<>\"\",K4403<TODAY()),\"Retard\",\"Attente de Livraison\")))","v":""}]
[null,null,null,null,null,null,null,null,null,null,null,null,""]
[null,null,null,null,null,null,null,null,null,null,null,null,""]
[null,null,null,null,null,null,null,null,null,null,null,null,""]
[null,null,null,null,null,null,null,null,null,null,null,null,""]
[null,null,null,null,null,null,null,null,null,null,null,null,""]
[null,null,null,null,null,null,null,null,null,null,null,null,""]
[null,null,null,null,null,null,null,null,null,null,null,null,""]
[null,null,null,null,null,null,null,null,null,null,null,null,""]
[null,null,null,null,null,null,null,null,null,null,null,null,""]
[null,null,null,null,null,null,null,null,null,null,null,null,""]
[null,null,null,null,null,null,null,null,null,null,null,null,""]
[null,null,null,null,null,null,null,null,null,null,null,null,""]
[null,null,null,null,null,null,null,null,null,null,null,null,""]
[null,null,null,null,null,null,null,null,null,null,null,null,""]
[null,null,null,null,null,null,null,null,null,null,null,null,""]
[null,null,null,null,null,null,null,null,null,null,null,null,""]
[null,null,null,null,null,null,null,null,null,null,null,null,""]
[null,null,null,null,null,null,null,null,null,null,null,null,""]
[null,null,null,null,null,null,null,null,null,null,null,null,""]
[null,null,null,null,null,null,null,null,null,null,null,null,""]
[null,null,null,null,null,null,null,null,null,null,null,null,""]
[null,null,null,null,null,null,null,null,null,null,null,null,""]
[null,null,null,null,null,null,null,null,null,null,null,null,""]
[null,null,null,null,null,null,null,null,null,null,null,null,""]
[null,null,null,null,null,null,null,null,null,null,null,null,""]
[null,null,null,null,null,null,null,null,null,null,null,null,""]
[null,null,null,null,null,null,null,null,null,null,null,null,""]
[null,null,null,null,null,null,null,null,null,null,null,null,""]
[null,null,null,null,null,null,null,null,null,null,null,null,""]
[null,null,null,null,null,null,null,null,null,null,null,null,""]
[null,null,null,null,null,null,null,null,null,null,null,null,""]
[null,null,null,null,null,null,null,null,null,null,null,null,""]
[null,null,null,null,null,null,null,null,null,null,null,null,""]
[null,null,null,null,null,null,null,null,null,null,null,null,""]
[null,null,null,null,null,null,null,null,null,null,null,null,""]
[null,null,null,null,null,null,null,null,null,null,null,null,""]
[null,null,null,null,null,null,null,null,null,null,null,null,""]
[null,null,null,null,null,null,null,null,null,null,null,null,""]
[null,null,null,null,null,null,null,null,null,null,null,null,""]
[null,null,null,null,null,null,null,null,null,null,null,null,""]
[null,null,null,null,null,null,null,null,null,null,null,null,""]
[null,null,null,null,null,null,null,null,null,null,null,null,""]
[null,null,null,null,null,null,null,null,null,null,null,null,""]
[null,null,null,null,null,null,null,null,null,null,null,null,""]
[null,null,null,null,null,null,null,null,null,null,null,null,""]
[null,null,null,null,null,null,null,null,null,null,null,null,""]
[null,null,null,null,null,null,null,null,null,null,null,null,""]
[null,null,null,null,null,null,null,null,null,null,null,null,""]
[null,null,null,null,null,null,null,null,null,null,null,null,""]
[null,null,null,null,null,null,null,null,null,null,null,null,""]
[null,null,null,null,null,null,null,null,null,null,null,null,""]
[null,null,null,null,null,null,null,null,null,null,null,null,""]
[null,null,null,null,null,null,null,null,null,null,null,null,""]
[null,null,null,null,null,null,null,null,null,null,null,null,""]
[null,null,null,null,null,null,null,null,null,null,null,null,""]
[null,null,null,null,null,null,null,null,null,null,null,null,""]
[null,null,null,null,null,null,null,null,null,null,null,null,""]
[null,null,null,null,null,null,null,null,null,null,null,null,""]
[null,null,null,null,null,null,null,null,null,null,null,null,""]
[null,null,null,null,null,null,null,null,null,null,null,null,""]
[null,null,null,null,null,null,null,null,null,null,null,null,""]
[null,null,null,null,null,null,null,null,null,null,null,null,""]
[null,null,null,null,null,null,null,null,null,null,null,null,""]
[null,null,null,null,null,null,null,null,null,null,null,null,{"$f":"IF(J4467=\"\",\"\",IF(L4467<>\"\",\"OK\",IF(AND(K4467<>\"\",K4467<TODAY()),\"Retard\",\"Attente de Livraison\")))","v":""}]
[null,null,null,null,null,null,null,null,null,null,null,null,""]
[null,null,null,null,null,null,null,null,null,null,null,null,""]
[null,null,null,null,null,null,null,null,null,null,null,null,""]
[null,null,null,null,null,null,null,null,null,null,null,null,""]
[null,null,null,null,null,null,null,null,null,null,null,null,""]
[null,null,null,null,null,null,null,null,null,null,null,null,""]
[null,null,null,null,null,null,null,null,null,null,null,null,""]
[null,null,null,null,null,null,null,null,null,null,null,null,""]
[null,null,null,null,null,null,null,null,null,null,null,null,""]
[null,null,null,null,null,null,null,null,null,null,null,null,""]
[null,null,null,null,null,null,null,null,null,null,null,null,""]
[null,null,null,null,null,null,null,null,null,null,null,null,""]
[null,null,null,null,null,null,null,null,null,null,null,null,""]
[null,null,null,null,null,null,null,null,null,null,null,null,""]
[null,null,null,null,null,null,null,null,null,null,null,null,""]
[null,null,null,null,null,null,null,null,null,null,null,null,""]
[null,null,null,null,null,null,null,null,null,null,null,null,""]
[null,null,null,null,null,null,null,null,null,null,null,null,""]
[null,null,null,null,null,null,null,null,null,null,null,null,""]
[null,null,null,null,null,null,null,null,null,null,null,null,""]
[null,null,null,null,null,null,null,null,null,null,null,null,""]
[null,null,null,null,null,null,null,null,null,null,null,null,""]
[null,null,null,null,null,null,null,null,null,null,null,null,""]
[null,null,null,null,null,null,null,null,null,null,null,null,""]
[null,null,null,null,null,null,null,null,null,null,null,null,""]
[null,null,null,null,null,null,null,null,null,null,null,null,""]
[null,null,null,null,null,null,null,null,null,null,null,null,""]
[null,null,null,null,null,null,null,null,null,null,null,null,""]
[null,null,null,null,null,null,null,null,null,null,null,null,""]
[null,null,null,null,null,null,null,null,null,null,null,null,""]
[null,null,null,null,null,null,null,null,null,null,null,null,""]
[null,null,null,null,null,null,null,null,null,null,null,null,""]
[null,null,null,null,null,null,null,null,null,null,null,null,""]
[null,null,null,null,null,null,null,null,null,null,null,null,""]
[null,null,null,null,null,null,null,null,null,null,null,null,""]
[null,null,null,null,null,null,null,null,null,null,null,null,""]
[null,null,null,null,null,null,null,null,null,null,null,null,""]
[null,null,null,null,null,null,null,null,null,null,null,null,""]
[null,null,null,null,null,null,null,null,null,null,null,null,""]
[null,null,null,null,null,null,null,null,null,null,null,null,""]
[null,null,null,null,null,null,null,null,null,null,null,null,""]
[null,null,null,null,null,null,null,null,null,null,null,null,""]
[null,null,null,null,null,null,null,null,null,null,null,null,""]
[null,null,null,null,null,null,null,null,null,null,null,null,""]
[null,null,null,null,null,null,null,null,null,null,null,null,""]
[null,null,null,null,null,null,null,null,null,null,null,null,""]
[null,null,null,null,null,null,null,null,null,null,null,null,""]
[null,null,null,null,null,null,null,null,null,null,null,null,""]
[null,null,null,null,null,null,null,null,null,null,null,null,""]
[null,null,null,null,null,null,null,null,null,null,null,null,""]
[null,null,null,null,null,null,null,null,null,null,null,null,""]
[null,null,null,null,null,null,null,null,null,null,null,null,""]
[null,null,null,null,null,null,null,null,null,null,null,null,""]
[null,null,null,null,null,null,null,null,null,null,null,null,""]
[null,null,null,null,null,null,null,null,null,null,null,null,""]
[null,null,null,null,null,null,null,null,null,null,null,null,""]
[null,null,null,null,null,null,null,null,null,null,null,null,""]
[null,null,null,null,null,null,null,null,null,null,null,null,""]
[null,null,null,null,null,null,null,null,null,null,null,null,""]
[null,null,null,null,null,null,null,null,null,null,null,null,""]
[null,null,null,null,null,null,null,null,null,null,null,null,""]
[null,null,null,null,null,null,null,null,null,null,null,null,""]
[null,null,null,null,null,null,null,null,null,null,null,null,""]
[null,null,null,null,null,null,null,null,null,null,null,null,{"$f":"IF(J4531=\"\",\"\",IF(L4531<>\"\",\"OK\",IF(AND(K4531<>\"\",K4531<TODAY()),\"Retard\",\"Attente de Livraison\")))","v":""}]
[null,null,null,null,null,null,null,null,null,null,null,null,""]
[null,null,null,null,null,null,null,null,null,null,null,null,""]
[null,null,null,null,null,null,null,null,null,null,null,null,""]
[null,null,null,null,null,null,null,null,null,null,null,null,""]
[null,null,null,null,null,null,null,null,null,null,null,null,""]
[null,null,null,null,null,null,null,null,null,null,null,null,""]
[null,null,null,null,null,null,null,null,null,null,null,null,""]
[null,null,null,null,null,null,null,null,null,null,null,null,""]
[null,null,null,null,null,null,null,null,null,null,null,null,""]
[null,null,null,null,null,null,null,null,null,null,null,null,""]
[null,null,null,null,null,null,null,null,null,null,null,null,""]
[null,null,null,null,null,null,null,null,null,null,null,null,""]
[null,null,null,null,null,null,null,null,null,null,null,null,""]
[null,null,null,null,null,null,null,null,null,null,null,null,""]
[null,null,null,null,null,null,null,null,null,null,null,null,""]
[null,null,null,null,null,null,null,null,null,null,null,null,""]
[null,null,null,null,null,null,null,null,null,null,null,null,""]
[null,null,null,null,null,null,null,null,null,null,null,null,""]
[null,null,null,null,null,null,null,null,null,null,null,null,""]
[null,null,null,null,null,null,null,null,null,null,null,null,""]
[null,null,null,null,null,null,null,null,null,null,null,null,""]
[null,null,null,null,null,null,null,null,null,null,null,null,""]
[null,null,null,null,null,null,null,null,null,null,null,null,""]
[null,null,null,null,null,null,null,null,null,null,null,null,""]
[null,null,null,null,null,null,null,null,null,null,null,null,""]
[null,null,null,null,null,null,null,null,null,null,null,null,""]
[null,null,null,null,null,null,null,null,null,null,null,null,""]
[null,null,null,null,null,null,null,null,null,null,null,null,""]
[null,null,null,null,null,null,null,null,null,null,null,null,""]
[null,null,null,null,null,null,null,null,null,null,null,null,""]
[null,null,null,null,null,null,null,null,null,null,null,null,""]
[null,null,null,null,null,null,null,null,null,null,null,null,""]
[null,null,null,null,null,null,null,null,null,null,null,null,""]
[null,null,null,null,null,null,null,null,null,null,null,null,""]
[null,null,null,null,null,null,null,null,null,null,null,null,""]
[null,null,null,null,null,null,null,null,null,null,null,null,""]
[null,null,null,null,null,null,null,null,null,null,null,null,""]
[null,null,null,null,null,null,null,null,null,null,null,null,""]
[null,null,null,null,null,null,null,null,null,null,null,null,""]
[null,null,null,null,null,null,null,null,null,null,null,null,""]
[null,null,null,null,null,null,null,null,null,null,null,null,""]
[null,null,null,null,null,null,null,null,null,null,null,null,""]
[null,null,null,null,null,null,null,null,null,null,null,null,""]
[null,null,null,null,null,null,null,null,null,null,null,null,""]
[null,null,null,null,null,null,null,null,null,null,null,null,""]
[null,null,null,null,null,null,null,null,null,null,null,null,""]
[null,null,null,null,null,null,null,null,null,null,null,null,""]
[null,null,null,null,null,null,null,null,null,null,null,null,""]
[null,null,null,null,null,null,null,null,null,null,null,null,""]
[null,null,null,null,null,null,null,null,null,null,null,null,""]
[null,null,null,null,null,null,null,null,null,null,null,null,""]
[null,null,null,null,null,null,null,null,null,null,null,null,""]
[null,null,null,null,null,null,null,null,null,null,null,null,""]
[null,null,null,null,null,null,null,null,null,null,null,null,""]
[null,null,null,null,null,null,null,null,null,null,null,null,""]
[null,null,null,null,null,null,null,null,null,null,null,null,""]
[null,null,null,null,null,null,null,null,null,null,null,null,""]
[null,null,null,null,null,null,null,null,null,null,null,null,""]
[null,null,null,null,null,null,null,null,null,null,null,null,""]
[null,null,null,null,null,null,null,null,null,null,null,null,""]
[null,null,null,null,null,null,null,null,null,null,null,null,""]
[null,null,null,null,null,null,null,null,null,null,null,null,""]
[null,null,null,null,null,null,null,null,null,null,null,null,""]
[null,null,null,null,null,null,null,null,null,null,null,null,{"$f":"IF(J4595=\"\",\"\",IF(L4595<>\"\",\"OK\",IF(AND(K4595<>\"\",K4595<TODAY()),\"Retard\",\"Attente de Livraison\")))","v":""}]
[null,null,null,null,null,null,null,null,null,null,null,null,""]
[null,null,null,null,null,null,null,null,null,null,null,null,""]
[null,null,null,null,null,null,null,null,null,null,null,null,""]
[null,null,null,null,null,null,null,null,null,null,null,null,""]
[null,null,null,null,null,null,null,null,null,null,null,null,""]
[null,null,null,null,null,null,null,null,null,null,null,null,""]
[null,null,null,null,null,null,null,null,null,null,null,null,""]
[null,null,null,null,null,null,null,null,null,null,null,null,""]
[null,null,null,null,null,null,null,null,null,null,null,null,""]
[null,null,null,null,null,null,null,null,null,null,null,null,""]
[null,null,null,null,null,null,null,null,null,null,null,null,""]
[null,null,null,null,null,null,null,null,null,null,null,null,""]
[null,null,null,null,null,null,null,null,null,null,null,null,""]
[null,null,null,null,null,null,null,null,null,null,null,null,""]
[null,null,null,null,null,null,null,null,null,null,null,null,""]
[null,null,null,null,null,null,null,null,null,null,null,null,""]
[null,null,null,null,null,null,null,null,null,null,null,null,""]
[null,null,null,null,null,null,null,null,null,null,null,null,""]
[null,null,null,null,null,null,null,null,null,null,null,null,""]
[null,null,null,null,null,null,null,null,null,null,null,null,""]
[null,null,null,null,null,null,null,null,null,null,null,null,""]
[null,null,null,null,null,null,null,null,null,null,null,null,""]
[null,null,null,null,null,null,null,null,null,null,null,null,""]
[null,null,null,null,null,null,null,null,null,null,null,null,""]
[null,null,null,null,null,null,null,null,null,null,null,null,""]
[null,null,null,null,null,null,null,null,null,null,null,null,""]
[null,null,null,null,null,null,null,null,null,null,null,null,""]
[null,null,null,null,null,null,null,null,null,null,null,null,""]
[null,null,null,null,null,null,null,null,null,null,null,null,""]
[null,null,null,null,null,null,null,null,null,null,null,null,""]
[null,null,null,null,null,null,null,null,null,null,null,null,""]
[null,null,null,null,null,null,null,null,null,null,null,null,""]
[null,null,null,null,null,null,null,null,null,null,null,null,""]
[null,null,null,null,null,null,null,null,null,null,null,null,""]
[null,null,null,null,null,null,null,null,null,null,null,null,""]
[null,null,null,null,null,null,null,null,null,null,null,null,""]
[null,null,null,null,null,null,null,null,null,null,null,null,""]
[null,null,null,null,null,null,null,null,null,null,null,null,""]
[null,null,null,null,null,null,null,null,null,null,null,null,""]
[null,null,null,null,null,null,null,null,null,null,null,null,""]
[null,null,null,null,null,null,null,null,null,null,null,null,""]
[null,null,null,null,null,null,null,null,null,null,null,null,""]
[null,null,null,null,null,null,null,null,null,null,null,null,""]
[null,null,null,null,null,null,null,null,null,null,null,null,""]
[null,null,null,null,null,null,null,null,null,null,null,null,""]
[null,null,null,null,null,null,null,null,null,null,null,null,""]
[null,null,null,null,null,null,null,null,null,null,null,null,""]
[null,null,null,null,null,null,null,null,null,null,null,null,""]
[null,null,null,null,null,null,null,null,null,null,null,null,""]
[null,null,null,null,null,null,null,null,null,null,null,null,""]
[null,null,null,null,null,null,null,null,null,null,null,null,""]
[null,null,null,null,null,null,null,null,null,null,null,null,""]
[null,null,null,null,null,null,null,null,null,null,null,null,""]
[null,null,null,null,null,null,null,null,null,null,null,null,""]
[null,null,null,null,null,null,null,null,null,null,null,null,""]
[null,null,null,null,null,null,null,null,null,null,null,null,""]
[null,null,null,null,null,null,null,null,null,null,null,null,""]
[null,null,null,null,null,null,null,null,null,null,null,null,""]
[null,null,null,null,null,null,null,null,null,null,null,null,""]
[null,null,null,null,null,null,null,null,null,null,null,null,""]
[null,null,null,null,null,null,null,null,null,null,null,null,""]
[null,null,null,null,null,null,null,null,null,null,null,null,""]
[null,null,null,null,null,null,null,null,null,null,null,null,""]
[null,null,null,null,null,null,null,null,null,null,null,null,{"$f":"IF(J4659=\"\",\"\",IF(L4659<>\"\",\"OK\",IF(AND(K4659<>\"\",K4659<TODAY()),\"Retard\",\"Attente de Livraison\")))","v":""}]
[null,null,null,null,null,null,null,null,null,null,null,null,""]
[null,null,null,null,null,null,null,null,null,null,null,null,""]
[null,null,null,null,null,null,null,null,null,null,null,null,""]
[null,null,null,null,null,null,null,null,null,null,null,null,""]
[null,null,null,null,null,null,null,null,null,null,null,null,""]
[null,null,null,null,null,null,null,null,null,null,null,null,""]
[null,null,null,null,null,null,null,null,null,null,null,null,""]
[null,null,null,null,null,null,null,null,null,null,null,null,""]
[null,null,null,null,null,null,null,null,null,null,null,null,""]
[null,null,null,null,null,null,null,null,null,null,null,null,""]
[null,null,null,null,null,null,null,null,null,null,null,null,""]
[null,null,null,null,null,null,null,null,null,null,null,null,""]
[null,null,null,null,null,null,null,null,null,null,null,null,""]
[null,null,null,null,null,null,null,null,null,null,null,null,""]
[null,null,null,null,null,null,null,null,null,null,null,null,""]
[null,null,null,null,null,null,null,null,null,null,null,null,""]
[null,null,null,null,null,null,null,null,null,null,null,null,""]
[null,null,null,null,null,null,null,null,null,null,null,null,""]
[null,null,null,null,null,null,null,null,null,null,null,null,""]
[null,null,null,null,null,null,null,null,null,null,null,null,""]
[null,null,null,null,null,null,null,null,null,null,null,null,""]
[null,null,null,null,null,null,null,null,null,null,null,null,""]
[null,null,null,null,null,null,null,null,null,null,null,null,""]
[null,null,null,null,null,null,null,null,null,null,null,null,""]
[null,null,null,null,null,null,null,null,null,null,null,null,""]
[null,null,null,null,null,null,null,null,null,null,null,null,""]
[null,null,null,null,null,null,null,null,null,null,null,null,""]
[null,null,null,null,null,null,null,null,null,null,null,null,""]
[null,null,null,null,null,null,null,null,null,null,null,null,""]
[null,null,null,null,null,null,null,null,null,null,null,null,""]
[null,null,null,null,null,null,null,null,null,null,null,null,""]
[null,null,null,null,null,null,null,null,null,null,null,null,""]
[null,null,null,null,null,null,null,null,null,null,null,null,""]
[null,null,null,null,null,null,null,null,null,null,null,null,""]
[null,null,null,null,null,null,null,null,null,null,null,null,""]
[null,null,null,null,null,null,null,null,null,null,null,null,""]
[null,null,null,null,null,null,null,null,null,null,null,null,""]
[null,null,null,null,null,null,null,null,null,null,null,null,""]
[null,null,null,null,null,null,null,null,null,null,null,null,""]
[null,null,null,null,null,null,null,null,null,null,null,null,""]
[null,null,null,null,null,null,null,null,null,null,null,null,""]
[null,null,null,null,null,null,null,null,null,null,null,null,""]
[null,null,null,null,null,null,null,null,null,null,null,null,""]
[null,null,null,null,null,null,null,null,null,null,null,null,""]
[null,null,null,null,null,null,null,null,null,null,null,null,""]
[null,null,null,null,null,null,null,null,null,null,null,null,""]
[null,null,null,null,null,null,null,null,null,null,null,null,""]
[null,null,null,null,null,null,null,null,null,null,null,null,""]
[null,null,null,null,null,null,null,null,null,null,null,null,""]
[null,null,null,null,null,null,null,null,null,null,null,null,""]
[null,null,null,null,null,null,null,null,null,null,null,null,""]
[null,null,null,null,null,null,null,null,null,null,null,null,""]
[null,null,null,null,null,null,null,null,null,null,null,null,""]
[null,null,null,null,null,null,null,null,null,null,null,null,""]
[null,null,null,null,null,null,null,null,null,null,null,null,""]
[null,null,null,null,null,null,null,null,null,null,null,null,""]
[null,null,null,null,null,null,null,null,null,null,null,null,""]
[null,null,null,null,null,null,null,null,null,null,null,null,""]
[null,null,null,null,null,null,null,null,null,null,null,null,""]
[null,null,null,null,null,null,null,null,null,null,null,null,""]
[null,null,null,null,null,null,null,null,null,null,null,null,""]
[null,null,null,null,null,null,null,null,null,null,null,null,""]
[null,null,null,null,null,null,null,null,null,null,null,null,""]
[null,null,null,null,null,null,null,null,null,null,null,null,{"$f":"IF(J4723=\"\",\"\",IF(L4723<>\"\",\"OK\",IF(AND(K4723<>\"\",K4723<TODAY()),\"Retard\",\"Attente de Livraison\")))","v":""}]
[null,null,null,null,null,null,null,null,null,null,null,null,""]
[null,null,null,null,null,null,null,null,null,null,null,null,""]
[null,null,null,null,null,null,null,null,null,null,null,null,""]
[null,null,null,null,null,null,null,null,null,null,null,null,""]
[null,null,null,null,null,null,null,null,null,null,null,null,""]
[null,null,null,null,null,null,null,null,null,null,null,null,""]
[null,null,null,null,null,null,null,null,null,null,null,null,""]
[null,null,null,null,null,null,null,null,null,null,null,null,""]
[null,null,null,null,null,null,null,null,null,null,null,null,""]
[null,null,null,null,null,null,null,null,null,null,null,null,""]
[null,null,null,null,null,null,null,null,null,null,null,null,""]
[null,null,null,null,null,null,null,null,null,null,null,null,""]
[null,null,null,null,null,null,null,null,null,null,null,null,""]
[null,null,null,null,null,null,null,null,null,null,null,null,""]
[null,null,null,null,null,null,null,null,null,null,null,null,""]
[null,null,null,null,null,null,null,null,null,null,null,null,""]
[null,null,null,null,null,null,null,null,null,null,null,null,""]
[null,null,null,null,null,null,null,null,null,null,null,null,""]
[null,null,null,null,null,null,null,null,null,null,null,null,""]
[null,null,null,null,null,null,null,null,null,null,null,null,""]
[null,null,null,null,null,null,null,null,null,null,null,null,""]
[null,null,null,null,null,null,null,null,null,null,null,null,""]
[null,null,null,null,null,null,null,null,null,null,null,null,""]
[null,null,null,null,null,null,null,null,null,null,null,null,""]
[null,null,null,null,null,null,null,null,null,null,null,null,""]
[null,null,null,null,null,null,null,null,null,null,null,null,""]
[null,null,null,null,null,null,null,null,null,null,null,null,""]
[null,null,null,null,null,null,null,null,null,null,null,null,""]
[null,null,null,null,null,null,null,null,null,null,null,null,""]
[null,null,null,null,null,null,null,null,null,null,null,null,""]
[null,null,null,null,null,null,null,null,null,null,null,null,""]
[null,null,null,null,null,null,null,null,null,null,null,null,""]
[null,null,null,null,null,null,null,null,null,null,null,null,""]
[null,null,null,null,null,null,null,null,null,null,null,null,""]
[null,null,null,null,null,null,null,null,null,null,null,null,""]
[null,null,null,null,null,null,null,null,null,null,null,null,""]
[null,null,null,null,null,null,null,null,null,null,null,null,""]
[null,null,null,null,null,null,null,null,null,null,null,null,""]
[null,null,null,null,null,null,null,null,null,null,null,null,""]
[null,null,null,null,null,null,null,null,null,null,null,null,""]
[null,null,null,null,null,null,null,null,null,null,null,null,""]
[null,null,null,null,null,null,null,null,null,null,null,null,""]
[null,null,null,null,null,null,null,null,null,null,null,null,""]
[null,null,null,null,null,null,null,null,null,null,null,null,""]
[null,null,null,null,null,null,null,null,null,null,null,null,""]
[null,null,null,null,null,null,null,null,null,null,null,null,""]
[null,null,null,null,null,null,null,null,null,null,null,null,""]
[null,null,null,null,null,null,null,null,null,null,null,null,""]
[null,null,null,null,null,null,null,null,null,null,null,null,""]
[null,null,null,null,null,null,null,null,null,null,null,null,""]
[null,null,null,null,null,null,null,null,null,null,null,null,""]
[null,null,null,null,null,null,null,null,null,null,null,null,""]
[null,null,null,null,null,null,null,null,null,null,null,null,""]
[null,null,null,null,null,null,null,null,null,null,null,null,""]
[null,null,null,null,null,null,null,null,null,null,null,null,""]
[null,null,null,null,null,null,null,null,null,null,null,null,""]
[null,null,null,null,null,null,null,null,null,null,null,null,""]
[null,null,null,null,null,null,null,null,null,null,null,null,""]
[null,null,null,null,null,null,null,null,null,null,null,null,""]
[null,null,null,null,null,null,null,null,null,null,null,null,""]
[null,null,null,null,null,null,null,null,null,null,null,null,""]
[null,null,null,null,null,null,null,null,null,null,null,null,""]
[null,null,null,null,null,null,null,null,null,null,null,null,""]
[null,null,null,null,null,null,null,null,null,null,null,null,{"$f":"IF(J4787=\"\",\"\",IF(L4787<>\"\",\"OK\",IF(AND(K4787<>\"\",K4787<TODAY()),\"Retard\",\"Attente de Livraison\")))","v":""}]
[null,null,null,null,null,null,null,null,null,null,null,null,""]
[null,null,null,null,null,null,null,null,null,null,null,null,""]
[null,null,null,null,null,null,null,null,null,null,null,null,""]
[null,null,null,null,null,null,null,null,null,null,null,null,""]
[null,null,null,null,null,null,null,null,null,null,null,null,""]
[null,null,null,null,null,null,null,null,null,null,null,null,""]
[null,null,null,null,null,null,null,null,null,null,null,null,""]
[null,null,null,null,null,null,null,null,null,null,null,null,""]
[null,null,null,null,null,null,null,null,null,null,null,null,""]
[null,null,null,null,null,null,null,null,null,null,null,null,""]
[null,null,null,null,null,null,null,null,null,null,null,null,""]
[null,null,null,null,null,null,null,null,null,null,null,null,""]
[null,null,null,null,null,null,null,null,null,null,null,null,""]
[null,null,null,null,null,null,null,null,null,null,null,null,""]
[null,null,null,null,null,null,null,null,null,null,null,null,""]
[null,null,null,null,null,null,null,null,null,null,null,null,""]
[null,null,null,null,null,null,null,null,null,null,null,null,""]
[null,null,null,null,null,null,null,null,null,null,null,null,""]
[null,null,null,null,null,null,null,null,null,null,null,null,""]
[null,null,null,null,null,null,null,null,null,null,null,null,""]
[null,null,null,null,null,null,null,null,null,null,null,null,""]
[null,null,null,null,null,null,null,null,null,null,null,null,""]
[null,null,null,null,null,null,null,null,null,null,null,null,""]
[null,null,null,null,null,null,null,null,null,null,null,null,""]
[null,null,null,null,null,null,null,null,null,null,null,null,""]
[null,null,null,null,null,null,null,null,null,null,null,null,""]
[null,null,null,null,null,null,null,null,null,null,null,null,""]
[null,null,null,null,null,null,null,null,null,null,null,null,""]
[null,null,null,null,null,null,null,null,null,null,null,null,""]
[null,null,null,null,null,null,null,null,null,null,null,null,""]
[null,null,null,null,null,null,null,null,null,null,null,null,""]
[null,null,null,null,null,null,null,null,null,null,null,null,""]
[null,null,null,null,null,null,null,null,null,null,null,null,""]
[null,null,null,null,null,null,null,null,null,null,null,null,""]
[null,null,null,null,null,null,null,null,null,null,null,null,""]
[null,null,null,null,null,null,null,null,null,null,null,null,""]
[null,null,null,null,null,null,null,null,null,null,null,null,""]
[null,null,null,null,null,null,null,null,null,null,null,null,""]
[null,null,null,null,null,null,null,null,null,null,null,null,""]
[null,null,null,null,null,null,null,null,null,null,null,null,""]
[null,null,null,null,null,null,null,null,null,null,null,null,""]
[null,null,null,null,null,null,null,null,null,null,null,null,""]
[null,null,null,null,null,null,null,null,null,null,null,null,""]
[null,null,null,null,null,null,null,null,null,null,null,null,""]
[null,null,null,null,null,null,null,null,null,null,null,null,""]
[null,null,null,null,null,null,null,null,null,null,null,null,""]
[null,null,null,null,null,null,null,null,null,null,null,null,""]
[null,null,null,null,null,null,null,null,null,null,null,null,""]
[null,null,null,null,null,null,null,null,null,null,null,null,""]
[null,null,null,null,null,null,null,null,null,null,null,null,""]
[null,null,null,null,null,null,null,null,null,null,null,null,""]
[null,null,null,null,null,null,null,null,null,null,null,null,""]
[null,null,null,null,null,null,null,null,null,null,null,null,""]
[null,null,null,null,null,null,null,null,null,null,null,null,""]
[null,null,null,null,null,null,null,null,null,null,null,null,""]
[null,null,null,null,null,null,null,null,null,null,null,null,""]
[null,null,null,null,null,null,null,null,null,null,null,null,""]
[null,null,null,null,null,null,null,null,null,null,null,null,""]
[null,null,null,null,null,null,null,null,null,null,null,null,""]
[null,null,null,null,null,null,null,null,null,null,null,null,""]
[null,null,null,null,null,null,null,null,null,null,null,null,""]
[null,null,null,null,null,null,null,null,null,null,null,null,""]
[null,null,null,null,null,null,null,null,null,null,null,null,""]
[null,null,null,null,null,null,null,null,null,null,null,null,{"$f":"IF(J4851=\"\",\"\",IF(L4851<>\"\",\"OK\",IF(AND(K4851<>\"\",K4851<TODAY()),\"Retard\",\"Attente de Livraison\")))","v":""}]
[null,null,null,null,null,null,null,null,null,null,null,null,""]
[null,null,null,null,null,null,null,null,null,null,null,null,""]
[null,null,null,null,null,null,null,null,null,null,null,null,""]
[null,null,null,null,null,null,null,null,null,null,null,null,""]
[null,null,null,null,null,null,null,null,null,null,null,null,""]
[null,null,null,null,null,null,null,null,null,null,null,null,""]
[null,null,null,null,null,null,null,null,null,null,null,null,""]
[null,null,null,null,null,null,null,null,null,null,null,null,""]
[null,null,null,null,null,null,null,null,null,null,null,null,""]
[null,null,null,null,null,null,null,null,null,null,null,null,""]
[null,null,null,null,null,null,null,null,null,null,null,null,""]
[null,null,null,null,null,null,null,null,null,null,null,null,""]
[null,null,null,null,null,null,null,null,null,null,null,null,""]
[null,null,null,null,null,null,null,null,null,null,null,null,""]
[null,null,null,null,null,null,null,null,null,null,null,null,""]
[null,null,null,null,null,null,null,null,null,null,null,null,""]
[null,null,null,null,null,null,null,null,null,null,null,null,""]
[null,null,null,null,null,null,null,null,null,null,null,null,""]
[null,null,null,null,null,null,null,null,null,null,null,null,""]
[null,null,null,null,null,null,null,null,null,null,null,null,""]
[null,null,null,null,null,null,null,null,null,null,null,null,""]
[null,null,null,null,null,null,null,null,null,null,null,null,""]
[null,null,null,null,null,null,null,null,null,null,null,null,""]
[null,null,null,null,null,null,null,null,null,null,null,null,""]
[null,null,null,null,null,null,null,null,null,null,null,null,""]
[null,null,null,null,null,null,null,null,null,null,null,null,""]
[null,null,null,null,null,null,null,null,null,null,null,null,""]
[null,null,null,null,null,null,null,null,null,null,null,null,""]
[null,null,null,null,null,null,null,null,null,null,null,null,""]
[null,null,null,null,null,null,null,null,null,null,null,null,""]
[null,null,null,null,null,null,null,null,null,null,null,null,""]
[null,null,null,null,null,null,null,null,null,null,null,null,""]
[null,null,null,null,null,null,null,null,null,null,null,null,""]
[null,null,null,null,null,null,null,null,null,null,null,null,""]
[null,null,null,null,null,null,null,null,null,null,null,null,""]
[null,null,null,null,null,null,null,null,null,null,null,null,""]
[null,null,null,null,null,null,null,null,null,null,null,null,""]
[null,null,null,null,null,null,null,null,null,null,null,null,""]
[null,null,null,null,null,null,null,null,null,null,null,null,""]
[null,null,null,null,null,null,null,null,null,null,null,null,""]
[null,null,null,null,null,null,null,null,null,null,null,null,""]
[null,null,null,null,null,null,null,null,null,null,null,null,""]
[null,null,null,null,null,null,null,null,null,null,null,null,""]
[null,null,null,null,null,null,null,null,null,null,null,null,""]
[null,null,null,null,null,null,null,null,null,null,null,null,""]
[null,null,null,null,null,null,null,null,null,null,null,null,""]
[null,null,null,null,null,null,null,null,null,null,null,null,""]
[null,null,null,null,null,null,null,null,null,null,null,null,""]
[null,null,null,null,null,null,null,null,null,null,null,null,""]
[null,null,null,null,null,null,null,null,null,null,null,null,""]
[null,null,null,null,null,null,null,null,null,null,null,null,""]
[null,null,null,null,null,null,null,null,null,null,null,null,""]
[null,null,null,null,null,null,null,null,null,null,null,null,""]
[null,null,null,null,null,null,null,null,null,null,null,null,""]
[null,null,null,null,null,null,null,null,null,null,null,null,""]
[null,null,null,null,null,null,null,null,null,null,null,null,""]
[null,null,null,null,null,null,null,null,null,null,null,null,""]
[null,null,null,null,null,null,null,null,null,null,null,null,""]
[null,null,null,null,null,null,null,null,null,null,null,null,""]
[null,null,null,null,null,null,null,null,null,null,null,null,""]
[null,null,null,null,null,null,null,null,null,null,null,null,""]
[null,null,null,null,null,null,null,null,null,null,null,null,""]
[null,null,null,null,null,null,null,null,null,null,null,null,""]
[null,null,null,null,null,null,null,null,null,null,null,null,{"$f":"IF(J4915=\"\",\"\",IF(L4915<>\"\",\"OK\",IF(AND(K4915<>\"\",K4915<TODAY()),\"Retard\",\"Attente de Livraison\")))","v":""}]
[null,null,null,null,null,null,null,null,null,null,null,null,""]
[null,null,null,null,null,null,null,null,null,null,null,null,""]
[null,null,null,null,null,null,null,null,null,null,null,null,""]
[null,null,null,null,null,null,null,null,null,null,null,null,""]
[null,null,null,null,null,null,null,null,null,null,null,null,""]
[null,null,null,null,null,null,null,null,null,null,null,null,""]
[null,null,null,null,null,null,null,null,null,null,null,null,""]
[null,null,null,null,null,null,null,null,null,null,null,null,""]

{"sheet":"GestionLISTE","index":9,"n_rows":34,"n_cols":46,"rows_kept":34,"cut":false,"hidden":false,"merged":[[1,0,1,3],[5,15,10,15],[11,15,21,15],[14,18,14,19],[22,15,30,15]]}
[]
["Paramètre GMAO",null,null,null,null,"Catégorie",null,"Liste Fournisseur",null,"Délais",null,"Lieux stockage",null,"Liste Salarié Infirmerie",null,null,null,"Chemin pour Archivage Bon de Commande",null,"Chemin pour sauvegarde Image PhotosProduits",null,"Chemin pour sauvegarde Image interventions",null,"RechercheFournisseur","Ncol","Liste",null,"RechercheProduits","Ncol","Liste",null,"RechercheEntreSortie","Ncol","Liste",null,"Recherche Preventif P","Ncol","Liste",null,"RechercheCommande","Ncol","Liste",null,"Recherche Interventions","Ncol","Liste"]
["Couleur de fond des userform Valeurs RGB",96,138,195,null,"Bidon",null,null,null,"Dispo permanent en stock",null,"Réserve Infirmerie",null,"COSTES Brigitte",null,null,null,"Q:\\Commun\\partage plan de maintenance\\Gestion Stock Lingerie\\Archivage Bon de Commandes",null,"Q:\\",null,"C:\\",null,"Entreprise",1,1,null,"Référence produit",1,7,null,"Référence interne",1,1,null,"N°MP",1,7,null,"N°Commande",1,7,null,"N° action",1,7]
["MDP Admin","reglaet",null,null,null,"Boite",null,null,null,"1J",null,"Réserve Balnéo",null,"POUGET Catherine",null,null,null,null,null,"\\\\Commun\\partage plan de maintenance\\Gestion Stock Lingerie\\Photos Produits Lingerie",null,null,null,"activités",2,1,null,"Conditionnement",2,1,null,"Désignation",2,1,null,"Catégorie",2,7,null,"Saisi Par",2,7,null,"Catégorie",2,7]
["Sauvegarde pour multi utilisateur 1=Yes 2=No",1,null,null,null,"Carton",null,null,null,"2J",null,null,null,"SALESSES Marie Françoise",null,"A LIRE",null,null,null,null,null,null,null,"Adresse",3,3,null,"Dosage ",3,1,null,"Type",3,1,null,"Lieux",3,6,null,"Réf Produit",3,1,null,"Type Maintenance",3,7]
["MDP Affichage feuille Parc","reglaet",null,null,null,"Flacon",null,null,null,"3J",null,null,null,null,null,"Les données Verte peuvent etre supprimer et modifier ou ajouter meme si les Base de Données sont rempli ",null,null,null,null,null,"Chemin pour sauvegarde Image preventif",null,"Code postal",4,1,null,"Descriptif",4,3,null,"Date E/S",4,4,null,"Intervenant",4,7,null,"Conditionnement ",4,1,null,"Lieux",4,6]
["Liste intervenant",3,null,null,null,"Paquet",null,null,null,"4J",null,null,null,null,null,null,null,null,null,null,null,"C:\\",null,"Boite postale",5,1,null,"Péremption",5,1,null,"Qté",5,5,null,"Tache",5,3,null,"Dosage",5,1,null,"Intervenant",5,7]
["Selection ligne sur BD, 1= ok , autres = noOk",1,null,null,null,"Tube",null,null,null,"5J",null,null,null,null,null,null,null,null,null,null,null,null,null,"Ville",6,1,null,"Lieux",6,1,null,"Lieux",6,1,null,"En prod",6,1,null,"Fournisseur",6,1,null,"Priorité",6,7]
["blocage des touches 1= ok , autres = noOk","noOK",null,null,null,"Unité",null,null,null,">5J",null,null,null,null,null,null,null,null,null,null,null,null,null,"Pays",7,1,null,"Fournisseur1",7,1,null,null,null,null,null,"Temps",7,5,null,"Réf Fournisseur",7,1,null,"Travaux à effectuer",7,3]
["mot de passe pour supression interventions","reglaet",null,null,null,null,null,null,null,"Sur commande",null,null,null,null,null,null,null,null,null,null,null,null,null,"Contact",8,3,null,"Reference F1",8,1,null,null,null,null,null,"Freq (J)",8,5,null,"Prix Unitaire",8,5,null,"Date Demande",8,4]
["mot de passe pour supression preventif","reglaet",null,null,null,null,null,null,null,null,null,null,null,null,null,null,null,null,null,null,null,null,null,"Email",9,3,null,"Delais F1",9,1,null,null,null,null,null,"Dernière date réalisation",9,4,null,"Quantité",9,5,null,"Date Prévue",9,4]
["mot de passe pour supression fournisseur","reglaet",null,null,null,null,null,null,null,null,null,null,null,null,null,"Les données ORANGE sont des listes utilisées dans tout le classeur .\nVous pouvez ajouter et ou modifier les valeurs,\nCependant ne pas les suprimmer une fois les Base de Données rempli car des problèmes risque d'arrivé",null,null,null,null,null,null,null,"Tel.",10,3,null,"Prix unitaire F1",10,5,null,null,null,null,null,"Date plannifier",10,4,null,"Date de commande",10,4,null,"Date Réalisation",10,4]
["mot de passe pour supression produit","reglaet",null,null,null,null,null,null,null,null,null,null,null,null,null,null,null,null,null,null,null,null,null,"Fax",11,3,null,"Fournisseur 2",11,1,null,null,null,null,null,"Semaine plannifier",11,7,null,"Date de livraison prévue",11,4,null,"Délais Réalisation",11,5]
["mot de passe pour supression commande","reglaet",null,null,null,null,null,null,null,null,null,null,null,null,null,null,null,null,null,null,null,null,null,"Site",12,3,null,"Reference F2",12,1,null,null,null,null,null,"Etat",12,7,null,"Date de réception",12,4,null,"Suivi",12,7]
[null,null,null,null,null,"Type Sortie",null,null,null,null,null,null,null,null,null,null,null,null,"Permet de définir les type de recherche (col N3)",null,null,null,null,"Nom C1",13,3,null,"Delais F2",13,1,null,null,null,null,null,null,null,null,null,"Etat",13,7,null,"Commentaires",13,3]
["Modif Désignation des pièces 1= ok , autres = noOk",1,null,null,null,"Sortie ",null,null,null,null,null,null,null,null,null,null,null,null,"N°","Liste Recherche",null,null,null,"Fonction C1",14,3,null,"Prix unitaire F2",14,5,null,null,null,null,null,null,null,null,null,null,null,null,null,"Temps interventions(h)",14,5]
["Choix référence interne  1= ok , autres = noOk",1,null,null,null,"Sortie Périmé",null,null,null,null,null,null,null,null,null,null,null,null,1,"Liste suivant feuille",null,null,null,"Tel C1",15,3,null,"Stock",15,5,null,null,null,null,null,null,null,null,null,null,null,null,null,"Arret Prod ( h)",15,5]
[null,null,null,null,null,"Sortie Perte",null,null,null,null,null,null,null,null,null,null,null,null,2,"ListeRange",null,null,null,"Email C1",16,3,null,"Stock Min",16,5]
[null,null,null,null,null,"Sortie Dons",null,null,null,null,null,null,null,null,null,null,null,null,3,"SansListe",null,null,null,"Nom C2",17,3,null,"Produit à commander",17,1]
[null,null,null,null,null,null,null,null,null,null,null,"Lieux",null,null,null,null,null,null,4,"Date",null,null,null,"Fonction C2",18,3,null,"Coût stock",18,1]
[null,null,null,null,null,null,null,null,null,null,null,"BIP",null,null,null,null,null,null,5,"Numerique",null,null,null,"Tel C2",19,3,null,"Lieu de stockage",19,1]
[null,null,null,null,null,null,null,null,null,null,null,"Cuisine",null,null,null,null,null,null,6,"Lieux",null,null,null,"Email C2",20,3]
[null,null,null,null,null,null,null,null,null,null,null,"Infirmerie",null,null,null,"Les données Bleu corresponde à des listes qui sont utilisées pour la fonction recherche (Voir collone T , cela explique les types de listes)",null,null,7,"Liste case à cocher"]
[null,null,null,null,null,null,null,null,null,null,null,"Lingerie",null,null,null,null,null,null,null,"MEMO VBAListe de recherche définit :"]
[null,null,null,null,null,null,null,null,null,null,null,"LV 1",null,null,null,null,null,null,null,"RechercheFournisseur X2"]
[null,null,null,null,null,null,null,null,null,null,null,"LV 2",null,null,null,null,null,null,null,"RecherchePieces AB2"]
[null,null,null,null,null,null,null,null,null,null,null,"LV 3",null,null,null,null,null,null,null,"RechercheEntreSortie AF2"]
[null,null,null,null,null,null,null,null,null,null,null,"LV 4",null,null,null,null,null,null,null,"Recherche Preventif P AJ2"]
[null,null,null,null,null,null,null,null,null,null,null,"LV 5",null,null,null,null,null,null,null,"RechercheCommande AN2"]
[null,null,null,null,null,null,null,null,null,null,null,"MAS BQV",null,null,null,null,null,null,null,"Recherche Interventions AR3"]
[null,null,null,null,null,null,null,null,null,null,null,"Piscine"]
[null,null,null,null,null,null,null,null,null,null,null,"Secrétariat"]
[null,null,null,null,null,null,null,null,null,null,null,"Séjour"]
[null,null,null,null,null,null,null,null,null,null,null,"Snoezelen"]

{"sheet":"Etiquette","index":10,"n_rows":3,"n_cols":2,"rows_kept":3,"cut":false,"hidden":false,"merged":[[0,2,0,3],[1,1,1,3],[2,2,2,3]]}
["Réf interne :"]
["Désign :",""]
["Stock Mini :"]

{"sheet":"Contacts","index":11,"n_rows":176,"n_cols":20,"rows_kept":176,"cut":false,"hidden":false,"merged":[]}
[]
["Entreprise","activités","Adresse","Code postal","Boite postale","Ville","Pays","Contact","Email","Tel.","Fax","Site","Nom C1","Fonction C1","Tel C1","Email C1","Nom C2","Fonction C2","Tel C2","Email C2"]
["GROUPE PIERRE LE GOFF-SUD-OUEST","Produits d'entretien","22,rue Saint Exupéry\r\nParc d'activités des Lacs","33295","","BLANQUEFORT","FRANCE","ALVES JEAN-CLAUDE","","","","https://www.groupeplg.com","NATHALIE J","","05 57 10 61 07","","","","",""]
["STANDARD TEXTILE","Lingeire Collective","85, Avenue de l'industrie","69142","CS 90230","RILLIEUX LA PAPE ","FRANCE","04 72 47 17 55","","","","www.standard-textile.fr","Nadine Marquez","Conseiller commercial sédentaire ","","nmarquez@standardtextile.com","","","",""]
["NUTRISENS","Expert nutrition/santé","12,rue Alfred Kastler","71530","","FRAGNES LA LOYERE","FRANCE","Fabienne JONDOT","commandes@nutrisens.fr","0379460000","0380232700","","","","","","","","",""]
["VITAE","Fournisseur de materiel médical et chirurgical","rond point saint marc zac de l'auterne","12850","","Onet le Chateau","FRANCE","Corrine","","05 65 67 25 67","","","","","","","","","",""]
[]
[]
[]
[]
[]
[]
[]
[]
[]
[]
[]
[]
[]
[]
[]
[]
[]
[]
[]
[]
[]
[]
[]
[]
[]
[]
[]
[]
[]
[]
[]
[]
[]
[]
[]
[]
[]
[]
[]
[]
[]
[]
[]
[]
[]
[]
[]
[]
[]
[]
[]
[]
[]
[null,null,null,null,null,null,null,null,null,"","",null,"",null,null,null,null,"","",""]
[null,null,null,null,null,null,null,null,null,"","",null,"",null,null,null,null,"","",""]
[null,null,null,null,null,null,null,null,null,"","",null,"",null,null,null,null,"","",""]
[]
[]
[]
[]
[]
[]
[]
[]
[]
[]
[]
[]
[]
[]
[]
[]
[]
[]
[]
[]
[]
[]
[]
[]
[]
[]
[]
[]
[]
[]
[]
[]
[]
[]
[]
[null,null,null,null,null,null,null,null,null,"","",null,"",null,null,null,null,"","",""]
[null,null,null,null,null,null,null,null,null,"","",null,"",null,null,null,null,"","",""]
[null,null,null,null,null,null,null,null,null,"","",null,"",null,null,null,null,"","",""]
[]
[]
[]
[]
[]
[]
[]
[]
[]
[]
[]
[]
[]
[]
[]
[]
[]
[]
[]
[]
[]
[]
[]
[]
[]
[]
[]
[]
[]
[]
[]
[]
[]
[]
[]
[null,null,null,null,null,null,null,null,null,"","",null,"",null,null,null,null,"","",""]
[null,null,null,null,null,null,null,null,null,"","",null,"",null,null,null,null,"","",""]
[null,null,null,null,null,null,null,null,null,"","",null,"",null,null,null,null,"","",""]
[]
[]
[]
[]
[]
[]
[]
[]
[]
[]
[]
[]
[]
[]
[]
[]
[]
[]
[]
[]
[]
[]
[]
[]
[]
[]
[]
[]
[]
[]
[]
[]
[]
[]
[]
[null,null,null,null,null,null,null,null,null,"","",null,"",null,null,null,null,"","",""]
[null,null,null,null,null,null,null,null,null,"","",null,"",null,null,null,null,"","",""]
[null,null,null,null,null,null,null,null,null,"","",null,"",null,null,null,null,"","",""]

{"sheet":"Parc","index":12,"n_rows":8,"n_cols":3,"rows_kept":8,"cut":false,"hidden":false,"merged":[]}
["Lieux","Machine","Sous ensemble"]
["Ensemble MAS"]
["Infirmerie"]
["LV 1"]
["LV 2"]
["LV 3"]
["LV 4"]
["LV 5"]

{"sheet":"Trame Bon de Commande","index":13,"n_rows":58,"n_cols":8,"rows_kept":58,"cut":false,"hidden":false,"merged":[[18,5,19,5],[18,7,19,7]]}
[]
[]
[]
[]
[]
[]
[]
[null,null,null,null,"BON DE COMMANDE"]
[]
[]
[]
["Emetteur :   ",null,null,null,"Date : "]
[]
["Destinataire : "]
[]
[]
[]
[]
[null,null,null,null,null,"QUANTITE","PRIX","TOTAL"]
[null,"OBJET",null,null,null,null,"UNIT. HT"]
[null,null,null,null,null,null,null,{"$f":"F21*G21","v":0}]
[null,null,null,null,null,null,null,0]
[null,null,null,null,null,null,null,0]
[null,null,null,null,null,null,null,0]
[null,null,null,null,null,null,null,0]
[null,null,null,null,null,null,null,0]
[null,null,null,null,null,null,null,0]
[null,null,null,null,null,null,null,0]
[null,null,null,null,null,null,null,0]
[null,null,null,null,null,null,null,0]
[null,null,null,null,null,null,null,0]
[null,null,null,null,null,null,null,0]
[null,null,null,null,null,null,null,0]
[null,null,null,null,null,null,null,0]
[null,null,null,null,null,null,null,0]
[null,null,null,null,null,null,null,0]
[null,null,null,null,null,null,null,0]
[null,null,null,null,null,null,null,0]
[null,null,null,null,null,null,null,0]
[null,null,null,null,null,null,null,0]
[null,null,null,null,null,null,null,0]
[null,null,null,null,null,null,null,0]
[null,null,null,null,null,null,null,0]
[null,null,null,null,null,null,null,0]
[null,null,null,null,null,null,null,0]
[null,null,null,null,null,null,null,0]
[null,null,null,null,null,null,null,0]
["Facturation avant le 10 m+1",null,null,null,null,null,null,0]
[]
["Paiement à 45 jours",null,null,"TOTAL HT",null,null,null,{"$f":"SUM(H21:H49)","v":0}]
[]
[null,null,null,"TVA A ",0.2,null,null,{"$f":"H50*E52","v":0}]
[]
[]
[null,null,null,"TOTAL TTC",null,null,null,{"$f":"H50+H52","v":0}]
[]
[]
["SIGNATURE"]